{"text_format":"1","workbook":"xlsx","n_sheets":20,"sheets":["Portada","G1","M1","M2","M3","M4","WTE1","WTE2","Salida datos tecnicos","Costos","Ingresos","6","7","8","dbTemp","EFINA-1","EFINA-2","EFINA-3","Reporte viabilidad","Hoja3"],"not_rendered":{"charts":0,"images":6,"macros":1,"external_links":0,"defined_names":5,"comments":3,"pivot_tables":0},"unopened":[],"bounds":{"document_bytes":16777216,"sheet_cells":100000,"rows_first":2000,"rows_last":500,"rows_between":2000,"halvings":0,"cell_chars":16384,"cell_head_chars":4096},"cells_cut":0,"cells_raw":0,"read":"whole","date_system":"1900"}

{"sheet":"Portada","index":0,"n_rows":14,"n_cols":2,"rows_kept":14,"cut":false,"hidden":false,"merged":[[17,3,19,8],[13,1,15,7]]}
[]
[]
[]
[]
[]
[]
[]
[]
[]
[]
[]
[]
[]
[null,"Herramienta de viabilidad para la valorización energética de la biomasa residual "]

{"sheet":"G1","index":1,"n_rows":43,"n_cols":5,"rows_kept":43,"cut":false,"hidden":true,"merged":[[36,2,36,6],[37,4,37,6],[38,1,42,1],[38,2,42,2],[38,4,38,6],[39,4,39,6],[40,4,40,6],[41,4,41,6],[42,4,42,6],[8,1,10,1],[8,2,10,2],[8,4,8,6],[9,4,9,6],[10,4,10,6],[11,1,34,1],[11,2,34,2],[11,4,11,6],[12,4,12,6],[13,4,13,6],[14,3,22,3],[14,4,16,4],[17,4,19,4],[20,4,22,4],[23,3,34,3],[23,4,25,4],[26,4,28,4],[29,4,31,4],[32,4,34,4],[1,1,1,6],[2,4,2,6],[4,2,4,6],[5,1,7,1],[5,2,7,2],[5,4,5,6],[6,4,6,6],[7,4,7,6]]}
[]
[null,"Modelo para establecer la viabilidad técnica, ambiental,  financiera y económica de proyectos replicables en diferentes sectores, municipios, regiones, con diversos tipos de residuos en Colombia"]
[null,null,null,null,"Hoja 1"]
[]
[null,1,"ASPECTOS GENERALES"]
[null,{"$f":"+B5+0.1","v":1.1000000000000001},"Localización del proyecto","Nombre del municipio:","Montería"]
[null,null,null,"Departamento:","Córdoba"]
[null,null,null,"Vereda:","Campo Alegre"]
[null,{"$f":"+B6+0.1","v":1.2000000000000002},"Coordenadas, Magna Sirgas:","Origen:","Bogotá"]
[null,null,null,"Norte ",1030000]
[null,null,null,"Este:",1001010]
[null,{"$f":"+B9+0.1","v":1.3000000000000003},"Sitio del proyecto:","Area total del predio para el proyecto, Has:",25]
[null,null,null,"% de utilización:",0.35]
[null,null,null,"Distancia a Casco Urbano, Km",10]
[null,null,null,"Propiedad del predio:","Privado:"]
[]
[]
[null,null,null,null,"Municipal:"]
[]
[]
[null,null,null,null,"ESP:"]
[]
[]
[null,null,null,"Topografía del terreno:","Plana:"]
[]
[]
[null,null,null,null,"Ondulada:"]
[]
[]
[null,null,null,null,"Montañosa:"]
[]
[]
[null,null,null,null,"Mixta:"]
[]
[]
[]
[null,{"$f":"+B5+1","v":2},"ASPECTOS AMBIENTALES"]
[null,{"$f":"+B37+0.1","v":2.1},"Altura","Altura sobre el nivel del mar, msnm:",140]
[null,{"$f":"+B38+0.1","v":2.2000000000000002},"Aspectos climáticos","Precipitación promedio anual, mm/año:",1500]
[null,null,null,"Temperatura media anual, oC:",30]
[null,null,null,"Radiación solar, Ly/año:",4.5]
[null,null,null,"Humedad relativa promedio anual, %",0.85]
[null,null,null,"Velocidad del viento promedio anual, m/s:",1.5]

{"sheet":"M1","index":2,"n_rows":28,"n_cols":18,"rows_kept":28,"cut":false,"hidden":true,"merged":[[4,16,4,17],[4,7,4,15],[4,4,4,6],[1,1,1,17],[3,1,6,1],[3,2,6,2],[3,3,6,3],[3,4,3,17]]}
[]
[null,"Cantidad de Biomasa alimentada por el usuario"]
[]
[null,"N","Municipio","Población urbana DANE 2018","Cantidad Biomasa, ton/año"]
[null,null,null,null,"Pecuario",null,null,"Agrícola",null,null,null,null,null,null,null,null,"Urbano"]
[null,null,null,null,{"$f":"+'M2'!C7","v":"Avícola"},{"$f":"+'M2'!C8","v":"Porcícola"},{"$f":"+'M2'!C9","v":"Bovino"},{"$f":"+'M2'!C11","v":"Arroz"},{"$f":"+'M2'!C12","v":"Banano"},{"$f":"+'M2'!C13","v":"Café Pulpa "},{"$f":"+'M2'!C14","v":"Café Mucigalo"},"Maíz",{"$f":"+'M2'!C16","v":"Palma de Aceite"},{"$f":"+'M2'!C17","v":"Plátano"},{"$f":"+'M2'!C18","v":"Caña de Azúcar"},{"$f":"+'M2'!C19","v":"Caña Panelera"},{"$f":"+'M2'!C21","v":"RSU"},{"$f":"+'M2'!C22","v":"Lodos PTAR"}]
[null,null,null,null,{"$f":"+'M2'!D7","v":"Estiércol"},{"$f":"+'M2'!D8","v":"Estiércol"},{"$f":"+'M2'!D9","v":"Estiércol"},{"$f":"+'M2'!D11","v":"Paja"},{"$f":"+'M2'!D12","v":"Fruta Rechazo"},{"$f":"+'M2'!D13","v":"Pulpa"},{"$f":"+'M2'!D14","v":"Mucilago"},{"$f":"+'M2'!D15","v":"Caña"},{"$f":"+'M2'!D16","v":"RFF "},{"$f":"+'M2'!D17","v":"Fruta Rechazo"},{"$f":"+'M2'!D18","v":"Bagazo"},{"$f":"+'M2'!D19","v":"Bagazo"},{"$f":"+'M2'!D21","v":"RSOU"},{"$f":"+'M2'!D22","v":"Lodos"}]
[null,1]
[null,2]
[null,3]
[null,{"$f":"+B10+1","v":4}]
[null,5]
[null,6]
[null,7]
[null,8]
[null,9]
[null,10]
[null,11]
[null,12]
[null,13]
[null,14]
[null,15]
[null,16]
[null,17]
[null,18]
[null,19]
[null,null,{"$f":"IF(C8=\"BIOMASAS TOTALES\",\"TOTAL\",\"B\")","v":"B"},{"$f":"+SUM(D8:D26)","v":0},{"$f":"+SUM(E8:E26)","v":0},{"$f":"+SUM(F8:F26)","v":0},{"$f":"+SUM(G8:G26)","v":0},0,0,0,0,0,{"$f":"+SUM(M8:M26)","v":0},{"$f":"+SUM(N8:N26)","v":0},{"$f":"+SUM(O8:O26)","v":0},{"$f":"+SUM(P8:P26)","v":0},{"$f":"+SUM(Q8:Q26)","v":0},{"$f":"+SUM(R8:R26)","v":0}]
[null,null,"Total Biomasa:",{"$f":"+SUM(E27:R27)","v":0},{"$f":"+E6","v":"Avícola"},{"$f":"+F6","v":"Porcícola"},"Bovino","Arroz","Banano","Café Pulpa ","Café Mucigalo","Maíz","Palma de Aceite",{"$f":"+N6","v":"Plátano"},"Caña de Azúcar","Caña Panelera","RSU","Lodos PTAR"]

{"sheet":"M2","index":3,"n_rows":24,"n_cols":10,"rows_kept":24,"cut":false,"hidden":true,"merged":[[23,1,23,9],[1,1,1,9],[3,1,4,1],[3,2,4,2],[3,3,4,3],[3,6,3,7],[9,1,9,3],[19,1,19,3],[3,8,3,9],[5,1,5,3],[3,4,4,4],[3,5,4,5]]}
[]
[null,"Cantidad de Biomasa disponible por tipo de tecnología"]
[]
[null,"N","Sector ","Biomasa","% MV","% Humedad"," Tecnología mas empleada ",null,"Oferta biomasa, ton/año"]
[null,null,null,null,null,null," Térmica ","Biológica",{"$f":"+G5","v":" Térmica "},"Biológica"]
[null," Pecuario "]
[null,1,"Avícola","Estiércol",43,0.6,null,"X",null,{"$f":"+'M1'!E27","v":0}]
[null,2,"Porcícola","Estiércol",47,0.7,null,"X",null,{"$f":"+'M1'!F27","v":0}]
[null,3,"Bovino","Estiércol",60.5,0.75,null,"X",null,{"$f":"+'M1'!G27","v":0}]
[null," Agrícola "]
[null,4,"Arroz","Paja",82,0.08,"X","X",{"$f":"+'M1'!H27","v":0},{"$f":"+I11","v":0}]
[null,5,"Banano","Fruta Rechazo",82,0.94,null,"X",null,{"$f":"+'M1'!I27","v":0}]
[null,6,"Café Pulpa ","Pulpa",null,0.8,null,"X",null,{"$f":"+'M1'!J27","v":0}]
[null,7,"Café Mucigalo","Mucilago",null,0.8,null,"X",null,{"$f":"+'M1'!K27","v":0}]
[null,8,"Maíz","Caña",82,0.08,"X","X",{"$f":"+'M1'!L27","v":0},{"$f":"+I15","v":0}]
[null,9,"Palma de Aceite","RFF ",null,0.1,"X","X",{"$f":"+'M1'!M27","v":0},{"$f":"+I16","v":0}]
[null,10,"Plátano","Fruta Rechazo",82,0.94,null,"X",null,{"$f":"+'M1'!N27","v":0}]
[null,11,"Caña de Azúcar","Bagazo",82,0.08,"X",null,{"$f":"+'M1'!O27","v":0}]
[null,12,"Caña Panelera","Bagazo",82,0.08,"X",null,{"$f":"+'M1'!P27","v":0}]
[null," Urbano "]
[null,13,"RSU","RSOU",51,0.55000000000000004,null,"X",null,{"$f":"+'M1'!Q27","v":0}]
[null,14,"Lodos PTAR","Lodos",null,0.97,null,"X",null,{"$f":"+'M1'!R27","v":0}]
[null,null,"Suma",null,null,{"$f":"+(F11*I11+F15*I15+F16*I16+F18*I18+F19*I19)/I23","v":{"$error":"#DIV/0!"}},null,null,{"$f":"+SUM(I6:I22)","v":0},{"$f":"+SUM(J6:J22)","v":0}]
[null,"Fuente: Estimación potencial de conversión a Biogás de la Biomasa en Colombia y su aprovechamiento. UNAL. 2018."]

{"sheet":"M3","index":4,"n_rows":28,"n_cols":11,"rows_kept":28,"cut":false,"hidden":true,"merged":[[5,1,5,3],[9,1,9,3],[19,1,19,3],[3,6,3,7],[1,1,1,10],[3,1,4,1],[3,2,4,2],[3,3,4,3],[3,4,3,5],[3,8,3,10],[27,2,27,10],[24,2,24,10],[25,2,25,10],[26,2,26,10],[23,1,23,10]]}
[]
[null,"Cálculo de la cantidad de energía producida por el  proyecto"]
[]
[null,"N","Sector ","Biomasa"," Tecnología mas empleada ",null,"Biogás",null,"Térmico - PCI"]
[null,null,null,null," Térmica ","Biológica","m3 biogás / Ton biomasa","m3/año","Kcal/Kg seco","MJ/Kg seco","TJ/año"]
[null," Pecuario "]
[null,1,"Avícola","Estiércol",null,"X",60.000003222826201,{"$f":"+G7*'M2'!J7","v":0},2946.5,{"$f":"+I7/238.846","v":12.336400860805707},{"$f":"+J7*'M2'!I7*1000*(1-'M2'!F7)/1000000","v":0}]
[null,2,"Porcícola","Estiércol",null,"X",40,{"$f":"+G8*'M2'!J8","v":0},5106,{"$f":"+I8/238.846","v":21.377791547691817},{"$f":"+J8*'M2'!I8*1000*(1-'M2'!F8)/1000000","v":0}]
[null,3,"Bovino","Estiércol",null,"X",40.000031911159333,{"$f":"+G9*'M2'!J9","v":0},3421.3333333333335,14.324432200385743,{"$f":"+J9*'M2'!I9*1000*(1-'M2'!F9)/1000000","v":0}]
[]
[null,4,"Arroz","Paja *","X","X",73,{"$f":"+G11*'M2'!J11","v":0},3358,{"$f":"+I11/238.846","v":14.059268315148673},{"$f":"+J11*'M2'!I11*1000*(1-'M2'!F11)/1000000","v":0}]
[null,5,"Banano","Fruta Rechazo",null,"X",4.5999999999999996,{"$f":"+G12*'M2'!J12","v":0},2109.6666666666665,{"$f":"+I12/238.846","v":8.8327485771864147},{"$f":"+J12*'M2'!I12*1000*(1-'M2'!F12)/1000000","v":0}]
[null,6,"Café Pulpa ","Pulpa",null,"X",24.999972964204606,{"$f":"+G13*'M2'!J13","v":0},4357.666666666667,18.244670903706435,{"$f":"+J13*'M2'!I13*1000*(1-'M2'!F13)/1000000","v":0}]
[null,7,"Café Mucigalo","Mucilago",null,"X",74.109138059170476,{"$f":"+G14*'M2'!J14","v":0},0,0,{"$f":"+J14*'M2'!I14*1000*(1-'M2'!F14)/1000000","v":0}]
[null,8,"Maíz","Caña **","X","X",55,{"$f":"+G15*'M2'!J15","v":0},3727,15.604196846503605,{"$f":"+J15*'M2'!I15*1000*(1-'M2'!F15)/1000000","v":0}]
[null,9,"Palma de Aceite","RFF","X","X",20,{"$f":"+G16*'M2'!J16","v":0},4094.3333333333335,17.142147380878615,{"$f":"+J16*'M2'!I16*1000*(1-'M2'!F16)/1000000","v":0}]
[null,10,"Plátano","Fruta Rechazo",null,"X",1.5079628174020028,{"$f":"+G17*'M2'!J17","v":0},1920,8.0386525208711888,{"$f":"+J17*'M2'!I17*1000*(1-'M2'!F17)/1000000","v":0}]
[null,11,"Caña de Azúcar","Bagazo ** **","X",null,0.16539191043338555,{"$f":"+G18*'M2'!J18","v":0},4070,17.040268624971738,{"$f":"+J18*'M2'!I18*1000*(1-'M2'!F18)/1000000","v":0}]
[null,12,"Caña Panelera","Bagazo","X",null,0.16424396004320108,{"$f":"+G19*'M2'!J19","v":0},4049,16.952345863024711,{"$f":"+J19*'M2'!I19*1000*(1-'M2'!F19)/1000000","v":0}]
[null," Urbano "]
[null,13,"RSU","RSOU",null,"X",65.999992286742454,{"$f":"+G21*'M2'!J21","v":0},3772,{"$f":"+I21/238.846","v":15.792602764961524},{"$f":"+J21*'M2'!I21*1000*(1-'M2'!F21)/1000000","v":0}]
[null,14,"Lodos PTAR ** *","Lodo humedo crudo al 99% de humedad",null,"X",55,{"$f":"+G22*'M2'!J22","v":0},8.1215637034592592E-6,3.4003348196994124E-8,{"$f":"+J22*'M2'!I22*1000*(1-'M2'!F22)/1000000","v":0}]
[null,null,"Total:",null,null,null,null,{"$f":"+SUM(H6:H22)","v":0},null,null,{"$f":"+SUM(K6:K22)","v":0}]
[null,"Fuente: Estimación potencial de conversión a Biogás de la Biomasa en Combia y su aprovechamiento. UNAL. 2018."]
[null,"*","Estimado para un potencial de biogas es de 1.400 m3/Ha; 1 Ha produce 4,8 ton paja/Ha. La disponibilidad de paja es del 25%; la paja contiene 15% de humedad."]
[null,"**","Estimado para un potencial de biogás de 55 m3 biogas / ton bagazo de maiz; La cantidad de biomasa por tonelada de maiz tienen una relación aproximada de 1:1"]
[null,"***","Estimado para la PTAR Salitre, tomando en cuenta que en año 2015 se generaron 209 m3 biogás/ton de biosólido tratado con una sequedad del 27% (Fuente: EAAB. 2015)"]
[null,"** **","Se producen 19,4 ton / Ha - año de bagazo con un contenido de humedad del 16%."]

{"sheet":"M4","index":5,"n_rows":37,"n_cols":10,"rows_kept":37,"cut":false,"hidden":true,"merged":[[22,2,23,2],[32,2,32,3],[33,2,33,3],[34,2,34,3],[35,2,36,2],[1,1,1,9],[3,1,4,1],[3,2,4,2],[3,3,4,3],[3,4,3,5],[29,1,30,1],[29,4,29,5],[29,6,29,8],[3,6,3,8],[5,1,5,3],[29,2,30,3],[9,1,9,3],[19,1,19,3],[25,1,25,9]]}
["  "]
[null,"Carga del proyecto por tipo de tecnología"]
[]
[null,"N","Sector ","Biomasa","Tipo de Tecnología",null,"Carga del proyecto ton/año",null,null,"Biogás m3/año"]
[null,null,null,null," Térmica ","Biológica","WTE Degradación anaeróbica","WTE Incineración","WTE Pirolisis",{"$f":"+G5","v":"WTE Degradación anaeróbica"}]
[null," Pecuario "]
[null,1,"Avícola","Estiércol",null,"X",{"$f":"+'M2'!J7","v":0},{"$f":"+'M2'!I7","v":0},{"$f":"+'M2'!I7","v":0},{"$f":"+G7*'M3'!G7","v":0}]
[null,2,"Porcícola","Estiércol",null,"X",{"$f":"+'M2'!J8","v":0},{"$f":"+'M2'!I8","v":0},{"$f":"+'M2'!I8","v":0},{"$f":"+G8*'M3'!G8","v":0}]
[null,3,"Bovino","Estiércol",null,"X",{"$f":"+'M2'!J9","v":0},{"$f":"+'M2'!I9","v":0},{"$f":"+'M2'!I9","v":0},{"$f":"+G9*'M3'!G9","v":0}]
[null," Agrícola "]
[null,4,"Arroz","Paja","X","X",{"$f":"+'M2'!J11","v":0},{"$f":"+'M2'!I11","v":0},{"$f":"+'M2'!I11","v":0},{"$f":"+G11*'M3'!G11","v":0}]
[null,5,"Banano","Fruta Rechazo",null,"X",{"$f":"+'M2'!J12","v":0},{"$f":"+'M2'!I12","v":0},{"$f":"+'M2'!I12","v":0},{"$f":"+G12*'M3'!G12","v":0}]
[null,6,"Café Pulpa ","Pulpa",null,"X",{"$f":"+'M2'!J13","v":0},{"$f":"+'M2'!I13","v":0},{"$f":"+'M2'!I13","v":0},{"$f":"+G13*'M3'!G13","v":0}]
[null,7,"Café Mucigalo","Mucilago",null,"X",{"$f":"+'M2'!J14","v":0},{"$f":"+'M2'!I14","v":0},{"$f":"+'M2'!I14","v":0},{"$f":"+G14*'M3'!G14","v":0}]
[null,8,"Maíz","Caña","X","X",{"$f":"+'M2'!J15","v":0},{"$f":"+'M2'!I15","v":0},{"$f":"+'M2'!I15","v":0},{"$f":"+G15*'M3'!G15","v":0}]
[null,9,"Palma de Aceite","RFF","X","X",{"$f":"+'M2'!J16","v":0},{"$f":"+'M2'!I16","v":0},{"$f":"+'M2'!I16","v":0},{"$f":"+G16*'M3'!G16","v":0}]
[null,10,"Plátano","Fruta Rechazo",null,"X",{"$f":"+'M2'!J17","v":0},{"$f":"+'M2'!I17","v":0},{"$f":"+'M2'!I17","v":0},{"$f":"+G17*'M3'!G17","v":0}]
[null,11,"Caña de Azúcar","Bagazo","X",null,{"$f":"+'M2'!J18","v":0},{"$f":"+'M2'!I18","v":0},{"$f":"+'M2'!I18","v":0},{"$f":"+G18*'M3'!G18","v":0}]
[null,12,"Caña Panelera","Bagazo","X",null,{"$f":"+'M2'!J19","v":0},{"$f":"+'M2'!I19","v":0},{"$f":"+'M2'!I19","v":0},{"$f":"+G19*'M3'!G19","v":0}]
[null," Urbano "]
[null,13,"RSU","RSOU",null,"X",{"$f":"+'M2'!J21","v":0},{"$f":"+'M2'!I21","v":0},{"$f":"+'M2'!I21","v":0},{"$f":"+G21*'M3'!G21","v":0}]
[null,14,"Lodos PTAR","Lodos",null,"X",{"$f":"+'M2'!J22","v":0},{"$f":"+'M2'!I22","v":0},{"$f":"+'M2'!I22","v":0},{"$f":"+G22*'M3'!G22","v":0}]
[null,null,"Total:","ton/año:",null,null,{"$f":"+SUM(G6:G22)","v":0},{"$f":"+SUM(H6:H22)","v":0},{"$f":"+SUM(I6:I22)","v":0},{"$f":"+SUM(J6:J22)","v":0}]
[null,null,null,"ton/d","(312d/año)",null,{"$f":"+G23/312","v":0},{"$f":"+H23/312","v":0},0,{"$f":"+J23/312","v":0}]
[null,null,"Capacidad :","ton/d",null,null,{"$f":"+ROUNDUP(G24*1.03,0)","v":0},{"$f":"+ROUNDUP(H24*1.03,0)","v":0},{"$f":"+ROUNDUP(I24*1.03,0)","v":0}]
[null,"Fuente: Estimación potencial de conversión a Biogás de la Biomasa en Colombia y su aprovechamiento. UNAL. 2018."]
[]
[null,"Distribución de las biomasas en la Planta"]
[]
[null,"N","Tipo de biomasa según proceso",null," Tecnología mas empleada ",null,"Carga del proyecto ton/año",null,null,"Biogás m3/año"]
[null,null,null,null," Térmica ","Biológica","Tecnología 1","Tecnología 2","Tecnología 3",{"$f":"+G31","v":"Tecnología 1"}]
[]
[null,1,"RSUO",null,null,"X",{"$f":"+G21","v":0},{"$f":"+H21","v":0},{"$f":"+I21","v":0},{"$f":"+J21","v":0}]
[null,2,"Líquidas",null,null,"X",{"$f":"+G22+G9+G8+G7","v":0},{"$f":"+H22+H9+H8+H7","v":0},{"$f":"+I22+I9+I8+I7","v":0},{"$f":"+J22+J9+J8+J7","v":0}]
[null,3,"Otras Biomasas sólidas",null,null,"X",{"$f":"+G23-G33-G34","v":0},{"$f":"+H23-H33-H34","v":0},0,0]
[null,null,"Total:","ton/año:",null,null,{"$f":"+SUM(G33:G35)","v":0},{"$f":"+SUM(H33:H35)","v":0},0,{"$f":"+SUM(J33:J35)","v":0}]
[null,null,null,"ton/d","(312d/año)",null,{"$f":"+G36/312","v":0},{"$f":"+H36/312","v":0},0,0]

{"sheet":"WTE1","index":6,"n_rows":200,"n_cols":6,"rows_kept":200,"cut":false,"hidden":true,"merged":[[90,2,91,2],[28,1,29,1],[28,2,29,2],[34,1,35,1],[34,2,35,2],[34,5,35,5],[22,1,23,1],[22,2,23,2],[22,3,23,3],[22,5,23,5],[54,1,55,1],[54,2,55,2],[54,3,55,3],[54,5,55,5],[70,1,71,1],[70,2,71,2],[67,1,68,1],[67,2,68,2],[67,3,68,3],[67,5,68,5],[89,2,89,5],[87,1,88,1],[87,2,88,2],[87,3,88,3],[145,2,146,2],[157,1,158,1],[157,2,158,2],[157,3,158,3],[157,5,158,5],[116,2,116,5],[123,1,124,1],[123,2,124,2],[123,3,124,3],[142,1,143,1],[145,1,146,1],[125,2,125,5],[117,2,118,2],[173,2,174,2],[173,5,174,5],[176,1,177,1],[176,2,177,2],[176,3,177,3],[176,5,177,5],[153,2,154,2],[159,2,159,5],[160,1,161,1],[160,2,161,2],[98,2,98,5],[123,5,124,5],[15,5,16,5],[78,2,78,5],[114,1,115,1],[114,2,115,2],[114,3,115,3],[114,5,115,5],[96,1,97,1],[96,2,97,2],[96,3,97,3],[76,2,77,2],[76,3,77,3],[76,5,77,5],[87,5,88,5],[24,2,24,5],[56,2,56,5],[69,2,69,5],[96,5,97,5],[90,1,91,1],[43,2,43,5],[79,1,81,1],[79,2,81,2],[117,1,118,1],[195,2,195,5],[193,1,194,1],[193,2,194,2],[193,3,194,3],[193,5,194,5],[163,1,165,1],[163,2,165,2],[126,2,127,2],[126,1,127,1],[144,2,144,5],[142,2,143,2],[142,3,143,3],[142,5,143,5],[128,1,129,1],[128,2,129,2],[153,1,154,1],[190,1,191,1],[190,2,191,2],[178,2,178,5],[180,1,181,1],[180,2,181,2],[182,1,183,1],[182,2,183,2],[173,1,174,1],[41,1,42,1],[41,2,42,2],[41,3,42,3],[41,5,42,5],[76,1,77,1],[1,1,1,5],[6,2,6,5],[11,1,12,1],[11,2,12,2],[3,1,5,1],[3,2,5,2],[3,3,5,3],[3,5,5,5],[15,1,16,1],[15,2,16,2]]}
[]
[null,"WTE Degradación anaeróbica"]
[null,null,null,null,null,"Versión: 190117"]
[null,"N","Parámetro","Unidad","Valor","Observación"]
[null,null,null,null,"WTE Biogas"]
[null,null,null,null,{"$f":"+'M4'!G25","v":0}]
[null,1,"BAHÍA DESCARGUE DE RSOU"]
[null,{"$f":"+B7+0.1","v":1.1000000000000001},"Carga inicial, W:","Ton/d",{"$f":"+'M4'!G21/312","v":0},"RSOU"]
[null,{"$f":"+B8+0.1","v":1.2000000000000002},"Densidad del material","ton/m3",0.35]
[null,{"$f":"+B9+0.1","v":1.3000000000000003},"Capacidad báscula de pesaje","tn",40,"Báscula camionera"]
[null,{"$f":"+B10+0.1","v":1.4000000000000004},"Peso promedio por vehículo recolector:","ton/viaje",10.5]
[null,{"$f":"+B11+0.1","v":1.5000000000000004},"Viajes promedio entrada PT-WTE:","Viajes/d",{"$f":"+ROUND(E8/E11,0)","v":0}]
[null,null,null,"viajes/hr",{"$f":"+ROUNDUP(E12/24,0)","v":0},"Ingreso las 24 H"]
[null,{"$f":"+B12+0.1","v":1.6000000000000005},"Relación viajes máximo horario / prom horario:","viajes/viajes",3.5,"Estimado con base en diagrama frecuencias en Relleno sanitario"]
[null,{"$f":"+B14+0.1","v":1.7000000000000006},"Viajes máximo entrada PT-WTE (hora pico):","viajes/hr",{"$f":"+ROUNDUP(E12*E14/24,0)","v":0}]
[null,{"$f":"+B15+0.1","v":1.8000000000000007},"Tiempo total en la bahía de descarga (tiempo de servicio):","min/vehículo",8,"Número de vehículos que se pueden atender en una unidad de servicio"]
[null,null,null,"veh/hr",{"$f":"+ROUNDUP(60/E16,0)","v":8}]
[null,{"$f":"+B16+0.1","v":1.9000000000000008},"Número de unidades de servicio:","Und",{"$f":"+ROUNDUP(E15/E17,0)+1","v":1},"Bahías de descarga"]
[null,{"$f":"+B8","v":1.1000000000000001},"Ancho unitario área de descargue, a:","m/veh",3.5]
[null,{"$f":"+B19+0.01","v":1.1100000000000001},"Separación entre vehículos:","m",1]
[null,{"$f":"+B20+0.01","v":1.1200000000000001},"Total ancho bahía de descarga, A:","m",{"$f":"+E18*(E19+E20)","v":4.5},"RSOU"]
[]
[null,"N","Parámetro","Unidad","Valor","Observación"]
[null,null,null,null,{"$f":"+E43","v":0}]
[null,{"$f":"+B7+1","v":2},"BAHÍA DESCARGUE DE LAS OTRAS BIOMASAS SOLIDAS"]
[null,{"$f":"+B25+0.1","v":2.1},"Carga inicial, W:","Ton/d",{"$f":"+E24-E45","v":0},"Material orgánico en bolsas plásticas"]
[null,{"$f":"+B26+0.1","v":2.2000000000000002},"Densidad del material","ton/m3",0.35]
[null,{"$f":"+B27+0.1","v":2.3000000000000003},"Peso promedio por vehículo recolector:","ton/viaje",12.5,"Vehículos recolectores otras biomasas"]
[null,{"$f":"+B28+0.1","v":2.4000000000000004},"Viajes promedio entrada PT-WTE:","Viajes/d",{"$f":"+ROUND(E26/E28,0)","v":0}]
[null,null,null,"viajes/hr",{"$f":"+ROUNDUP(E29/24,0)","v":0},"Ingreso las 24 H"]
[null,{"$f":"+B29+0.1","v":2.5000000000000004},"Viajes promedio diario por vehículo:","viajes/d-v",5]
[null,{"$f":"+B31+0.1","v":2.6000000000000005},"Número de vehículos requeridos:",null,{"$f":"+ROUND(E29/E31,0)","v":0},"Vehículos recolectores otras biomasas"]
[null,{"$f":"+B32+0.1","v":2.7000000000000006},"Relación viajes máximo horario / prom horario:","viajes/viajes",3.5,"Estimado con base en diagrama frecuencias en Relleno sanitario"]
[null,{"$f":"+B33+0.1","v":2.8000000000000007},"Viajes máximo entrada PT-WTE (hora pico):","viajes/hr",{"$f":"+ROUNDUP(E29*E33/24,0)","v":0}]
[null,{"$f":"+B34+0.1","v":2.9000000000000008},"Tiempo total en la bahía de descarga (tiempo de servicio):","min/vehículo",8,"Número de vehículos que se pueden atender en una unidad de servicio"]
[null,null,null,"veh/hr",{"$f":"+ROUNDUP(60/E35,0)","v":8}]
[null,{"$f":"+B26","v":2.1},"Número de unidades de servicio:","Und",{"$f":"+ROUNDUP(E34/E36,0)+1","v":1},"Bahías de descarga"]
[null,{"$f":"+B37+0.01","v":2.11},"Ancho unitario área de descargue, a:","m/veh",3.5]
[null,{"$f":"+B38+0.01","v":2.1199999999999997},"Separación entre vehículos:","m",1]
[null,{"$f":"+B39+0.01","v":2.1299999999999994},"Total ancho bahía de descarga, A:","m",{"$f":"+E37*(E38+E39)","v":4.5},"Otras Biomasas"]
[]
[null,"N","Parámetro","Unidad","Valor","Observación"]
[null,null,null,null,{"$f":"+E6","v":0}]
[null,{"$f":"+B25+1","v":3},"FOSO DE RSOU"]
[null,{"$f":"+B44+0.1","v":3.1},"Carga de trabajo:","Ton/d",{"$f":"+E8","v":0}]
[null,{"$f":"+B45+0.1","v":3.2},"Retención:","días",1]
[null,3.3000000000000003,"Volumen:","m3",{"$f":"+E45/E9","v":0}]
[null,3.4000000000000004,"Profundidad:","m",3.5]
[null,3.5000000000000004,"Area:","m2",{"$f":"+E47/E48","v":0}]
[null,3.6000000000000005,"Ancho medio:","m",{"$f":"+E49/E21","v":0}]
[null,3.7000000000000006,"Contenido de humedad inicial:","%",0.75]
[null,3.8000000000000007,"Contenido de humedad final:","%",0.7]
[null,3.9000000000000008,"Cantidad de lixiviados:","m3/d",{"$f":"+(E51-E52)*E8","v":0},"Lixiviado a enviar al tanque homogenizador "]
[]
[null,"N","Parámetro","Unidad","Valor","Observación"]
[null,null,null,null,{"$f":"+E24","v":0}]
[null,{"$f":"+B44+1","v":4},"FOSO DE OTRAS BIOMASAS SOLIDAS"]
[null,{"$f":"+B57+0.1","v":4.0999999999999996},"Carga de trabajo:","Ton/d",{"$f":"+E26","v":0},"Otras biomasas"]
[null,{"$f":"+B58+0.1","v":4.1999999999999993},"Retención:","días",1]
[null,4.2999999999999989,"Volumen:","m3",{"$f":"+E58/E27","v":0}]
[null,4.3999999999999986,"Profundidad:","m",0]
[null,4.4999999999999982,"Area:","m2",0]
[null,4.5999999999999979,"Ancho medio:","m",0]
[null,4.6999999999999975,"Contenido de humedad inicial:","%",0.75]
[null,4.7999999999999972,"Contenido de humedad final:","%",0.7]
[null,4.8999999999999968,"Cantidad de lixiviados:","m3/d",{"$f":"+(E64-E65)*E26","v":0},"Lixiviado a enviar al tanque homogenizador "]
[]
[null,"N","Parámetro","Unidad","Valor","Observación"]
[null,null,null,null,{"$f":"+E56","v":0}]
[null,{"$f":"+B57+1","v":5},"TRITURACIÓN OTRAS BIOMASAS + CARGUE AL HOMOGENIZADOR"]
[null,{"$f":"+B70+0.1","v":5.0999999999999996},"Carga:","ton/d",{"$f":"+'M4'!G17/312","v":0},"Residuos de plátano"]
[null,null,null,"ton/hr",{"$f":"+E71/18","v":0}]
[null,{"$f":"+B71+0.1","v":5.1999999999999993},"Rendimiento trituradora otras biomasas","ton/hr",20,"Capacidad requerida del equipo"]
[null,{"$f":"+B73+0.1","v":5.2999999999999989},"Número de trituradoras otras biomasas","Und",{"$f":"+ROUNDUP(E72/E73,0)","v":0}]
[null,5.3999999999999986,"Tornillo sin fin para cargue:","mL",{"$f":"+E74*30","v":0},"Cargue a tanque homogenizador"]
[]
[null,"N","Parámetro","Unidad","Valor","Observación"]
[null,null,null,null,{"$f":"+E43","v":0}]
[null,{"$f":"+B70+1","v":6},"ROMPEDORAS DE BOLSAS DE RSOU"]
[null,{"$f":"+B79+0.1","v":6.1},"Carga:","ton/d",{"$f":"+E45-E53","v":0}]
[null,null,null,"m3/d",{"$f":"+E80/E9","v":0}]
[null,null,null,"ton/hr",{"$f":"+E80/18","v":0},"Para 18 horas/d"]
[null,{"$f":"+B80+0.1","v":6.1999999999999993},"Rendimiento rompedora de bolsas:","ton/hr",30]
[null,{"$f":"+B83+0.1","v":6.2999999999999989},"Equipo rompedora de bolsas:","Und",{"$f":"+ROUNDUP(E82/E83,0)","v":0}]
[null,{"$f":"+B84+0.1","v":6.3999999999999986},"Contenido de humedad final:","%",0.65]
[null,6.4999999999999982,"Cantidad de lixiviados:","m3/d",{"$f":"+(E52-E85)*E80","v":0},"Lixiviado a enviar al tanque homogenizador "]
[]
[null,"N","Parámetro","Unidad","Valor","Observación"]
[null,null,null,null,{"$f":"+E78","v":0}]
[null,{"$f":"+B79+1","v":7},"SEPARACIÓN MAGNÉTICA RSOU"]
[null,{"$f":"+B90+0.1","v":7.1},"Carga de trabajo:","ton/d",{"$f":"+E80-E86","v":0}]
[null,null,null,"ton/hr",{"$f":"+E82","v":0},"Para 18 horas/d"]
[null,{"$f":"+B91+0.1","v":7.1999999999999993},"Rendimiento rompedora de separador magnético:","ton/hr",{"$f":"+E83","v":30}]
[null,{"$f":"+B93+0.1","v":7.2999999999999989},"% Metales:","%",0.01]
[null,{"$f":"+B94+0.1","v":7.3999999999999986},"Cantidad de metal de rechazo:","Ton/d",{"$f":"+E91*E94","v":0},"Material de rechazo"]
[]
[null,"N","Parámetro","Unidad","Valor","Observación"]
[null,null,null,null,{"$f":"+E89","v":0}]
[null,{"$f":"+B90+1","v":8},"CLASIFICACION MANUAL EN BANDA HORIZONTAL RSOU"]
[null,{"$f":"+B99+0.1","v":8.1},"Carga:","ton/d",{"$f":"+E91-E95","v":0}]
[null,{"$f":"+B100+0.1","v":8.1999999999999993},"Rendimiento por persona","ton/d-p",7,"Para 8 horas/día"]
[null,8.2999999999999989,"Número de personas requeridas","Und",{"$f":"+ROUNDUP(E91/E101,0)","v":0}]
[null,8.3999999999999986,"Longitud de la banda","m",{"$f":"+ROUNDUP(E102*0.75,0)","v":0}]
[null,8.4999999999999982,"% material de rechazo:","%",0.05]
[null,8.5999999999999979,"Cantidad de material de rechazo:","Ton/d",{"$f":"+E104*E8","v":0}]
[null,8.6999999999999975,"Densidad de bolsas compactado, potencia enfardado 100 HP:","ton/m3",0.35]
[null,8.7999999999999972,"Volumen de enfardado:","m3/d",{"$f":"+E105/E106","v":0}]
[null,8.8999999999999968,"Rendimiento enfardadora:","m3/hr",4,"Para 8 horas/día"]
[null,{"$f":"+B100","v":8.1},"Número de enfardadoras de rechazo:","Und",{"$f":"+ROUND(E107/E108/8,0)","v":0},"Para 8 horas/día"]
[null,{"$f":"+B109+0.01","v":8.11},"Número de fardos","Und/d",{"$f":"+ROUNDUP(E107,)","v":0}]
[null,{"$f":"+B110+0.01","v":8.1199999999999992},"Tiempo de almacenamiento","días",3]
[null,8.129999999999999,"Niveles de fardos:","Und",3]
[null,8.1399999999999988,"Area Almacén fardos:","m2",{"$f":"+E110*1.35","v":0}]
[]
[null,"N","Parámetro","Unidad","Valor","Observación"]
[null,null,null,null,{"$f":"+E98","v":0}]
[null,{"$f":"+B99+1","v":9},"TRITURACIÓN DE ORGÁNICOS RSOU"]
[null,{"$f":"+B117+0.1","v":9.1},"Carga:","ton/d",{"$f":"+E100-E105","v":0}]
[null,null,null,"ton/hr",{"$f":"+E118/18","v":0}]
[null,{"$f":"+B118+0.1","v":9.1999999999999993},"Rendimiento trituradora de orgánicos:","ton/hr",30,"Capacidad requerida del equipo"]
[null,{"$f":"+B120+0.1","v":9.2999999999999989},"Número de trituradoras de orgánicos:","Und",{"$f":"+ROUNDUP(E119/E120,0)","v":0}]
[null,9.3999999999999986,"Contenido de humedad final:","%",0.6]
[]
[null,"N","Parámetro","Unidad","Valor","Observación"]
[null,null,null,null,{"$f":"+E116","v":0}]
[null,{"$f":"+B117+1","v":10},"HOMOGENIZACIÓN  BIOMASAS (RSOU + OTRAS BIOMASAS)"]
[null,{"$f":"+B126+0.1","v":10.1},"Carga:","ton/d",{"$f":"+E118+E58","v":0},"RSUO + VERDES"]
[null,null,null,"m3/d",{"$f":"+E127/E9","v":0}]
[null,{"$f":"+B127+0.1","v":10.199999999999999},"Contenido de Humedad inicial:","%",{"$f":"+E122","v":0.6}]
[null,null,null,"ton/d",{"$f":"+E127*E129","v":0},"Contenido de agua en la biomasa"]
[null,{"$f":"+B129+0.1","v":10.299999999999999},"Carga seco:","ton/d",{"$f":"+E127-E130","v":0}]
[null,{"$f":"+B131+0.1","v":10.399999999999999},"Contenido de Humedad en el Homogenizador:","%",0.95,"Humedad de diseño"]
[null,{"$f":"+B132+0.1","v":10.499999999999998},"Densidad del sustrato en el homogenizador:","ton/m3",1]
[null,{"$f":"+B133+0.1","v":10.599999999999998},"Aporte lixiviados pretratamiento:","m3/d",{"$f":"+E53+E86+E66","v":0},"Lixiviados recolectados en pretratamiento"]
[null,10.699999999999998,"Adición de agua de mezcla:","m3/d",{"$f":"+E127*1.7","v":0},"Cantidad de agua requerida para alcanzar  humedad de diseño en el Homogenizador"]
[null,{"$f":"+B135+0.1","v":10.799999999999997},"Cantidad de agua total en la mezcla:","m3/d",{"$f":"+E135+E130+E134","v":0}]
[null,{"$f":"+B136+0.1","v":10.899999999999997},"Volumen diario de mezcla en el homogenizador:","m3/d",{"$f":"+E136+E128","v":0}]
[null,{"$f":"+B127","v":10.1},"Tiempo retención homogenizador:","días",3]
[null,{"$f":"+B138+0.01","v":10.11},"Volumen Tanque Homogenizador:","m3",{"$f":"+E137*E138","v":0}]
[null,{"$f":"+B139+0.01","v":10.119999999999999},"Volumen 1 TQ Homogenizador","m3",20000]
[null,10.129999999999999,"Número de TQs Homogenizador","Unidad",{"$f":"+ROUNDUP(E139/E140,0)","v":0}]
[]
[null,"N","Parámetro","Unidad","Valor","Observación"]
[null,null,null,null,{"$f":"+E125","v":0}]
[null,{"$f":"+B126+1","v":11},"DIGESTION ANAERÓBICA (RSOU + OTRAS BIOMASAS)"]
[null,{"$f":"+B145+0.1","v":11.1},"Carga:","ton/d",{"$f":"+E127","v":0},"Peso húmedo"]
[null,null,null,"m3/d",0]
[null,{"$f":"+B146+0.1","v":11.2},"Temperatura de trabajo:","oC",35,"Para operación en rango Mesofílico"]
[null,{"$f":"+B148+0.1","v":11.299999999999999},"Tiempo de retención:","días",27,"Para operación en rango Mesofílico"]
[null,{"$f":"+B149+0.1","v":11.399999999999999},"Volumen de digestor:","m3",{"$f":"+E137*E149","v":0}]
[null,{"$f":"+B150+0.1","v":11.499999999999998},"Diametro reactor:","m",50]
[null,11.599999999999998,"Area reactor:","m2",{"$f":"3.1516*(E151/2)^2","v":1969.75}]
[null,11.699999999999998,"Altura reactor:","m",25]
[null,{"$f":"+B153+0.1","v":11.799999999999997},"Volumen 1 Reactor:","m3",{"$f":"+ROUNDUP(E153*E152,0)","v":49244}]
[null,null,null,"m3",50000]
[null,{"$f":"+B154+0.1","v":11.899999999999997},"Número de Reactores:","Unidad",{"$f":"+ROUNDUP(E150/E155,0)","v":0}]
[]
[null,"N","Parámetro","Unidad","Valor","Observación"]
[null,null,null,null,{"$f":"+E144","v":0}]
[null,{"$f":"+B145+1","v":12},"PRODUCCION DE ENERGÍA"]
[null,{"$f":"+B160+0.1","v":12.1},"Cantidad Biomasa:","ton/d",{"$f":"+E127","v":0},"Peso húmedo"]
[null,null,null,"m3/d",{"$f":"+E161/E9","v":0}]
[null,{"$f":"+B161+0.1","v":12.2},"Tasa de generación:","m3/ton rs",{"$f":"+E164/E161","v":{"$error":"#DIV/0!"}},"Rango típico 60 a 150 m3 biogas / ton rs"]
[null,{"$f":"+B163+0.1","v":12.299999999999999},"Generación biogás:","m3/d",{"$f":"+'M4'!J23/312","v":0},"% CH4, 65 %"]
[null,null,null,"m3/hr",{"$f":"+E164/24","v":0},"24 horas"]
[null,null,null,"m3/min",{"$f":"+E165/60","v":0},"25 horas"]
[null,{"$f":"+B164+0.1","v":12.399999999999999},"Poder calorífico inferior biogás:","kW/m3 CH4",5]
[null,{"$f":"+B167+0.1","v":12.499999999999998},"% CH4 biogás","%",0.65,"Contenido de metano en el Biogás"]
[null,12.599999999999998,"Rendimiento térmico:","%",0.35]
[null,12.699999999999998,"Potencial disponible:","kWh",{"$f":"E169*E167*E168*E165","v":0}]
[null,12.799999999999997,"Factor de disponibilidad:",null,0.85]
[null,12.899999999999997,"Electricidad generada:","KWh/día",{"$f":"+E170*E171*24","v":0}]
[null,{"$f":"+B161","v":12.1},"Rendimiento de la biomasa seca:","MW/ton",{"$f":"+E172*0.001/E161","v":{"$error":"#DIV/0!"}},"Rendimiento en generación eléctrica (Rango típico es de 0,05 a 0,30 MW/ton)"]
[null,{"$f":"+B173+0.01","v":12.11},"Potencia del equipo:","kW",{"$f":"+ROUNDUP(E170*1.03,0)","v":0},"Capacidad Equipo de generación eléctrica"]
[null,null,null,"MW",{"$f":"+ROUND(E174/1000,1)","v":0}]
[]
[null,"N","Parámetro","Unidad","Valor","Observación"]
[null,null,null,null,{"$f":"+E159","v":0}]
[null,{"$f":"+B160+1","v":13},"MANEJO DEL DIGESTATO"]
[null,{"$f":"+B179+0.1","v":13.1},"Fracción de digestato:","%",0.97]
[null,{"$f":"+B180+0.1","v":13.2},"Producción de digestato:","m3/d",{"$f":"+E180*E137*0.25","v":0}]
[null,null,null,"ton/d",{"$f":"+E181","v":0}]
[null,{"$f":"+B181+0.1","v":13.299999999999999},"Contenido de Humedad inicial:","%",0.95]
[null,null,null,"ton/d",{"$f":"+E181*E183","v":0}]
[null,{"$f":"+B183+0.1","v":13.399999999999999},"Solidos secos:","ton/d",{"$f":"+(1-E183)*E182","v":0}]
[null,{"$f":"+B185+0.1","v":13.499999999999998},"Tiempo de retención:","días",3]
[null,{"$f":"+B186+0.1","v":13.599999999999998},"Volumen del reactor de digestato:","m3",{"$f":"+E181*E186","v":0}]
[null,13.699999999999998,"Contenido de humedad final para tratamiento final:","%",0.35]
[null,13.799999999999997,"Cantidad de agua producida residual:","m3/d",{"$f":"+(E183-E188)*E182","v":0},"Agua residual orgánica a recircular al homogenizador"]
[null,13.899999999999997,"Densidad de digestato deshidratado:","ton/m3",0.6]
[null,{"$f":"+B180","v":13.1},"Cantidad de digestato deshidratado:","ton/d",{"$f":"+E182-E189","v":0},"Con humedad del 35%"]
[null,null,null,"m3/d",{"$f":"+E191/E190","v":0}]
[]
[null,"N","Parámetro","Unidad","Valor","Observación"]
[null,null,null,null,{"$f":"+E178","v":0}]
[null,{"$f":"+B179+1","v":14},"VARIOS"]
[null,14.1,"Número de personas","Personas",{"$f":"ROUNDUP((+E198+E199+E200),0)","v":0}]
[null,14.2,"Pretratamiento de residuos","Personas",{"$f":"ROUND(+E102*1.2,0)","v":0}]
[null,14.299999999999999,"Valoración energética","Personas",{"$f":"45*E174/1000","v":0}]
[null,14.399999999999999,"Recolección biomasas","Personas",{"$f":"+E32","v":0},"Otras biomasas (sin RSOU)"]

{"sheet":"WTE2","index":7,"n_rows":86,"n_cols":6,"rows_kept":86,"cut":false,"hidden":true,"merged":[[66,2,66,5],[64,1,65,1],[64,2,65,2],[64,3,65,3],[64,5,65,5],[35,1,36,1],[35,2,36,2],[37,1,38,1],[37,2,38,2],[24,2,24,5],[32,1,33,1],[32,2,33,2],[32,3,33,3],[32,5,33,5],[34,2,34,5],[5,2,5,5],[22,1,23,1],[22,2,23,2],[22,3,23,3],[22,5,23,5],[9,1,10,1],[9,2,10,2],[15,1,16,1],[15,2,16,2],[15,5,16,5],[1,1,1,5],[3,1,4,1],[3,2,4,2],[3,3,4,3],[3,5,4,5]]}
[]
[null,"WTE Incineración y pirolisis "]
[null,null,null,null,null,{"$f":"+'WTE1'!F3","v":"Versión: 190117"}]
[null,"N","Parámetro","Unidad","Valor","Observación"]
[null,null,null,null,{"$f":"+'M4'!H25","v":0}]
[null,1,"BAHÍA DESCARGUE"]
[null,{"$f":"+B6+0.1","v":1.1000000000000001},"Carga inicial, W:","Ton/d",{"$f":"+E5","v":0},"Material orgánico en bolsas plásticas"]
[null,{"$f":"+B7+0.1","v":1.2000000000000002},"Densidad del material","ton/m3",0.25]
[null,{"$f":"+B8+0.1","v":1.3000000000000003},"Peso promedio por vehículo recolector:","ton/viaje",12.5,"Vehículos recolectores biomasas"]
[null,{"$f":"+B9+0.1","v":1.4000000000000004},"Viajes promedio entrada PT-WTE:","Viajes/d",{"$f":"+ROUND(E7/E9,0)","v":0}]
[null,null,null,"viajes/hr",{"$f":"+ROUNDUP(E10/24,0)","v":0},"Ingreso las 24 H"]
[null,{"$f":"+B10+0.1","v":1.5000000000000004},"Viajes promedio diario por vehículo:","viajes/d-v",5]
[null,{"$f":"+B12+0.1","v":1.6000000000000005},"Número de vehículos requeridos:",null,{"$f":"+ROUND(E10/E12,0)","v":0},"Vehículos recolectores biomasas"]
[null,{"$f":"+B13+0.1","v":1.7000000000000006},"Relación viajes máximo horario / prom horario:","viajes/viajes",3.5,"Estimado con base en diagrama frecuencias en Relleno sanitario"]
[null,{"$f":"+B14+0.1","v":1.8000000000000007},"Viajes máximo entrada PT-WTE (hora pico):","viajes/hr",{"$f":"+ROUNDUP(E10*E14/24,0)","v":0}]
[null,{"$f":"+B15+0.1","v":1.9000000000000008},"Tiempo total en la bahía de descarga (tiempo de servicio):","min/vehículo",8,"Número de vehículos que se pueden atender en una unidad de servicio"]
[null,null,null,"veh/hr",{"$f":"+ROUNDUP(60/E16,0)","v":8}]
[null,{"$f":"+B7","v":1.1000000000000001},"Número de unidades de servicio:","Und",{"$f":"+ROUNDUP(E15/E17,0)+1","v":1},"Bahías de descarga"]
[null,{"$f":"+B18+0.01","v":1.1100000000000001},"Ancho unitario área de descargue, a:","m/veh",3.5]
[null,{"$f":"+B19+0.01","v":1.1200000000000001},"Separación entre vehículos:","m",1]
[null,{"$f":"+B20+0.01","v":1.1300000000000001},"Total ancho bahía de descarga, A:","m",{"$f":"+E18*(E19+E20)","v":4.5}]
[]
[null,"N","Parámetro","Unidad","Valor","Observación"]
[null,null,null,null,{"$f":"+E5","v":0}]
[null,{"$f":"+B6+1","v":2},"FOSO DE DESCARGUE"]
[null,{"$f":"+B25+0.1","v":2.1},"Carga de trabajo:","Ton/d",{"$f":"+E7","v":0},"Otras biomasas"]
[null,{"$f":"+B26+0.1","v":2.2000000000000002},"Retención:","días",1]
[null,2.3000000000000003,"Volumen:","m3",{"$f":"+E26/E8","v":0}]
[null,2.4000000000000004,"Profundidad:","m",3.5]
[null,2.5000000000000004,"Area:","m2",{"$f":"+E28/E29","v":0}]
[null,2.6000000000000005,"Grua tipo pulpo","Und",1,"Para cargue de la tolva alimentadora"]
[]
[null,"N","Parámetro","Unidad","Valor","Observación"]
[null,null,null,null,{"$f":"+E26","v":0}]
[null,{"$f":"+B25+1","v":3},"UNIDAD DE INCINERACIÓN"]
[null,{"$f":"+B35+0.1","v":3.1},"Carga:","ton/d",{"$f":"+E34","v":0},"Biomasas mezcladas"]
[null,null,null,"m3/d",{"$f":"+E36/E8","v":0},"El corazón del incinerador térmico es una flama estabilizada por medio de una boquilla,\nmantenida por una combinación de combustible auxiliar, compuestos del gas residual y aire auxiliar\nque es agregado cuando es necesario."]
[null,{"$f":"+B36+0.1","v":3.2},"Contenido de Humedad inicial:","%",0.15]
[null,null,null,"ton/d",{"$f":"+E36*E38","v":0},"Contenido de agua en la biomasa"]
[null,{"$f":"+B38+0.1","v":3.3000000000000003},"Carga seco:","ton/d",{"$f":"+E36-E39","v":0}]
[null,{"$f":"+B40+0.1","v":3.4000000000000004},"Tolva de cargue:"]
[null,null,"Tiempo de retención:","hr",0.16666666666666666]
[null,null,"Carga:","ton/hr",{"$f":"+E36/18","v":0},"18 horas de operación"]
[null,null,null,"m3/hr",{"$f":"+E43/E8","v":0}]
[null,null,"Capacidad:","m3",{"$f":"+E44*E42*1.5","v":0},"Capacidad requerida, con factor de seguridad de 1,5"]
[null,{"$f":"+B41+0.1","v":3.5000000000000004},"Banda transportadora",null,null,"Requiere motor trifásico con variador de frecuencia"]
[null,null,"Ancho:","m",1.5]
[null,null,"Longitud:","m",30]
[null,{"$f":"+B46+0.1","v":3.6000000000000005},"Horno"]
[null,null,"Tipo",null,"Parrilla"]
[null,null,"Cámaras","Und",3,"Precalentamiento, combustión y postcombustión"]
[null,null,"Temperatura cámara combustión:","oC",1200]
[null,null,"Temperatura cámara de postcombustión:","oC",850]
[null,null,"Tiempo retención de gases en postcombustión:","sg",2,"Permite eliminar dioxinas y furanos"]
[null,null,"Escorea de horno","%",0.15]
[null,null,null,"ton/d",{"$f":"+E55*E36","v":0}]
[null,{"$f":"+B49+0.1","v":3.7000000000000006},"Tratamiento de gases"]
[null,null,"Electrofiltro","Und",1]
[null,null,"Torre de enfriamiento","Und",1]
[null,null,"Filtro de mangas","Und",1]
[null,null,"Cenizas de tratamiento","%",7.0000000000000007E-2]
[null,null,null,"ton/d",{"$f":"+E61*E36","v":0}]
[null,{"$f":"+B57+0.1","v":3.8000000000000007},"Total residuos","ton/d",{"$f":"+E62+E56","v":0},"Escorea + Cenizas a disponer en relleno sanitario"]
[]
[null,"N","Parámetro","Unidad","Valor","Observación"]
[null,null,null,null,{"$f":"+E34","v":0}]
[null,{"$f":"+B35+1","v":4},"UNIDAD DE GENERACIÓN ELÉCTRICA"]
[null,{"$f":"+B67+0.1","v":4.0999999999999996},"Carga humeda:","ton/d",{"$f":"+'M2'!I23/312","v":0}]
[null,{"$f":"+B68+0.1","v":4.1999999999999993},"Carga seca:","ton/d",{"$f":"+E68*(1-E70)","v":{"$error":"#DIV/0!"}}]
[null,{"$f":"+B69+0.1","v":4.2999999999999989},"Contenido de humedad:","%",{"$f":"+'M2'!F23","v":{"$error":"#DIV/0!"}},"Humedad promedio de la Biomasa"]
[null,{"$f":"+B70+0.1","v":4.3999999999999986},"Potencial energético:","TJ/año",{"$f":"+'M3'!K23","v":0}]
[null,null,null,"MWh/año",{"$f":"+E71/D86","v":0}]
[null,null,null,"MJ/kg seco",{"$f":"+E71*1000000/(E69*1000*312)","v":{"$error":"#DIV/0!"}}]
[null,{"$f":"+B71+0.1","v":4.4999999999999982},"Efiencia energética:","%",0.22,"Electricidad + Calor"]
[null,{"$f":"+B74+0.1","v":4.5999999999999979},"Electricidad generada:","MWh/año",{"$f":"+E72*E74*0.3","v":0},"Electricidad (El 30% de la energía corresponde a eléctrica y el 70% a calor)"]
[null,4.6999999999999975,"Factor de disponibilidad:",null,0.85]
[null,4.7999999999999972,"Potencia requerida:","MW",{"$f":"+ROUNDUP(E75/(312*24*E76),0)","v":0}]
[null,4.8999999999999968,"Rendimiento biomasa seca:","MWh/ton",{"$f":"+E75/(E69*312)","v":{"$error":"#DIV/0!"}},"Rendimiento en generación eléctrica (Rango típico es de 0,3 a 1,00 MW/ton rs seco)"]
[null,{"$f":"+B68","v":4.0999999999999996},"Caldera",null,null,"Los gases calientes que vienen de la cámara de post-combustión, se hacen pasar por una caldera recuperadora de calor tipo acuotubular, para así, generar vapor sobrecalentado, llevarlo a una turbina y Generar potencia eléctrica."]
[null,null,"Consumo específico de Vapor","kg/kWh",5,"Cantidad de vapor necesario para generar potencia eléctrica en las turbinas,"]
[null,null,"Intercambiadores de calor",null,null,"Tipo placa a placa"]
[null,{"$f":"+B79+0.1","v":4.1999999999999993},"Turbina de vapor",null,null,"Turbina de alta presión. Las turbinas son las encargadas en transformar la energía térmica del fluido, en energía mecánica,"]
[null,null,"Potencia de la turbina","KW/ ton-d",0.02]
[null,null,null,"KW",{"$f":"ROUND(+E83*E69,0)","v":{"$error":"#DIV/0!"}}]
[null,{"$f":"+B82+0.1","v":4.2999999999999989},"Condensador","Und",1,"Condensa el vapor húmedo que sale de la turbina para obtener agua líquida saturada, que será la que recojan las bombas para impulsarlas hacia el regenerador o caldera."]
[null,null,"MWH",3.5999999999999999E-3,"TJ"]

{"sheet":"Salida datos tecnicos","index":8,"n_rows":40,"n_cols":5,"rows_kept":40,"cut":false,"hidden":true,"merged":[[0,1,0,4],[18,1,19,1],[18,2,19,2],[18,3,19,3],[18,4,19,4],[30,1,31,1],[30,2,31,2],[30,3,31,3],[30,4,31,4],[1,1,1,4],[2,1,2,4],[5,1,6,1],[5,2,6,2],[5,3,6,3],[5,4,6,4]]}
[]
[]
[null,"HOJA DE SALIDA DE DATOS TÉCNICOS"]
[]
[null,"Tecnología: WTE Degradacion anaeróbica "]
[null,"n","Parámetro","Valor","Unidad"]
[]
[null,1,"Capacidad de la planta:",{"$f":"+'WTE1'!E6","v":0},"ton/d"]
[null,2,"Capacidad para RSUO:",{"$f":"+'WTE1'!E8","v":0},"ton/d"]
[null,3,"Capacidad para otras biomasas:",{"$f":"+D8-D9","v":0},"ton/d"]
[null,{"$f":"+B10+1","v":4},"Area total de la planta:",{"$f":"+Costos!I6","v":0},"Has"]
[null,{"$f":"+B11+1","v":5},"Cantidad de biogás producida:",{"$f":"+'WTE1'!E164","v":0},"m3/d"]
[null,6,"% metano en el Biogás",0.65,"%"]
[null,7,"Electricidad generada:",{"$f":"+'WTE1'!E172*3655","v":0},"kWh/año"]
[null,8,"Cantidad de digestato generado:",{"$f":"+'WTE1'!E182","v":0},"ton/d"]
[null,9,"Bonos de carbón:",{"$f":"+Ingresos!E15","v":0},"Ton CO2e /año"]
[]
[null,"Tecnología: WTE Incineración"]
[null,"n","Parámetro","Valor","Unidad"]
[]
[null,1,"Capacidad de la planta:",{"$f":"+'WTE2'!E5","v":0},"ton/d"]
[null,2,"Capacidad para RSUO:",0,"ton/d"]
[null,3,"Capacidad para otras biomasas:",{"$f":"+D21-D22","v":0},"ton/d"]
[null,{"$f":"+B23+1","v":4},"Area total de la planta:",{"$f":"+Costos!I7","v":0},"Has"]
[null,{"$f":"+B24+1","v":5},"Potencial energético:",{"$f":"+'M3'!K23","v":0},"Tj/año"]
[null,6,"Electricidad generada:",{"$f":"+Ingresos!E25/0.85","v":0},"kWh/año"]
[null,7,"Cantidad de cenizas y escoreas:",{"$f":"+'WTE2'!E63","v":0},"ton/d"]
[null,8,"Bonos de carbón:",{"$f":"+Ingresos!E27","v":0},"Ton CO2e /año"]
[]
[null,"Tecnología: WTE Pirólisis"]
[null,"n","Parámetro","Valor","Unidad"]
[]
[null,1,"Capacidad de la planta:",{"$f":"+D21","v":0},"ton/d"]
[null,2,"Capacidad para RSUO:",0,"ton/d"]
[null,3,"Capacidad para otras biomasas:",{"$f":"+D33-D34","v":0},"ton/d"]
[null,{"$f":"+B35+1","v":4},"Area total de la planta:",{"$f":"+Costos!I8","v":0},"Has"]
[null,{"$f":"+B36+1","v":5},"Potencial energético:",{"$f":"+D25","v":0},"Tj/año"]
[null,6,"Electricidad generada:",{"$f":"+Ingresos!E38/0.5","v":0},"kWh/año"]
[null,7,"Aceite pirolítico",{"$f":"+Ingresos!E42","v":0},"ton/año"]
[null,8,"Bonos de carbón:",{"$f":"+Ingresos!E40","v":0},"Ton CO2e /año"]

{"sheet":"Costos","index":9,"n_rows":49,"n_cols":10,"rows_kept":49,"cut":false,"hidden":true,"merged":[[9,1,10,1],[9,3,10,3],[3,2,4,2],[3,3,4,3],[3,4,4,4],[3,5,4,5],[11,2,11,9],[9,4,10,4],[9,5,10,5],[9,6,9,7],[9,8,9,9],[36,2,36,9],[1,1,1,9],[18,1,20,1],[18,2,20,2],[21,1,23,1],[21,2,23,2],[15,1,17,1],[15,2,17,2],[9,2,10,2],[12,1,14,1],[12,2,14,2],[3,8,3,9],[3,6,3,7],[5,2,7,2],[5,1,7,1],[3,1,4,1],[24,2,26,2],[33,1,35,1],[33,2,35,2],[46,1,48,1],[46,2,48,2],[27,1,29,1],[27,2,29,2],[37,1,39,1],[37,2,39,2],[40,1,42,1],[40,2,42,2],[43,1,45,1],[43,2,45,2],[24,1,26,1],[30,1,32,1],[30,2,32,2],[12,4,14,4],[15,4,17,4],[18,4,20,4],[21,4,23,4],[24,4,26,4]]}
[]
[null,"Costos de inversión y operación"]
[]
[null,"N","Parámetro","Tecnología","Unidad","Capacidad","Curva de area",null,"Valor"]
[null,null,null,null,null,null,"a","m","Valor","Unidad"]
[null,{"$f":"+B5+1","v":1},"Predio","WTE degradación anaeróbica","ton/d",{"$f":"+'M4'!G25","v":0},0.67,1.2999999999999999E-3,{"$f":"++IF(F6=0,0,G6+H6*F6)","v":0},"Has"]
[null,null,null,"WTE incineración","ton/d",{"$f":"+'M4'!H25","v":0},{"$f":"+G6*0.75","v":0.50250000000000006},{"$f":"+H6","v":1.2999999999999999E-3},{"$f":"++IF(F$7=0,0,G7+H7*F7)","v":0},"Has"]
[null,null,null,"WTE Pirólisis","ton/d",{"$f":"+'M4'!I25","v":0},{"$f":"+G7*0.98","v":0.49245000000000005},{"$f":"+H7*1.1","v":1.4300000000000001E-3},{"$f":"++IF(F$8=0,0,G8+H8*F8)","v":0},"Has"]
[]
[null,"N","Parámetro","Tecnología","Capacidad","Valor","Curva de area",null,"Valor"]
[null,null,null,null,null,null,"a","m","Valor","Unidad"]
[null,1,"COSTOS DE INVERSIÓN"]
[null,{"$f":"+B12+0.1","v":1.1000000000000001},"Predio","WTE degradación anaeróbica","Has",{"$f":"+I6","v":0},null,null,{"$f":"+IF(F$6=0,0,F13*100000)","v":0},"Mil $"]
[null,null,null,"WTE incineración",null,{"$f":"+I7","v":0},null,null,{"$f":"++IF(F$7=0,0,F14*100000)","v":0},"Mil $"]
[null,null,null,"WTE Pirólisis",null,{"$f":"+I8","v":0},null,null,{"$f":"++IF(F$8=0,0,F15*100000)","v":0},"Mil $"]
[null,{"$f":"+B13+0.1","v":1.2000000000000002},"Estudios y diseños","WTE degradación anaeróbica","ton/d",{"$f":"+F6","v":0},664135,116.99,{"$f":"++IF(F$6=0,0,G16+H16*F16)","v":0},"Mil $"]
[null,null,null,"WTE incineración",null,{"$f":"+F7","v":0},{"$f":"+G16*1.1","v":730548.50000000012},{"$f":"+H16","v":116.99},{"$f":"++IF($F$7=0,0,G17+H17*F17)","v":0},"Mil $"]
[null,null,null,"WTE Pirólisis",null,{"$f":"+F8","v":0},{"$f":"+G17*1.1","v":803603.35000000021},{"$f":"+H17","v":116.99},{"$f":"++IF(F$8=0,0,(G18+H18*F18))","v":0},"Mil $"]
[null,{"$f":"+B16+0.1","v":1.3000000000000003},"Preliminares","WTE degradación anaeróbica",{"$f":"+E13","v":"Has"},{"$f":"+F13","v":0},18574,16049,{"$f":"++IF(F$6=0,0,(G19+H19*F19))","v":0},"Mil $"]
[null,null,null,"WTE incineración",null,{"$f":"+F14","v":0},{"$f":"18574*1.1","v":20431.400000000001},16049,{"$f":"++IF(F$7=0,0,(G20+H20*F20))","v":0},"Mil $"]
[null,null,null,"WTE Pirólisis",null,0,{"$f":"18574*1.1","v":20431.400000000001},16049,{"$f":"++IF(F$8=0,0,(G21+H21*F21))","v":0},"Mil $"]
[null,{"$f":"+B19+0.1","v":1.4000000000000004},"Obras generales","WTE degradación anaeróbica",{"$f":"+E19","v":"Has"},{"$f":"+F19","v":0},701087,355478,{"$f":"++IF(F$6=0,0,(G22+H22*F22))","v":0},"Mil $"]
[null,null,null,"WTE incineración",null,{"$f":"+F20","v":0},{"$f":"701087*1.2","v":841304.4},355478,{"$f":"++IF(F$7=0,0,(G23+H23*F23))","v":0},"Mil $"]
[null,null,null,"WTE Pirólisis",null,0,{"$f":"701087*1.2","v":841304.4},355478,{"$f":"++IF(F$8=0,0,(G24+H24*F24))","v":0},"Mil $"]
[null,{"$f":"+B22+0.1","v":1.5000000000000004},"Edificaciones","WTE degradación anaeróbica",{"$f":"+E22","v":"Has"},0,2626800,308772,{"$f":"IF(F$6=0,0,(G25+H25*F25))","v":0},"Mil $"]
[null,null,null,"WTE incineración",null,0,{"$f":"485715","v":485715},308772,{"$f":"++IF(F$7=0,0,(G26+H26*F26))","v":0},"Mil $"]
[null,null,null,"WTE Pirólisis",null,0,{"$f":"+G26*1.05","v":510000.75},308772,{"$f":"++IF(F$8=0,0,(G27+H27*F27))","v":0},"Mil $"]
[null,{"$f":"+B25+0.1","v":1.6000000000000005},"Equipos pretratamiento RSU","WTE degradación anaeróbica","ton/d",{"$f":"+'M4'!G21/312","v":0},26398,0.61570000000000003,{"$f":"++IF(F$6=0,0,+G28*F28^H28)","v":0},"Mil $"]
[null,null,null,"WTE incineración","ton/d",{"$f":"+F28","v":0},{"$f":"+G28","v":26398},0.61570000000000003,{"$f":"++IF(F$7=0,0,G29*F29^H29)","v":0},"Mil $"]
[null,null,null,"WTE Pirólisis","ton/d",{"$f":"+F29","v":0},{"$f":"+G29","v":26398},0.61570000000000003,{"$f":"+++IF(F$8=0,0,G30*F30^H30)","v":0},"Mil $"]
[null,{"$f":"+B28+0.1","v":1.7000000000000006},"Equipos pretratamiento otras biomasas","WTE degradación anaeróbica","ton/d",{"$f":"+F6-F28","v":0},7569,0.94289999999999996,{"$f":"++IF(F6=0,0,G31*F31^H31)","v":0},"Mil $"]
[null,null,null,"WTE incineración","ton/d",{"$f":"+F31","v":0},{"$f":"+G31","v":7569},0.94289999999999996,{"$f":"++IF(F$7=0,0,G32*F32^H32)","v":0},"Mil $"]
[null,null,null,"WTE Pirólisis","ton/d",{"$f":"+F32","v":0},{"$f":"+G32","v":7569},0.94289999999999996,{"$f":"++IF(F$8=0,0,G33*F33^H33)","v":0},"Mil $"]
[null,{"$f":"+B31+0.1","v":1.8000000000000007},"Valoración energética","WTE degradación anaeróbica","ton/d",{"$f":"+F16","v":0},55705,0.88080000000000003,{"$f":"++IF(F$6=0,0,G34*F34^H34)","v":0},"Mil $"]
[null,null,null,"WTE incineración","ton/d",{"$f":"+F17","v":0},289684,-1.101,{"$f":"++IF(F$7=0,0,(G35*F35^H35)*F35*1000)","v":0},"Mil $"]
[null,null,null,"WTE Pirólisis","ton/d",{"$f":"+F35","v":0},8042,-0.76800000000000002,{"$f":"++IF(F$8=0,0,(G36*F36^H36)*F36*1000)","v":0},"Mil $"]
[null,{"$f":"+B12+1","v":2},"COSTOS DE OPERACIÓN"]
[null,{"$f":"+B37+0.1","v":2.1},"Aspectos generales","WTE degradación anaeróbica","ton/d",{"$f":"+F34","v":0},-548847,1382.4,{"$f":"++IF(F$6=0,0,(G38+H38*F38))","v":0},"Mil $/año"]
[null,null,null,"WTE incineración","ton/d",{"$f":"+F35","v":0},-548847,1382.4,{"$f":"++IF(F$7=0,0,(G39+H39*F39))","v":0},"Mil $/año"]
[null,null,null,"WTE Pirólisis","ton/d",0,-548847,1382.4,{"$f":"++IF(F$8=0,0,(G40+H40*F40))","v":0},"Mil $/año"]
[null,{"$f":"+B38+0.1","v":2.2000000000000002},"Personal","WTE degradación anaeróbica","ton/d",{"$f":"+F38","v":0},4487400,2727.5,{"$f":"++IF(F$6=0,0,(G41+H41*F41))","v":0},"Mil $/año"]
[null,null,null,"WTE incineración","ton/d",{"$f":"+F39","v":0},4487400,2727.5,{"$f":"++IF(F$7=0,0,(G42+H42*F42))","v":0},"Mil $/año"]
[null,null,null,"WTE Pirólisis","ton/d",0,4487400,2727.5,{"$f":"++IF(F$8=0,0,(G43+H43*F43))","v":0},"Mil $/año"]
[null,{"$f":"+B41+0.1","v":2.3000000000000003},"Valoración energética","WTE degradación anaeróbica","ton/d",0,9444,0.73909999999999998,{"$f":"++IF(F$6=0,0,G44*F44^H44)","v":0},"Mil $/año"]
[null,null,null,"WTE incineración","ton/d",0,269290,-1.107,{"$f":"++IF(F$7=0,0,(G45*F45^H45)*F45*312)","v":0},"Mil $/año"]
[null,null,null,"WTE Pirólisis","ton/d",0,4812.7,-0.42699999999999999,{"$f":"++IF(F$8=0,0,(G46*F46^H46)*F46*312)","v":0},"Mil $/año"]
[null,{"$f":"+B44+0.1","v":2.4000000000000004},"Gestión ambiental","WTE degradación anaeróbica","ton/d",0,null,null,{"$f":"++IF(F$6=0,0,25000)","v":0},"Mil $/año"]
[null,null,null,"WTE incineración","ton/d",0,null,null,{"$f":"++IF(F$7=0,0,25000)","v":0},"Mil $/año"]
[null,null,null,"WTE Pirólisis","ton/d",0,null,null,{"$f":"++IF(F$8=0,0,25000)","v":0},"Mil $/año"]

{"sheet":"Ingresos","index":10,"n_rows":42,"n_cols":8,"rows_kept":42,"cut":false,"hidden":true,"merged":[[6,2,6,4],[1,1,1,7],[4,1,5,1],[4,2,5,2],[4,3,5,3],[4,5,5,5]]}
[]
[null,"Ingresos Anuales"]
[]
[null,null,"WTE Degradación anaeróbica"]
[null,"N","Concepto","Unidad","Cantidad anual","V. Unitario\nMil $","Subtotal, Mil $/año","% Participación"]
[null,null,null,null,{"$f":"Costos!F66","v":0},null,{"$f":"+E6","v":0},{"$f":"+G6","v":0}]
[null,1,"INGRESOS",null,null,null,{"$f":"+SUM(G8:G16)","v":0}]
[null,{"$f":"+B7+0.1","v":1.1000000000000001},"Servicio de tratamiento de RSOU:","ton/año",{"$f":"+'M2'!J21","v":0},35,{"$f":"+E8*$F$8","v":0},{"$f":"+G8/$G$7","v":{"$error":"#DIV/0!"}}]
[null,{"$f":"+B10+0.1","v":1.3000000000000003},"Servicio de tratamiento lodos crudos de PTAR:","m3/año",{"$f":"+'M4'!G22","v":0},20,{"$f":"+E9*F9","v":0},{"$f":"+G9/$G$7","v":{"$error":"#DIV/0!"}}]
[null,{"$f":"+B8+0.1","v":1.2000000000000002},"Servicio de tratamiento otras biomasas:","ton/año",{"$f":"+'M2'!J23-E8-E9","v":0},10,{"$f":"+E10*$F$10","v":0},{"$error":"#DIV/0!"}]
[null,{"$f":"+B10+0.1","v":1.3000000000000003},"Venta materiales metálicos:","ton/año",{"$f":"+'WTE1'!E95*365","v":0},0.5,{"$f":"+E11*F11","v":0},{"$error":"#DIV/0!"}]
[null,{"$f":"+B11+0.1","v":1.4000000000000004},"Venta de materiales plásticos:","Glob",{"$f":"+'WTE1'!E105*0.75*365","v":0},0.1,{"$f":"+E12*F12","v":0},{"$error":"#DIV/0!"}]
[null,1.5000000000000004,"Venta energía eléctrica:","kWh/año",{"$f":"+'WTE1'!E172*365*0.9","v":0},0.18,{"$f":"+E13*F13","v":0},{"$error":"#DIV/0!"}]
[null,1.6000000000000005,"Mejorador de suelos (digestato):","ton/año",{"$f":"+'WTE1'!E191*0.2*312","v":0},100,{"$f":"+E14*F14","v":0},{"$error":"#DIV/0!"}]
[null,1.7000000000000006,"Bonos de carbón:","Ton CO2e /año",{"$f":"+E13*0.37/1000/0.9","v":0},15,{"$f":"+E15*F15","v":0},{"$error":"#DIV/0!"}]
[]
[null,null,"WTE Incineración"]
[null,"N","Concepto","Unidad","Cantidad anual","V. Unitario\nMil $","Subtotal, Mil $","% Participación"]
[null,null,null,null,{"$f":"+'WTE2'!E5","v":0},null,{"$f":"+E19","v":0},{"$f":"+G19","v":0}]
[null,{"$f":"+B7+1","v":2},"INGRESOS",null,null,null,{"$f":"+SUM(G21:G29)","v":0}]
[null,{"$f":"+B20+0.1","v":2.1},"Servicio de tratamiento de RSOU","ton/año",0,{"$f":"+F8","v":35},{"$f":"+E21*$F$8","v":0},{"$f":"+G21/$G$20","v":{"$error":"#DIV/0!"}}]
[null,{"$f":"+B21+0.1","v":2.2000000000000002},"Servicio de tratamiento otras biomasas:","ton/año",{"$f":"+'M2'!I23","v":0},{"$f":"+F10","v":10},{"$f":"+E22*$F$10","v":0},{"$error":"#DIV/0!"}]
[null,{"$f":"+B22+0.1","v":2.3000000000000003},"Venta materiales metalicos:","ton/año",0,0.5,{"$f":"+E23*F23","v":0},{"$error":"#DIV/0!"}]
[null,2.4000000000000004,"Venta de materiales plásticos:","Glob",0,0.1,0,{"$error":"#DIV/0!"}]
[null,2.5000000000000004,"Venta energía eléctrica:","kWh/año",{"$f":"+'WTE2'!E75*1000*0.85","v":0},0.18,0,{"$error":"#DIV/0!"}]
[null,2.6000000000000005,"Mejorador de suelos (digestato):","ton/año",{"$f":"+'WTE1'!E204*0.2*312","v":0},100,0,{"$error":"#DIV/0!"}]
[null,2.7000000000000006,"Bonos de carbón:","Ton CO2e /año",{"$f":"+E25*0.37/1000/0.85","v":0},15,0,{"$error":"#DIV/0!"}]
[null,2.8000000000000007,"Energía como calor:",{"$f":"+D25","v":"kWh/año"},{"$f":"+E25*0.7*0.1/0.3","v":0},{"$f":"+F25*0.5","v":0.09},0,{"$error":"#DIV/0!"}]
[]
[null,null,"WTE pirolisis"]
[null,"N","Concepto","Unidad","Cantidad anual","V. Unitario\nMil $","Subtotal, Mil $","% Participación"]
[null,null,null,null,{"$f":"+E19","v":0},null,{"$f":"+E32","v":0},{"$f":"+G32","v":0}]
[null,{"$f":"+B20+1","v":3},"INGRESOS",null,null,null,{"$f":"+SUM(G34:G43)","v":0}]
[null,{"$f":"+B33+0.1","v":3.1},"Servicio de tratamiento de RSOU:","ton/año",0,{"$f":"+F21","v":35},{"$f":"+E34*$F$8","v":0},{"$f":"+G34/$G$33","v":{"$error":"#DIV/0!"}}]
[null,{"$f":"+B34+0.1","v":3.2},"Servicio de tratamiento otras biomasas:","ton/año",{"$f":"+E22","v":0},{"$f":"+F22","v":10},{"$f":"+E35*$F$10","v":0},{"$error":"#DIV/0!"}]
[null,{"$f":"+B35+0.1","v":3.3000000000000003},"Venta materiales metalicos:","ton/año",0,0.5,{"$f":"+E36*F36","v":0},{"$error":"#DIV/0!"}]
[null,3.4000000000000004,"Venta de materiales plásticos:","Glob",0,0.1,0,{"$error":"#DIV/0!"}]
[null,3.5000000000000004,{"$f":"+C25","v":"Venta energía eléctrica:"},"kWh/año",{"$f":"1.12*E35*1000*0.5","v":0},0.18,0,{"$error":"#DIV/0!"}]
[null,3.6000000000000005,"Mejorador de suelos (Digestato):","ton/año",{"$f":"+'WTE1'!E217*0.2*312","v":0},100,0,{"$error":"#DIV/0!"}]
[null,3.7000000000000006,"Bonos de carbón:","Ton CO2e /año",{"$f":"+E38*0.37/1000/0.85","v":0},15,0,{"$error":"#DIV/0!"}]
[null,3.8000000000000007,"Energía como calor:",{"$f":"+D38","v":"kWh/año"},{"$f":"+E38*0.7*0.1/0.3","v":0},{"$f":"F28","v":0.09},0,{"$error":"#DIV/0!"}]
[null,3.9000000000000008,"Aceite Pirolítico:",{"$f":"+D39","v":"ton/año"},{"$f":"+E35*0.25","v":0},{"$f":"700*2.7/1000","v":1.8900000000000001},0,{"$error":"#DIV/0!"}]

{"sheet":"6","index":11,"n_rows":40,"n_cols":24,"rows_kept":40,"cut":false,"hidden":true,"merged":[[1,1,1,23],[39,4,39,8],[17,2,17,3],[26,2,26,3],[3,1,4,1],[3,2,4,2],[3,3,3,23]]}
[]
[null,"WTE Degradación anaeróbica"]
[]
[null,"N","Concepto","Año, Miles $Col"]
[null,null,null,0,{"$f":"+D5+1","v":1},{"$f":"+E5+1","v":2},3,4,5,6,7,8,9,10,11,12,13,14,15,16,17,{"$f":"+U5+1","v":18},{"$f":"+V5+1","v":19},{"$f":"+W5+1","v":20}]
[null,1,"PREINVERSIONES"]
[null,{"$f":"+B6+0.1","v":1.1000000000000001},"Estudios y diseños",{"$f":"+Costos!I16","v":0}]
[null,{"$f":"+B7+0.1","v":1.2000000000000002},"Predio",{"$f":"+Costos!I13","v":0}]
[]
[null,{"$f":"+B6+1","v":2},"OBRAS CIVILES"]
[null,{"$f":"+B10+0.1","v":2.1},"Preliminares",{"$f":"+Costos!I19","v":0}]
[null,2.2000000000000002,"Obras Generales",{"$f":"+Costos!I22","v":0}]
[null,2.3000000000000003,"Edificaciones",{"$f":"+Costos!I25","v":0}]
[null,2.4000000000000004,"Equipos pretratamiento RSUO",{"$f":"+Costos!I28","v":0}]
[null,2.5000000000000004,"Equipos pretratamiento otras biomasas",{"$f":"+Costos!I31","v":0}]
[null,{"$f":"+B14+0.1","v":2.5000000000000004},"Obras y equipos para valoración energética",{"$f":"+Costos!I34","v":0}]
[]
[null,{"$f":"+B10+1","v":3},"OPERACIÓN Y MANTENIMIENTO"]
[null,{"$f":"+B18+0.1","v":3.1},"Aspectos generales",null,{"$f":"+Costos!I38","v":0},{"$f":"+E19","v":0},{"$f":"+F19","v":0},0,0,0,0,0,0,0,0,0,0,0,0,0,0,0,0,0]
[null,{"$f":"+B19+0.1","v":3.2},"Personal",null,{"$f":"+Costos!I41","v":0},{"$f":"+E20","v":0},{"$f":"+F20","v":0},0,0,0,0,0,0,0,0,0,0,0,0,0,0,0,0,0]
[null,3.3000000000000003,"Valoración energética",null,{"$f":"+Costos!I44","v":0},{"$f":"+E21","v":0},{"$f":"+F21","v":0},0,0,0,0,0,0,0,0,0,0,0,0,0,0,0,0,0]
[null,3.4000000000000004,"Varios",null,{"$f":"+Costos!I47","v":0},{"$f":"+E22","v":0},{"$f":"+F22","v":0},0,0,0,0,0,0,0,0,0,0,0,0,0,0,0,0,0]
[null,3.5000000000000004,"Reposición equipos",null,null,null,null,null,null,null,{"$f":"+D16*0.23","v":0},null,null,null,null,null,null,{"$f":"+K23","v":0}]
[null,null,"SUMA (Milles $)",{"$f":"+SUM(D6:D23)","v":0},{"$f":"+SUM(E6:E23)","v":0},0,0,0,0,0,0,0,0,0,0,0,0,0,0,0,0,0,0,0]
[null,null,"Suma (USD)",{"$f":"+D24*1000/$D$40","v":0},0,0,0,0,0,0,0,0,0,0,0,0,0,0,0,0,0,0,0,0]
[]
[null,{"$f":"+B18+1","v":4},"INGRESOS"]
[null,{"$f":"+B27+0.1","v":4.0999999999999996},{"$f":"+Ingresos!C8","v":"Servicio de tratamiento de RSOU:"},null,{"$f":"+Ingresos!G8","v":0},{"$f":"+E28","v":0},{"$f":"+F28","v":0},0,0,0,0,0,0,0,0,0,0,0,0,0,0,0,0,0]
[null,{"$f":"+B28+0.1","v":4.1999999999999993},{"$f":"+Ingresos!C9","v":"Servicio de tratamiento lodos crudos de PTAR:"},null,{"$f":"+Ingresos!G9","v":0},{"$f":"+E29","v":0},{"$f":"+F29","v":0},0,0,0,0,0,0,0,0,0,0,0,0,0,0,0,0,0]
[null,{"$f":"+B29+0.1","v":4.2999999999999989},{"$f":"+Ingresos!C10","v":"Servicio de tratamiento otras biomasas:"},null,{"$f":"+Ingresos!G10","v":0},{"$f":"+E30","v":0},{"$f":"+F30","v":0},{"$f":"+G30","v":0},{"$f":"+H30","v":0},{"$f":"+I30","v":0},{"$f":"+J30","v":0},{"$f":"+K30","v":0},{"$f":"+L30","v":0},{"$f":"+M30","v":0},{"$f":"+N30","v":0},{"$f":"+O30","v":0},{"$f":"+P30","v":0},{"$f":"+Q30","v":0},{"$f":"+R30","v":0},{"$f":"+S30","v":0},{"$f":"+T30","v":0},{"$f":"+U30","v":0},{"$f":"+V30","v":0},{"$f":"+W30","v":0}]
[null,{"$f":"+B30+0.1","v":4.3999999999999986},{"$f":"+Ingresos!C11","v":"Venta materiales metálicos:"},null,{"$f":"+Ingresos!G11","v":0},0,{"$f":"+F31","v":0},0,0,0,0,0,0,0,0,0,0,0,0,0,0,0,0,0]
[null,{"$f":"+B31+0.1","v":4.4999999999999982},{"$f":"+Ingresos!C12","v":"Venta de materiales plásticos:"},null,{"$f":"+Ingresos!G12","v":0},0,{"$f":"+F32","v":0},0,0,0,0,0,0,0,0,0,0,0,0,0,0,0,0,0]
[null,4.5999999999999979,{"$f":"+Ingresos!C13","v":"Venta energía eléctrica:"},null,{"$f":"+Ingresos!G13","v":0},0,{"$f":"+F33","v":0},0,0,0,0,0,0,0,0,0,0,0,0,0,0,0,0,0]
[null,4.6999999999999975,{"$f":"+Ingresos!C14","v":"Mejorador de suelos (digestato):"},null,{"$f":"+Ingresos!G14","v":0},{"$f":"+E34","v":0},{"$f":"+F34","v":0},{"$f":"+G34","v":0},{"$f":"+H34","v":0},{"$f":"+I34","v":0},{"$f":"+J34","v":0},{"$f":"+K34","v":0},{"$f":"+L34","v":0},{"$f":"+M34","v":0},{"$f":"+N34","v":0},{"$f":"+O34","v":0},{"$f":"+P34","v":0},{"$f":"+Q34","v":0},{"$f":"+R34","v":0},{"$f":"+S34","v":0},{"$f":"+T34","v":0},{"$f":"+U34","v":0},{"$f":"+V34","v":0},{"$f":"+W34","v":0}]
[null,4.7999999999999972,{"$f":"+Ingresos!C15","v":"Bonos de carbón:"},null,{"$f":"+Ingresos!G15","v":0},0,0,0,0,0,0,0,0,0,0,0,0,0,0,0,0,0,0,0]
[]
[null,null,"SUMA (Milles $)",null,{"$f":"+SUM(E28:E36)","v":0},{"$f":"+SUM(F28:F36)","v":0},{"$f":"+SUM(G28:G36)","v":0},{"$f":"+SUM(H28:H36)","v":0},0,0,0,0,0,0,0,{"$f":"+SUM(P28:P36)","v":0},0,0,0,0,0,0,0,0]
[null,null,"Suma (USD)",null,{"$f":"+E37*1000/$D$40","v":0},0,0,0,0,0,0,0,0,0,0,0,0,0,0,0,0,0,0,0]
[]
[null,null,"Dólar",2900,"$Col / USD"]

{"sheet":"7","index":12,"n_rows":40,"n_cols":24,"rows_kept":40,"cut":false,"hidden":true,"merged":[[1,1,1,23],[3,1,4,1],[3,2,4,2],[3,3,3,23],[39,4,39,8],[17,2,17,3],[26,2,26,3]]}
[]
[null,"WTE Incineración"]
[]
[null,"N","Concepto","Año, Miles $Col"]
[null,null,null,0,{"$f":"+D5+1","v":1},{"$f":"+E5+1","v":2},3,4,5,6,7,8,9,10,11,12,13,14,15,16,17,18,19,20]
[null,1,"PREINVERSIONES"]
[null,{"$f":"+B6+0.1","v":1.1000000000000001},"Estudios y diseños",{"$f":"+Costos!I17","v":0}]
[null,{"$f":"+B7+0.1","v":1.2000000000000002},"Predio",{"$f":"+Costos!I14","v":0}]
[]
[null,{"$f":"+B6+1","v":2},"OBRAS CIVILES"]
[null,{"$f":"+B10+0.1","v":2.1},{"$f":"+'6'!C11","v":"Preliminares"},{"$f":"+Costos!I20","v":0}]
[null,2.2000000000000002,{"$f":"+'6'!C12","v":"Obras Generales"},{"$f":"+Costos!I23","v":0}]
[null,2.3000000000000003,{"$f":"+'6'!C13","v":"Edificaciones"},{"$f":"+Costos!I26","v":0}]
[null,2.4000000000000004,{"$f":"+'6'!C14","v":"Equipos pretratamiento RSUO"},{"$f":"+Costos!I29","v":0}]
[null,2.5000000000000004,{"$f":"+'6'!C15","v":"Equipos pretratamiento otras biomasas"},{"$f":"+Costos!I32","v":0}]
[null,{"$f":"+B14+0.1","v":2.5000000000000004},{"$f":"+'6'!C16","v":"Obras y equipos para valoración energética"},{"$f":"+Costos!I35","v":0}]
[]
[null,{"$f":"+B10+1","v":3},"OPERACIÓN Y MANTENIMIENTO"]
[null,{"$f":"+B18+0.1","v":3.1},"Aspectos generales",null,{"$f":"+Costos!I39","v":0},{"$f":"+E19","v":0},{"$f":"+F19","v":0},0,0,0,0,0,0,0,0,0,0,0,0,0,0,0,0,0]
[null,{"$f":"+B19+0.1","v":3.2},"Personal",null,{"$f":"+Costos!I42","v":0},{"$f":"+E20","v":0},{"$f":"+F20","v":0},0,0,0,0,0,0,0,0,0,0,0,0,0,0,0,0,0]
[null,3.3000000000000003,"Valoración energética",null,{"$f":"+Costos!I45","v":0},{"$f":"+E21","v":0},{"$f":"+F21","v":0},0,0,0,0,0,0,0,0,0,0,0,0,0,0,0,0,0]
[null,3.4000000000000004,"Varios",null,{"$f":"+Costos!I48","v":0},{"$f":"+E22","v":0},{"$f":"+F22","v":0},0,0,0,0,0,0,0,0,0,0,0,0,0,0,0,0,0]
[null,3.5000000000000004,"Reposición equipos",null,null,null,null,null,null,null,{"$f":"+D16*0.23","v":0},null,null,null,null,null,null,{"$f":"+K23","v":0}]
[null,null,"SUMA (Milles $)",{"$f":"+SUM(D6:D23)","v":0},0,0,0,0,0,0,0,0,0,0,0,0,0,0,0,0,0,0,0,0]
[null,null,"Suma (USD)",{"$f":"+D24*1000/$D$40","v":0},{"$f":"+E24*1000/$D$40","v":0},0,0,0,0,0,0,0,0,0,0,0,0,0,0,0,0,0,0,0]
[]
[null,{"$f":"+B18+1","v":4},"INGRESOS"]
[null,{"$f":"+B27+0.1","v":4.0999999999999996},{"$f":"+Ingresos!C21","v":"Servicio de tratamiento de RSOU"},null,{"$f":"+Ingresos!G21","v":0},{"$f":"+E28","v":0},{"$f":"+F28","v":0},0,0,0,0,0,0,0,0,0,0,0,0,0,0,0,0,0]
[null,{"$f":"+B28+0.1","v":4.1999999999999993},{"$f":"+Ingresos!C22","v":"Servicio de tratamiento otras biomasas:"},null,{"$f":"+Ingresos!G22","v":0},{"$f":"+E29","v":0},{"$f":"+F29","v":0},{"$f":"+G29","v":0},{"$f":"+H29","v":0},{"$f":"+I29","v":0},{"$f":"+J29","v":0},{"$f":"+K29","v":0},{"$f":"+L29","v":0},{"$f":"+M29","v":0},{"$f":"+N29","v":0},{"$f":"+O29","v":0},{"$f":"+P29","v":0},{"$f":"+Q29","v":0},{"$f":"+R29","v":0},{"$f":"+S29","v":0},{"$f":"+T29","v":0},{"$f":"+U29","v":0},{"$f":"+V29","v":0},{"$f":"+W29","v":0}]
[null,4.2999999999999989,{"$f":"+Ingresos!C23","v":"Venta materiales metalicos:"},null,{"$f":"+Ingresos!G23","v":0},0,0,0,0,0,0,0,0,0,0,0,0,0,0,0,0,0,0,0]
[null,{"$f":"+B30+0.1","v":4.3999999999999986},{"$f":"+Ingresos!C24","v":"Venta de materiales plásticos:"},null,{"$f":"+Ingresos!G24","v":0},0,0,0,0,0,0,0,0,0,0,0,0,0,0,0,0,0,0,0]
[null,4.4999999999999982,{"$f":"+Ingresos!C25","v":"Venta energía eléctrica:"},null,{"$f":"+Ingresos!G25","v":0},0,0,0,0,0,0,0,0,0,0,0,0,0,0,0,0,0,0,0]
[null,4.5999999999999979,{"$f":"+Ingresos!C26","v":"Mejorador de suelos (digestato):"},null,{"$f":"+Ingresos!G26","v":0},{"$f":"+E33","v":0},{"$f":"+F33","v":0},{"$f":"+G33","v":0},{"$f":"+H33","v":0},{"$f":"+I33","v":0},{"$f":"+J33","v":0},{"$f":"+K33","v":0},{"$f":"+L33","v":0},{"$f":"+M33","v":0},{"$f":"+N33","v":0},{"$f":"+O33","v":0},{"$f":"+P33","v":0},{"$f":"+Q33","v":0},{"$f":"+R33","v":0},{"$f":"+S33","v":0},{"$f":"+T33","v":0},{"$f":"+U33","v":0},{"$f":"+V33","v":0},{"$f":"+W33","v":0}]
[null,4.6999999999999975,{"$f":"+Ingresos!C27","v":"Bonos de carbón:"},null,{"$f":"+Ingresos!G27","v":0},0,0,0,0,0,0,0,0,0,0,0,0,0,0,0,0,0,0,0]
[null,4.7999999999999972,{"$f":"+Ingresos!C28","v":"Energía como calor:"},null,{"$f":"+Ingresos!G28","v":0},0,0,0,0,0,0,0,0,0,0,0,0,0,0,0,0,0,0,0]
[]
[null,null,"SUMA (Milles $)",null,{"$f":"+SUM(E28:E35)","v":0},{"$f":"+SUM(F28:F35)","v":0},0,0,0,0,0,0,0,0,0,{"$f":"+SUM(P28:P35)","v":0},0,0,0,0,0,0,0,0]
[null,null,"Suma (USD)",null,{"$f":"+E37*1000/$D$40","v":0},{"$f":"+F37*1000/$D$40","v":0},0,0,0,0,0,0,0,0,{"$f":"+O37*1000/$D$40","v":0},{"$f":"+P37*1000/$D$40","v":0},{"$f":"+Q37*1000/$D$40","v":0},{"$f":"+R37*1000/$D$40","v":0},{"$f":"+S37*1000/$D$40","v":0},{"$f":"+T37*1000/$D$40","v":0},{"$f":"+U37*1000/$D$40","v":0},{"$f":"+V37*1000/$D$40","v":0},{"$f":"+W37*1000/$D$40","v":0},{"$f":"+X37*1000/$D$40","v":0}]
[]
[null,null,"Dólar",{"$f":"+'6'!D40","v":2900},"$Col / USD"]

{"sheet":"8","index":13,"n_rows":41,"n_cols":24,"rows_kept":41,"cut":false,"hidden":true,"merged":[[1,1,1,23],[3,1,4,1],[3,2,4,2],[3,3,3,23],[40,4,40,8],[17,2,17,3],[26,2,26,3]]}
[]
[null,"WTE Pirolisis"]
[]
[null,"N","Concepto","Año, Miles $Col"]
[null,null,null,0,{"$f":"+D5+1","v":1},{"$f":"+E5+1","v":2},3,4,5,6,7,8,9,10,11,12,13,14,15,16,17,18,19,20]
[null,1,"PREINVERSIONES"]
[null,{"$f":"+B6+0.1","v":1.1000000000000001},"Estudios y diseños",{"$f":"+Costos!I18","v":0}]
[null,{"$f":"+B7+0.1","v":1.2000000000000002},"Predio",{"$f":"+Costos!I15","v":0}]
[]
[null,{"$f":"+B6+1","v":2},"OBRAS CIVILES"]
[null,{"$f":"+B10+0.1","v":2.1},{"$f":"+'6'!C11","v":"Preliminares"},{"$f":"+Costos!I21","v":0}]
[null,2.2000000000000002,{"$f":"+'6'!C12","v":"Obras Generales"},{"$f":"+Costos!I24","v":0}]
[null,2.3000000000000003,{"$f":"+'6'!C13","v":"Edificaciones"},{"$f":"+Costos!I27","v":0}]
[null,2.4000000000000004,{"$f":"+'6'!C14","v":"Equipos pretratamiento RSUO"},{"$f":"+Costos!I30","v":0}]
[null,2.5000000000000004,{"$f":"+'6'!C15","v":"Equipos pretratamiento otras biomasas"},{"$f":"+Costos!I33","v":0}]
[null,2.6000000000000005,{"$f":"+'6'!C16","v":"Obras y equipos para valoración energética"},{"$f":"+Costos!I36","v":0}]
[]
[null,{"$f":"+B10+1","v":3},"OPERACIÓN Y MANTENIMIENTO"]
[null,{"$f":"+B18+0.1","v":3.1},"Aspectos generales",null,{"$f":"+Costos!I40","v":0},{"$f":"+E19","v":0},{"$f":"+F19","v":0},0,0,0,0,0,0,0,0,0,0,0,0,0,0,0,0,0]
[null,{"$f":"+B19+0.1","v":3.2},"Personal",null,{"$f":"+Costos!I43","v":0},{"$f":"+E20","v":0},0,0,0,0,0,0,0,0,0,0,0,0,0,0,0,0,0,0]
[null,3.3000000000000003,"Valoración energética",null,{"$f":"+Costos!I46","v":0},{"$f":"+E21","v":0},0,0,0,0,0,0,0,0,0,0,0,0,0,0,0,0,0,0]
[null,3.4000000000000004,"Varios",null,{"$f":"+Costos!I49","v":0},{"$f":"+E22","v":0},0,0,0,0,0,0,0,0,0,0,0,0,0,0,0,0,0,0]
[null,3.5000000000000004,"Reposición equipos",null,null,null,null,null,null,null,{"$f":"+D16*0.23","v":0},null,null,null,null,null,null,{"$f":"+K23","v":0}]
[null,null,"SUMA (Milles $)",{"$f":"+SUM(D6:D23)","v":0},{"$f":"+SUM(E6:E23)","v":0},0,0,0,0,0,0,0,0,0,0,0,0,0,0,0,0,0,0,0]
[null,null,"Suma (USD)",{"$f":"+D24*1000/$D$41","v":0},{"$f":"+E24*1000/$D$41","v":0},0,0,0,0,0,0,0,0,0,0,0,0,0,0,0,0,0,0,0]
[]
[null,{"$f":"+B18+1","v":4},"INGRESOS"]
[null,{"$f":"+B27+0.1","v":4.0999999999999996},{"$f":"+Ingresos!C34","v":"Servicio de tratamiento de RSOU:"},null,{"$f":"+Ingresos!G34","v":0},{"$f":"+E28","v":0},{"$f":"+F28","v":0},0,0,0,0,0,0,0,0,0,0,0,0,0,0,0,0,0]
[null,{"$f":"+B28+0.1","v":4.1999999999999993},{"$f":"+Ingresos!C35","v":"Servicio de tratamiento otras biomasas:"},null,{"$f":"+Ingresos!G35","v":0},{"$f":"+E29","v":0},{"$f":"+F29","v":0},{"$f":"+G29","v":0},{"$f":"+H29","v":0},{"$f":"+I29","v":0},{"$f":"+J29","v":0},{"$f":"+K29","v":0},{"$f":"+L29","v":0},{"$f":"+M29","v":0},{"$f":"+N29","v":0},{"$f":"+O29","v":0},{"$f":"+P29","v":0},{"$f":"+Q29","v":0},{"$f":"+R29","v":0},{"$f":"+S29","v":0},{"$f":"+T29","v":0},{"$f":"+U29","v":0},{"$f":"+V29","v":0},{"$f":"+W29","v":0}]
[null,4.2999999999999989,{"$f":"+Ingresos!C36","v":"Venta materiales metalicos:"},null,{"$f":"+Ingresos!G36","v":0},0,0,0,0,0,0,0,0,0,0,0,0,0,0,0,0,0,0,0]
[null,{"$f":"+B30+0.1","v":4.3999999999999986},{"$f":"+Ingresos!C37","v":"Venta de materiales plásticos:"},null,{"$f":"+Ingresos!G37","v":0},0,0,0,0,0,0,0,0,0,0,0,0,0,0,0,0,0,0,0]
[null,4.4999999999999982,{"$f":"+Ingresos!C38","v":"Venta energía eléctrica:"},null,{"$f":"+Ingresos!G38","v":0},0,0,0,0,0,0,0,0,0,0,0,0,0,0,0,0,0,0,0]
[null,4.5999999999999979,{"$f":"+Ingresos!C39","v":"Mejorador de suelos (Digestato):"},null,{"$f":"+Ingresos!G39","v":0},{"$f":"+E33","v":0},{"$f":"+F33","v":0},{"$f":"+G33","v":0},{"$f":"+H33","v":0},{"$f":"+I33","v":0},{"$f":"+J33","v":0},{"$f":"+K33","v":0},{"$f":"+L33","v":0},{"$f":"+M33","v":0},{"$f":"+N33","v":0},{"$f":"+O33","v":0},{"$f":"+P33","v":0},{"$f":"+Q33","v":0},{"$f":"+R33","v":0},{"$f":"+S33","v":0},{"$f":"+T33","v":0},{"$f":"+U33","v":0},{"$f":"+V33","v":0},{"$f":"+W33","v":0}]
[null,4.6999999999999975,{"$f":"+Ingresos!C40","v":"Bonos de carbón:"},null,{"$f":"+Ingresos!G40","v":0},0,0,0,0,0,0,0,0,0,0,0,0,0,0,0,0,0,0,0]
[null,4.7999999999999972,{"$f":"+Ingresos!C41","v":"Energía como calor:"},null,{"$f":"+Ingresos!G41","v":0},{"$f":"+E35","v":0},0,0,0,0,0,0,0,0,0,0,0,0,0,0,0,0,0,0]
[null,4.8999999999999968,{"$f":"+Ingresos!C42","v":"Aceite Pirolítico:"},null,{"$f":"+Ingresos!G42","v":0},{"$f":"+E36","v":0},0,0,0,0,0,0,0,0,0,0,0,0,0,0,0,0,0,0]
[]
[null,null,"SUMA (Milles $)",null,{"$f":"+SUM(E28:E37)","v":0},{"$f":"+SUM(F28:F37)","v":0},{"$f":"+SUM(G28:G37)","v":0},0,0,0,0,0,0,0,0,{"$f":"+SUM(P28:P37)","v":0},0,0,0,0,0,0,0,0]
[null,null,"Suma (USD)",null,{"$f":"+E38*1000/$D$41","v":0},{"$f":"+F38*1000/$D$41","v":0},0,0,0,0,0,0,0,0,0,0,0,0,0,0,0,0,0,0]
[]
[null,null,"Dólar",{"$f":"+'7'!D40","v":2900},"$Col / USD"]

{"sheet":"dbTemp","index":14,"n_rows":1128,"n_cols":8,"rows_kept":1128,"cut":false,"hidden":true,"merged":[]}
["DANE","DEPARTAMENTO ATENDIDO","ANTIOQUIA - COCORNÁ","Departamento-Municipio","OPERADOR SITIO DE DF","AÑO","NOMBRE DEL SITIO","TIPO DE SDF"]
[0,"TODOS","TODOS","BIOMASAS TOTALES",0,0,0,0]
[5197,"ANTIOQUIA","COCORNÁ","ANTIOQUIA - COCORNÁ","EMPRESA DE SERVICIOS PUBLICOS DE COCORNA E.S.P.",2016,"RELLENO SANITARIO MUNICIPAL","RELLENO SANITARIO"]
[5206,"ANTIOQUIA","CONCEPCIÓN","ANTIOQUIA - CONCEPCIÓN","MUNICIPIO DE CONCEPCION",2016,"RELLENO SANITARIO CERRO DE LA VIRGEN","RELLENO SANITARIO"]
[5209,"ANTIOQUIA","CONCORDIA","ANTIOQUIA - CONCORDIA","EMPRESAS PUBLICAS MUNICIPALES DE CONCORDIA E.S.P.",2016,"RELLENO SANITARIO CONCORDIA","RELLENO SANITARIO"]
[5212,"ANTIOQUIA","COPACABANA","ANTIOQUIA - COPACABANA","EMPRESAS VARIAS DE MEDELLIN  S.A. E.S. P.",2016,"PARQUE AMBIENTAL LA PRADERA","RELLENO SANITARIO"]
[5234,"ANTIOQUIA","DABEIBA","ANTIOQUIA - DABEIBA","EMPRESAS PUBLICAS DE DABEIBA S.A.S   E.S.P        ",2016,"RELLENO SANITARIO DABEIBA","RELLENO SANITARIO"]
[5237,"ANTIOQUIA","DONMATÍAS","ANTIOQUIA - DONMATÍAS","SERVIDONMATIAS ESP SAS",2016,"EL PINAR","RELLENO SANITARIO"]
[5240,"ANTIOQUIA","EBÉJICO","ANTIOQUIA - EBÉJICO","EMPRESAS VARIAS DE MEDELLIN  S.A. E.S. P.",2016,"PARQUE AMBIENTAL LA PRADERA","RELLENO SANITARIO"]
[5001,"ANTIOQUIA","MEDELLÍN","ANTIOQUIA - MEDELLÍN","EMPRESAS VARIAS DE MEDELLIN  S.A. E.S. P.",2016,"PARQUE AMBIENTAL LA PRADERA","RELLENO SANITARIO"]
[5002,"ANTIOQUIA","ABEJORRAL","ANTIOQUIA - ABEJORRAL","EMPRESAS PUBLICAS DE ABEJORRAL E.S.P.",2016,"LOS MOLINOS","RELLENO SANITARIO"]
[5004,"ANTIOQUIA","ABRIAQUÍ","ANTIOQUIA - ABRIAQUÍ","UNIDAD DE SERVICIOS PUBLICOS DE ABRIAQUI",2016,"FINCA EL LIBANO","BOTADERO A CIELO ABIERTO"]
[5021,"ANTIOQUIA","ALEJANDRÍA","ANTIOQUIA - ALEJANDRÍA","UNIDAD DE SERVICIOS PUBLICOS DOMICILIARIOS MUNICIPIO DE ALEJANDRIA",2016,"RELLENO SANITARIO ALEJANDRIA","RELLENO SANITARIO"]
[5030,"ANTIOQUIA","AMAGÁ","ANTIOQUIA - AMAGÁ","EMPRESAS VARIAS DE MEDELLIN  S.A. E.S. P.",2016,"PARQUE AMBIENTAL LA PRADERA","RELLENO SANITARIO"]
[5031,"ANTIOQUIA","AMALFI","ANTIOQUIA - AMALFI","ASESORIAS Y SERVICIOS E.S.P. S.A.",2016,"LA ESPAÑOLA","RELLENO SANITARIO"]
[5034,"ANTIOQUIA","ANDES","ANTIOQUIA - ANDES","EMPRESA DE SERVICIOS PUBLICOS DE ANDES S.A. E.S.P.",2016,"LA SOLITA","RELLENO SANITARIO"]
[5036,"ANTIOQUIA","ANGELÓPOLIS","ANTIOQUIA - ANGELÓPOLIS","JUNTA DE SERVICIOS PUBLICOS DEL MUNICIPIO DE ANGELOPOLIS",2016,"RELLENO SANITARIO SAN ISIDRO","RELLENO SANITARIO"]
[5038,"ANTIOQUIA","ANGOSTURA","ANTIOQUIA - ANGOSTURA","EMPRESA DE SERVICIOS PUBLICOS DOMICILIARIOS DE ANGOSTURA S.A. E.S.P.",2016,"BUENAVISTA","RELLENO SANITARIO"]
[5040,"ANTIOQUIA","ANORÍ","ANTIOQUIA - ANORÍ","MUNICIPIO DE ANORI",2016,"RELLENO SANITARIO SAN ANTONIO","RELLENO SANITARIO"]
[5042,"ANTIOQUIA","SANTA FÉ DE ANTIOQUIA","ANTIOQUIA - SANTA FÉ DE ANTIOQUIA","EMPRESAS VARIAS DE MEDELLIN  S.A. E.S. P.",2016,"PARQUE AMBIENTAL LA PRADERA","RELLENO SANITARIO"]
[5044,"ANTIOQUIA","ANZÁ","ANTIOQUIA - ANZÁ","OFICINA DE SERVICIOS PUBLICOS MUNICIPIO DE ANZA",2016,"LOS CEDROS","RELLENO SANITARIO"]
[5045,"ANTIOQUIA","APARTADÓ","ANTIOQUIA - APARTADÓ","FUTURASEO S.A. E.S.P",2016,"CENTRO INDUSTRIAL DE RESIDUOS SOLIDOS DE URABA","RELLENO SANITARIO"]
[5051,"ANTIOQUIA","ARBOLETES","ANTIOQUIA - ARBOLETES","FUTURASEO S.A. E.S.P",2016,"CENTRO INDUSTRIAL DE RESIDUOS SOLIDOS DE URABA","RELLENO SANITARIO"]
[5055,"ANTIOQUIA","ARGELIA","ANTIOQUIA - ARGELIA","EMPRESA DE SERVICIOS PÙBLICOS ARGELIA DE MARIA S.A",2016,"RELLENO SANITARIO VEREDA LA MINA","RELLENO SANITARIO"]
[5059,"ANTIOQUIA","ARMENIA","ANTIOQUIA - ARMENIA","EMPRESAS VARIAS DE MEDELLIN  S.A. E.S. P.",2016,"PARQUE AMBIENTAL LA PRADERA","RELLENO SANITARIO"]
[5079,"ANTIOQUIA","BARBOSA","ANTIOQUIA - BARBOSA","EMPRESAS VARIAS DE MEDELLIN  S.A. E.S. P.",2016,"PARQUE AMBIENTAL LA PRADERA","RELLENO SANITARIO"]
[5086,"ANTIOQUIA","BELMIRA","ANTIOQUIA - BELMIRA","EMPRESAS PUBLICAS DE BELMIRA ESP",2016,"RELLENO SANITARIO MUNICIPAL","RELLENO SANITARIO"]
[5088,"ANTIOQUIA","BELLO","ANTIOQUIA - BELLO","EMPRESAS VARIAS DE MEDELLIN  S.A. E.S. P.",2016,"PARQUE AMBIENTAL LA PRADERA","RELLENO SANITARIO"]
[5091,"ANTIOQUIA","BETANIA","ANTIOQUIA - BETANIA","EMPRESAS PÚBLICAS MUNICIPALES DE BETANIA S.A E.S.P",2016,"LAS MERCEDES","RELLENO SANITARIO"]
[5093,"ANTIOQUIA","BETULIA","ANTIOQUIA - BETULIA","EMPRESAS PUBLICAS DE BETULIA S.A E.S.P ",2016,"LA FLORIDA","RELLENO SANITARIO"]
[5101,"ANTIOQUIA","CIUDAD BOLÍVAR","ANTIOQUIA - CIUDAD BOLÍVAR","EMPRESA PRESTADORA DEL SERVICIO PUBLICO DE ASEO CIUDAD BOLIVAR",2016,"BUENAVISTA","RELLENO SANITARIO"]
[5107,"ANTIOQUIA","BRICEÑO","ANTIOQUIA - BRICEÑO","EMPRESAS PUBLICAS DE BRICEÑO S.A. E.S.P.",2016,"PARQUE AMBIENTAL LLANADAS","RELLENO SANITARIO"]
[5113,"ANTIOQUIA","BURITICÁ","ANTIOQUIA - BURITICÁ","EMPRESAS VARIAS DE MEDELLIN  S.A. E.S. P.",2016,"PARQUE AMBIENTAL LA PRADERA","RELLENO SANITARIO"]
[5120,"ANTIOQUIA","CÁCERES","ANTIOQUIA - CÁCERES","CAUCASIA MEDIO AMBIENTE S.A. E.S.P.",2016,"RELLENO CAUCASIA","RELLENO SANITARIO"]
[5125,"ANTIOQUIA","CAICEDO","ANTIOQUIA - CAICEDO","UNIDAD DE SERVICIOS PUBLICOS DOMICILIARIOS DEL MUNICIPIO DE CAICEDO.",2016,"PARQUE ECOLOGICO LA LIBERTAD","RELLENO SANITARIO"]
[5129,"ANTIOQUIA","CALDAS","ANTIOQUIA - CALDAS","EMPRESAS VARIAS DE MEDELLIN  S.A. E.S. P.",2016,"PARQUE AMBIENTAL LA PRADERA","RELLENO SANITARIO"]
[5134,"ANTIOQUIA","CAMPAMENTO","ANTIOQUIA - CAMPAMENTO","MUNICIPIO DE CAMPAMENTO ANTIOQUIA",2016,"RELLENO  SANITARIO MUNICIPAL RANCHOS","RELLENO SANITARIO"]
[5138,"ANTIOQUIA","CAÑASGORDAS","ANTIOQUIA - CAÑASGORDAS","EMPRESAS PUBLICAS DE CAÑASGORSA SA ESP",2016,"RECICLIN","CELDA TRANSITORIA"]
[5142,"ANTIOQUIA","CARACOLÍ","ANTIOQUIA - CARACOLÍ","EMPRESA DE SERVICIOS PUBLICOS DOMICILIARIOS DE CARACOLI S.A  E.S.P.",2016,"ROSARITO","RELLENO SANITARIO"]
[5145,"ANTIOQUIA","CARAMANTA","ANTIOQUIA - CARAMANTA","EMPRESAS PUBLICAS DE CARAMANTA S.A.S. E.S.P.",2016,"RELLENO SANITARIO EL JARDIN","RELLENO SANITARIO"]
[5147,"ANTIOQUIA","CAREPA","ANTIOQUIA - CAREPA","FUTURASEO S.A. E.S.P",2016,"CENTRO INDUSTRIAL DE RESIDUOS SOLIDOS DE URABA","RELLENO SANITARIO"]
[5148,"ANTIOQUIA","EL CARMEN DE VIBORAL","ANTIOQUIA - EL CARMEN DE VIBORAL","EMPRESA DE SERVICIOS PUBLICOS DE EL CARMEN DE VIBORAL E.S.P.",2016,"RELLENO SANITARIO ALTO GRANDE","RELLENO SANITARIO"]
[5150,"ANTIOQUIA","CAROLINA","ANTIOQUIA - CAROLINA","UNIDAD ADMINISTRATIVA ESPECIAL DE SERVICIOS PUBLICOS DOMICILIARIOS DE CAROLINA DEL PRINCIPE",2016,"LA GRANJA","RELLENO SANITARIO"]
[5154,"ANTIOQUIA","CAUCASIA","ANTIOQUIA - CAUCASIA","CAUCASIA MEDIO AMBIENTE S.A. E.S.P.",2016,"RELLENO CAUCASIA","RELLENO SANITARIO"]
[5172,"ANTIOQUIA","CHIGORODÓ","ANTIOQUIA - CHIGORODÓ","FUTURASEO S.A. E.S.P",2016,"CENTRO INDUSTRIAL DE RESIDUOS SOLIDOS DE URABA","RELLENO SANITARIO"]
[5190,"ANTIOQUIA","CISNEROS","ANTIOQUIA - CISNEROS","EMPRESAS VARIAS DE MEDELLIN  S.A. E.S. P.",2016,"PARQUE AMBIENTAL LA PRADERA","RELLENO SANITARIO"]
[5368,"ANTIOQUIA","JERICÓ","ANTIOQUIA - JERICÓ","EMPRESA REGIONAL DE ASEO DEL NORTE DE CALDAS S.A., E.S.P.",2016,"LOS EUCALIPTOS","RELLENO SANITARIO"]
[5376,"ANTIOQUIA","LA CEJA","ANTIOQUIA - LA CEJA","EMPRESAS PUBLICAS DE LA CEJA E.S.P.",2016,"RELLENO RANCHO TRISTE","RELLENO SANITARIO"]
[5380,"ANTIOQUIA","LA ESTRELLA","ANTIOQUIA - LA ESTRELLA","EMPRESAS VARIAS DE MEDELLIN  S.A. E.S. P.",2016,"PARQUE AMBIENTAL LA PRADERA","RELLENO SANITARIO"]
[5390,"ANTIOQUIA","LA PINTADA","ANTIOQUIA - LA PINTADA","EMPRESA METROPOLITANA DE ASEO S.A.  E.S.P.",2016,"RELLENO SANITARIO LA ESMERALDA","RELLENO SANITARIO"]
[5400,"ANTIOQUIA","LA UNIÓN","ANTIOQUIA - LA UNIÓN","EMPRESA DE SERVICIOS PUBLICOS LA UNION S.A E.S.P.",2016,"BUENA VISTA","RELLENO SANITARIO"]
[5411,"ANTIOQUIA","LIBORINA","ANTIOQUIA - LIBORINA","EMPRESA DE SERVICIOS PUBLICOS DOMICILIARIOS DEL MUNICIPIO DE  LIBORINA S.A. E.S.P.",2016,"MIRAFLORES","RELLENO SANITARIO"]
[5425,"ANTIOQUIA","MACEO","ANTIOQUIA - MACEO","EMPRESA DE SERVICIOS PÚBLICOS DOMICILIARIOS DE MACEO S.A.S E.S.P",2016,"TINAJAS","RELLENO SANITARIO"]
[5440,"ANTIOQUIA","MARINILLA","ANTIOQUIA - MARINILLA","EMPRESA DE SERVICIOS PUBLICOS DE SAN JOSE DE LA MARINILLA E.S.P.",2016,"RELLENO SANITARIO Y GRANJA AMBIENTAL LOS SALTOS","RELLENO SANITARIO"]
[5467,"ANTIOQUIA","MONTEBELLO","ANTIOQUIA - MONTEBELLO","EMPRESAS VARIAS DE MEDELLIN  S.A. E.S. P.",2016,"PARQUE AMBIENTAL LA PRADERA","RELLENO SANITARIO"]
[5475,"ANTIOQUIA","MURINDÓ","ANTIOQUIA - MURINDÓ","ND",2016,"ND","ND"]
[5480,"ANTIOQUIA","MUTATÁ","ANTIOQUIA - MUTATÁ","FUTURASEO S.A. E.S.P",2016,"CENTRO INDUSTRIAL DE RESIDUOS SOLIDOS DE URABA","RELLENO SANITARIO"]
[5483,"ANTIOQUIA","NARIÑO","ANTIOQUIA - NARIÑO","UNIDAD DE SERVICIOS PUBLICOS NARIÑO ANTIOQUIA",2016,"RELLENO SANITARIO QUIEBRA HONDA","RELLENO SANITARIO"]
[5490,"ANTIOQUIA","NECOCLÍ","ANTIOQUIA - NECOCLÍ","FUTURASEO S.A. E.S.P",2016,"CENTRO INDUSTRIAL DE RESIDUOS SOLIDOS DE URABA","RELLENO SANITARIO"]
[5495,"ANTIOQUIA","NECHÍ","ANTIOQUIA - NECHÍ","MUNICIPIO DE NECHI",2016,"GRANADA - TABOGA ","RELLENO SANITARIO"]
[5501,"ANTIOQUIA","OLAYA","ANTIOQUIA - OLAYA","EMPRESA DE SERVICIOS PUBLICOS DOMICILIARIOS DEL MUNICIPIO DE  LIBORINA S.A. E.S.P.",2016,"MIRAFLORES","RELLENO SANITARIO"]
[5541,"ANTIOQUIA","PEÑOL","ANTIOQUIA - PEÑOL","AGUAS Y ASEO DE EL PEÑOL E.S.P.",2016,"LAS HOYERAS","RELLENO SANITARIO"]
[5543,"ANTIOQUIA","PEQUE","ANTIOQUIA - PEQUE","EMPRESA DE SERVICIOS PUBLICOS DOMICILIARIOS DEL MUNICIPIO DE PEQUE ANTIOQUIA S.A E.S.P ",2016,"LA GRANJA","BOTADERO A CIELO ABIERTO"]
[5576,"ANTIOQUIA","PUEBLORRICO","ANTIOQUIA - PUEBLORRICO","EMPRESA REGIONAL DE ASEO DEL NORTE DE CALDAS S.A., E.S.P.",2016,"LOS EUCALIPTOS","RELLENO SANITARIO"]
[5579,"ANTIOQUIA","PUERTO BERRÍO","ANTIOQUIA - PUERTO BERRÍO","AGUAS DEL PUERTO SA ESP",2016,"LA TABACA","RELLENO SANITARIO"]
[5585,"ANTIOQUIA","PUERTO NARE","ANTIOQUIA - PUERTO NARE","EMPRESAS PUBLICAS MUNICIPALES DE PUERTO NARE E.S.P.",2016,"EL PESCADO","RELLENO SANITARIO"]
[5591,"ANTIOQUIA","PUERTO TRIUNFO","ANTIOQUIA - PUERTO TRIUNFO","EMPRESA DE SERVICIOS PUBLICOS DE PUERTO TRIUNFO S.A. E.S.P.",2016,"RELLENO SANITARIO BRUCELAS","RELLENO SANITARIO"]
[5604,"ANTIOQUIA","REMEDIOS","ANTIOQUIA - REMEDIOS","AGUAS Y SERVICIOS DEL ITE S.A.S. E.S.P.",2016,"RELLENO SANITARIO PARAJE PUENTE ROJO","RELLENO SANITARIO"]
[5607,"ANTIOQUIA","RETIRO","ANTIOQUIA - RETIRO","EMPRESAS VARIAS DE MEDELLIN  S.A. E.S. P.",2016,"PARQUE AMBIENTAL LA PRADERA","RELLENO SANITARIO"]
[5615,"ANTIOQUIA","RIONEGRO","ANTIOQUIA - RIONEGRO","EMPRESAS VARIAS DE MEDELLIN  S.A. E.S. P.",2016,"PARQUE AMBIENTAL LA PRADERA","RELLENO SANITARIO"]
[5628,"ANTIOQUIA","SABANALARGA","ANTIOQUIA - SABANALARGA","EMPRESA DE SERVICIOS PUBLICOS DOMICILIAMRIOS DEL MUNICIPIO DE SABANALARGA S.A E.S.P",2016,"PARQUE AMBIENTAL Y ECOLOGICO EL JUNQUITO","RELLENO SANITARIO"]
[5631,"ANTIOQUIA","SABANETA","ANTIOQUIA - SABANETA","EMPRESAS VARIAS DE MEDELLIN  S.A. E.S. P.",2016,"PARQUE AMBIENTAL LA PRADERA","RELLENO SANITARIO"]
[5250,"ANTIOQUIA","EL BAGRE","ANTIOQUIA - EL BAGRE","EMPRESA MUNICIPAL DE ACUEDUCTO ALCANTARILLADO Y ASEO DEL MUNICIPIO DE EL BAGRE ANTIOQUIA SA ESP",2016,"RELLENO SANITARIO EL BAGRE","BOTADERO A CIELO ABIERTO"]
[5264,"ANTIOQUIA","ENTRERRÍOS","ANTIOQUIA - ENTRERRÍOS","UNIDAD DE SERVICIOS PUBLICOS DEL MUNICIPIO DE ENTRERRIOS",2016,"RELLENO SANITARIO","RELLENO SANITARIO"]
[5266,"ANTIOQUIA","ENVIGADO","ANTIOQUIA - ENVIGADO","EMPRESAS VARIAS DE MEDELLIN  S.A. E.S. P.",2016,"PARQUE AMBIENTAL LA PRADERA","RELLENO SANITARIO"]
[5282,"ANTIOQUIA","FREDONIA","ANTIOQUIA - FREDONIA","EMPRESA REGIONAL DE ASEO DEL NORTE DE CALDAS S.A., E.S.P.",2016,"LOS EUCALIPTOS","RELLENO SANITARIO"]
[5284,"ANTIOQUIA","FRONTINO","ANTIOQUIA - FRONTINO","EMPRESA DE SERVICIOS PUBLICOS  DE FRONTINO E.S.P. FRONTINO",2016,"PARQUE DE APROVECHAMIENTO LA ESPERANZA","RELLENO SANITARIO"]
[5306,"ANTIOQUIA","GIRALDO","ANTIOQUIA - GIRALDO","EMPRESAS PUBLICAS DE BELMIRA ESP",2016,"RELLENO SANITARIO MUNICIPAL","RELLENO SANITARIO"]
[5308,"ANTIOQUIA","GIRARDOTA","ANTIOQUIA - GIRARDOTA","EMPRESAS VARIAS DE MEDELLIN  S.A. E.S. P.",2016,"PARQUE AMBIENTAL LA PRADERA","RELLENO SANITARIO"]
[5310,"ANTIOQUIA","GÓMEZ PLATA","ANTIOQUIA - GÓMEZ PLATA","EMPRESAS VARIAS DE MEDELLIN  S.A. E.S. P.",2016,"PARQUE AMBIENTAL LA PRADERA","RELLENO SANITARIO"]
[5313,"ANTIOQUIA","GRANADA","ANTIOQUIA - GRANADA","EMPRESA DE SERVICIOS PUBLICOS DE GRANADA",2016,"RELLENO SANITARIO MUNICIPIO DE GRANADA","RELLENO SANITARIO"]
[5315,"ANTIOQUIA","GUADALUPE","ANTIOQUIA - GUADALUPE","EMPRESA DE SERVICIOS PUBLICOS DE GUADALUPE S.A.S ESP",2016,"EL PLACER","RELLENO SANITARIO"]
[5318,"ANTIOQUIA","GUARNE","ANTIOQUIA - GUARNE","EMPRESAS VARIAS DE MEDELLIN  S.A. E.S. P.",2016,"PARQUE AMBIENTAL LA PRADERA","RELLENO SANITARIO"]
[5321,"ANTIOQUIA","GUATAPÉ","ANTIOQUIA - GUATAPÉ","EMPRESA DE SERVICIOS PUBLICOS DOMICILIARIOS DE GUATAPE E.S.P.",2016,"RELLENO SANITARIO MIRA FLORES","RELLENO SANITARIO"]
[5347,"ANTIOQUIA","HELICONIA","ANTIOQUIA - HELICONIA","EMPRESAS VARIAS DE MEDELLIN  S.A. E.S. P.",2016,"PARQUE AMBIENTAL LA PRADERA","RELLENO SANITARIO"]
[5353,"ANTIOQUIA","HISPANIA","ANTIOQUIA - HISPANIA","EMPRESA REGIONAL DE ASEO DEL NORTE DE CALDAS S.A., E.S.P.",2016,"LOS EUCALIPTOS","RELLENO SANITARIO"]
[5360,"ANTIOQUIA","ITAGÜÍ","ANTIOQUIA - ITAGÜÍ","EMPRESAS VARIAS DE MEDELLIN  S.A. E.S. P.",2016,"PARQUE AMBIENTAL LA PRADERA","RELLENO SANITARIO"]
[5361,"ANTIOQUIA","ITUANGO","ANTIOQUIA - ITUANGO","EMPRESAS VARIAS DE MEDELLIN  S.A. E.S. P.",2016,"PARQUE AMBIENTAL LA PRADERA","RELLENO SANITARIO"]
[5364,"ANTIOQUIA","JARDÍN","ANTIOQUIA - JARDÍN","EMPRESA REGIONAL DE ASEO DEL NORTE DE CALDAS S.A., E.S.P.",2016,"LOS EUCALIPTOS","RELLENO SANITARIO"]
[5697,"ANTIOQUIA","EL SANTUARIO","ANTIOQUIA - EL SANTUARIO","EMPRESAS PUBLICAS DEL MUNICIPIO DE EL SANTUARIO E.S.P.",2016,"GRANJA MANEJO DE RESIDUOS SOLIDOS MUNICIPIO DE EL SANTUARIO","RELLENO SANITARIO"]
[5736,"ANTIOQUIA","SEGOVIA","ANTIOQUIA - SEGOVIA","SEGOVIA ASEO S.A.  E.S.P.",2016,"LA VERA","RELLENO SANITARIO"]
[5756,"ANTIOQUIA","SONSÓN","ANTIOQUIA - SONSÓN","AGUAS DEL PARAMO DE SONSON S.A.S. E.S.P",2016,"AMBIENTE SONSON","RELLENO SANITARIO"]
[5761,"ANTIOQUIA","SOPETRÁN","ANTIOQUIA - SOPETRÁN","EMPRESAS VARIAS DE MEDELLIN  S.A. E.S. P.",2016,"PARQUE AMBIENTAL LA PRADERA","RELLENO SANITARIO"]
[5789,"ANTIOQUIA","TÁMESIS","ANTIOQUIA - TÁMESIS","EMPRESA DE SERVICIOS PUBLICOS DOMICILIARIOS TAMESIS ESP SAS",2016,"RELLENO SANITARIO MANUAL","RELLENO SANITARIO"]
[5790,"ANTIOQUIA","TARAZÁ","ANTIOQUIA - TARAZÁ","ND",2016,"ND","ND"]
[5792,"ANTIOQUIA","TARSO","ANTIOQUIA - TARSO","EMPRESA DE SERVICIOS PUBLICOS DE TARSO S.A. E.S.P.",2016,"GUAYACANES","RELLENO SANITARIO"]
[5809,"ANTIOQUIA","TITIRIBÍ","ANTIOQUIA - TITIRIBÍ","EMPRESAS VARIAS DE MEDELLIN  S.A. E.S. P.",2016,"PARQUE AMBIENTAL LA PRADERA","RELLENO SANITARIO"]
[5819,"ANTIOQUIA","TOLEDO","ANTIOQUIA - TOLEDO","UNIDAD DE SERVICIOS PUBLICOS DOMICILIARIOS DEL MUNICIPIO DE SAN JOSE DE LA MONTAÑA",2016,"LOS ROBLES","RELLENO SANITARIO"]
[5837,"ANTIOQUIA","TURBO","ANTIOQUIA - TURBO","FUTURASEO S.A. E.S.P",2016,"CENTRO INDUSTRIAL DE RESIDUOS SOLIDOS DE URABA","RELLENO SANITARIO"]
[5842,"ANTIOQUIA","URAMITA","ANTIOQUIA - URAMITA","EMPRESA DE SERVICIOS PUBLICOS DE URAMITA S.A.S. E.S.P.",2016,"EL MANGO","CELDA TRANSITORIA"]
[5847,"ANTIOQUIA","URRAO","ANTIOQUIA - URRAO","EMPRESAS PUBLICAS  DE URRAO E.S.P.",2016,"PARQUE AMBIENTAL LAS ORQUIDEAS","RELLENO SANITARIO"]
[5854,"ANTIOQUIA","VALDIVIA","ANTIOQUIA - VALDIVIA","EMPRESAS PUBLICAS DE VALDIVIA ANTIOQUIA S.A. E.S.P",2016,"RELLENO SANITARIO VALDIVI","RELLENO SANITARIO"]
[5856,"ANTIOQUIA","VALPARAÍSO","ANTIOQUIA - VALPARAÍSO","EMPRESA REGIONAL DE ASEO DEL NORTE DE CALDAS S.A., E.S.P.",2016,"LOS EUCALIPTOS","RELLENO SANITARIO"]
[5858,"ANTIOQUIA","VEGACHÍ","ANTIOQUIA - VEGACHÍ","EMPRESAS PUBLICAS DE VEGACHI S.A. E.S.P.",2016,"RELLENO SANITARIO VEGACHI","RELLENO SANITARIO"]
[5861,"ANTIOQUIA","VENECIA","ANTIOQUIA - VENECIA","EMPRESAS VARIAS DE MEDELLIN  S.A. E.S. P.",2016,"PARQUE AMBIENTAL LA PRADERA","RELLENO SANITARIO"]
[5873,"ANTIOQUIA","VIGÍA DEL FUERTE","ANTIOQUIA - VIGÍA DEL FUERTE","MUNICIPIO DE VIGIA DEL FUERTE",2016,"VIGIA DEL FUERTE","SIN INFORMACION"]
[5885,"ANTIOQUIA","YALÍ","ANTIOQUIA - YALÍ","SERVICIOS PUBLICOS YALI S.A. E.S.P.",2016,"LA AURORA","RELLENO SANITARIO"]
[5887,"ANTIOQUIA","YARUMAL","ANTIOQUIA - YARUMAL","AGUAS DEL NORTE ANTIOQUEÑO S.A E.S.P",2016,"YARUMOS II","RELLENO SANITARIO"]
[5890,"ANTIOQUIA","YOLOMBÓ","ANTIOQUIA - YOLOMBÓ","EMPRESAS VARIAS DE MEDELLIN  S.A. E.S. P.",2016,"PARQUE AMBIENTAL LA PRADERA","RELLENO SANITARIO"]
[5893,"ANTIOQUIA","YONDÓ","ANTIOQUIA - YONDÓ","EMPRESA DE SERVICIOS PÚBLICOS DOMICILIARIOS DE ACUEDUCTO, ALCANTARILLADO Y ASEO DE YONDÓ E.S.P.",2016,"LA AMERICAS","RELLENO SANITARIO"]
[5895,"ANTIOQUIA","ZARAGOZA","ANTIOQUIA - ZARAGOZA","JUNTA MUNICIPAL DE SERVICIOS PUBLICOS DEL MUNICIPIO DE ZARAGOZA",2016,"EL CRIMINAL","BOTADERO A CIELO ABIERTO"]
[8001,"ATLANTICO","BARRANQUILLA","ATLANTICO - BARRANQUILLA","SOCIEDAD DE ACUEDUCTO, ALCANTARILLADO Y ASEO DE BARRANQUILLA S.A. E.S.P.",2016,"PARQUE AMBIENTAL LOS POCITOS","RELLENO SANITARIO"]
[8078,"ATLANTICO","BARANOA","ATLANTICO - BARANOA","INTERASEO S.A  E.S.P",2016,"EL CLAVO","RELLENO SANITARIO"]
[5642,"ANTIOQUIA","SALGAR","ANTIOQUIA - SALGAR","EMPRESA REGIONAL DE ASEO DEL NORTE DE CALDAS S.A., E.S.P.",2016,"LOS EUCALIPTOS","RELLENO SANITARIO"]
[5647,"ANTIOQUIA","SAN ANDRÉS DE CUERQUÍA","ANTIOQUIA - SAN ANDRÉS DE CUERQUÍA","EMPRESAS PUBLICAS DE SAN ANDRES DE CUERQUIA SA ESP",2016,"AGUAS VIVAS","RELLENO SANITARIO"]
[5649,"ANTIOQUIA","SAN CARLOS","ANTIOQUIA - SAN CARLOS","UNIDAD DE SERVICIOS PUBLICOS DOMICILIARIOS DEL MUNICIPIO DE SAN CARLOS AGUAS Y ASEO DEL TABOR",2016,"EL CAIMO","RELLENO SANITARIO"]
[5652,"ANTIOQUIA","SAN FRANCISCO","ANTIOQUIA - SAN FRANCISCO","EMPRESA DE SERVICIOS PUBLICOS DE SAN FRANCISCO ANTIOQUIA SAS ESP",2016,"RELLENO SANITARIO EL PAJUI","RELLENO SANITARIO"]
[5656,"ANTIOQUIA","SAN JERÓNIMO","ANTIOQUIA - SAN JERÓNIMO","EMPRESAS VARIAS DE MEDELLIN  S.A. E.S. P.",2016,"PARQUE AMBIENTAL LA PRADERA","RELLENO SANITARIO"]
[5658,"ANTIOQUIA","SAN JOSÉ DE LA MONTAÑA","ANTIOQUIA - SAN JOSÉ DE LA MONTAÑA","UNIDAD DE SERVICIOS PUBLICOS DOMICILIARIOS DEL MUNICIPIO DE SAN JOSE DE LA MONTAÑA",2016,"LOS ROBLES","RELLENO SANITARIO"]
[5659,"ANTIOQUIA","SAN JUAN DE URABÁ","ANTIOQUIA - SAN JUAN DE URABÁ","FUTURASEO S.A. E.S.P",2016,"CENTRO INDUSTRIAL DE RESIDUOS SOLIDOS DE URABA","RELLENO SANITARIO"]
[5660,"ANTIOQUIA","SAN LUIS","ANTIOQUIA - SAN LUIS","EMPRESAS PUBLICAS DE SAN LUIS S.A.S. E.S.P.",2016,"SAN FRANCISCO","RELLENO SANITARIO"]
[5664,"ANTIOQUIA","SAN PEDRO DE LOS MILAGROS","ANTIOQUIA - SAN PEDRO DE LOS MILAGROS","EMPRESAS VARIAS DE MEDELLIN  S.A. E.S. P.",2016,"PARQUE AMBIENTAL LA PRADERA","RELLENO SANITARIO"]
[5665,"ANTIOQUIA","SAN PEDRO DE URABÁ","ANTIOQUIA - SAN PEDRO DE URABÁ","FUTURASEO S.A. E.S.P",2016,"CENTRO INDUSTRIAL DE RESIDUOS SOLIDOS DE URABA","RELLENO SANITARIO"]
[5667,"ANTIOQUIA","SAN RAFAEL","ANTIOQUIA - SAN RAFAEL","EMPRESAS PUBLICAS DE SAN RAFAEL S.A. E.S.P.",2016,"RELLENO SANITARIO LOS GUAICOS","RELLENO SANITARIO"]
[5670,"ANTIOQUIA","SAN ROQUE","ANTIOQUIA - SAN ROQUE","EMPRESAS PUBLICAS DE SAN ROQUE S.A.S E.S.P. ",2016,"RELLENO SANITARIO PATIO BONITO","RELLENO SANITARIO"]
[5674,"ANTIOQUIA","SAN VICENTE FERRER","ANTIOQUIA - SAN VICENTE FERRER","SECRETARIA DE SERVICIOS PUBLICOS MUNICIPIO DE SAN VICENTE ",2016,"GRANJA EXPERIMENTAL","RELLENO SANITARIO"]
[5679,"ANTIOQUIA","SANTA BÁRBARA","ANTIOQUIA - SANTA BÁRBARA","EMPRESAS VARIAS DE MEDELLIN  S.A. E.S. P.",2016,"PARQUE AMBIENTAL LA PRADERA","RELLENO SANITARIO"]
[5686,"ANTIOQUIA","SANTA ROSA DE OSOS","ANTIOQUIA - SANTA ROSA DE OSOS","EMPRESAS VARIAS DE MEDELLIN  S.A. E.S. P.",2016,"PARQUE AMBIENTAL LA PRADERA","RELLENO SANITARIO"]
[5690,"ANTIOQUIA","SANTO DOMINGO","ANTIOQUIA - SANTO DOMINGO","EMPRESAS VARIAS DE MEDELLIN  S.A. E.S. P.",2016,"PARQUE AMBIENTAL LA PRADERA","RELLENO SANITARIO"]
[8137,"ATLANTICO","CAMPO DE LA CRUZ","ATLANTICO - CAMPO DE LA CRUZ","INTERASEO S.A  E.S.P",2016,"EL CLAVO","RELLENO SANITARIO"]
[8141,"ATLANTICO","CANDELARIA","ATLANTICO - CANDELARIA","INTERASEO S.A  E.S.P",2016,"EL CLAVO","RELLENO SANITARIO"]
[8296,"ATLANTICO","GALAPA","ATLANTICO - GALAPA","SOCIEDAD DE ACUEDUCTO, ALCANTARILLADO Y ASEO DE BARRANQUILLA S.A. E.S.P.",2016,"PARQUE AMBIENTAL LOS POCITOS","RELLENO SANITARIO"]
[8372,"ATLANTICO","JUAN DE ACOSTA","ATLANTICO - JUAN DE ACOSTA","INTERASEO S.A  E.S.P",2016,"EL CLAVO","RELLENO SANITARIO"]
[8421,"ATLANTICO","LURUACO","ATLANTICO - LURUACO","CARIBE VERDE S. A.   E. S. P.",2016,"PARQUE AMBIENTAL LOMA DE LOS COCOS","RELLENO SANITARIO"]
[8433,"ATLANTICO","MALAMBO","ATLANTICO - MALAMBO","INTERASEO S.A  E.S.P",2016,"EL CLAVO","RELLENO SANITARIO"]
[8436,"ATLANTICO","MANATÍ","ATLANTICO - MANATÍ","INTERASEO S.A  E.S.P",2016,"EL CLAVO","RELLENO SANITARIO"]
[8520,"ATLANTICO","PALMAR DE VARELA","ATLANTICO - PALMAR DE VARELA","INTERASEO S.A  E.S.P",2016,"EL CLAVO","RELLENO SANITARIO"]
[8549,"ATLANTICO","PIOJÓ","ATLANTICO - PIOJÓ","INTERASEO S.A  E.S.P",2016,"EL CLAVO","RELLENO SANITARIO"]
[8558,"ATLANTICO","POLONUEVO","ATLANTICO - POLONUEVO","INTERASEO S.A  E.S.P",2016,"EL CLAVO","RELLENO SANITARIO"]
[8560,"ATLANTICO","PONEDERA","ATLANTICO - PONEDERA","INTERASEO S.A  E.S.P",2016,"EL CLAVO","RELLENO SANITARIO"]
[8573,"ATLANTICO","PUERTO COLOMBIA","ATLANTICO - PUERTO COLOMBIA","SOCIEDAD DE ACUEDUCTO, ALCANTARILLADO Y ASEO DE BARRANQUILLA S.A. E.S.P.",2016,"PARQUE AMBIENTAL LOS POCITOS","RELLENO SANITARIO"]
[8606,"ATLANTICO","REPELÓN","ATLANTICO - REPELÓN","INTERASEO S.A  E.S.P",2016,"EL CLAVO","RELLENO SANITARIO"]
[8634,"ATLANTICO","SABANAGRANDE","ATLANTICO - SABANAGRANDE","INTERASEO S.A  E.S.P",2016,"EL CLAVO","RELLENO SANITARIO"]
[8638,"ATLANTICO","SABANALARGA","ATLANTICO - SABANALARGA","SOCIEDAD DE ACUEDUCTO, ALCANTARILLADO Y ASEO DE BARRANQUILLA S.A. E.S.P.",2016,"PARQUE AMBIENTAL LOS POCITOS","RELLENO SANITARIO"]
[8675,"ATLANTICO","SANTA LUCÍA","ATLANTICO - SANTA LUCÍA","INTERASEO S.A  E.S.P",2016,"EL CLAVO","RELLENO SANITARIO"]
[8685,"ATLANTICO","SANTO TOMÁS","ATLANTICO - SANTO TOMÁS","INTERASEO S.A  E.S.P",2016,"EL CLAVO","RELLENO SANITARIO"]
[8758,"ATLANTICO","SOLEDAD","ATLANTICO - SOLEDAD","INTERASEO S.A  E.S.P",2016,"EL CLAVO","RELLENO SANITARIO"]
[8770,"ATLANTICO","SUAN","ATLANTICO - SUAN","INTERASEO S.A  E.S.P",2016,"EL CLAVO","RELLENO SANITARIO"]
[8832,"ATLANTICO","TUBARÁ","ATLANTICO - TUBARÁ","INTERASEO S.A  E.S.P",2016,"EL CLAVO","RELLENO SANITARIO"]
[8849,"ATLANTICO","USIACURÍ","ATLANTICO - USIACURÍ","INTERASEO S.A  E.S.P",2016,"EL CLAVO","RELLENO SANITARIO"]
[11001,"BOGOTA, D.C.","BOGOTÁ, D.C.","BOGOTA, D.C. - BOGOTÁ, D.C.","CENTRO DE GERENCIAMIENTO DE RESIDUOS DOÑA JUANA S.A. E.S.P.",2016,"RELLENO SANITARIO DOÑA JUANA","RELLENO SANITARIO"]
[13001,"BOLIVAR","CARTAGENA DE INDIAS DE INDIAS","BOLIVAR - CARTAGENA DE INDIAS DE INDIAS","CARIBE VERDE S. A.   E. S. P.",2016,"PARQUE AMBIENTAL LOMA DE LOS COCOS","RELLENO SANITARIO"]
[88001,"ARCHIPIELAGO DE SAN ANDRES, PROVIDENCIA Y SANTA CATALINA","SAN ANDRÉS","ARCHIPIELAGO DE SAN ANDRES, PROVIDENCIA Y SANTA CATALINA - SAN ANDRÉS","SECRETARIA DE SERVICIOS PUBLICOS Y MEDIO AMBIENTE",2016,"MAGIC GARDEN","RELLENO SANITARIO"]
[88564,"ARCHIPIELAGO DE SAN ANDRES, PROVIDENCIA Y SANTA CATALINA","PROVIDENCIA","ARCHIPIELAGO DE SAN ANDRES, PROVIDENCIA Y SANTA CATALINA - PROVIDENCIA","ND",2016,"ND","ND"]
[13433,"BOLIVAR","MAHATES","BOLIVAR - MAHATES","ND",2016,"ND","ND"]
[13440,"BOLIVAR","MARGARITA","BOLIVAR - MARGARITA","MUNICIPIO DE MARGARITA",2016,"CELDA","CELDA DE CONTINGENCIA"]
[13442,"BOLIVAR","MARÍA LA BAJA","BOLIVAR - MARÍA LA BAJA","CARIBE VERDE S. A.   E. S. P.",2016,"PARQUE AMBIENTAL LOMA DE LOS COCOS","RELLENO SANITARIO"]
[13458,"BOLIVAR","MONTECRISTO","BOLIVAR - MONTECRISTO","ND",2016,"ND","ND"]
[13468,"BOLIVAR","MOMPÓS","BOLIVAR - MOMPÓS","ALCALDIA SANTA CRUZ DE MOMPOX",2016,"LA MONTA","BOTADERO A CIELO ABIERTO"]
[13473,"BOLIVAR","MORALES","BOLIVAR - MORALES","EMPRESA DE SERVICIOS PUBLICOS DE MORALES",2016,"MORA","BOTADERO A CIELO ABIERTO"]
[13549,"BOLIVAR","PINILLOS","BOLIVAR - PINILLOS","ND",2016,"ND","ND"]
[13580,"BOLIVAR","REGIDOR","BOLIVAR - REGIDOR","ND",2016,"ND","ND"]
[13600,"BOLIVAR","RÍO VIEJO","BOLIVAR - RÍO VIEJO","EMPRESA DE SERVICOS PUBLICOS DOMICILIARIO  DE RIOVIEJO SA ESP",2016,"BOTADERO A CIELO ABIERTO","BOTADERO A CIELO ABIERTO"]
[13620,"BOLIVAR","SAN CRISTÓBAL","BOLIVAR - SAN CRISTÓBAL","ND",2016,"ND","ND"]
[13647,"BOLIVAR","SAN ESTANISLAO","BOLIVAR - SAN ESTANISLAO","ND",2016,"ND","ND"]
[13650,"BOLIVAR","SAN FERNANDO","BOLIVAR - SAN FERNANDO","EMPRESA MUNICIPAL DE SERVICIOS PUBLICOS EMPOSAN E.S.P.",2016,"GUATIZO","BOTADERO A CIELO ABIERTO"]
[13654,"BOLIVAR","SAN JACINTO","BOLIVAR - SAN JACINTO","ND",2016,"ND","ND"]
[13655,"BOLIVAR","SAN JACINTO DEL CAUCA","BOLIVAR - SAN JACINTO DEL CAUCA","AGUAS DE SAN JACINTO DEL CAUCA SA ESP",2016,"LOTE","ENTERRAMIENTO"]
[13006,"BOLIVAR","ACHÍ","BOLIVAR - ACHÍ","ND",2016,"ND","ND"]
[13030,"BOLIVAR","ALTOS DEL ROSARIO","BOLIVAR - ALTOS DEL ROSARIO","ADMINISTRACION PUBLICA COOPERATIVA DE SERVICIOS PUBLICOS DE ALTOS DEL ROSARIO ",2016,"BOTADERO","BOTADERO A CIELO ABIERTO"]
[13042,"BOLIVAR","ARENAL","BOLIVAR - ARENAL","UNIDAD DE SERVICIOS PUBLICOS DE ACUEDUCTO Y ASEO DE ARENAL",2016,"BASURAL","BOTADERO A CIELO ABIERTO"]
[13052,"BOLIVAR","ARJONA","BOLIVAR - ARJONA","CARIBE VERDE S. A.   E. S. P.",2016,"PARQUE AMBIENTAL LOMA DE LOS COCOS","RELLENO SANITARIO"]
[13062,"BOLIVAR","ARROYOHONDO","BOLIVAR - ARROYOHONDO","ND",2016,"ND","ND"]
[13074,"BOLIVAR","BARRANCO DE LOBA","BOLIVAR - BARRANCO DE LOBA","ND",2016,"ND","ND"]
[13140,"BOLIVAR","CALAMAR","BOLIVAR - CALAMAR","ND",2016,"ND","ND"]
[13160,"BOLIVAR","CANTAGALLO","BOLIVAR - CANTAGALLO","ASEO URBANO S.A.S. E.S.P.",2016,"PARQUE TECNOLOGICO AMBIENTAL LAS BATEAS","RELLENO SANITARIO"]
[13188,"BOLIVAR","CICUCO","BOLIVAR - CICUCO","NA",2016,"SALIDA TALIGUA","ENTERRAMIENTO"]
[13212,"BOLIVAR","CÓRDOBA","BOLIVAR - CÓRDOBA","ND",2016,"ND","ND"]
[13222,"BOLIVAR","CLEMENCIA","BOLIVAR - CLEMENCIA","CARIBE VERDE S. A.   E. S. P.",2016,"PARQUE AMBIENTAL LOMA DE LOS COCOS","RELLENO SANITARIO"]
[13244,"BOLIVAR","EL CARMEN DE BOLÍVAR","BOLIVAR - EL CARMEN DE BOLÍVAR","SERVIASEO S.A.  E.S.P.",2016,"LA CANDELARIA","RELLENO SANITARIO"]
[13248,"BOLIVAR","EL GUAMO","BOLIVAR - EL GUAMO","ND",2016,"ND","ND"]
[13268,"BOLIVAR","EL PEÑÓN","BOLIVAR - EL PEÑÓN","ADMINISTRACION PUBLICA COOPERATIVA DEL MUNICIPIO DE EL PEÑON",2016,"BOTADERO A CIELO ABIERTO","BOTADERO A CIELO ABIERTO"]
[13300,"BOLIVAR","HATILLO DE LOBA","BOLIVAR - HATILLO DE LOBA","COOPERATIVA DE SERVICIOS PUBLICOS DE HATILLO DE LOBA",2016,"CELDA","CELDA TRANSITORIA"]
[13430,"BOLIVAR","MAGANGUÉ","BOLIVAR - MAGANGUÉ","SERVIASEO S.A.  E.S.P.",2016,"LA CANDELARIA","RELLENO SANITARIO"]
[15180,"BOYACA","CHISCAS","BOYACA - CHISCAS","COMPAÑIA DE SERVICIOS PUBLICOS DE SOGAMOSO S.A. E.S.P.",2016,"TERRAZAS DEL PORVENIR","RELLENO SANITARIO"]
[15183,"BOYACA","CHITA","BOYACA - CHITA","COMPAÑIA DE SERVICIOS PUBLICOS DE SOGAMOSO S.A. E.S.P.",2016,"TERRAZAS DEL PORVENIR","RELLENO SANITARIO"]
[15185,"BOYACA","CHITARAQUE","BOYACA - CHITARAQUE","SERVIGENERALES CIUDAD DE TUNJA S.A.  E.S.P.",2016,"RELLENO SANITARIO PIRGUA","RELLENO SANITARIO"]
[15187,"BOYACA","CHIVATÁ","BOYACA - CHIVATÁ","SERVIGENERALES CIUDAD DE TUNJA S.A.  E.S.P.",2016,"RELLENO SANITARIO PIRGUA","RELLENO SANITARIO"]
[15189,"BOYACA","CIÉNEGA","BOYACA - CIÉNEGA","SERVIGENERALES CIUDAD DE TUNJA S.A.  E.S.P.",2016,"RELLENO SANITARIO PIRGUA","RELLENO SANITARIO"]
[15204,"BOYACA","CÓMBITA","BOYACA - CÓMBITA","SERVIGENERALES CIUDAD DE TUNJA S.A.  E.S.P.",2016,"RELLENO SANITARIO PIRGUA","RELLENO SANITARIO"]
[15212,"BOYACA","COPER","BOYACA - COPER","EMPRESA DE SERVICIOS PUBLICOS DE AGUA POTABLE , ALCANTARILLADO Y ASEO DEL MUNIIPIO DE COPER",2016,"EL VIVERO","CELDA TRANSITORIA"]
[15215,"BOYACA","CORRALES","BOYACA - CORRALES","COMPAÑIA DE SERVICIOS PUBLICOS DE SOGAMOSO S.A. E.S.P.",2016,"TERRAZAS DEL PORVENIR","RELLENO SANITARIO"]
[15218,"BOYACA","COVARACHÍA","BOYACA - COVARACHÍA","COMPAÑIA DE SERVICIOS PUBLICOS DE SOGAMOSO S.A. E.S.P.",2016,"TERRAZAS DEL PORVENIR","RELLENO SANITARIO"]
[15223,"BOYACA","CUBARÁ","BOYACA - CUBARÁ","EMPRESA DE ASEO DE ARAUCA S.A. ESP",2016,"RELLENO SANITARIO LAS GARZAS","RELLENO SANITARIO"]
[15224,"BOYACA","CUCAITA","BOYACA - CUCAITA","SERVIGENERALES CIUDAD DE TUNJA S.A.  E.S.P.",2016,"RELLENO SANITARIO PIRGUA","RELLENO SANITARIO"]
[15226,"BOYACA","CUÍTIVA","BOYACA - CUÍTIVA","COMPAÑIA DE SERVICIOS PUBLICOS DE SOGAMOSO S.A. E.S.P.",2016,"TERRAZAS DEL PORVENIR","RELLENO SANITARIO"]
[15232,"BOYACA","CHÍQUIZA","BOYACA - CHÍQUIZA","SERVIGENERALES CIUDAD DE TUNJA S.A.  E.S.P.",2016,"RELLENO SANITARIO PIRGUA","RELLENO SANITARIO"]
[15236,"BOYACA","CHIVOR","BOYACA - CHIVOR","EMPRESAS PUBLICAS DE GARAGOA S.A. E.S.P",2016,"PLANTA REGIONAL DE RESIDUOS SOLIDOS","RELLENO SANITARIO"]
[15238,"BOYACA","DUITAMA","BOYACA - DUITAMA","COMPAÑIA DE SERVICIOS PUBLICOS DE SOGAMOSO S.A. E.S.P.",2016,"TERRAZAS DEL PORVENIR","RELLENO SANITARIO"]
[15244,"BOYACA","EL COCUY","BOYACA - EL COCUY","COMPAÑIA DE SERVICIOS PUBLICOS DE SOGAMOSO S.A. E.S.P.",2016,"TERRAZAS DEL PORVENIR","RELLENO SANITARIO"]
[15248,"BOYACA","EL ESPINO","BOYACA - EL ESPINO","COMPAÑIA DE SERVICIOS PUBLICOS DE SOGAMOSO S.A. E.S.P.",2016,"TERRAZAS DEL PORVENIR","RELLENO SANITARIO"]
[15272,"BOYACA","FIRAVITOBA","BOYACA - FIRAVITOBA","COMPAÑIA DE SERVICIOS PUBLICOS DE SOGAMOSO S.A. E.S.P.",2016,"TERRAZAS DEL PORVENIR","RELLENO SANITARIO"]
[15276,"BOYACA","FLORESTA","BOYACA - FLORESTA","COMPAÑIA DE SERVICIOS PUBLICOS DE SOGAMOSO S.A. E.S.P.",2016,"TERRAZAS DEL PORVENIR","RELLENO SANITARIO"]
[15293,"BOYACA","GACHANTIVÁ","BOYACA - GACHANTIVÁ","SERVIGENERALES CIUDAD DE TUNJA S.A.  E.S.P.",2016,"RELLENO SANITARIO PIRGUA","RELLENO SANITARIO"]
[15296,"BOYACA","GÁMEZA","BOYACA - GÁMEZA","COMPAÑIA DE SERVICIOS PUBLICOS DE SOGAMOSO S.A. E.S.P.",2016,"TERRAZAS DEL PORVENIR","RELLENO SANITARIO"]
[15299,"BOYACA","GARAGOA","BOYACA - GARAGOA","EMPRESAS PUBLICAS DE GARAGOA S.A. E.S.P",2016,"PLANTA REGIONAL DE RESIDUOS SOLIDOS","RELLENO SANITARIO"]
[15317,"BOYACA","GUACAMAYAS","BOYACA - GUACAMAYAS","COMPAÑIA DE SERVICIOS PUBLICOS DE SOGAMOSO S.A. E.S.P.",2016,"TERRAZAS DEL PORVENIR","RELLENO SANITARIO"]
[15322,"BOYACA","GUATEQUE","BOYACA - GUATEQUE","SERVIGENERALES CIUDAD DE TUNJA S.A.  E.S.P.",2016,"RELLENO SANITARIO PIRGUA","RELLENO SANITARIO"]
[15325,"BOYACA","GUAYATÁ","BOYACA - GUAYATÁ","SERVIGENERALES CIUDAD DE TUNJA S.A.  E.S.P.",2016,"RELLENO SANITARIO PIRGUA","RELLENO SANITARIO"]
[15332,"BOYACA","GÜICÁN DE LA SIERRA","BOYACA - GÜICÁN DE LA SIERRA","COMPAÑIA DE SERVICIOS PUBLICOS DE SOGAMOSO S.A. E.S.P.",2016,"TERRAZAS DEL PORVENIR","RELLENO SANITARIO"]
[15362,"BOYACA","IZA","BOYACA - IZA","COMPAÑIA DE SERVICIOS PUBLICOS DE SOGAMOSO S.A. E.S.P.",2016,"TERRAZAS DEL PORVENIR","RELLENO SANITARIO"]
[13657,"BOLIVAR","SAN JUAN NEPOMUCENO","BOLIVAR - SAN JUAN NEPOMUCENO","ND",2016,"ND","ND"]
[13667,"BOLIVAR","SAN MARTÍN DE LOBA","BOLIVAR - SAN MARTÍN DE LOBA","UNIDAD DE SERVICIOS PUBLICOS",2016,"RELLENO SANITARIO","CELDA TRANSITORIA"]
[13670,"BOLIVAR","SAN PABLO","BOLIVAR - SAN PABLO","EMPRESA MUNICIPAL DE ACUEDUCTO ALCANTARILLADO ASEO DE SAN PABLO BOLIVAR",2016,"BASURERO MUNICIPAL","BOTADERO A CIELO ABIERTO"]
[13673,"BOLIVAR","SANTA CATALINA","BOLIVAR - SANTA CATALINA","CARIBE VERDE S. A.   E. S. P.",2016,"PARQUE AMBIENTAL LOMA DE LOS COCOS","RELLENO SANITARIO"]
[13683,"BOLIVAR","SANTA ROSA","BOLIVAR - SANTA ROSA","CARIBE VERDE S. A.   E. S. P.",2016,"PARQUE AMBIENTAL LOMA DE LOS COCOS","RELLENO SANITARIO"]
[13688,"BOLIVAR","SANTA ROSA DEL SUR","BOLIVAR - SANTA ROSA DEL SUR","ADMINISTRACION PUBLICA COOPERATIVA ACUEDUCTO  ASEO Y ALCANTARILLADO DEL SUR",2016,"BOTADERO","RELLENO SANITARIO"]
[13744,"BOLIVAR","SIMITÍ","BOLIVAR - SIMITÍ","ADMINISTRACION PUBLICA COOPERATIVA DE SIMITI",2016,"RELLENO SABANO ABAJA","CELDA TRANSITORIA"]
[13760,"BOLIVAR","SOPLAVIENTO","BOLIVAR - SOPLAVIENTO","ND",2016,"ND","ND"]
[13780,"BOLIVAR","TALAIGUA NUEVO","BOLIVAR - TALAIGUA NUEVO","SOCIEDAD DE SERVICIOS Y COMERCIALIZADORA DE ARTICULOS DE ASEO Y HOSPITALARIOS SOSERCAH S.A.S",2016,"RELLENO SANITARIO SAN CARLOS","RELLENO SANITARIO"]
[13810,"BOLIVAR","TIQUISIO","BOLIVAR - TIQUISIO","ADMINISTRACION PUBLICA COOPERATIVA DE ACUEDUCTO ALCANTARILLADO Y ASEO DE LA CABECERA MUNICIPAL DE TIQUISIO-BOLIVAR",2016,"LOS PORTONES","BOTADERO A CIELO ABIERTO"]
[13836,"BOLIVAR","TURBACO","BOLIVAR - TURBACO","CARIBE VERDE S. A.   E. S. P.",2016,"PARQUE AMBIENTAL LOMA DE LOS COCOS","RELLENO SANITARIO"]
[13838,"BOLIVAR","TURBANÁ","BOLIVAR - TURBANÁ","CARIBE VERDE S. A.   E. S. P.",2016,"PARQUE AMBIENTAL LOMA DE LOS COCOS","RELLENO SANITARIO"]
[13873,"BOLIVAR","VILLANUEVA","BOLIVAR - VILLANUEVA","CARIBE VERDE S. A.   E. S. P.",2016,"PARQUE AMBIENTAL LOMA DE LOS COCOS","RELLENO SANITARIO"]
[13894,"BOLIVAR","ZAMBRANO","BOLIVAR - ZAMBRANO","UNIDAD MUNICIPAL DE  SERVICIOS PUBLICOS DE ZAMBRANO",2016,"BOTADERO MUNICIPAL","BOTADERO A CIELO ABIERTO"]
[15001,"BOYACA","TUNJA","BOYACA - TUNJA","SERVIGENERALES CIUDAD DE TUNJA S.A.  E.S.P.",2016,"RELLENO SANITARIO PIRGUA","RELLENO SANITARIO"]
[15022,"BOYACA","ALMEIDA","BOYACA - ALMEIDA","BIOAGRICOLA DEL LLANO S.A  EMPRESA DE SERVICIOS PUBLICOS",2016,"PARQUE ECOLOGICO RECICLANTE","RELLENO SANITARIO"]
[15047,"BOYACA","AQUITANIA","BOYACA - AQUITANIA","COMPAÑIA DE SERVICIOS PUBLICOS DE SOGAMOSO S.A. E.S.P.",2016,"TERRAZAS DEL PORVENIR","RELLENO SANITARIO"]
[15051,"BOYACA","ARCABUCO","BOYACA - ARCABUCO","SERVIGENERALES CIUDAD DE TUNJA S.A.  E.S.P.",2016,"RELLENO SANITARIO PIRGUA","RELLENO SANITARIO"]
[15087,"BOYACA","BELÉN","BOYACA - BELÉN","COMPAÑIA DE SERVICIOS PUBLICOS DE SOGAMOSO S.A. E.S.P.",2016,"TERRAZAS DEL PORVENIR","RELLENO SANITARIO"]
[15090,"BOYACA","BERBEO","BOYACA - BERBEO","SERVIGENERALES CIUDAD DE TUNJA S.A.  E.S.P.",2016,"RELLENO SANITARIO PIRGUA","RELLENO SANITARIO"]
[15092,"BOYACA","BETÉITIVA","BOYACA - BETÉITIVA","COMPAÑIA DE SERVICIOS PUBLICOS DE SOGAMOSO S.A. E.S.P.",2016,"TERRAZAS DEL PORVENIR","RELLENO SANITARIO"]
[15097,"BOYACA","BOAVITA","BOYACA - BOAVITA","ND",2016,"ND","ND"]
[15104,"BOYACA","BOYACÁ","BOYACA - BOYACÁ","SERVIGENERALES CIUDAD DE TUNJA S.A.  E.S.P.",2016,"RELLENO SANITARIO PIRGUA","RELLENO SANITARIO"]
[15106,"BOYACA","BRICEÑO","BOYACA - BRICEÑO","SERVIGENERALES CIUDAD DE TUNJA S.A.  E.S.P.",2016,"RELLENO SANITARIO PIRGUA","RELLENO SANITARIO"]
[15109,"BOYACA","BUENAVISTA","BOYACA - BUENAVISTA","EMPRESA INDUSTRIAL Y COMERCIAL DE SERVICIOS PUBLICOS DE CHIQUINQUIRA",2016,"CARAPACHO","RELLENO SANITARIO"]
[15114,"BOYACA","BUSBANZÁ","BOYACA - BUSBANZÁ","UNIDAD DE SERVICIOS PUBLICOS DOMICILIARIOS DE BUSBANZA",2016,"CELDA TRANSITORIA NUMA","CELDA TRANSITORIA"]
[15131,"BOYACA","CALDAS","BOYACA - CALDAS","EMPRESA INDUSTRIAL Y COMERCIAL DE SERVICIOS PUBLICOS DE CHIQUINQUIRA",2016,"CARAPACHO","RELLENO SANITARIO"]
[15135,"BOYACA","CAMPOHERMOSO","BOYACA - CAMPOHERMOSO","SERVIGENERALES CIUDAD DE TUNJA S.A.  E.S.P.",2016,"RELLENO SANITARIO PIRGUA","RELLENO SANITARIO"]
[15162,"BOYACA","CERINZA","BOYACA - CERINZA","COMPAÑIA DE SERVICIOS PUBLICOS DE SOGAMOSO S.A. E.S.P.",2016,"TERRAZAS DEL PORVENIR","RELLENO SANITARIO"]
[15172,"BOYACA","CHINAVITA","BOYACA - CHINAVITA","SERVIGENERALES CIUDAD DE TUNJA S.A.  E.S.P.",2016,"RELLENO SANITARIO PIRGUA","RELLENO SANITARIO"]
[15176,"BOYACA","CHIQUINQUIRÁ","BOYACA - CHIQUINQUIRÁ","EMPRESA INDUSTRIAL Y COMERCIAL DE SERVICIOS PUBLICOS DE CHIQUINQUIRA",2016,"CARAPACHO","RELLENO SANITARIO"]
[15542,"BOYACA","PESCA","BOYACA - PESCA","COMPAÑIA DE SERVICIOS PUBLICOS DE SOGAMOSO S.A. E.S.P.",2016,"TERRAZAS DEL PORVENIR","RELLENO SANITARIO"]
[15550,"BOYACA","PISBA","BOYACA - PISBA","UNIDAD DE SERVICIOS PUBLICOS DOMICILIARIOS DE PISVA",2016,"CELDA TRANSITORIA DE PISBA","CELDA TRANSITORIA"]
[15572,"BOYACA","PUERTO BOYACÁ","BOYACA - PUERTO BOYACÁ","EMPRESA DE SERVICIOS PUBLICOS DE LA DORADA E.S.P.",2016,"RELLENO SANITARIO DORADITA","RELLENO SANITARIO"]
[15580,"BOYACA","QUÍPAMA","BOYACA - QUÍPAMA","ND",2016,"ND","ND"]
[15599,"BOYACA","RAMIRIQUÍ","BOYACA - RAMIRIQUÍ","SERVIGENERALES CIUDAD DE TUNJA S.A.  E.S.P.",2016,"RELLENO SANITARIO PIRGUA","RELLENO SANITARIO"]
[15600,"BOYACA","RÁQUIRA","BOYACA - RÁQUIRA","SERVIGENERALES CIUDAD DE TUNJA S.A.  E.S.P.",2016,"RELLENO SANITARIO PIRGUA","RELLENO SANITARIO"]
[15621,"BOYACA","RONDÓN","BOYACA - RONDÓN","SERVIGENERALES CIUDAD DE TUNJA S.A.  E.S.P.",2016,"RELLENO SANITARIO PIRGUA","RELLENO SANITARIO"]
[15632,"BOYACA","SABOYÁ","BOYACA - SABOYÁ","EMPRESA INDUSTRIAL Y COMERCIAL DE SERVICIOS PUBLICOS DE CHIQUINQUIRA",2016,"CARAPACHO","RELLENO SANITARIO"]
[15638,"BOYACA","SÁCHICA","BOYACA - SÁCHICA","SERVIGENERALES CIUDAD DE TUNJA S.A.  E.S.P.",2016,"RELLENO SANITARIO PIRGUA","RELLENO SANITARIO"]
[15646,"BOYACA","SAMACÁ","BOYACA - SAMACÁ","SERVIGENERALES CIUDAD DE TUNJA S.A.  E.S.P.",2016,"RELLENO SANITARIO PIRGUA","RELLENO SANITARIO"]
[15660,"BOYACA","SAN EDUARDO","BOYACA - SAN EDUARDO","SERVIGENERALES CIUDAD DE TUNJA S.A.  E.S.P.",2016,"RELLENO SANITARIO PIRGUA","RELLENO SANITARIO"]
[15664,"BOYACA","SAN JOSÉ DE PARE","BOYACA - SAN JOSÉ DE PARE","SERVIGENERALES CIUDAD DE TUNJA S.A.  E.S.P.",2016,"RELLENO SANITARIO PIRGUA","RELLENO SANITARIO"]
[15667,"BOYACA","SAN LUIS DE GACENO","BOYACA - SAN LUIS DE GACENO","EMPRESA DE SERVICIOS PUBLICOS DE VILLANUEVA ESPAVI S.A. E.S.P.",2016,"LA ESPERANZA","PLANTA DE TRATAMIENTO"]
[15673,"BOYACA","SAN MATEO","BOYACA - SAN MATEO","COMPAÑIA DE SERVICIOS PUBLICOS DE SOGAMOSO S.A. E.S.P.",2016,"TERRAZAS DEL PORVENIR","RELLENO SANITARIO"]
[15676,"BOYACA","SAN MIGUEL DE SEMA","BOYACA - SAN MIGUEL DE SEMA","ADMINISTRACION PUBLICA COOPERATIVA EMPRESA SOLIDARIA DE SERVICIOS PUBLICOS DEL MUNICIPIO DE SAN MIGUEL DE SEMA",2016,"RELLENO SANITARIO EL CERRITO","RELLENO SANITARIO"]
[15681,"BOYACA","SAN PABLO DE BORBUR","BOYACA - SAN PABLO DE BORBUR","UNIDAD DE SERVICIOS PUBLICOS DOMICILIARIOS DE SAN PABLO DE BORBUR",2016,"VEREDA SAN ISIDRO","ENTERRAMIENTO"]
[15686,"BOYACA","SANTANA","BOYACA - SANTANA","SERVIGENERALES CIUDAD DE TUNJA S.A.  E.S.P.",2016,"RELLENO SANITARIO PIRGUA","RELLENO SANITARIO"]
[15690,"BOYACA","SANTA MARÍA","BOYACA - SANTA MARÍA","EMPRESA DE SERVICIOS PUBLICOS DE VILLANUEVA ESPAVI S.A. E.S.P.",2016,"LA ESPERANZA","PLANTA DE TRATAMIENTO"]
[15693,"BOYACA","SANTA ROSA DE VITERBO","BOYACA - SANTA ROSA DE VITERBO","COMPAÑIA DE SERVICIOS PUBLICOS DE SOGAMOSO S.A. E.S.P.",2016,"TERRAZAS DEL PORVENIR","RELLENO SANITARIO"]
[15696,"BOYACA","SANTA SOFÍA","BOYACA - SANTA SOFÍA","SERVIGENERALES CIUDAD DE TUNJA S.A.  E.S.P.",2016,"RELLENO SANITARIO PIRGUA","RELLENO SANITARIO"]
[15720,"BOYACA","SATIVANORTE","BOYACA - SATIVANORTE","COMPAÑIA DE SERVICIOS PUBLICOS DE SOGAMOSO S.A. E.S.P.",2016,"TERRAZAS DEL PORVENIR","RELLENO SANITARIO"]
[15723,"BOYACA","SATIVASUR","BOYACA - SATIVASUR","COMPAÑIA DE SERVICIOS PUBLICOS DE SOGAMOSO S.A. E.S.P.",2016,"TERRAZAS DEL PORVENIR","RELLENO SANITARIO"]
[15740,"BOYACA","SIACHOQUE","BOYACA - SIACHOQUE","SERVIGENERALES CIUDAD DE TUNJA S.A.  E.S.P.",2016,"RELLENO SANITARIO PIRGUA","RELLENO SANITARIO"]
[15753,"BOYACA","SOATÁ","BOYACA - SOATÁ","COMPAÑIA DE SERVICIOS PUBLICOS DE SOGAMOSO S.A. E.S.P.",2016,"TERRAZAS DEL PORVENIR","RELLENO SANITARIO"]
[15755,"BOYACA","SOCOTÁ","BOYACA - SOCOTÁ","COMPAÑIA DE SERVICIOS PUBLICOS DE SOGAMOSO S.A. E.S.P.",2016,"TERRAZAS DEL PORVENIR","RELLENO SANITARIO"]
[15757,"BOYACA","SOCHA","BOYACA - SOCHA","COMPAÑIA DE SERVICIOS PUBLICOS DE SOGAMOSO S.A. E.S.P.",2016,"TERRAZAS DEL PORVENIR","RELLENO SANITARIO"]
[15759,"BOYACA","SOGAMOSO","BOYACA - SOGAMOSO","COMPAÑIA DE SERVICIOS PUBLICOS DE SOGAMOSO S.A. E.S.P.",2016,"TERRAZAS DEL PORVENIR","RELLENO SANITARIO"]
[15761,"BOYACA","SOMONDOCO","BOYACA - SOMONDOCO","SERVIGENERALES CIUDAD DE TUNJA S.A.  E.S.P.",2016,"RELLENO SANITARIO PIRGUA","RELLENO SANITARIO"]
[15762,"BOYACA","SORA","BOYACA - SORA","SERVIGENERALES CIUDAD DE TUNJA S.A.  E.S.P.",2016,"RELLENO SANITARIO PIRGUA","RELLENO SANITARIO"]
[15763,"BOYACA","SOTAQUIRÁ","BOYACA - SOTAQUIRÁ","SERVIGENERALES CIUDAD DE TUNJA S.A.  E.S.P.",2016,"RELLENO SANITARIO PIRGUA","RELLENO SANITARIO"]
[15764,"BOYACA","SORACÁ","BOYACA - SORACÁ","SERVIGENERALES CIUDAD DE TUNJA S.A.  E.S.P.",2016,"RELLENO SANITARIO PIRGUA","RELLENO SANITARIO"]
[15774,"BOYACA","SUSACÓN","BOYACA - SUSACÓN","COMPAÑIA DE SERVICIOS PUBLICOS DE SOGAMOSO S.A. E.S.P.",2016,"TERRAZAS DEL PORVENIR","RELLENO SANITARIO"]
[15776,"BOYACA","SUTAMARCHÁN","BOYACA - SUTAMARCHÁN","SERVIGENERALES CIUDAD DE TUNJA S.A.  E.S.P.",2016,"RELLENO SANITARIO PIRGUA","RELLENO SANITARIO"]
[15778,"BOYACA","SUTATENZA","BOYACA - SUTATENZA","EMPRESAS PUBLICAS DE GARAGOA S.A. E.S.P",2016,"PLANTA REGIONAL DE RESIDUOS SOLIDOS","RELLENO SANITARIO"]
[15367,"BOYACA","JENESANO","BOYACA - JENESANO","SERVIGENERALES CIUDAD DE TUNJA S.A.  E.S.P.",2016,"RELLENO SANITARIO PIRGUA","RELLENO SANITARIO"]
[15368,"BOYACA","JERICÓ","BOYACA - JERICÓ","COMPAÑIA DE SERVICIOS PUBLICOS DE SOGAMOSO S.A. E.S.P.",2016,"TERRAZAS DEL PORVENIR","RELLENO SANITARIO"]
[15377,"BOYACA","LABRANZAGRANDE","BOYACA - LABRANZAGRANDE","COMPAÑIA DE SERVICIOS PUBLICOS DE SOGAMOSO S.A. E.S.P.",2016,"TERRAZAS DEL PORVENIR","RELLENO SANITARIO"]
[15380,"BOYACA","LA CAPILLA","BOYACA - LA CAPILLA","SERVIGENERALES CIUDAD DE TUNJA S.A.  E.S.P.",2016,"RELLENO SANITARIO PIRGUA","RELLENO SANITARIO"]
[15401,"BOYACA","LA VICTORIA","BOYACA - LA VICTORIA","UNIDAD DE SERVICIOS PUBLICOS DOMICILIARIOS DEL MUNICIPIO DE LA VICTORIA",2016,"RELLENO SANITARIO LA VICTORIA","RELLENO SANITARIO"]
[15403,"BOYACA","LA UVITA","BOYACA - LA UVITA","COMPAÑIA DE SERVICIOS PUBLICOS DE SOGAMOSO S.A. E.S.P.",2016,"TERRAZAS DEL PORVENIR","RELLENO SANITARIO"]
[15407,"BOYACA","VILLA DE LEYVA","BOYACA - VILLA DE LEYVA","SERVIGENERALES CIUDAD DE TUNJA S.A.  E.S.P.",2016,"RELLENO SANITARIO PIRGUA","RELLENO SANITARIO"]
[15425,"BOYACA","MACANAL","BOYACA - MACANAL","EMPRESAS PUBLICAS DE GARAGOA S.A. E.S.P",2016,"PLANTA REGIONAL DE RESIDUOS SOLIDOS","RELLENO SANITARIO"]
[15442,"BOYACA","MARIPÍ","BOYACA - MARIPÍ","SERVIGENERALES CIUDAD DE TUNJA S.A.  E.S.P.",2016,"RELLENO SANITARIO PIRGUA","RELLENO SANITARIO"]
[15455,"BOYACA","MIRAFLORES","BOYACA - MIRAFLORES","SERVIGENERALES CIUDAD DE TUNJA S.A.  E.S.P.",2016,"RELLENO SANITARIO PIRGUA","RELLENO SANITARIO"]
[15464,"BOYACA","MONGUA","BOYACA - MONGUA","COMPAÑIA DE SERVICIOS PUBLICOS DE SOGAMOSO S.A. E.S.P.",2016,"TERRAZAS DEL PORVENIR","RELLENO SANITARIO"]
[15466,"BOYACA","MONGUÍ","BOYACA - MONGUÍ","COMPAÑIA DE SERVICIOS PUBLICOS DE SOGAMOSO S.A. E.S.P.",2016,"TERRAZAS DEL PORVENIR","RELLENO SANITARIO"]
[15469,"BOYACA","MONIQUIRÁ","BOYACA - MONIQUIRÁ","SERVIGENERALES CIUDAD DE TUNJA S.A.  E.S.P.",2016,"RELLENO SANITARIO PIRGUA","RELLENO SANITARIO"]
[15476,"BOYACA","MOTAVITA","BOYACA - MOTAVITA","SERVIGENERALES CIUDAD DE TUNJA S.A.  E.S.P.",2016,"RELLENO SANITARIO PIRGUA","RELLENO SANITARIO"]
[15480,"BOYACA","MUZO","BOYACA - MUZO","SERVIGENERALES CIUDAD DE TUNJA S.A.  E.S.P.",2016,"RELLENO SANITARIO PIRGUA","RELLENO SANITARIO"]
[15491,"BOYACA","NOBSA","BOYACA - NOBSA","COMPAÑIA DE SERVICIOS PUBLICOS DE SOGAMOSO S.A. E.S.P.",2016,"TERRAZAS DEL PORVENIR","RELLENO SANITARIO"]
[15494,"BOYACA","NUEVO COLÓN","BOYACA - NUEVO COLÓN","SERVIGENERALES CIUDAD DE TUNJA S.A.  E.S.P.",2016,"RELLENO SANITARIO PIRGUA","RELLENO SANITARIO"]
[15500,"BOYACA","OICATÁ","BOYACA - OICATÁ","SERVIGENERALES CIUDAD DE TUNJA S.A.  E.S.P.",2016,"RELLENO SANITARIO PIRGUA","RELLENO SANITARIO"]
[15507,"BOYACA","OTANCHE","BOYACA - OTANCHE","EMPRESA DE SERVICIOS PUBLICOS DE LA DORADA E.S.P.",2016,"RELLENO SANITARIO DORADITA","RELLENO SANITARIO"]
[15511,"BOYACA","PACHAVITA","BOYACA - PACHAVITA","SERVIGENERALES CIUDAD DE TUNJA S.A.  E.S.P.",2016,"RELLENO SANITARIO PIRGUA","RELLENO SANITARIO"]
[15514,"BOYACA","PÁEZ","BOYACA - PÁEZ","SERVIGENERALES CIUDAD DE TUNJA S.A.  E.S.P.",2016,"RELLENO SANITARIO PIRGUA","RELLENO SANITARIO"]
[15516,"BOYACA","PAIPA","BOYACA - PAIPA","COMPAÑIA DE SERVICIOS PUBLICOS DE SOGAMOSO S.A. E.S.P.",2016,"TERRAZAS DEL PORVENIR","RELLENO SANITARIO"]
[15518,"BOYACA","PAJARITO","BOYACA - PAJARITO","EMPRESA DE ACUEDUCTO, ALCANTARILLADO Y ASEO DE YOPAL  EICE - ESP",2016,"CASCAJAR","RELLENO SANITARIO"]
[15522,"BOYACA","PANQUEBA","BOYACA - PANQUEBA","COMPAÑIA DE SERVICIOS PUBLICOS DE SOGAMOSO S.A. E.S.P.",2016,"TERRAZAS DEL PORVENIR","RELLENO SANITARIO"]
[15531,"BOYACA","PAUNA","BOYACA - PAUNA","SERVIGENERALES CIUDAD DE TUNJA S.A.  E.S.P.",2016,"RELLENO SANITARIO PIRGUA","RELLENO SANITARIO"]
[15533,"BOYACA","PAYA","BOYACA - PAYA","ND",2016,"ND","ND"]
[15537,"BOYACA","PAZ DE RÍO","BOYACA - PAZ DE RÍO","COMPAÑIA DE SERVICIOS PUBLICOS DE SOGAMOSO S.A. E.S.P.",2016,"TERRAZAS DEL PORVENIR","RELLENO SANITARIO"]
[15790,"BOYACA","TASCO","BOYACA - TASCO","COMPAÑIA DE SERVICIOS PUBLICOS DE SOGAMOSO S.A. E.S.P.",2016,"TERRAZAS DEL PORVENIR","RELLENO SANITARIO"]
[15798,"BOYACA","TENZA","BOYACA - TENZA","SERVIGENERALES CIUDAD DE TUNJA S.A.  E.S.P.",2016,"RELLENO SANITARIO PIRGUA","RELLENO SANITARIO"]
[15804,"BOYACA","TIBANÁ","BOYACA - TIBANÁ","SERVIGENERALES CIUDAD DE TUNJA S.A.  E.S.P.",2016,"RELLENO SANITARIO PIRGUA","RELLENO SANITARIO"]
[15806,"BOYACA","TIBASOSA","BOYACA - TIBASOSA","COMPAÑIA DE SERVICIOS PUBLICOS DE SOGAMOSO S.A. E.S.P.",2016,"TERRAZAS DEL PORVENIR","RELLENO SANITARIO"]
[15808,"BOYACA","TINJACÁ","BOYACA - TINJACÁ","SERVIGENERALES CIUDAD DE TUNJA S.A.  E.S.P.",2016,"RELLENO SANITARIO PIRGUA","RELLENO SANITARIO"]
[15810,"BOYACA","TIPACOQUE","BOYACA - TIPACOQUE","COMPAÑIA DE SERVICIOS PUBLICOS DE SOGAMOSO S.A. E.S.P.",2016,"TERRAZAS DEL PORVENIR","RELLENO SANITARIO"]
[15814,"BOYACA","TOCA","BOYACA - TOCA","SERVIGENERALES CIUDAD DE TUNJA S.A.  E.S.P.",2016,"RELLENO SANITARIO PIRGUA","RELLENO SANITARIO"]
[15816,"BOYACA","TOGÜÍ","BOYACA - TOGÜÍ","SERVIGENERALES CIUDAD DE TUNJA S.A.  E.S.P.",2016,"RELLENO SANITARIO PIRGUA","RELLENO SANITARIO"]
[15820,"BOYACA","TÓPAGA","BOYACA - TÓPAGA","COMPAÑIA DE SERVICIOS PUBLICOS DE SOGAMOSO S.A. E.S.P.",2016,"TERRAZAS DEL PORVENIR","RELLENO SANITARIO"]
[15822,"BOYACA","TOTA","BOYACA - TOTA","COMPAÑIA DE SERVICIOS PUBLICOS DE SOGAMOSO S.A. E.S.P.",2016,"TERRAZAS DEL PORVENIR","RELLENO SANITARIO"]
[15832,"BOYACA","TUNUNGUÁ","BOYACA - TUNUNGUÁ","UNIDAD MUNICIPAL DE SERVICIOS PUBLICOS DOMICILIARIOS DE TUNUNGUA",2016,"VEREDA MOJARRA","ENTERRAMIENTO"]
[15835,"BOYACA","TURMEQUÉ","BOYACA - TURMEQUÉ","SERVIGENERALES CIUDAD DE TUNJA S.A.  E.S.P.",2016,"RELLENO SANITARIO PIRGUA","RELLENO SANITARIO"]
[15837,"BOYACA","TUTA","BOYACA - TUTA","SERVIGENERALES CIUDAD DE TUNJA S.A.  E.S.P.",2016,"RELLENO SANITARIO PIRGUA","RELLENO SANITARIO"]
[15839,"BOYACA","TUTAZÁ","BOYACA - TUTAZÁ","COMPAÑIA DE SERVICIOS PUBLICOS DE SOGAMOSO S.A. E.S.P.",2016,"TERRAZAS DEL PORVENIR","RELLENO SANITARIO"]
[15842,"BOYACA","ÚMBITA","BOYACA - ÚMBITA","SERVIGENERALES CIUDAD DE TUNJA S.A.  E.S.P.",2016,"RELLENO SANITARIO PIRGUA","RELLENO SANITARIO"]
[15861,"BOYACA","VENTAQUEMADA","BOYACA - VENTAQUEMADA","SERVIGENERALES CIUDAD DE TUNJA S.A.  E.S.P.",2016,"RELLENO SANITARIO PIRGUA","RELLENO SANITARIO"]
[15879,"BOYACA","VIRACACHÁ","BOYACA - VIRACACHÁ","SERVICIOS INTEGRALES EFECTIVOS S.A.  E.S.P.",2016,"LA ESPERANZA","RELLENO SANITARIO"]
[15897,"BOYACA","ZETAQUIRA","BOYACA - ZETAQUIRA","SERVIGENERALES CIUDAD DE TUNJA S.A.  E.S.P.",2016,"RELLENO SANITARIO PIRGUA","RELLENO SANITARIO"]
[17001,"CALDAS","MANIZALES","CALDAS - MANIZALES","EMPRESA METROPOLITANA DE ASEO S.A.  E.S.P.",2016,"RELLENO SANITARIO LA ESMERALDA","RELLENO SANITARIO"]
[17013,"CALDAS","AGUADAS","CALDAS - AGUADAS","EMPRESA REGIONAL DE ASEO DEL NORTE DE CALDAS S.A., E.S.P.",2016,"LOS EUCALIPTOS","RELLENO SANITARIO"]
[17042,"CALDAS","ANSERMA","CALDAS - ANSERMA","EMPRESA METROPOLITANA DE ASEO S.A.  E.S.P.",2016,"RELLENO SANITARIO LA ESMERALDA","RELLENO SANITARIO"]
[17050,"CALDAS","ARANZAZU","CALDAS - ARANZAZU","EMPRESA METROPOLITANA DE ASEO S.A.  E.S.P.",2016,"RELLENO SANITARIO LA ESMERALDA","RELLENO SANITARIO"]
[17088,"CALDAS","BELALCÁZAR","CALDAS - BELALCÁZAR","EMPRESA METROPOLITANA DE ASEO S.A.  E.S.P.",2016,"RELLENO SANITARIO LA ESMERALDA","RELLENO SANITARIO"]
[17174,"CALDAS","CHINCHINÁ","CALDAS - CHINCHINÁ","EMPRESA METROPOLITANA DE ASEO S.A.  E.S.P.",2016,"RELLENO SANITARIO LA ESMERALDA","RELLENO SANITARIO"]
[17272,"CALDAS","FILADELFIA","CALDAS - FILADELFIA","EMPRESA METROPOLITANA DE ASEO S.A.  E.S.P.",2016,"RELLENO SANITARIO LA ESMERALDA","RELLENO SANITARIO"]
[17380,"CALDAS","LA DORADA","CALDAS - LA DORADA","EMPRESA DE SERVICIOS PUBLICOS DE LA DORADA E.S.P.",2016,"RELLENO SANITARIO DORADITA","RELLENO SANITARIO"]
[17388,"CALDAS","LA MERCED","CALDAS - LA MERCED","EMPRESA METROPOLITANA DE ASEO S.A.  E.S.P.",2016,"RELLENO SANITARIO LA ESMERALDA","RELLENO SANITARIO"]
[17433,"CALDAS","MANZANARES","CALDAS - MANZANARES","EMPRESA DE SERVICIOS PUBLICOS DEL ORIENTE DE CALDAS S.A. E.S.P.",2016,"LA VEGA","RELLENO SANITARIO"]
[17442,"CALDAS","MARMATO","CALDAS - MARMATO","EMPRESA METROPOLITANA DE ASEO S.A.  E.S.P.",2016,"RELLENO SANITARIO LA ESMERALDA","RELLENO SANITARIO"]
[17444,"CALDAS","MARQUETALIA","CALDAS - MARQUETALIA","EMPRESA DE SERVICIOS PUBLICOS DEL ORIENTE DE CALDAS S.A. E.S.P.",2016,"LA VEGA","RELLENO SANITARIO"]
[17446,"CALDAS","MARULANDA","CALDAS - MARULANDA","EMPRESA METROPOLITANA DE ASEO S.A.  E.S.P.",2016,"RELLENO SANITARIO LA ESMERALDA","RELLENO SANITARIO"]
[17486,"CALDAS","NEIRA","CALDAS - NEIRA","EMPRESA METROPOLITANA DE ASEO S.A.  E.S.P.",2016,"RELLENO SANITARIO LA ESMERALDA","RELLENO SANITARIO"]
[17495,"CALDAS","NORCASIA","CALDAS - NORCASIA","EMPRESA DE SERVICIOS PUBLICOS DE LA DORADA E.S.P.",2016,"RELLENO SANITARIO DORADITA","RELLENO SANITARIO"]
[17513,"CALDAS","PÁCORA","CALDAS - PÁCORA","EMPRESA REGIONAL DE ASEO DEL NORTE DE CALDAS S.A., E.S.P.",2016,"LOS EUCALIPTOS","RELLENO SANITARIO"]
[18256,"CAQUETA","EL PAUJÍL","CAQUETA - EL PAUJÍL","SERVICIOS INTEGRALES EFECTIVOS S.A.  E.S.P.",2016,"LA ESPERANZA","RELLENO SANITARIO"]
[18410,"CAQUETA","LA MONTAÑITA","CAQUETA - LA MONTAÑITA","ND",2016,"ND","ND"]
[18460,"CAQUETA","MILÁN","CAQUETA - MILÁN","EMPRESA DE SERVICIOS PUBLICOS DE SAN ANTONIO DE GETUCHA S.A. E.S.P",2016,"RELLENO SANITARIO EL DIAMANTE","RELLENO SANITARIO"]
[18479,"CAQUETA","MORELIA","CAQUETA - MORELIA","SERVICIOS INTEGRALES EFECTIVOS S.A.  E.S.P.",2016,"LA ESPERANZA","RELLENO SANITARIO"]
[18592,"CAQUETA","PUERTO RICO","CAQUETA - PUERTO RICO","AGUA RICA AAA S.A. E.S.P.",2016,"LA MELVA","CELDA TRANSITORIA"]
[18610,"CAQUETA","SAN JOSÉ DEL FRAGUA","CAQUETA - SAN JOSÉ DEL FRAGUA","EMPRESA DE SERVICIOS PUBLICOS DE SAN JOSE DE FRAGUA S.A. E.S.P",2016,"EL CAIRO","RELLENO SANITARIO"]
[18753,"CAQUETA","SAN VICENTE DEL CAGUÁN","CAQUETA - SAN VICENTE DEL CAGUÁN","SOLUCIONES AMBIENTALES INTEGRALES DE LA AMAZONIA",2016,"SAIDA","RELLENO SANITARIO"]
[18756,"CAQUETA","SOLANO","CAQUETA - SOLANO","AGUAS DE CHIRIBIQUETE S.A.S. ESP.",2016,"EL AMARILLO","BOTADERO A CIELO ABIERTO"]
[18785,"CAQUETA","SOLITA","CAQUETA - SOLITA","EMPRESA DE SERVICIOS PUBLICOS DE SOLITA EMSERSOL SA ESP",2016,"EL RETIRO","RELLENO SANITARIO"]
[18860,"CAQUETA","VALPARAÍSO","CAQUETA - VALPARAÍSO","SERVICIOS INTEGRALES EFECTIVOS S.A.  E.S.P.",2016,"LA ESPERANZA","RELLENO SANITARIO"]
[19001,"CAUCA","POPAYÁN","CAUCA - POPAYÁN","SERVIASEO POPAYAN S.A. E.S.P.",2016,"LOS PICACHOS","RELLENO SANITARIO"]
[19022,"CAUCA","ALMAGUER","CAUCA - ALMAGUER","ND",2016,"ND","ND"]
[19050,"CAUCA","ARGELIA","CAUCA - ARGELIA","ND",2016,"ND","ND"]
[19075,"CAUCA","BALBOA","CAUCA - BALBOA","ND",2016,"ND","ND"]
[19100,"CAUCA","BOLÍVAR","CAUCA - BOLÍVAR","EMPRESA SE SERVICIOS PUBLICOS DOMICILIARIOS DE ACUEDUCTO, ALCANTARILLADO Y ASEO DE BOLIVAR CAUCA E.S.P.  S.A.",2016,"LA CUCHILLA","CELDA DE CONTINGENCIA"]
[17524,"CALDAS","PALESTINA","CALDAS - PALESTINA","EMPRESA METROPOLITANA DE ASEO S.A.  E.S.P.",2016,"RELLENO SANITARIO LA ESMERALDA","RELLENO SANITARIO"]
[17541,"CALDAS","PENSILVANIA","CALDAS - PENSILVANIA","EMPRESA DE SERVICIOS PUBLICOS DEL ORIENTE DE CALDAS S.A. E.S.P.",2016,"LA VEGA","RELLENO SANITARIO"]
[17614,"CALDAS","RIOSUCIO","CALDAS - RIOSUCIO","EMPRESA METROPOLITANA DE ASEO S.A.  E.S.P.",2016,"RELLENO SANITARIO LA ESMERALDA","RELLENO SANITARIO"]
[17616,"CALDAS","RISARALDA","CALDAS - RISARALDA","EMPRESA METROPOLITANA DE ASEO S.A.  E.S.P.",2016,"RELLENO SANITARIO LA ESMERALDA","RELLENO SANITARIO"]
[17653,"CALDAS","SALAMINA","CALDAS - SALAMINA","EMPRESA METROPOLITANA DE ASEO S.A.  E.S.P.",2016,"RELLENO SANITARIO LA ESMERALDA","RELLENO SANITARIO"]
[17662,"CALDAS","SAMANÁ","CALDAS - SAMANÁ","UNIDAD DE SERVICIOS PUBLICOS DEL MUNICIPIO DE SAMANA",2016,"EL EDEN","RELLENO SANITARIO"]
[17665,"CALDAS","SAN JOSÉ","CALDAS - SAN JOSÉ","EMPRESA METROPOLITANA DE ASEO S.A.  E.S.P.",2016,"RELLENO SANITARIO LA ESMERALDA","RELLENO SANITARIO"]
[17777,"CALDAS","SUPÍA","CALDAS - SUPÍA","EMPRESA METROPOLITANA DE ASEO S.A.  E.S.P.",2016,"RELLENO SANITARIO LA ESMERALDA","RELLENO SANITARIO"]
[17867,"CALDAS","VICTORIA","CALDAS - VICTORIA","EMPRESA DE SERVICIOS PUBLICOS DE LA DORADA E.S.P.",2016,"RELLENO SANITARIO DORADITA","RELLENO SANITARIO"]
[17873,"CALDAS","VILLAMARÍA","CALDAS - VILLAMARÍA","EMPRESA METROPOLITANA DE ASEO S.A.  E.S.P.",2016,"RELLENO SANITARIO LA ESMERALDA","RELLENO SANITARIO"]
[17877,"CALDAS","VITERBO","CALDAS - VITERBO","ATESA DE OCCIDENTE S.A  E.S.P.",2016,"LA GLORITA","RELLENO SANITARIO"]
[18001,"CAQUETA","FLORENCIA","CAQUETA - FLORENCIA","SERVICIOS INTEGRALES EFECTIVOS S.A.  E.S.P.",2016,"LA ESPERANZA","RELLENO SANITARIO"]
[18029,"CAQUETA","ALBANIA","CAQUETA - ALBANIA","EMPRESA DE SERVICIOS PUBLICOS DE SAN JOSE DE FRAGUA S.A. E.S.P",2016,"EL CAIRO","RELLENO SANITARIO"]
[18094,"CAQUETA","BELÉN DE LOS ANDAQUÍES","CAQUETA - BELÉN DE LOS ANDAQUÍES","SERVICIOS INTEGRALES EFECTIVOS S.A.  E.S.P.",2016,"LA ESPERANZA","RELLENO SANITARIO"]
[18150,"CAQUETA","CARTAGENA DEL CHAIRÁ","CAQUETA - CARTAGENA DEL CHAIRÁ","EMPRESA MUNICIPAL DE SERIVICIO PUBLICO DE CARTAGENA DEL CHAIRA",2016,"LA PRADERA","RELLENO SANITARIO"]
[18205,"CAQUETA","CURILLO","CAQUETA - CURILLO","EMPRESA DE SERVICIOS DE CURRILLO S.A. E.S.P.",2016,"CHICAO","RELLENO SANITARIO"]
[18247,"CAQUETA","EL DONCELLO","CAQUETA - EL DONCELLO","EMPRESAS PUBLICAS DE EL DONCELLO S.A.E.S.P.",2016,"EL BOSQUE","RELLENO SANITARIO"]
[19533,"CAUCA","PIAMONTE","CAUCA - PIAMONTE","ACUEDUCTO ALCANTARILLADO Y ASEO DE PIAMONTE  S.A. E.S.P.",2016,"LOS POMOS","CELDA TRANSITORIA"]
[19548,"CAUCA","PIENDAMÓ","CAUCA - PIENDAMÓ","SERVIASEO POPAYAN S.A. E.S.P.",2016,"LOS PICACHOS","RELLENO SANITARIO"]
[19573,"CAUCA","PUERTO TEJADA","CAUCA - PUERTO TEJADA","PUERTO TEJADA SAS ESP",2016,"EL CORTIJO","CELDA DE CONTINGENCIA"]
[19585,"CAUCA","PURACÉ","CAUCA - PURACÉ","SERVIASEO POPAYAN S.A. E.S.P.",2016,"LOS PICACHOS","RELLENO SANITARIO"]
[19622,"CAUCA","ROSAS","CAUCA - ROSAS","SERVIASEO POPAYAN S.A. E.S.P.",2016,"LOS PICACHOS","RELLENO SANITARIO"]
[19693,"CAUCA","SAN SEBASTIÁN","CAUCA - SAN SEBASTIÁN","ND",2016,"ND","ND"]
[19698,"CAUCA","SANTANDER DE QUILICHAO","CAUCA - SANTANDER DE QUILICHAO","INTERASEO DEL VALLE S.A E.S.P.",2016,"RELLENO SANITARIO REGIONAL COLOMBA-EL GUABAL","RELLENO SANITARIO"]
[19701,"CAUCA","SANTA ROSA","CAUCA - SANTA ROSA","ACUEDUCTO ALCANTARILLADO Y ASEO DE SANTA ROSA S.A E.S.P",2016,"RELLENO SANITARIO","CELDA DE CONTINGENCIA"]
[19743,"CAUCA","SILVIA","CAUCA - SILVIA","SERVIASEO POPAYAN S.A. E.S.P.",2016,"LOS PICACHOS","RELLENO SANITARIO"]
[19760,"CAUCA","SOTARA","CAUCA - SOTARA","ADMINISTRACION PÙBLICA COOPERATIVA DE ACUEDUCTO ALCANTARILLADO Y ASEO DEL MUNICIPIO DE SOTARA",2016,"EL ARBOLITO BOTADERO PAISPAMBA","BOTADERO A CIELO ABIERTO"]
[19780,"CAUCA","SUÁREZ","CAUCA - SUÁREZ","SERVIASEO POPAYAN S.A. E.S.P.",2016,"LOS PICACHOS","RELLENO SANITARIO"]
[19785,"CAUCA","SUCRE","CAUCA - SUCRE","ASOCIACIÓN DE USUARIOS DE SERVICIOS PÚBLICOS AAA DE SUCRE CAUCA",2016,"RELLENO SANITARIO EL VIVERO","CELDA TRANSITORIA"]
[19807,"CAUCA","TIMBÍO","CAUCA - TIMBÍO","SERVIASEO POPAYAN S.A. E.S.P.",2016,"LOS PICACHOS","RELLENO SANITARIO"]
[19809,"CAUCA","TIMBIQUÍ","CAUCA - TIMBIQUÍ","ND",2016,"ND","ND"]
[19110,"CAUCA","BUENOS AIRES","CAUCA - BUENOS AIRES","SERVIASEO POPAYAN S.A. E.S.P.",2016,"LOS PICACHOS","RELLENO SANITARIO"]
[19130,"CAUCA","CAJIBÍO","CAUCA - CAJIBÍO","SERVIASEO POPAYAN S.A. E.S.P.",2016,"LOS PICACHOS","RELLENO SANITARIO"]
[19137,"CAUCA","CALDONO","CAUCA - CALDONO","SERVIASEO POPAYAN S.A. E.S.P.",2016,"LOS PICACHOS","RELLENO SANITARIO"]
[19142,"CAUCA","CALOTO","CAUCA - CALOTO","INTERASEO DEL VALLE S.A E.S.P.",2016,"RELLENO SANITARIO REGIONAL COLOMBA-EL GUABAL","RELLENO SANITARIO"]
[19212,"CAUCA","CORINTO","CAUCA - CORINTO","EMPRESA DE ACUEDUCTO Y ALCANTARILLADO DE CORINTO CAUCA E.S.P.",2016,"GRANADITA","CELDA DE CONTINGENCIA"]
[19256,"CAUCA","EL TAMBO","CAUCA - EL TAMBO","SERVIASEO POPAYAN S.A. E.S.P.",2016,"LOS PICACHOS","RELLENO SANITARIO"]
[19290,"CAUCA","FLORENCIA","CAUCA - FLORENCIA","EMPRESA METROPOLITANA DE ASEO DE PASTO S.A.  E.S.P. ",2016,"RELLENO SANITARIO ANTANAS","RELLENO SANITARIO"]
[19355,"CAUCA","INZÁ","CAUCA - INZÁ","SERVIASEO POPAYAN S.A. E.S.P.",2016,"LOS PICACHOS","RELLENO SANITARIO"]
[19364,"CAUCA","JAMBALÓ","CAUCA - JAMBALÓ","ND",2016,"ND","ND"]
[19392,"CAUCA","LA SIERRA","CAUCA - LA SIERRA","SERVIASEO POPAYAN S.A. E.S.P.",2016,"LOS PICACHOS","RELLENO SANITARIO"]
[19397,"CAUCA","LA VEGA","CAUCA - LA VEGA","SERVIASEO POPAYAN S.A. E.S.P.",2016,"LOS PICACHOS","RELLENO SANITARIO"]
[19418,"CAUCA","LÓPEZ DE MICAY","CAUCA - LÓPEZ DE MICAY","MUNICIPIO LÓPEZ DE MICAY",2016,"LÓPEZ DE MICAY","SIN INFORMACION"]
[19450,"CAUCA","MERCADERES","CAUCA - MERCADERES","MUNICIPIO DE TARAIRA",2016,"CELDAS TRANSITORIAS","CELDA TRANSITORIA"]
[19455,"CAUCA","MIRANDA","CAUCA - MIRANDA","EMPRESA DE ACUEDUCTO Y ALCANTARILLADO DE CORINTO CAUCA E.S.P.",2016,"GRANADITA","CELDA DE CONTINGENCIA"]
[19473,"CAUCA","MORALES","CAUCA - MORALES","SERVIASEO POPAYAN S.A. E.S.P.",2016,"LOS PICACHOS","RELLENO SANITARIO"]
[19513,"CAUCA","PADILLA","CAUCA - PADILLA","INTERASEO DEL VALLE S.A E.S.P.",2016,"RELLENO SANITARIO REGIONAL COLOMBA-EL GUABAL","RELLENO SANITARIO"]
[19517,"CAUCA","PÁEZ","CAUCA - PÁEZ","CIUDAD LIMPIA NEIVA S.A E.S.P",2016,"RELLENO SANITARIO LOS ANGELES","RELLENO SANITARIO"]
[19532,"CAUCA","PATÍA","CAUCA - PATÍA","SERVIASEO POPAYAN S.A. E.S.P.",2016,"LOS PICACHOS","RELLENO SANITARIO"]
[20787,"CESAR","TAMALAMEQUE","CESAR - TAMALAMEQUE","ASEO URBANO S.A.S. E.S.P.",2016,"PARQUE TECNOLOGICO AMBIENTAL LAS BATEAS","RELLENO SANITARIO"]
[23001,"CORDOBA","MONTERÍA","CORDOBA - MONTERÍA","SERVICIOS GENERALES EMPRESA DE SERVICIOS PUBLICOS DE CARACTER PRIVADO S.A. E.S.P.",2016,"RELLENO SANITARIO LOMA GRANDE","RELLENO SANITARIO"]
[23068,"CORDOBA","AYAPEL","CORDOBA - AYAPEL","SERVICIOS GENERALES EMPRESA DE SERVICIOS PUBLICOS DE CARACTER PRIVADO S.A. E.S.P.",2016,"RELLENO SANITARIO LOMA GRANDE","RELLENO SANITARIO"]
[23079,"CORDOBA","BUENAVISTA","CORDOBA - BUENAVISTA","SERVICIOS GENERALES EMPRESA DE SERVICIOS PUBLICOS DE CARACTER PRIVADO S.A. E.S.P.",2016,"RELLENO SANITARIO LOMA GRANDE","RELLENO SANITARIO"]
[23090,"CORDOBA","CANALETE","CORDOBA - CANALETE","SERVICIOS GENERALES EMPRESA DE SERVICIOS PUBLICOS DE CARACTER PRIVADO S.A. E.S.P.",2016,"RELLENO SANITARIO LOMA GRANDE","RELLENO SANITARIO"]
[23162,"CORDOBA","CERETÉ","CORDOBA - CERETÉ","SERVICIOS GENERALES EMPRESA DE SERVICIOS PUBLICOS DE CARACTER PRIVADO S.A. E.S.P.",2016,"RELLENO SANITARIO LOMA GRANDE","RELLENO SANITARIO"]
[23168,"CORDOBA","CHIMÁ","CORDOBA - CHIMÁ","INTERASEO S.A  E.S.P",2016,"EL OASIS","RELLENO SANITARIO"]
[23182,"CORDOBA","CHINÚ","CORDOBA - CHINÚ","SERVIASEO S.A.  E.S.P.",2016,"LA CANDELARIA","RELLENO SANITARIO"]
[23189,"CORDOBA","CIÉNAGA DE ORO","CORDOBA - CIÉNAGA DE ORO","SERVICIOS GENERALES EMPRESA DE SERVICIOS PUBLICOS DE CARACTER PRIVADO S.A. E.S.P.",2016,"RELLENO SANITARIO LOMA GRANDE","RELLENO SANITARIO"]
[23300,"CORDOBA","COTORRA","CORDOBA - COTORRA","INTERASEO S.A  E.S.P",2016,"EL CLAVO","RELLENO SANITARIO"]
[23350,"CORDOBA","LA APARTADA","CORDOBA - LA APARTADA","SERVICIOS GENERALES EMPRESA DE SERVICIOS PUBLICOS DE CARACTER PRIVADO S.A. E.S.P.",2016,"RELLENO SANITARIO LOMA GRANDE","RELLENO SANITARIO"]
[23417,"CORDOBA","LORICA","CORDOBA - LORICA","INTERASEO S.A  E.S.P",2016,"EL OASIS","RELLENO SANITARIO"]
[23419,"CORDOBA","LOS CÓRDOBAS","CORDOBA - LOS CÓRDOBAS","SERVICIOS GENERALES EMPRESA DE SERVICIOS PUBLICOS DE CARACTER PRIVADO S.A. E.S.P.",2016,"RELLENO SANITARIO LOMA GRANDE","RELLENO SANITARIO"]
[23464,"CORDOBA","MOMIL","CORDOBA - MOMIL","INTERASEO S.A  E.S.P",2016,"EL OASIS","RELLENO SANITARIO"]
[23466,"CORDOBA","MONTELÍBANO","CORDOBA - MONTELÍBANO","SERVICIOS GENERALES EMPRESA DE SERVICIOS PUBLICOS DE CARACTER PRIVADO S.A. E.S.P.",2016,"RELLENO SANITARIO LOMA GRANDE","RELLENO SANITARIO"]
[19821,"CAUCA","TORIBÍO","CAUCA - TORIBÍO","ND",2016,"ND","ND"]
[19824,"CAUCA","TOTORÓ","CAUCA - TOTORÓ","SERVIASEO POPAYAN S.A. E.S.P.",2016,"LOS PICACHOS","RELLENO SANITARIO"]
[19845,"CAUCA","VILLA RICA","CAUCA - VILLA RICA","INTERASEO DEL VALLE S.A E.S.P.",2016,"RELLENO SANITARIO REGIONAL COLOMBA-EL GUABAL","RELLENO SANITARIO"]
[20001,"CESAR","VALLEDUPAR","CESAR - VALLEDUPAR","EMPRESA DE SERVICIOS  DE ASEO DE VALLEDUPAR S.A  E.S.P - \"ASEOUPAR S.A. E.S.P.\"",2016,"LOS CORAZONES","RELLENO SANITARIO"]
[20011,"CESAR","AGUACHICA","CESAR - AGUACHICA","ASEO URBANO S.A.S. E.S.P.",2016,"PARQUE TECNOLOGICO AMBIENTAL LAS BATEAS","RELLENO SANITARIO"]
[20013,"CESAR","AGUSTÍN CODAZZI","CESAR - AGUSTÍN CODAZZI","EMPRESA DE SERVICIOS  DE ASEO DE VALLEDUPAR S.A  E.S.P - \"ASEOUPAR S.A. E.S.P.\"",2016,"LOS CORAZONES","RELLENO SANITARIO"]
[20032,"CESAR","ASTREA","CESAR - ASTREA","BIOGER S.A. E.S.P.",2016,"RELLENO SANITARIO REGIONAL DEL NOROCCIDENTE DEL DEPARTAMENTO DEL CESAR","RELLENO SANITARIO"]
[20045,"CESAR","BECERRIL","CESAR - BECERRIL","EMPRESA DE SERVICIOS PUBLICOS DE BECERRIL - EMBECERRIL E.S.P.",2016,"CELDA BECERRIL","CELDA TRANSITORIA"]
[20060,"CESAR","BOSCONIA","CESAR - BOSCONIA","ND",2016,"ND","ND"]
[20175,"CESAR","CHIMICHAGUA","CESAR - CHIMICHAGUA","BIOGER S.A. E.S.P.",2016,"RELLENO SANITARIO REGIONAL DEL NOROCCIDENTE DEL DEPARTAMENTO DEL CESAR","RELLENO SANITARIO"]
[20178,"CESAR","CHIRIGUANÁ","CESAR - CHIRIGUANÁ","ND",2016,"ND","ND"]
[20228,"CESAR","CURUMANÍ","CESAR - CURUMANÍ","BIOGER S.A. E.S.P.",2016,"RELLENO SANITARIO REGIONAL DEL NOROCCIDENTE DEL DEPARTAMENTO DEL CESAR","RELLENO SANITARIO"]
[20238,"CESAR","EL COPEY","CESAR - EL COPEY","BIOGER S.A. E.S.P.",2016,"RELLENO SANITARIO REGIONAL DEL NOROCCIDENTE DEL DEPARTAMENTO DEL CESAR","RELLENO SANITARIO"]
[20250,"CESAR","EL PASO","CESAR - EL PASO","BIOGER S.A. E.S.P.",2016,"RELLENO SANITARIO REGIONAL DEL NOROCCIDENTE DEL DEPARTAMENTO DEL CESAR","RELLENO SANITARIO"]
[20295,"CESAR","GAMARRA","CESAR - GAMARRA","ASEO URBANO S.A.S. E.S.P.",2016,"PARQUE TECNOLOGICO AMBIENTAL LAS BATEAS","RELLENO SANITARIO"]
[20310,"CESAR","GONZÁLEZ","CESAR - GONZÁLEZ","EMPRESA DE SERVICIOS PUBLICOS DE OCAÑA S.A.  E.S.P.",2016,"LA MADERA","RELLENO SANITARIO"]
[20383,"CESAR","LA GLORIA","CESAR - LA GLORIA","ASEO URBANO S.A.S. E.S.P.",2016,"PARQUE TECNOLOGICO AMBIENTAL LAS BATEAS","RELLENO SANITARIO"]
[20400,"CESAR","LA JAGUA DE IBIRICO","CESAR - LA JAGUA DE IBIRICO","BIOGER S.A. E.S.P.",2016,"RELLENO SANITARIO REGIONAL DEL NOROCCIDENTE DEL DEPARTAMENTO DEL CESAR","RELLENO SANITARIO"]
[20443,"CESAR","MANAURE BALCÓN DEL CESAR","CESAR - MANAURE BALCÓN DEL CESAR","EMPRESA DE SERVICIOS  DE ASEO DE VALLEDUPAR S.A  E.S.P - \"ASEOUPAR S.A. E.S.P.\"",2016,"LOS CORAZONES","RELLENO SANITARIO"]
[20517,"CESAR","PAILITAS","CESAR - PAILITAS","ASEO URBANO S.A.S. E.S.P.",2016,"PARQUE TECNOLOGICO AMBIENTAL LAS BATEAS","RELLENO SANITARIO"]
[20550,"CESAR","PELAYA","CESAR - PELAYA","ASEO URBANO S.A.S. E.S.P.",2016,"PARQUE TECNOLOGICO AMBIENTAL LAS BATEAS","RELLENO SANITARIO"]
[20570,"CESAR","PUEBLO BELLO","CESAR - PUEBLO BELLO","EMPRESA DE SERVICIOS  DE ASEO DE VALLEDUPAR S.A  E.S.P - \"ASEOUPAR S.A. E.S.P.\"",2016,"LOS CORAZONES","RELLENO SANITARIO"]
[20614,"CESAR","RÍO DE ORO","CESAR - RÍO DE ORO","EMPRESA DE SERVICIOS PUBLICOS DE OCAÑA S.A.  E.S.P.",2016,"LA MADERA","RELLENO SANITARIO"]
[20621,"CESAR","LA PAZ","CESAR - LA PAZ","EMPRESA DE SERVICIOS  DE ASEO DE VALLEDUPAR S.A  E.S.P - \"ASEOUPAR S.A. E.S.P.\"",2016,"LOS CORAZONES","RELLENO SANITARIO"]
[20710,"CESAR","SAN ALBERTO","CESAR - SAN ALBERTO","ASEO URBANO S.A.S. E.S.P.",2016,"PARQUE TECNOLOGICO AMBIENTAL LAS BATEAS","RELLENO SANITARIO"]
[20750,"CESAR","SAN DIEGO","CESAR - SAN DIEGO","EMPRESA DE SERVICIOS  DE ASEO DE VALLEDUPAR S.A  E.S.P - \"ASEOUPAR S.A. E.S.P.\"",2016,"LOS CORAZONES","RELLENO SANITARIO"]
[20770,"CESAR","SAN MARTÍN","CESAR - SAN MARTÍN","ASEO URBANO S.A.S. E.S.P.",2016,"PARQUE TECNOLOGICO AMBIENTAL LAS BATEAS","RELLENO SANITARIO"]
[23500,"CORDOBA","MOñITOS","CORDOBA - MOñITOS","SERVICIOS GENERALES EMPRESA DE SERVICIOS PUBLICOS DE CARACTER PRIVADO S.A. E.S.P.",2016,"RELLENO SANITARIO LOMA GRANDE","RELLENO SANITARIO"]
[23555,"CORDOBA","PLANETA RICA","CORDOBA - PLANETA RICA","SERVICIOS GENERALES EMPRESA DE SERVICIOS PUBLICOS DE CARACTER PRIVADO S.A. E.S.P.",2016,"RELLENO SANITARIO LOMA GRANDE","RELLENO SANITARIO"]
[23570,"CORDOBA","PUEBLO NUEVO","CORDOBA - PUEBLO NUEVO","SERVICIOS GENERALES EMPRESA DE SERVICIOS PUBLICOS DE CARACTER PRIVADO S.A. E.S.P.",2016,"RELLENO SANITARIO LOMA GRANDE","RELLENO SANITARIO"]
[23574,"CORDOBA","PUERTO ESCONDIDO","CORDOBA - PUERTO ESCONDIDO","SERVICIOS GENERALES EMPRESA DE SERVICIOS PUBLICOS DE CARACTER PRIVADO S.A. E.S.P.",2016,"RELLENO SANITARIO LOMA GRANDE","RELLENO SANITARIO"]
[23580,"CORDOBA","PUERTO LIBERTADOR","CORDOBA - PUERTO LIBERTADOR","SERVICIOS GENERALES EMPRESA DE SERVICIOS PUBLICOS DE CARACTER PRIVADO S.A. E.S.P.",2016,"RELLENO SANITARIO LOMA GRANDE","RELLENO SANITARIO"]
[23586,"CORDOBA","PURÍSIMA DE LA CONCEPCIÓN","CORDOBA - PURÍSIMA DE LA CONCEPCIÓN","INTERASEO S.A  E.S.P",2016,"EL OASIS","RELLENO SANITARIO"]
[23660,"CORDOBA","SAHAGÚN","CORDOBA - SAHAGÚN","INTERASEO S.A  E.S.P",2016,"EL OASIS","RELLENO SANITARIO"]
[23670,"CORDOBA","SAN ANDRÉS DE SOTAVENTO","CORDOBA - SAN ANDRÉS DE SOTAVENTO","INTERASEO S.A  E.S.P",2016,"EL OASIS","RELLENO SANITARIO"]
[23672,"CORDOBA","SAN ANTERO","CORDOBA - SAN ANTERO","INTERASEO S.A  E.S.P",2016,"EL OASIS","RELLENO SANITARIO"]
[23675,"CORDOBA","SAN BERNARDO DEL VIENTO","CORDOBA - SAN BERNARDO DEL VIENTO","SERVICIOS GENERALES EMPRESA DE SERVICIOS PUBLICOS DE CARACTER PRIVADO S.A. E.S.P.",2016,"RELLENO SANITARIO LOMA GRANDE","RELLENO SANITARIO"]
[23678,"CORDOBA","SAN CARLOS","CORDOBA - SAN CARLOS","SERVICIOS GENERALES EMPRESA DE SERVICIOS PUBLICOS DE CARACTER PRIVADO S.A. E.S.P.",2016,"RELLENO SANITARIO LOMA GRANDE","RELLENO SANITARIO"]
[23686,"CORDOBA","SAN PELAYO","CORDOBA - SAN PELAYO","SERVICIOS GENERALES EMPRESA DE SERVICIOS PUBLICOS DE CARACTER PRIVADO S.A. E.S.P.",2016,"RELLENO SANITARIO LOMA GRANDE","RELLENO SANITARIO"]
[23807,"CORDOBA","TIERRALTA","CORDOBA - TIERRALTA","SERVICIOS GENERALES EMPRESA DE SERVICIOS PUBLICOS DE CARACTER PRIVADO S.A. E.S.P.",2016,"RELLENO SANITARIO LOMA GRANDE","RELLENO SANITARIO"]
[23855,"CORDOBA","VALENCIA","CORDOBA - VALENCIA","SERVICIOS GENERALES EMPRESA DE SERVICIOS PUBLICOS DE CARACTER PRIVADO S.A. E.S.P.",2016,"RELLENO SANITARIO LOMA GRANDE","RELLENO SANITARIO"]
[25001,"CUNDINAMARCA","AGUA DE DIOS","CUNDINAMARCA - AGUA DE DIOS","SERVICIOS AMBIENTALES S.A.  E.S.P.",2016,"PARQUE ECOLOGICO PRADERAS DEL MAGDALENA","RELLENO SANITARIO"]
[25019,"CUNDINAMARCA","ALBÁN","CUNDINAMARCA - ALBÁN","NUEVO MONDOÑEDO S.A. E.S.P.",2016,"RELLENO SANITARIO NUEVO MONDOÑEDO","RELLENO SANITARIO"]
[25035,"CUNDINAMARCA","ANAPOIMA","CUNDINAMARCA - ANAPOIMA","SERVICIOS AMBIENTALES S.A.  E.S.P.",2016,"PARQUE ECOLOGICO PRADERAS DEL MAGDALENA","RELLENO SANITARIO"]
[25040,"CUNDINAMARCA","ANOLAIMA","CUNDINAMARCA - ANOLAIMA","NUEVO MONDOÑEDO S.A. E.S.P.",2016,"RELLENO SANITARIO NUEVO MONDOÑEDO","RELLENO SANITARIO"]
[86760,"PUTUMAYO","SANTIAGO","PUTUMAYO - SANTIAGO","EMPRESA METROPOLITANA DE ASEO DE PASTO S.A.  E.S.P. ",2016,"RELLENO SANITARIO ANTANAS","RELLENO SANITARIO"]
[86865,"PUTUMAYO","VALLE DEL GUAMUEZ","PUTUMAYO - VALLE DEL GUAMUEZ","EMPRESA ADMINISTRATIVA DE SERVICIOS PUBLICOS DOMICILIARIOS DE EL VALLE DEL GUAMUEZ S.A. E.S.P.",2016,"LA PRIMAVERA","BOTADERO A CIELO ABIERTO"]
[86885,"PUTUMAYO","VILLAGARZÓN","PUTUMAYO - VILLAGARZÓN","EMPRESA METROPOLITANA DE ASEO DEL PUTUMAYO S.A.S. E.S.P.",2016,"RELLENO SANITARIO VEREDA MEDIO AFAN","RELLENO SANITARIO"]
[91001,"AMAZONAS","LETICIA","AMAZONAS - LETICIA","ALCALDIA DE LETICIA",2016,"RELLENO SANITARIO UBICADO EN EL KM 17.5 VIA TARAPACA","RELLENO SANITARIO"]
[91263,0,0,"0 - 0",0,0,0,0]
[91405,0,0,"0 - 0",0,0,0,0]
[91407,0,0,"0 - 0",0,0,0,0]
[91430,0,0,"0 - 0",0,0,0,0]
[91460,0,0,"0 - 0",0,0,0,0]
[91530,0,0,"0 - 0",0,0,0,0]
[91536,0,0,"0 - 0",0,0,0,0]
[91540,"AMAZONAS","PUERTO NARIÑO","AMAZONAS - PUERTO NARIÑO","MUNICIPIO DE PUERTO NARIÑO",2016,"BASURERO LIMPIO","CELDA TRANSITORIA"]
[91669,0,0,"0 - 0",0,0,0,0]
[91798,0,0,"0 - 0",0,0,0,0]
[94001,"GUAINIA","INÍRIDA","GUAINIA - INÍRIDA","EMPRESA REGIONAL COMUNITARIA DE ADMINISTRACION PUBLICA COOPERATIVA DE LOS SERVICIOS PUBLICOS DOMICILIARIOS DE ACUEDUCTO ALCANTARILLADO Y ASEO",2016,"BOTADERO MUNICIPAL","BOTADERO A CIELO ABIERTO"]
[94109,0,0,"0 - 0",0,0,0,0]
[94343,0,0,"0 - 0",0,0,0,0]
["94882A",0,0,"0 - 0",0,0,0,0]
[94883,0,0,"0 - 0",0,0,0,0]
[25168,"CUNDINAMARCA","CHAGUANÍ","CUNDINAMARCA - CHAGUANÍ","NUEVO MONDOÑEDO S.A. E.S.P.",2016,"RELLENO SANITARIO NUEVO MONDOÑEDO","RELLENO SANITARIO"]
[25175,"CUNDINAMARCA","CHÍA","CUNDINAMARCA - CHÍA","NUEVO MONDOÑEDO S.A. E.S.P.",2016,"RELLENO SANITARIO NUEVO MONDOÑEDO","RELLENO SANITARIO"]
[25178,"CUNDINAMARCA","CHIPAQUE","CUNDINAMARCA - CHIPAQUE","CENTRO DE GERENCIAMIENTO DE RESIDUOS DOÑA JUANA S.A. E.S.P.",2016,"RELLENO SANITARIO DOÑA JUANA","RELLENO SANITARIO"]
[25181,"CUNDINAMARCA","CHOACHÍ","CUNDINAMARCA - CHOACHÍ","CENTRO DE GERENCIAMIENTO DE RESIDUOS DOÑA JUANA S.A. E.S.P.",2016,"RELLENO SANITARIO DOÑA JUANA","RELLENO SANITARIO"]
[25183,"CUNDINAMARCA","CHOCONTÁ","CUNDINAMARCA - CHOCONTÁ","NUEVO MONDOÑEDO S.A. E.S.P.",2016,"RELLENO SANITARIO NUEVO MONDOÑEDO","RELLENO SANITARIO"]
[25200,"CUNDINAMARCA","COGUA","CUNDINAMARCA - COGUA","NUEVO MONDOÑEDO S.A. E.S.P.",2016,"RELLENO SANITARIO NUEVO MONDOÑEDO","RELLENO SANITARIO"]
[25214,"CUNDINAMARCA","COTA","CUNDINAMARCA - COTA","NUEVO MONDOÑEDO S.A. E.S.P.",2016,"RELLENO SANITARIO NUEVO MONDOÑEDO","RELLENO SANITARIO"]
[25053,"CUNDINAMARCA","ARBELÁEZ","CUNDINAMARCA - ARBELÁEZ","SERVICIOS AMBIENTALES S.A.  E.S.P.",2016,"PARQUE ECOLOGICO PRADERAS DEL MAGDALENA","RELLENO SANITARIO"]
[25086,"CUNDINAMARCA","BELTRÁN","CUNDINAMARCA - BELTRÁN","SERVICIOS AMBIENTALES S.A.  E.S.P.",2016,"PARQUE ECOLOGICO PRADERAS DEL MAGDALENA","RELLENO SANITARIO"]
[25095,"CUNDINAMARCA","BITUIMA","CUNDINAMARCA - BITUIMA","NUEVO MONDOÑEDO S.A. E.S.P.",2016,"RELLENO SANITARIO NUEVO MONDOÑEDO","RELLENO SANITARIO"]
[25099,"CUNDINAMARCA","BOJACÁ","CUNDINAMARCA - BOJACÁ","NUEVO MONDOÑEDO S.A. E.S.P.",2016,"RELLENO SANITARIO NUEVO MONDOÑEDO","RELLENO SANITARIO"]
[25120,"CUNDINAMARCA","CABRERA","CUNDINAMARCA - CABRERA","SERVICIOS AMBIENTALES S.A.  E.S.P.",2016,"PARQUE ECOLOGICO PRADERAS DEL MAGDALENA","RELLENO SANITARIO"]
[25123,"CUNDINAMARCA","CACHIPAY","CUNDINAMARCA - CACHIPAY","NUEVO MONDOÑEDO S.A. E.S.P.",2016,"RELLENO SANITARIO NUEVO MONDOÑEDO","RELLENO SANITARIO"]
[25126,"CUNDINAMARCA","CAJICÁ","CUNDINAMARCA - CAJICÁ","NUEVO MONDOÑEDO S.A. E.S.P.",2016,"RELLENO SANITARIO NUEVO MONDOÑEDO","RELLENO SANITARIO"]
[25148,"CUNDINAMARCA","CAPARRAPÍ","CUNDINAMARCA - CAPARRAPÍ","EMPRESA DE SERVICIOS PUBLICOS DE LA DORADA E.S.P.",2016,"RELLENO SANITARIO DORADITA","RELLENO SANITARIO"]
[25151,"CUNDINAMARCA","CÁQUEZA","CUNDINAMARCA - CÁQUEZA","CENTRO DE GERENCIAMIENTO DE RESIDUOS DOÑA JUANA S.A. E.S.P.",2016,"RELLENO SANITARIO DOÑA JUANA","RELLENO SANITARIO"]
[25154,"CUNDINAMARCA","CARMEN DE CARUPA","CUNDINAMARCA - CARMEN DE CARUPA","NUEVO MONDOÑEDO S.A. E.S.P.",2016,"RELLENO SANITARIO NUEVO MONDOÑEDO","RELLENO SANITARIO"]
[86749,"PUTUMAYO","SIBUNDOY","PUTUMAYO - SIBUNDOY","EMPRESA METROPOLITANA DE ASEO DE PASTO S.A.  E.S.P. ",2016,"RELLENO SANITARIO ANTANAS","RELLENO SANITARIO"]
[86755,"PUTUMAYO","SAN FRANCISCO","PUTUMAYO - SAN FRANCISCO","EMPRESA METROPOLITANA DE ASEO DE PASTO S.A.  E.S.P. ",2016,"RELLENO SANITARIO ANTANAS","RELLENO SANITARIO"]
[86757,"PUTUMAYO","SAN MIGUEL","PUTUMAYO - SAN MIGUEL","EMPRESA DE SERVICIOS PUBLICOS DOMICILIARIOS DEL MUNICIPIO DE SAN MIGUEL S.A.  E.S.P.",2016,"EL PORVENIR","BOTADERO A CIELO ABIERTO"]
[25312,"CUNDINAMARCA","GRANADA","CUNDINAMARCA - GRANADA","NUEVO MONDOÑEDO S.A. E.S.P.",2016,"RELLENO SANITARIO NUEVO MONDOÑEDO","RELLENO SANITARIO"]
[25317,"CUNDINAMARCA","GUACHETÁ","CUNDINAMARCA - GUACHETÁ","NUEVO MONDOÑEDO S.A. E.S.P.",2016,"RELLENO SANITARIO NUEVO MONDOÑEDO","RELLENO SANITARIO"]
[25320,"CUNDINAMARCA","GUADUAS","CUNDINAMARCA - GUADUAS","EMPRESA DE SERVICIOS PUBLICOS DE LA DORADA E.S.P.",2016,"RELLENO SANITARIO DORADITA","RELLENO SANITARIO"]
[25322,"CUNDINAMARCA","GUASCA","CUNDINAMARCA - GUASCA","NUEVO MONDOÑEDO S.A. E.S.P.",2016,"RELLENO SANITARIO NUEVO MONDOÑEDO","RELLENO SANITARIO"]
[25324,"CUNDINAMARCA","GUATAQUÍ","CUNDINAMARCA - GUATAQUÍ","SERVICIOS AMBIENTALES S.A.  E.S.P.",2016,"PARQUE ECOLOGICO PRADERAS DEL MAGDALENA","RELLENO SANITARIO"]
[25326,"CUNDINAMARCA","GUATAVITA","CUNDINAMARCA - GUATAVITA","NUEVO MONDOÑEDO S.A. E.S.P.",2016,"RELLENO SANITARIO NUEVO MONDOÑEDO","RELLENO SANITARIO"]
[25328,"CUNDINAMARCA","GUAYABAL DE SÍQUIMA","CUNDINAMARCA - GUAYABAL DE SÍQUIMA","NUEVO MONDOÑEDO S.A. E.S.P.",2016,"RELLENO SANITARIO NUEVO MONDOÑEDO","RELLENO SANITARIO"]
[25335,"CUNDINAMARCA","GUAYABETAL","CUNDINAMARCA - GUAYABETAL","BIOAGRICOLA DEL LLANO S.A  EMPRESA DE SERVICIOS PUBLICOS",2016,"PARQUE ECOLOGICO RECICLANTE","RELLENO SANITARIO"]
[25339,"CUNDINAMARCA","GUTIÉRREZ","CUNDINAMARCA - GUTIÉRREZ","CENTRO DE GERENCIAMIENTO DE RESIDUOS DOÑA JUANA S.A. E.S.P.",2016,"RELLENO SANITARIO DOÑA JUANA","RELLENO SANITARIO"]
[25368,"CUNDINAMARCA","JERUSALÉN","CUNDINAMARCA - JERUSALÉN","SERVICIOS AMBIENTALES S.A.  E.S.P.",2016,"PARQUE ECOLOGICO PRADERAS DEL MAGDALENA","RELLENO SANITARIO"]
[25372,"CUNDINAMARCA","JUNÍN","CUNDINAMARCA - JUNÍN","NUEVO MONDOÑEDO S.A. E.S.P.",2016,"RELLENO SANITARIO NUEVO MONDOÑEDO","RELLENO SANITARIO"]
[25377,"CUNDINAMARCA","LA CALERA","CUNDINAMARCA - LA CALERA","NUEVO MONDOÑEDO S.A. E.S.P.",2016,"RELLENO SANITARIO NUEVO MONDOÑEDO","RELLENO SANITARIO"]
[25386,"CUNDINAMARCA","LA MESA","CUNDINAMARCA - LA MESA","NUEVO MONDOÑEDO S.A. E.S.P.",2016,"RELLENO SANITARIO NUEVO MONDOÑEDO","RELLENO SANITARIO"]
[25224,"CUNDINAMARCA","CUCUNUBÁ","CUNDINAMARCA - CUCUNUBÁ","EMPRESA DE SERVICIOS PUBLICOS DE EL MUNICIPIO DE CUCUNUBA SAS ESP",2016,"RELLENO SANITARIO VDA APOSENTOS","RELLENO SANITARIO"]
[25245,"CUNDINAMARCA","EL COLEGIO","CUNDINAMARCA - EL COLEGIO","NUEVO MONDOÑEDO S.A. E.S.P.",2016,"RELLENO SANITARIO NUEVO MONDOÑEDO","RELLENO SANITARIO"]
[25258,"CUNDINAMARCA","EL PEÑÓN","CUNDINAMARCA - EL PEÑÓN","NUEVO MONDOÑEDO S.A. E.S.P.",2016,"RELLENO SANITARIO NUEVO MONDOÑEDO","RELLENO SANITARIO"]
[25260,"CUNDINAMARCA","EL ROSAL","CUNDINAMARCA - EL ROSAL","NUEVO MONDOÑEDO S.A. E.S.P.",2016,"RELLENO SANITARIO NUEVO MONDOÑEDO","RELLENO SANITARIO"]
[25269,"CUNDINAMARCA","FACATATIVÁ","CUNDINAMARCA - FACATATIVÁ","NUEVO MONDOÑEDO S.A. E.S.P.",2016,"RELLENO SANITARIO NUEVO MONDOÑEDO","RELLENO SANITARIO"]
[25279,"CUNDINAMARCA","FÓMEQUE","CUNDINAMARCA - FÓMEQUE","NUEVO MONDOÑEDO S.A. E.S.P.",2016,"RELLENO SANITARIO NUEVO MONDOÑEDO","RELLENO SANITARIO"]
[25281,"CUNDINAMARCA","FOSCA","CUNDINAMARCA - FOSCA","CENTRO DE GERENCIAMIENTO DE RESIDUOS DOÑA JUANA S.A. E.S.P.",2016,"RELLENO SANITARIO DOÑA JUANA","RELLENO SANITARIO"]
[25286,"CUNDINAMARCA","FUNZA","CUNDINAMARCA - FUNZA","NUEVO MONDOÑEDO S.A. E.S.P.",2016,"RELLENO SANITARIO NUEVO MONDOÑEDO","RELLENO SANITARIO"]
[25288,"CUNDINAMARCA","FÚQUENE","CUNDINAMARCA - FÚQUENE","NUEVO MONDOÑEDO S.A. E.S.P.",2016,"RELLENO SANITARIO NUEVO MONDOÑEDO","RELLENO SANITARIO"]
[25290,"CUNDINAMARCA","FUSAGASUGÁ","CUNDINAMARCA - FUSAGASUGÁ","NUEVO MONDOÑEDO S.A. E.S.P.",2016,"RELLENO SANITARIO NUEVO MONDOÑEDO","RELLENO SANITARIO"]
[25293,"CUNDINAMARCA","GACHALÁ","CUNDINAMARCA - GACHALÁ","NUEVO MONDOÑEDO S.A. E.S.P.",2016,"RELLENO SANITARIO NUEVO MONDOÑEDO","RELLENO SANITARIO"]
[25295,"CUNDINAMARCA","GACHANCIPÁ","CUNDINAMARCA - GACHANCIPÁ","NUEVO MONDOÑEDO S.A. E.S.P.",2016,"RELLENO SANITARIO NUEVO MONDOÑEDO","RELLENO SANITARIO"]
[25297,"CUNDINAMARCA","GACHETÁ","CUNDINAMARCA - GACHETÁ","NUEVO MONDOÑEDO S.A. E.S.P.",2016,"RELLENO SANITARIO NUEVO MONDOÑEDO","RELLENO SANITARIO"]
[25299,"CUNDINAMARCA","GAMA","CUNDINAMARCA - GAMA","NUEVO MONDOÑEDO S.A. E.S.P.",2016,"RELLENO SANITARIO NUEVO MONDOÑEDO","RELLENO SANITARIO"]
[25307,"CUNDINAMARCA","GIRARDOT","CUNDINAMARCA - GIRARDOT","CIUDAD LIMPIA NEIVA S.A E.S.P",2016,"RELLENO SANITARIO LOS ANGELES","RELLENO SANITARIO"]
[25491,"CUNDINAMARCA","NOCAIMA","CUNDINAMARCA - NOCAIMA","NUEVO MONDOÑEDO S.A. E.S.P.",2016,"RELLENO SANITARIO NUEVO MONDOÑEDO","RELLENO SANITARIO"]
[25506,"CUNDINAMARCA","VENECIA","CUNDINAMARCA - VENECIA","ND",2016,"ND","ND"]
[25513,"CUNDINAMARCA","PACHO","CUNDINAMARCA - PACHO","NUEVO MONDOÑEDO S.A. E.S.P.",2016,"RELLENO SANITARIO NUEVO MONDOÑEDO","RELLENO SANITARIO"]
[25518,"CUNDINAMARCA","PAIME","CUNDINAMARCA - PAIME","NUEVO MONDOÑEDO S.A. E.S.P.",2016,"RELLENO SANITARIO NUEVO MONDOÑEDO","RELLENO SANITARIO"]
[25524,"CUNDINAMARCA","PANDI","CUNDINAMARCA - PANDI","NUEVO MONDOÑEDO S.A. E.S.P.",2016,"RELLENO SANITARIO NUEVO MONDOÑEDO","RELLENO SANITARIO"]
[25530,"CUNDINAMARCA","PARATEBUENO","CUNDINAMARCA - PARATEBUENO","BIOAGRICOLA DEL LLANO S.A  EMPRESA DE SERVICIOS PUBLICOS",2016,"PARQUE ECOLOGICO RECICLANTE","RELLENO SANITARIO"]
[25535,"CUNDINAMARCA","PASCA","CUNDINAMARCA - PASCA","SERVICIOS AMBIENTALES S.A.  E.S.P.",2016,"PARQUE ECOLOGICO PRADERAS DEL MAGDALENA","RELLENO SANITARIO"]
[25572,"CUNDINAMARCA","PUERTO SALGAR","CUNDINAMARCA - PUERTO SALGAR","EMPRESA DE SERVICIOS PUBLICOS DE LA DORADA E.S.P.",2016,"RELLENO SANITARIO DORADITA","RELLENO SANITARIO"]
[25580,"CUNDINAMARCA","PULÍ","CUNDINAMARCA - PULÍ","SERVICIOS AMBIENTALES S.A.  E.S.P.",2016,"PARQUE ECOLOGICO PRADERAS DEL MAGDALENA","RELLENO SANITARIO"]
[25592,"CUNDINAMARCA","QUEBRADANEGRA","CUNDINAMARCA - QUEBRADANEGRA","NUEVO MONDOÑEDO S.A. E.S.P.",2016,"RELLENO SANITARIO NUEVO MONDOÑEDO","RELLENO SANITARIO"]
[25594,"CUNDINAMARCA","QUETAME","CUNDINAMARCA - QUETAME","BIOAGRICOLA DEL LLANO S.A  EMPRESA DE SERVICIOS PUBLICOS",2016,"PARQUE ECOLOGICO RECICLANTE","RELLENO SANITARIO"]
[25596,"CUNDINAMARCA","QUIPILE","CUNDINAMARCA - QUIPILE","NUEVO MONDOÑEDO S.A. E.S.P.",2016,"RELLENO SANITARIO NUEVO MONDOÑEDO","RELLENO SANITARIO"]
[25599,"CUNDINAMARCA","APULO","CUNDINAMARCA - APULO","SERVICIOS AMBIENTALES S.A.  E.S.P.",2016,"PARQUE ECOLOGICO PRADERAS DEL MAGDALENA","RELLENO SANITARIO"]
[25612,"CUNDINAMARCA","RICAURTE","CUNDINAMARCA - RICAURTE","SERVICIOS AMBIENTALES S.A.  E.S.P.",2016,"PARQUE ECOLOGICO PRADERAS DEL MAGDALENA","RELLENO SANITARIO"]
[25645,"CUNDINAMARCA","SAN ANTONIO DEL TEQUENDAMA","CUNDINAMARCA - SAN ANTONIO DEL TEQUENDAMA","NUEVO MONDOÑEDO S.A. E.S.P.",2016,"RELLENO SANITARIO NUEVO MONDOÑEDO","RELLENO SANITARIO"]
[25649,"CUNDINAMARCA","SAN BERNARDO","CUNDINAMARCA - SAN BERNARDO","SERVICIOS AMBIENTALES S.A.  E.S.P.",2016,"PARQUE ECOLOGICO PRADERAS DEL MAGDALENA","RELLENO SANITARIO"]
[25653,"CUNDINAMARCA","SAN CAYETANO","CUNDINAMARCA - SAN CAYETANO","NUEVO MONDOÑEDO S.A. E.S.P.",2016,"RELLENO SANITARIO NUEVO MONDOÑEDO","RELLENO SANITARIO"]
[25394,"CUNDINAMARCA","LA PALMA","CUNDINAMARCA - LA PALMA","EMPRESA DE SERVICIOS PUBLICOS DE LA DORADA E.S.P.",2016,"RELLENO SANITARIO DORADITA","RELLENO SANITARIO"]
[25398,"CUNDINAMARCA","LA PEÑA","CUNDINAMARCA - LA PEÑA","NUEVO MONDOÑEDO S.A. E.S.P.",2016,"RELLENO SANITARIO NUEVO MONDOÑEDO","RELLENO SANITARIO"]
[25402,"CUNDINAMARCA","LA VEGA","CUNDINAMARCA - LA VEGA","NUEVO MONDOÑEDO S.A. E.S.P.",2016,"RELLENO SANITARIO NUEVO MONDOÑEDO","RELLENO SANITARIO"]
[25407,"CUNDINAMARCA","LENGUAZAQUE","CUNDINAMARCA - LENGUAZAQUE","NUEVO MONDOÑEDO S.A. E.S.P.",2016,"RELLENO SANITARIO NUEVO MONDOÑEDO","RELLENO SANITARIO"]
[25426,"CUNDINAMARCA","MACHETÁ","CUNDINAMARCA - MACHETÁ","NUEVO MONDOÑEDO S.A. E.S.P.",2016,"RELLENO SANITARIO NUEVO MONDOÑEDO","RELLENO SANITARIO"]
[25430,"CUNDINAMARCA","MADRID","CUNDINAMARCA - MADRID","NUEVO MONDOÑEDO S.A. E.S.P.",2016,"RELLENO SANITARIO NUEVO MONDOÑEDO","RELLENO SANITARIO"]
[25436,"CUNDINAMARCA","MANTA","CUNDINAMARCA - MANTA","NUEVO MONDOÑEDO S.A. E.S.P.",2016,"RELLENO SANITARIO NUEVO MONDOÑEDO","RELLENO SANITARIO"]
[25438,"CUNDINAMARCA","MEDINA","CUNDINAMARCA - MEDINA","BIOAGRICOLA DEL LLANO S.A  EMPRESA DE SERVICIOS PUBLICOS",2016,"PARQUE ECOLOGICO RECICLANTE","RELLENO SANITARIO"]
[25473,"CUNDINAMARCA","MOSQUERA","CUNDINAMARCA - MOSQUERA","NUEVO MONDOÑEDO S.A. E.S.P.",2016,"RELLENO SANITARIO NUEVO MONDOÑEDO","RELLENO SANITARIO"]
[25483,"CUNDINAMARCA","NARIÑO","CUNDINAMARCA - NARIÑO","SERVICIOS AMBIENTALES S.A.  E.S.P.",2016,"PARQUE ECOLOGICO PRADERAS DEL MAGDALENA","RELLENO SANITARIO"]
[25486,"CUNDINAMARCA","NEMOCÓN","CUNDINAMARCA - NEMOCÓN","NUEVO MONDOÑEDO S.A. E.S.P.",2016,"RELLENO SANITARIO NUEVO MONDOÑEDO","RELLENO SANITARIO"]
[25488,"CUNDINAMARCA","NILO","CUNDINAMARCA - NILO","SERVICIOS AMBIENTALES S.A.  E.S.P.",2016,"PARQUE ECOLOGICO PRADERAS DEL MAGDALENA","RELLENO SANITARIO"]
[25489,"CUNDINAMARCA","NIMAIMA","CUNDINAMARCA - NIMAIMA","NUEVO MONDOÑEDO S.A. E.S.P.",2016,"RELLENO SANITARIO NUEVO MONDOÑEDO","RELLENO SANITARIO"]
[44855,"LA GUAJIRA","URUMITA","LA GUAJIRA - URUMITA","INTERASEO S.A  E.S.P",2016,"EL CLAVO","RELLENO SANITARIO"]
[44874,"LA GUAJIRA","VILLANUEVA","LA GUAJIRA - VILLANUEVA","EMPRESA DE SERVICIOS  DE ASEO DE VALLEDUPAR S.A  E.S.P - \"ASEOUPAR S.A. E.S.P.\"",2016,"LOS CORAZONES","RELLENO SANITARIO"]
[47001,"MAGDALENA","SANTA MARTA","MAGDALENA - SANTA MARTA","INTERASEO S.A  E.S.P",2016,"PARQUE AMBIENTAL PALANGANA","RELLENO SANITARIO"]
[47030,"MAGDALENA","ALGARROBO","MAGDALENA - ALGARROBO","INTERASEO S.A  E.S.P",2016,"R.S.  REGIONAL ECOSISTEMA SIERRA NEVADA DE SANTA MARTA","RELLENO SANITARIO"]
[47053,"MAGDALENA","ARACATACA","MAGDALENA - ARACATACA","INTERASEO S.A  E.S.P",2016,"R.S.  REGIONAL ECOSISTEMA SIERRA NEVADA DE SANTA MARTA","RELLENO SANITARIO"]
[47058,"MAGDALENA","ARIGUANÍ","MAGDALENA - ARIGUANÍ","SECRETARIA DE SERVICIOS PUBLICOS DOMICILIARIOS Y MEDIO AMBIENTE DEL MUNICIPIO DE ARIGUANI",2016,"RELLENO SANITARIO REGIONAL VALLES  Y COLIN A DE ARIGUANI","RELLENO SANITARIO"]
[47161,"MAGDALENA","CERRO DE SAN ANTONIO","MAGDALENA - CERRO DE SAN ANTONIO","ADMINISTRACION PUBLICA COOPERATIVA EMPRESA DE SERVICIOS PUBLICOS DEL RIO E.S.P.",2016,"CIENAGA","RELLENO SANITARIO"]
[47170,"MAGDALENA","CHIVOLO","MAGDALENA - CHIVOLO","ND",2016,"ND","ND"]
[47189,"MAGDALENA","CIÉNAGA","MAGDALENA - CIÉNAGA","OPERADORES DE SERVICIOS DE LA SIERRA S.A.  E.S.P",2016,"LA MARIA","RELLENO SANITARIO"]
[47205,"MAGDALENA","CONCORDIA","MAGDALENA - CONCORDIA","UNIDAD MUNICIPAL DE CONCORDIA",2016,"LA PIGUA","BOTADERO A CIELO ABIERTO"]
[63272,"QUINDIO","FILANDIA","QUINDIO - FILANDIA","SERVICIOS GENERALES EMPRESA DE SERVICIOS PUBLICOS DE CARACTER PRIVADO S.A. E.S.P.",2016,"PARQUE AMBIENTAL ANDALUCIA","RELLENO SANITARIO"]
[63302,"QUINDIO","GÉNOVA","QUINDIO - GÉNOVA","SERVICIOS GENERALES EMPRESA DE SERVICIOS PUBLICOS DE CARACTER PRIVADO S.A. E.S.P.",2016,"PARQUE AMBIENTAL ANDALUCIA","RELLENO SANITARIO"]
[63401,"QUINDIO","LA TEBAIDA","QUINDIO - LA TEBAIDA","SERVICIOS GENERALES EMPRESA DE SERVICIOS PUBLICOS DE CARACTER PRIVADO S.A. E.S.P.",2016,"PARQUE AMBIENTAL ANDALUCIA","RELLENO SANITARIO"]
[63470,"QUINDIO","MONTENEGRO","QUINDIO - MONTENEGRO","SERVICIOS GENERALES EMPRESA DE SERVICIOS PUBLICOS DE CARACTER PRIVADO S.A. E.S.P.",2016,"PARQUE AMBIENTAL ANDALUCIA","RELLENO SANITARIO"]
[63548,"QUINDIO","PIJAO","QUINDIO - PIJAO","SERVICIOS GENERALES EMPRESA DE SERVICIOS PUBLICOS DE CARACTER PRIVADO S.A. E.S.P.",2016,"PARQUE AMBIENTAL ANDALUCIA","RELLENO SANITARIO"]
[63594,"QUINDIO","QUIMBAYA","QUINDIO - QUIMBAYA","SERVICIOS GENERALES EMPRESA DE SERVICIOS PUBLICOS DE CARACTER PRIVADO S.A. E.S.P.",2016,"PARQUE AMBIENTAL ANDALUCIA","RELLENO SANITARIO"]
[25658,"CUNDINAMARCA","SAN FRANCISCO","CUNDINAMARCA - SAN FRANCISCO","NUEVO MONDOÑEDO S.A. E.S.P.",2016,"RELLENO SANITARIO NUEVO MONDOÑEDO","RELLENO SANITARIO"]
[25662,"CUNDINAMARCA","SAN JUAN DE RIOSECO","CUNDINAMARCA - SAN JUAN DE RIOSECO","SERVICIOS AMBIENTALES S.A.  E.S.P.",2016,"PARQUE ECOLOGICO PRADERAS DEL MAGDALENA","RELLENO SANITARIO"]
[25718,"CUNDINAMARCA","SASAIMA","CUNDINAMARCA - SASAIMA","NUEVO MONDOÑEDO S.A. E.S.P.",2016,"RELLENO SANITARIO NUEVO MONDOÑEDO","RELLENO SANITARIO"]
[25736,"CUNDINAMARCA","SESQUILÉ","CUNDINAMARCA - SESQUILÉ","NUEVO MONDOÑEDO S.A. E.S.P.",2016,"RELLENO SANITARIO NUEVO MONDOÑEDO","RELLENO SANITARIO"]
[25740,"CUNDINAMARCA","SIBATÉ","CUNDINAMARCA - SIBATÉ","NUEVO MONDOÑEDO S.A. E.S.P.",2016,"RELLENO SANITARIO NUEVO MONDOÑEDO","RELLENO SANITARIO"]
[25743,"CUNDINAMARCA","SILVANIA","CUNDINAMARCA - SILVANIA","NUEVO MONDOÑEDO S.A. E.S.P.",2016,"RELLENO SANITARIO NUEVO MONDOÑEDO","RELLENO SANITARIO"]
[25745,"CUNDINAMARCA","SIMIJACA","CUNDINAMARCA - SIMIJACA","NUEVO MONDOÑEDO S.A. E.S.P.",2016,"RELLENO SANITARIO NUEVO MONDOÑEDO","RELLENO SANITARIO"]
[73055,"TOLIMA","ARMERO GUAYABAL","TOLIMA - ARMERO GUAYABAL","SERVICIOS AMBIENTALES S.A.  E.S.P.",2016,"PARQUE ECOLOGICO PRADERAS DEL MAGDALENA","RELLENO SANITARIO"]
[73067,"TOLIMA","ATACO","TOLIMA - ATACO","OFICINA DE SERVICIOS PUBLICOS DEL MUNICIPIO DE ATACO ",2016,"SAN RAFAEL","BOTADERO A CIELO ABIERTO"]
[73124,"TOLIMA","CAJAMARCA","TOLIMA - CAJAMARCA","INTERASEO S.A  E.S.P",2016,"PARQUE INDUSTRIAL LA MIEL","RELLENO SANITARIO"]
[73148,"TOLIMA","CARMEN DE APICALÁ","TOLIMA - CARMEN DE APICALÁ","SERVICIOS AMBIENTALES S.A.  E.S.P.",2016,"PARQUE ECOLOGICO PRADERAS DEL MAGDALENA","RELLENO SANITARIO"]
[73152,"TOLIMA","CASABIANCA","TOLIMA - CASABIANCA","EMPRESA DE SERVICIOS PUBLICOS DE LA DORADA E.S.P.",2016,"RELLENO SANITARIO DORADITA","RELLENO SANITARIO"]
[73168,"TOLIMA","CHAPARRAL","TOLIMA - CHAPARRAL","EMPRESA DE SERVICIOS PUBLICOS DE CHAPARRAL E.S.P.",2016,"LA SOMBRERERA","CELDA TRANSITORIA"]
[47245,"MAGDALENA","EL BANCO","MAGDALENA - EL BANCO","EMPRESA DE SERVICIOS PUBLICOS DE EL BANCO MAGDALENA E.S.P.",2016,"BARURERO MUNICIPAL","BOTADERO A CIELO ABIERTO"]
[47258,"MAGDALENA","EL PIÑÓN","MAGDALENA - EL PIÑÓN","ADMINISTRACION PUBLICA COOPERATIVA EMPRESA DE SERVICIOS PUBLICOS DEL RIO E.S.P.",2016,"SALAMINA","RELLENO SANITARIO"]
[47268,"MAGDALENA","EL RETÉN","MAGDALENA - EL RETÉN","INTERASEO S.A  E.S.P",2016,"R.S.  REGIONAL ECOSISTEMA SIERRA NEVADA DE SANTA MARTA","RELLENO SANITARIO"]
[47288,"MAGDALENA","FUNDACIÓN","MAGDALENA - FUNDACIÓN","INTERASEO S.A  E.S.P",2016,"R.S.  REGIONAL ECOSISTEMA SIERRA NEVADA DE SANTA MARTA","RELLENO SANITARIO"]
[47318,"MAGDALENA","GUAMAL","MAGDALENA - GUAMAL","ND",2016,"ND","ND"]
[47460,"MAGDALENA","NUEVA GRANADA","MAGDALENA - NUEVA GRANADA","ND",2016,"ND","ND"]
[47541,"MAGDALENA","PEDRAZA","MAGDALENA - PEDRAZA","NA",2016,"VARIOS","BOTADERO A CIELO ABIERTO"]
[47545,"MAGDALENA","PIJIÑO DEL CARMEN","MAGDALENA - PIJIÑO DEL CARMEN","ND",2016,"ND","ND"]
[47551,"MAGDALENA","PIVIJAY","MAGDALENA - PIVIJAY","ND",2016,"ND","ND"]
[47555,"MAGDALENA","PLATO","MAGDALENA - PLATO","UNIDAD DE SERVICIOS PUBLICOS DEL MUNICIPIO DE PLATO",2016,"RELLENO SANITARIO DEL MUNICIPIO DE PLATO","BOTADERO A CIELO ABIERTO"]
[47570,"MAGDALENA","PUEBLOVIEJO","MAGDALENA - PUEBLOVIEJO","OPERADORES DE SERVICIOS DE LA SIERRA S.A.  E.S.P",2016,"LA MARIA","RELLENO SANITARIO"]
[63690,"QUINDIO","SALENTO","QUINDIO - SALENTO","SERVICIOS GENERALES EMPRESA DE SERVICIOS PUBLICOS DE CARACTER PRIVADO S.A. E.S.P.",2016,"PARQUE AMBIENTAL ANDALUCIA","RELLENO SANITARIO"]
[66001,"RISARALDA","PEREIRA","RISARALDA - PEREIRA","ATESA DE OCCIDENTE S.A  E.S.P.",2016,"LA GLORITA","RELLENO SANITARIO"]
[66045,"RISARALDA","APÍA","RISARALDA - APÍA","ATESA DE OCCIDENTE S.A  E.S.P.",2016,"LA GLORITA","RELLENO SANITARIO"]
[66075,"RISARALDA","BALBOA","RISARALDA - BALBOA","ATESA DE OCCIDENTE S.A  E.S.P.",2016,"LA GLORITA","RELLENO SANITARIO"]
[66088,"RISARALDA","BELÉN DE UMBRÍA","RISARALDA - BELÉN DE UMBRÍA","ATESA DE OCCIDENTE S.A  E.S.P.",2016,"LA GLORITA","RELLENO SANITARIO"]
[66170,"RISARALDA","DOSQUEBRADAS","RISARALDA - DOSQUEBRADAS","ATESA DE OCCIDENTE S.A  E.S.P.",2016,"LA GLORITA","RELLENO SANITARIO"]
[66318,"RISARALDA","GUÁTICA","RISARALDA - GUÁTICA","EMPRESA METROPOLITANA DE ASEO S.A.  E.S.P.",2016,"RELLENO SANITARIO LA ESMERALDA","RELLENO SANITARIO"]
[66383,"RISARALDA","LA CELIA","RISARALDA - LA CELIA","ATESA DE OCCIDENTE S.A  E.S.P.",2016,"LA GLORITA","RELLENO SANITARIO"]
[66400,"RISARALDA","LA VIRGINIA","RISARALDA - LA VIRGINIA","ATESA DE OCCIDENTE S.A  E.S.P.",2016,"LA GLORITA","RELLENO SANITARIO"]
[25754,"CUNDINAMARCA","SOACHA","CUNDINAMARCA - SOACHA","NUEVO MONDOÑEDO S.A. E.S.P.",2016,"RELLENO SANITARIO NUEVO MONDOÑEDO","RELLENO SANITARIO"]
[25758,"CUNDINAMARCA","SOPÓ","CUNDINAMARCA - SOPÓ","NUEVO MONDOÑEDO S.A. E.S.P.",2016,"RELLENO SANITARIO NUEVO MONDOÑEDO","RELLENO SANITARIO"]
[25769,"CUNDINAMARCA","SUBACHOQUE","CUNDINAMARCA - SUBACHOQUE","NUEVO MONDOÑEDO S.A. E.S.P.",2016,"RELLENO SANITARIO NUEVO MONDOÑEDO","RELLENO SANITARIO"]
[25772,"CUNDINAMARCA","SUESCA","CUNDINAMARCA - SUESCA","NUEVO MONDOÑEDO S.A. E.S.P.",2016,"RELLENO SANITARIO NUEVO MONDOÑEDO","RELLENO SANITARIO"]
[25777,"CUNDINAMARCA","SUPATÁ","CUNDINAMARCA - SUPATÁ","NUEVO MONDOÑEDO S.A. E.S.P.",2016,"RELLENO SANITARIO NUEVO MONDOÑEDO","RELLENO SANITARIO"]
[25779,"CUNDINAMARCA","SUSA","CUNDINAMARCA - SUSA","NUEVO MONDOÑEDO S.A. E.S.P.",2016,"RELLENO SANITARIO NUEVO MONDOÑEDO","RELLENO SANITARIO"]
[25781,"CUNDINAMARCA","SUTATAUSA","CUNDINAMARCA - SUTATAUSA","NUEVO MONDOÑEDO S.A. E.S.P.",2016,"RELLENO SANITARIO NUEVO MONDOÑEDO","RELLENO SANITARIO"]
[25785,"CUNDINAMARCA","TABIO","CUNDINAMARCA - TABIO","NUEVO MONDOÑEDO S.A. E.S.P.",2016,"RELLENO SANITARIO NUEVO MONDOÑEDO","RELLENO SANITARIO"]
[73200,"TOLIMA","COELLO","TOLIMA - COELLO","SERVICIOS AMBIENTALES S.A.  E.S.P.",2016,"PARQUE ECOLOGICO PRADERAS DEL MAGDALENA","RELLENO SANITARIO"]
[73217,"TOLIMA","COYAIMA","TOLIMA - COYAIMA","EMPRESA DE SERVICIOS PUBLICOS DOMICILIARIOS DE COYAIMA TOLIMA EMPUCOY ESP",2016,"MI LLANURA","BOTADERO A CIELO ABIERTO"]
[73226,"TOLIMA","CUNDAY","TOLIMA - CUNDAY","SERVICIOS AMBIENTALES S.A.  E.S.P.",2016,"PARQUE ECOLOGICO PRADERAS DEL MAGDALENA","RELLENO SANITARIO"]
[73236,"TOLIMA","DOLORES","TOLIMA - DOLORES","EMPRESA DE SERVICIOS PUBLICOS DE ACUEDUCTO, ALCANTARILLADO Y ASEO DE PURIFICACIÓN TOLIMA E.S.P.",2016,"FINCA ARIZONA","CELDA TRANSITORIA"]
[73268,"TOLIMA","ESPINAL","TOLIMA - ESPINAL","SERVICIOS AMBIENTALES S.A.  E.S.P.",2016,"PARQUE ECOLOGICO PRADERAS DEL MAGDALENA","RELLENO SANITARIO"]
[73270,"TOLIMA","FALAN","TOLIMA - FALAN","EMPRESA DE SERVICIOS PUBLICOS DE LA DORADA E.S.P.",2016,"RELLENO SANITARIO DORADITA","RELLENO SANITARIO"]
[73275,"TOLIMA","FLANDES","TOLIMA - FLANDES","SERVICIOS AMBIENTALES S.A.  E.S.P.",2016,"PARQUE ECOLOGICO PRADERAS DEL MAGDALENA","RELLENO SANITARIO"]
[47605,"MAGDALENA","REMOLINO","MAGDALENA - REMOLINO","ND",2016,"ND","ND"]
[47660,"MAGDALENA","SABANAS DE SAN ÁNGEL","MAGDALENA - SABANAS DE SAN ÁNGEL","UNIDAD DE SERVICIOS PUBLICOS DE ACUEDUCTO Y ASEO DE ARENAL",2016,"BASURAL","BOTADERO A CIELO ABIERTO"]
[47675,"MAGDALENA","SALAMINA","MAGDALENA - SALAMINA","ADMINISTRACION PUBLICA COOPERATIVA EMPRESA DE SERVICIOS PUBLICOS DEL RIO E.S.P.",2016,"SALAMINA","RELLENO SANITARIO"]
[47692,"MAGDALENA","SAN SEBASTIÁN DE BUENAVISTA","MAGDALENA - SAN SEBASTIÁN DE BUENAVISTA","COOPERATIVA DE SERVICIOS PÚBLICOS DE SAN SEBASTIAN LIMITADA.",2016,"RELLENO SANITARIO SAN SEBASTIAN","QUEMA"]
[47703,"MAGDALENA","SAN ZENÓN","MAGDALENA - SAN ZENÓN","ND",2016,"ND","ND"]
[47707,"MAGDALENA","SANTA ANA","MAGDALENA - SANTA ANA","ND",2016,"ND","ND"]
[47720,"MAGDALENA","SANTA BÁRBARA DE PINTO","MAGDALENA - SANTA BÁRBARA DE PINTO","ND",2016,"ND","ND"]
[47745,"MAGDALENA","SITIONUEVO","MAGDALENA - SITIONUEVO","ND",2016,"ND","ND"]
[47798,"MAGDALENA","TENERIFE","MAGDALENA - TENERIFE","UNIDAD MUNICIPAL DE SERVICIOS PUBLICOS DE TENERIFE",2016,"ZARCITA VIA AL BRUJO","BOTADERO A CIELO ABIERTO"]
[66440,"RISARALDA","MARSELLA","RISARALDA - MARSELLA","ATESA DE OCCIDENTE S.A  E.S.P.",2016,"LA GLORITA","RELLENO SANITARIO"]
[66456,"RISARALDA","MISTRATÓ","RISARALDA - MISTRATÓ","ATESA DE OCCIDENTE S.A  E.S.P.",2016,"LA GLORITA","RELLENO SANITARIO"]
[66572,"RISARALDA","PUEBLO RICO","RISARALDA - PUEBLO RICO","ATESA DE OCCIDENTE S.A  E.S.P.",2016,"LA GLORITA","RELLENO SANITARIO"]
[66594,"RISARALDA","QUINCHÍA","RISARALDA - QUINCHÍA","EMPRESAS PUBLICAS MUNICIPALES DE QUINCHIA E.S.P",2016,"RIOGRANDE","RELLENO SANITARIO"]
[66682,"RISARALDA","SANTA ROSA DE CABAL","RISARALDA - SANTA ROSA DE CABAL","ATESA DE OCCIDENTE S.A  E.S.P.",2016,"LA GLORITA","RELLENO SANITARIO"]
[66687,"RISARALDA","SANTUARIO","RISARALDA - SANTUARIO","ATESA DE OCCIDENTE S.A  E.S.P.",2016,"LA GLORITA","RELLENO SANITARIO"]
[25793,"CUNDINAMARCA","TAUSA","CUNDINAMARCA - TAUSA","NUEVO MONDOÑEDO S.A. E.S.P.",2016,"RELLENO SANITARIO NUEVO MONDOÑEDO","RELLENO SANITARIO"]
[25797,"CUNDINAMARCA","TENA","CUNDINAMARCA - TENA","NUEVO MONDOÑEDO S.A. E.S.P.",2016,"RELLENO SANITARIO NUEVO MONDOÑEDO","RELLENO SANITARIO"]
[25799,"CUNDINAMARCA","TENJO","CUNDINAMARCA - TENJO","NUEVO MONDOÑEDO S.A. E.S.P.",2016,"RELLENO SANITARIO NUEVO MONDOÑEDO","RELLENO SANITARIO"]
[25805,"CUNDINAMARCA","TIBACUY","CUNDINAMARCA - TIBACUY","SERVICIOS AMBIENTALES S.A.  E.S.P.",2016,"PARQUE ECOLOGICO PRADERAS DEL MAGDALENA","RELLENO SANITARIO"]
[25807,"CUNDINAMARCA","TIBIRITA","CUNDINAMARCA - TIBIRITA","NUEVO MONDOÑEDO S.A. E.S.P.",2016,"RELLENO SANITARIO NUEVO MONDOÑEDO","RELLENO SANITARIO"]
[25815,"CUNDINAMARCA","TOCAIMA","CUNDINAMARCA - TOCAIMA","SERVICIOS AMBIENTALES S.A.  E.S.P.",2016,"PARQUE ECOLOGICO PRADERAS DEL MAGDALENA","RELLENO SANITARIO"]
[25817,"CUNDINAMARCA","TOCANCIPÁ","CUNDINAMARCA - TOCANCIPÁ","NUEVO MONDOÑEDO S.A. E.S.P.",2016,"RELLENO SANITARIO NUEVO MONDOÑEDO","RELLENO SANITARIO"]
[25823,"CUNDINAMARCA","TOPAIPÍ","CUNDINAMARCA - TOPAIPÍ","NUEVO MONDOÑEDO S.A. E.S.P.",2016,"RELLENO SANITARIO NUEVO MONDOÑEDO","RELLENO SANITARIO"]
[25839,"CUNDINAMARCA","UBALÁ","CUNDINAMARCA - UBALÁ","BIOAGRICOLA DEL LLANO S.A  EMPRESA DE SERVICIOS PUBLICOS",2016,"PARQUE ECOLOGICO RECICLANTE","RELLENO SANITARIO"]
[73283,"TOLIMA","FRESNO","TOLIMA - FRESNO","EMPRESA METROPOLITANA DE ASEO S.A.  E.S.P.",2016,"RELLENO SANITARIO LA ESMERALDA","RELLENO SANITARIO"]
[73319,"TOLIMA","GUAMO","TOLIMA - GUAMO","SERVICIOS AMBIENTALES S.A.  E.S.P.",2016,"PARQUE ECOLOGICO PRADERAS DEL MAGDALENA","RELLENO SANITARIO"]
[73347,"TOLIMA","HERVEO","TOLIMA - HERVEO","EMPRESA METROPOLITANA DE ASEO S.A.  E.S.P.",2016,"RELLENO SANITARIO LA ESMERALDA","RELLENO SANITARIO"]
[73349,"TOLIMA","HONDA","TOLIMA - HONDA","EMPRESA DE SERVICIOS PUBLICOS DE LA DORADA E.S.P.",2016,"RELLENO SANITARIO DORADITA","RELLENO SANITARIO"]
[73352,"TOLIMA","ICONONZO","TOLIMA - ICONONZO","SERVICIOS AMBIENTALES S.A.  E.S.P.",2016,"PARQUE ECOLOGICO PRADERAS DEL MAGDALENA","RELLENO SANITARIO"]
[47960,"MAGDALENA","ZAPAYÁN","MAGDALENA - ZAPAYÁN","UNIDAD DE SERVICIOS PUBLICOS DE ACUEDUCTO Y ASEO DE ZAPAYAN UDEZA",2016,"EL PALMARITO","BOTADERO A CIELO ABIERTO"]
[47980,"MAGDALENA","ZONA BANANERA","MAGDALENA - ZONA BANANERA","INTERASEO S.A  E.S.P",2016,"R.S.  REGIONAL ECOSISTEMA SIERRA NEVADA DE SANTA MARTA","RELLENO SANITARIO"]
[50001,"META","VILLAVICENCIO","META - VILLAVICENCIO","BIOAGRICOLA DEL LLANO S.A  EMPRESA DE SERVICIOS PUBLICOS",2016,"PARQUE ECOLOGICO RECICLANTE","RELLENO SANITARIO"]
[50006,"META","ACACÍAS","META - ACACÍAS","BIOAGRICOLA DEL LLANO S.A  EMPRESA DE SERVICIOS PUBLICOS",2016,"PARQUE ECOLOGICO RECICLANTE","RELLENO SANITARIO"]
[50110,"META","BARRANCA DE UPÍA","META - BARRANCA DE UPÍA","BIOAGRICOLA DEL LLANO S.A  EMPRESA DE SERVICIOS PUBLICOS",2016,"PARQUE ECOLOGICO RECICLANTE","RELLENO SANITARIO"]
[50124,"META","CABUYARO","META - CABUYARO","BIOAGRICOLA DEL LLANO S.A  EMPRESA DE SERVICIOS PUBLICOS",2016,"PARQUE ECOLOGICO RECICLANTE","RELLENO SANITARIO"]
[50150,"META","CASTILLA LA NUEVA","META - CASTILLA LA NUEVA","BIOAGRICOLA DEL LLANO S.A  EMPRESA DE SERVICIOS PUBLICOS",2016,"PARQUE ECOLOGICO RECICLANTE","RELLENO SANITARIO"]
[50223,"META","CUBARRAL","META - CUBARRAL","BIOAGRICOLA DEL LLANO S.A  EMPRESA DE SERVICIOS PUBLICOS",2016,"PARQUE ECOLOGICO RECICLANTE","RELLENO SANITARIO"]
[50226,"META","CUMARAL","META - CUMARAL","BIOAGRICOLA DEL LLANO S.A  EMPRESA DE SERVICIOS PUBLICOS",2016,"PARQUE ECOLOGICO RECICLANTE","RELLENO SANITARIO"]
[50245,"META","EL CALVARIO","META - EL CALVARIO","JUNTA DE SERVICIOS PUBLICOS DEL MUNICIPIO DEL CALVARIO",2016,"DON JUANCHITO","CELDA TRANSITORIA"]
[50251,"META","EL CASTILLO","META - EL CASTILLO","EMPRESA MUNICIPAL DE SERVICIOS PUBLICOS DE AGUA POTABLE, ASEO Y ALCANTARILLADO DEL  MUNICIPIO DE EL CASTILLO",2016,"PLANTA DE DISPOSICION FINAL EL CASTILLO","CELDA DE CONTINGENCIA"]
[50270,"META","EL DORADO","META - EL DORADO","BIOAGRICOLA DEL LLANO S.A  EMPRESA DE SERVICIOS PUBLICOS",2016,"PARQUE ECOLOGICO RECICLANTE","RELLENO SANITARIO"]
[68001,"SANTANDER","BUCARAMANGA","SANTANDER - BUCARAMANGA","EMPRESA DE ASEO DE BUCARAMANGA S.A. E.S.P.",2016,"EL CARRASCO","RELLENO SANITARIO"]
[68013,"SANTANDER","AGUADA","SANTANDER - AGUADA","ND",2016,"ND","ND"]
[68020,"SANTANDER","ALBANIA","SANTANDER - ALBANIA","SERVIGENERALES CIUDAD DE TUNJA S.A.  E.S.P.",2016,"RELLENO SANITARIO PIRGUA","RELLENO SANITARIO"]
[68051,"SANTANDER","ARATOCA","SANTANDER - ARATOCA","EMPRESA DE SOLUCIONES AMBIENTALES PARA COLOMBIA S.A E.S.P.",2016,"EL CUCHARO","RELLENO SANITARIO"]
[68077,"SANTANDER","BARBOSA","SANTANDER - BARBOSA","SERVIGENERALES CIUDAD DE TUNJA S.A.  E.S.P.",2016,"RELLENO SANITARIO PIRGUA","RELLENO SANITARIO"]
[68079,"SANTANDER","BARICHARA","SANTANDER - BARICHARA","ACUASAN E.I.C.E  E.S.P",2016,"RELLENO SANITARIO EL CUCHARO","RELLENO SANITARIO"]
[68081,"SANTANDER","BARRANCABERMEJA","SANTANDER - BARRANCABERMEJA","REDIBA S.A ES.P",2016,"RELLENO SANITARIO PARQUE AMBIENTAL REDIBA","RELLENO SANITARIO"]
[68092,"SANTANDER","BETULIA","SANTANDER - BETULIA","EMPRESA DE ASEO DE BUCARAMANGA S.A. E.S.P.",2016,"EL CARRASCO","RELLENO SANITARIO"]
[68101,"SANTANDER","BOLÍVAR","SANTANDER - BOLÍVAR","ECOSANGIL SAS ESP",2016,"ECOSANGIL SAS ESP","RELLENO SANITARIO"]
[68121,"SANTANDER","CABRERA","SANTANDER - CABRERA","ACUASAN E.I.C.E  E.S.P",2016,"RELLENO SANITARIO EL CUCHARO","RELLENO SANITARIO"]
[68132,"SANTANDER","CALIFORNIA","SANTANDER - CALIFORNIA","EMPRESA DE ASEO DE BUCARAMANGA S.A. E.S.P.",2016,"EL CARRASCO","RELLENO SANITARIO"]
[68147,"SANTANDER","CAPITANEJO","SANTANDER - CAPITANEJO","EMPRESAS PUBLICAS MUNICIPALES DE MALAGA  E.S.P.",2016,"PTRSMALAGA","RELLENO SANITARIO"]
[25841,"CUNDINAMARCA","UBAQUE","CUNDINAMARCA - UBAQUE","CENTRO DE GERENCIAMIENTO DE RESIDUOS DOÑA JUANA S.A. E.S.P.",2016,"RELLENO SANITARIO DOÑA JUANA","RELLENO SANITARIO"]
[25843,"CUNDINAMARCA","VILLA DE SAN DIEGO DE UBATÉ","CUNDINAMARCA - VILLA DE SAN DIEGO DE UBATÉ","NUEVO MONDOÑEDO S.A. E.S.P.",2016,"RELLENO SANITARIO NUEVO MONDOÑEDO","RELLENO SANITARIO"]
[25845,"CUNDINAMARCA","UNE","CUNDINAMARCA - UNE","CENTRO DE GERENCIAMIENTO DE RESIDUOS DOÑA JUANA S.A. E.S.P.",2016,"RELLENO SANITARIO DOÑA JUANA","RELLENO SANITARIO"]
[25851,"CUNDINAMARCA","ÚTICA","CUNDINAMARCA - ÚTICA","NUEVO MONDOÑEDO S.A. E.S.P.",2016,"RELLENO SANITARIO NUEVO MONDOÑEDO","RELLENO SANITARIO"]
[25862,"CUNDINAMARCA","VERGARA","CUNDINAMARCA - VERGARA","NUEVO MONDOÑEDO S.A. E.S.P.",2016,"RELLENO SANITARIO NUEVO MONDOÑEDO","RELLENO SANITARIO"]
[25867,"CUNDINAMARCA","VIANÍ","CUNDINAMARCA - VIANÍ","NUEVO MONDOÑEDO S.A. E.S.P.",2016,"RELLENO SANITARIO NUEVO MONDOÑEDO","RELLENO SANITARIO"]
[25871,"CUNDINAMARCA","VILLAGÓMEZ","CUNDINAMARCA - VILLAGÓMEZ","NUEVO MONDOÑEDO S.A. E.S.P.",2016,"RELLENO SANITARIO NUEVO MONDOÑEDO","RELLENO SANITARIO"]
[25873,"CUNDINAMARCA","VILLAPINZÓN","CUNDINAMARCA - VILLAPINZÓN","NUEVO MONDOÑEDO S.A. E.S.P.",2016,"RELLENO SANITARIO NUEVO MONDOÑEDO","RELLENO SANITARIO"]
[73408,"TOLIMA","LÉRIDA","TOLIMA - LÉRIDA","INTERASEO S.A  E.S.P",2016,"PARQUE INDUSTRIAL LA MIEL","RELLENO SANITARIO"]
[73411,"TOLIMA","LÍBANO","TOLIMA - LÍBANO","SERVICIOS AMBIENTALES S.A.  E.S.P.",2016,"PARQUE ECOLOGICO PRADERAS DEL MAGDALENA","RELLENO SANITARIO"]
[73443,"TOLIMA","SAN SEBASTIÁN DE MARIQUITA","TOLIMA - SAN SEBASTIÁN DE MARIQUITA","EMPRESA DE SERVICIOS PUBLICOS DE LA DORADA E.S.P.",2016,"RELLENO SANITARIO DORADITA","RELLENO SANITARIO"]
[73449,"TOLIMA","MELGAR","TOLIMA - MELGAR","SERVICIOS AMBIENTALES S.A.  E.S.P.",2016,"PARQUE ECOLOGICO PRADERAS DEL MAGDALENA","RELLENO SANITARIO"]
[73461,"TOLIMA","MURILLO","TOLIMA - MURILLO","EMPRESA METROPOLITANA DE ASEO S.A.  E.S.P.",2016,"RELLENO SANITARIO LA ESMERALDA","RELLENO SANITARIO"]
[73483,"TOLIMA","NATAGAIMA","TOLIMA - NATAGAIMA","EMPRESA DE SERVICIOS PUBLICOS DE NATAGAIMA SA ESP",2016,"PACANDE","BOTADERO A CIELO ABIERTO"]
[73504,"TOLIMA","ORTEGA","TOLIMA - ORTEGA","EMPRESA DE SERVICIOS PUBLICOS DOMICILIARIOS DE ORTEGA E.S.P. ",2016,"CELDA TRANSITORIA LOS COLORADOS","CELDA TRANSITORIA"]
[73520,"TOLIMA","PALOCABILDO","TOLIMA - PALOCABILDO","EMPRESA DE SERVICIOS PUBLICOS DE LA DORADA E.S.P.",2016,"RELLENO SANITARIO DORADITA","RELLENO SANITARIO"]
[50287,"META","FUENTE DE ORO","META - FUENTE DE ORO","EMPRESA DE SERVICIOS PÚBLICOS DE GRANADA",2016,"LA GUARATARA","RELLENO SANITARIO"]
[50313,"META","GRANADA","META - GRANADA","EMPRESA DE SERVICIOS PÚBLICOS DE GRANADA",2016,"LA GUARATARA","RELLENO SANITARIO"]
[50318,"META","GUAMAL","META - GUAMAL","BIOAGRICOLA DEL LLANO S.A  EMPRESA DE SERVICIOS PUBLICOS",2016,"PARQUE ECOLOGICO RECICLANTE","RELLENO SANITARIO"]
[50325,"META","MAPIRIPÁN","META - MAPIRIPÁN","EMPRESA DE SERVICIOS PUBLICOS DEL META S.A. E.S.P.",2016,"LA MARIPIPANA","CELDA TRANSITORIA"]
[50330,"META","MESETAS","META - MESETAS","ND",2016,"ND","ND"]
[50350,"META","LA MACARENA","META - LA MACARENA","EMPRESA DE SERVICIOS PUBLICOS DEL META S.A. E.S.P.",2016,"LA MACARENA","CELDA TRANSITORIA"]
[50370,"META","URIBE","META - URIBE","EMPRESA DE SERVICIOS PUBLICOS DEL META S.A. E.S.P.",2016,"EL BRASIL","CELDA TRANSITORIA"]
[50400,"META","LEJANÍAS","META - LEJANÍAS","EMPRESA DE SERVICIOS PÚBLICOS DE GRANADA",2016,"LA GUARATARA","RELLENO SANITARIO"]
[50450,"META","PUERTO CONCORDIA","META - PUERTO CONCORDIA","EMPRESA DE SERVICIOS PÚBLICOS DE GRANADA",2016,"LA GUARATARA","RELLENO SANITARIO"]
[50568,"META","PUERTO GAITÁN","META - PUERTO GAITÁN","BIOAGRICOLA DEL LLANO S.A  EMPRESA DE SERVICIOS PUBLICOS",2016,"PARQUE ECOLOGICO RECICLANTE","RELLENO SANITARIO"]
[50573,"META","PUERTO LÓPEZ","META - PUERTO LÓPEZ","BIOAGRICOLA DEL LLANO S.A  EMPRESA DE SERVICIOS PUBLICOS",2016,"PARQUE ECOLOGICO RECICLANTE","RELLENO SANITARIO"]
[50577,"META","PUERTO LLERAS","META - PUERTO LLERAS","EMPRESA DE SERVICIOS PÚBLICOS DE GRANADA",2016,"LA GUARATARA","RELLENO SANITARIO"]
[50590,"META","PUERTO RICO","META - PUERTO RICO","EMPRESA DE SERVICIOS PÚBLICOS DE GRANADA",2016,"LA GUARATARA","RELLENO SANITARIO"]
[50606,"META","RESTREPO","META - RESTREPO","BIOAGRICOLA DEL LLANO S.A  EMPRESA DE SERVICIOS PUBLICOS",2016,"PARQUE ECOLOGICO RECICLANTE","RELLENO SANITARIO"]
[50680,"META","SAN CARLOS DE GUAROA","META - SAN CARLOS DE GUAROA","BIOAGRICOLA DEL LLANO S.A  EMPRESA DE SERVICIOS PUBLICOS",2016,"PARQUE ECOLOGICO RECICLANTE","RELLENO SANITARIO"]
[50683,"META","SAN JUAN DE ARAMA","META - SAN JUAN DE ARAMA","BIOAGRICOLA DEL LLANO S.A  EMPRESA DE SERVICIOS PUBLICOS",2016,"PARQUE ECOLOGICO RECICLANTE","RELLENO SANITARIO"]
[68152,"SANTANDER","CARCASÍ","SANTANDER - CARCASÍ","UNIDAD ADMINISTRADORA DE LOS SERVICIOS PUBLICOS DE ACUEDUCTO, ALCANTARILLADO Y ASEO DE CARCASI",2016,"VIA EL TOBAL","RELLENO SANITARIO"]
[68160,"SANTANDER","CEPITÁ","SANTANDER - CEPITÁ","EMPRESA DE SOLUCIONES AMBIENTALES PARA COLOMBIA S.A E.S.P.",2016,"EL CUCHARO","RELLENO SANITARIO"]
[68162,"SANTANDER","CERRITO","SANTANDER - CERRITO","ACUASAN E.I.C.E  E.S.P",2016,"RELLENO SANITARIO EL CUCHARO","RELLENO SANITARIO"]
[68167,"SANTANDER","CHARALÁ","SANTANDER - CHARALÁ","ACUASAN E.I.C.E  E.S.P",2016,"RELLENO SANITARIO EL CUCHARO","RELLENO SANITARIO"]
[68169,"SANTANDER","CHARTA","SANTANDER - CHARTA","EMPRESA DE ASEO DE BUCARAMANGA S.A. E.S.P.",2016,"EL CARRASCO","RELLENO SANITARIO"]
[68176,"SANTANDER","CHIMA","SANTANDER - CHIMA","ACUASAN E.I.C.E  E.S.P",2016,"RELLENO SANITARIO EL CUCHARO","RELLENO SANITARIO"]
[68179,"SANTANDER","CHIPATÁ","SANTANDER - CHIPATÁ","ACUASAN E.I.C.E  E.S.P",2016,"RELLENO SANITARIO EL CUCHARO","RELLENO SANITARIO"]
[68190,"SANTANDER","CIMITARRA","SANTANDER - CIMITARRA","EMPRESAS PUBLICAS DE BETULIA S.A E.S.P ",2016,"LA FLORIDA","RELLENO SANITARIO"]
[68207,"SANTANDER","CONCEPCIÓN","SANTANDER - CONCEPCIÓN","EMPRESAS PUBLICAS MUNICIPALES DE MALAGA  E.S.P.",2016,"PTRSMALAGA","RELLENO SANITARIO"]
[68209,"SANTANDER","CONFINES","SANTANDER - CONFINES","ACUASAN E.I.C.E  E.S.P",2016,"RELLENO SANITARIO EL CUCHARO","RELLENO SANITARIO"]
[25875,"CUNDINAMARCA","VILLETA","CUNDINAMARCA - VILLETA","NUEVO MONDOÑEDO S.A. E.S.P.",2016,"RELLENO SANITARIO NUEVO MONDOÑEDO","RELLENO SANITARIO"]
[25878,"CUNDINAMARCA","VIOTÁ","CUNDINAMARCA - VIOTÁ","ND",2016,"ND","ND"]
[25885,"CUNDINAMARCA","YACOPÍ","CUNDINAMARCA - YACOPÍ","EMPRESA DE SERVICIOS PUBLICOS DE LA DORADA E.S.P.",2016,"RELLENO SANITARIO DORADITA","RELLENO SANITARIO"]
[25898,"CUNDINAMARCA","ZIPACÓN","CUNDINAMARCA - ZIPACÓN","NUEVO MONDOÑEDO S.A. E.S.P.",2016,"RELLENO SANITARIO NUEVO MONDOÑEDO","RELLENO SANITARIO"]
[25899,"CUNDINAMARCA","ZIPAQUIRÁ","CUNDINAMARCA - ZIPAQUIRÁ","NUEVO MONDOÑEDO S.A. E.S.P.",2016,"RELLENO SANITARIO NUEVO MONDOÑEDO","RELLENO SANITARIO"]
[27001,"CHOCO","QUIBDÓ","CHOCO - QUIBDÓ","ND",2016,"ND","ND"]
[27006,"CHOCO","ACANDÍ","CHOCO - ACANDÍ","ND",2016,"ND","ND"]
[27025,"CHOCO","ALTO BAUDÓ","CHOCO - ALTO BAUDÓ","EMPRESA DE SERVICIOS PUBLICOS DEL ALTO BAUDO ESP SAS ENERBAUDO ESP SAS",2016,"PUEBLO NUEVO","RELLENO SANITARIO"]
[27050,"CHOCO","ATRATO","CHOCO - ATRATO","EMPRESA EFICIENTE DE SERVICIOS PUBLICOS DE YUTO EFY S.A. E.S.P.",2016,"FIGURA","ENTERRAMIENTO"]
[27073,"CHOCO","BAGADÓ","CHOCO - BAGADÓ","APC DE SERVICIOS PUBLICOS DE BAGADO",2016,"BOTADEROS SATÉLITE","BOTADERO A CIELO ABIERTO"]
[27075,"CHOCO","BAHÍA SOLANO","CHOCO - BAHÍA SOLANO","EMPRESA DE ACUEDUCTO ALCANTARILLADO Y ASEO DE BAHIA SOLANO S.A E.S.P",2016,"BOTADERO DE BASURAS VIA EL VALLE","CELDA TRANSITORIA"]
[27077,"CHOCO","BAJO BAUDÓ","CHOCO - BAJO BAUDÓ","ND",2016,"ND","ND"]
[27086,0,0,"0 - 0",0,0,0,0]
[73547,"TOLIMA","PIEDRAS","TOLIMA - PIEDRAS","INTERASEO S.A  E.S.P",2016,"PARQUE INDUSTRIAL LA MIEL","RELLENO SANITARIO"]
[73555,"TOLIMA","PLANADAS","TOLIMA - PLANADAS","EMPRESA DE SERVICIOS PUBLICOS DE PLANADAS SAS ESP",2016,"CELDA SAN ISIDRO","CELDA TRANSITORIA"]
[73563,"TOLIMA","PRADO","TOLIMA - PRADO","SERVICIOS AMBIENTALES S.A.  E.S.P.",2016,"PARQUE ECOLOGICO PRADERAS DEL MAGDALENA","RELLENO SANITARIO"]
[73585,"TOLIMA","PURIFICACIÓN","TOLIMA - PURIFICACIÓN","EMPRESA DE SERVICIOS PUBLICOS DE ACUEDUCTO, ALCANTARILLADO Y ASEO DE PURIFICACIÓN TOLIMA E.S.P.",2016,"FINCA ARIZONA","CELDA TRANSITORIA"]
[73616,"TOLIMA","RIOBLANCO","TOLIMA - RIOBLANCO","OFICINA DE SERVICIOS PUBLICOS DEL MUNICIPIO DE RIOBLANCO",2016,"PLANTA DE TRATAMIENTO DE RESIDUOS SOLIDOS","PLANTA DE TRATAMIENTO"]
[73622,"TOLIMA","RONCESVALLES","TOLIMA - RONCESVALLES","EMPRESA DE SERVICIOS PUBLICOS DE RONCESVALLES S.A. E.S.P. ",2016,"PLANTA DE MANEJO INTEGRAL DE RESIDUOS SOLIDOS VEREDA CUCUANITA","CELDA DE CONTINGENCIA"]
[73624,"TOLIMA","ROVIRA","TOLIMA - ROVIRA","INTERASEO S.A  E.S.P",2016,"PARQUE INDUSTRIAL LA MIEL","RELLENO SANITARIO"]
[50686,"META","SAN JUANITO","META - SAN JUANITO","MUNICIPIO SAN JUANITO META",2016,"SITIO CELDAS","CELDA TRANSITORIA"]
[50689,"META","SAN MARTÍN","META - SAN MARTÍN","EMPRESA DE SERVICIOS PÚBLICOS DE GRANADA",2016,"LA GUARATARA","RELLENO SANITARIO"]
[50711,"META","VISTAHERMOSA","META - VISTAHERMOSA","EMPRESA DE SERVICIOS PÚBLICOS DE GRANADA",2016,"LA GUARATARA","RELLENO SANITARIO"]
[52001,"NARIÑO","PASTO","NARIÑO - PASTO","EMPRESA METROPOLITANA DE ASEO DE PASTO S.A.  E.S.P. ",2016,"RELLENO SANITARIO ANTANAS","RELLENO SANITARIO"]
[52019,"NARIÑO","ALBÁN","NARIÑO - ALBÁN","EMPRESA METROPOLITANA DE ASEO DE PASTO S.A.  E.S.P. ",2016,"RELLENO SANITARIO ANTANAS","RELLENO SANITARIO"]
[52022,"NARIÑO","ALDANA","NARIÑO - ALDANA","INSTITUTO DE SERVICIOS VARIOS DE IPIALES",2016,"LA VICTORIA","RELLENO SANITARIO"]
[52036,"NARIÑO","ANCUYÁ","NARIÑO - ANCUYÁ","EMPRESA DE SERVICIOS PUBLICOS DOMICILIARIOS DE ACUEDUCTO ALCANTARILLADO Y ASEO DEL MUNICIPIO DE ANCUYA NARIÑO SAS ESP",2016,"CELDA SANTA INES","RELLENO SANITARIO"]
[52051,"NARIÑO","ARBOLEDA","NARIÑO - ARBOLEDA","EMPRESA METROPOLITANA DE ASEO DE PASTO S.A.  E.S.P. ",2016,"RELLENO SANITARIO ANTANAS","RELLENO SANITARIO"]
[52079,"NARIÑO","BARBACOAS","NARIÑO - BARBACOAS","EMPRESA DE SERVICIOS PUBLICOS DE BARBACOAS S.A.S E.S.P",2016,"VIA A PASTO","BOTADERO A CIELO ABIERTO"]
[52083,"NARIÑO","BELÉN","NARIÑO - BELÉN","EMPRESA METROPOLITANA DE ASEO DE PASTO S.A.  E.S.P. ",2016,"RELLENO SANITARIO ANTANAS","RELLENO SANITARIO"]
[52110,"NARIÑO","BUESACO","NARIÑO - BUESACO","EMPRESA METROPOLITANA DE ASEO DE PASTO S.A.  E.S.P. ",2016,"RELLENO SANITARIO ANTANAS","RELLENO SANITARIO"]
[52203,"NARIÑO","COLÓN","NARIÑO - COLÓN","EMPRESA METROPOLITANA DE ASEO DE PASTO S.A.  E.S.P. ",2016,"RELLENO SANITARIO ANTANAS","RELLENO SANITARIO"]
[52207,"NARIÑO","CONSACÁ","NARIÑO - CONSACÁ","EMPRESA METROPOLITANA DE ASEO DE PASTO S.A.  E.S.P. ",2016,"RELLENO SANITARIO ANTANAS","RELLENO SANITARIO"]
[68211,"SANTANDER","CONTRATACIÓN","SANTANDER - CONTRATACIÓN","ACUASAN E.I.C.E  E.S.P",2016,"RELLENO SANITARIO EL CUCHARO","RELLENO SANITARIO"]
[68217,"SANTANDER","COROMORO","SANTANDER - COROMORO","ND",2016,"ND","ND"]
[68229,"SANTANDER","CURITÍ","SANTANDER - CURITÍ","EMPRESA DE SOLUCIONES AMBIENTALES PARA COLOMBIA S.A E.S.P.",2016,"EL CUCHARO","RELLENO SANITARIO"]
[68235,"SANTANDER","EL CARMEN DE CHUCURÍ","SANTANDER - EL CARMEN DE CHUCURÍ","ASEO URBANO S.A.S. E.S.P.",2016,"PARQUE TECNOLOGICO AMBIENTAL LAS BATEAS","RELLENO SANITARIO"]
[68245,"SANTANDER","EL GUACAMAYO","SANTANDER - EL GUACAMAYO","EMPRESA MUNICIPAL DE SERVICIOS PUBLICOS DOMICILIARIOS DE ACUEDUCTO, ALCANTARILLADO Y ASEO EN LA CABECERA MUNICIPAL DEL MUNICIPIO DE EL GUACAMAYO",2016,"LAS RUINAS","BOTADERO A CIELO ABIERTO"]
[68250,"SANTANDER","EL PEÑÓN","SANTANDER - EL PEÑÓN","ND",2016,"ND","ND"]
[68255,"SANTANDER","EL PLAYÓN","SANTANDER - EL PLAYÓN","EMPRESA DE ASEO DE BUCARAMANGA S.A. E.S.P.",2016,"EL CARRASCO","RELLENO SANITARIO"]
[27099,"CHOCO","BOJAYÁ","CHOCO - BOJAYÁ","MUNICIPIO DE BOJAYA",2016,"BOTADERO A CIELO ABIERTO","BOTADERO A CIELO ABIERTO"]
[81736,"ARAUCA","SARAVENA","ARAUCA - SARAVENA","EMPRESA COMUNITARIA DE ACUEDUCTO, ALCANTARILLADO Y ASEO DE SARAVENA",2016,"CELDA DE CONTINGENCIA MATARRALA","CELDA TRANSITORIA"]
[81794,"ARAUCA","TAME","ARAUCA - TAME","EMPRESA DE SERVICIOS PUBLICOS DE TAME  CARIBABARE E.S.P.",2016,"SMIRS","CELDA DE CONTINGENCIA"]
[85001,"CASANARE","YOPAL","CASANARE - YOPAL","EMPRESA DE ACUEDUCTO, ALCANTARILLADO Y ASEO DE YOPAL  EICE - ESP",2016,"CASCAJAR","RELLENO SANITARIO"]
[85010,"CASANARE","AGUAZUL","CASANARE - AGUAZUL","EMPRESA DE ACUEDUCTO, ALCANTARILLADO Y ASEO DE YOPAL  EICE - ESP",2016,"CASCAJAR","RELLENO SANITARIO"]
[85015,"CASANARE","CHÁMEZA","CASANARE - CHÁMEZA","EMPRESA DE ACUEDUCTO, ALCANTARILLADO Y ASEO DE YOPAL  EICE - ESP",2016,"CASCAJAR","RELLENO SANITARIO"]
[85125,"CASANARE","HATO COROZAL","CASANARE - HATO COROZAL","EMPRESA DE ACUEDUCTO, ALCANTARILLADO Y ASEO DE YOPAL  EICE - ESP",2016,"CASCAJAR","RELLENO SANITARIO"]
[85136,"CASANARE","LA SALINA","CASANARE - LA SALINA","EMPRESA DE ACUEDUCTO, ALCANTARILLADO Y ASEO DE YOPAL  EICE - ESP",2016,"CASCAJAR","RELLENO SANITARIO"]
[85139,"CASANARE","MANÍ","CASANARE - MANÍ","EMPRESA DE ACUEDUCTO, ALCANTARILLADO Y ASEO DE YOPAL  EICE - ESP",2016,"CASCAJAR","RELLENO SANITARIO"]
[85162,"CASANARE","MONTERREY","CASANARE - MONTERREY","EMPRESA DE ACUEDUCTO, ALCANTARILLADO Y ASEO DE YOPAL  EICE - ESP",2016,"CASCAJAR","RELLENO SANITARIO"]
[73671,"TOLIMA","SALDAÑA","TOLIMA - SALDAÑA","SERVICIOS AMBIENTALES S.A.  E.S.P.",2016,"PARQUE ECOLOGICO PRADERAS DEL MAGDALENA","RELLENO SANITARIO"]
[73675,"TOLIMA","SAN ANTONIO","TOLIMA - SAN ANTONIO","SERVICIOS AMBIENTALES S.A.  E.S.P.",2016,"PARQUE ECOLOGICO PRADERAS DEL MAGDALENA","RELLENO SANITARIO"]
[73678,"TOLIMA","SAN LUIS","TOLIMA - SAN LUIS","INTERASEO S.A  E.S.P",2016,"PARQUE INDUSTRIAL LA MIEL","RELLENO SANITARIO"]
[73686,"TOLIMA","SANTA ISABEL","TOLIMA - SANTA ISABEL","ND",2016,"ND","ND"]
[73770,"TOLIMA","SUÁREZ","TOLIMA - SUÁREZ","SERVICIOS AMBIENTALES S.A.  E.S.P.",2016,"PARQUE ECOLOGICO PRADERAS DEL MAGDALENA","RELLENO SANITARIO"]
[73854,"TOLIMA","VALLE DE SAN JUAN","TOLIMA - VALLE DE SAN JUAN","INTERASEO S.A  E.S.P",2016,"PARQUE INDUSTRIAL LA MIEL","RELLENO SANITARIO"]
[52210,"NARIÑO","CONTADERO","NARIÑO - CONTADERO","EMPRESA METROPOLITANA DE ASEO DE PASTO S.A.  E.S.P. ",2016,"RELLENO SANITARIO ANTANAS","RELLENO SANITARIO"]
[52215,"NARIÑO","CÓRDOBA","NARIÑO - CÓRDOBA","EMPRESA METROPOLITANA DE ASEO DE PASTO S.A.  E.S.P. ",2016,"RELLENO SANITARIO ANTANAS","RELLENO SANITARIO"]
[52224,"NARIÑO","CUASPÚD","NARIÑO - CUASPÚD","SOCIEDAD POR ACCIONES SIMPLIFICADA PARA LA PRESTACIÓN DE LOS SERVICIOS PÚBLICOS DE AGUA POTABLE Y SANEAMIENTO BÁSICO",2016,"EL PIRIO","RELLENO SANITARIO"]
[52227,"NARIÑO","CUMBAL","NARIÑO - CUMBAL","EMPRESA METROPOLITANA DE ASEO DE PASTO S.A.  E.S.P. ",2016,"RELLENO SANITARIO ANTANAS","RELLENO SANITARIO"]
[52233,"NARIÑO","CUMBITARA","NARIÑO - CUMBITARA","ADMINISTRACION PUBLICA COOPERATIVA DE AGUA POTABLE Y SANEAMIENTO BASICO DE CUMBITARA",2016,"RELLENO DE SANITARIO CUMBITARA","RELLENO SANITARIO"]
[52240,"NARIÑO","CHACHAGÜÍ","NARIÑO - CHACHAGÜÍ","EMPRESA METROPOLITANA DE ASEO DE PASTO S.A.  E.S.P. ",2016,"RELLENO SANITARIO ANTANAS","RELLENO SANITARIO"]
[52250,"NARIÑO","EL CHARCO","NARIÑO - EL CHARCO","MUNICPIO DE EL CHARCO",2016,"SIN NOMBRE","BOTADERO A CIELO ABIERTO"]
[52254,"NARIÑO","EL PEÑOL","NARIÑO - EL PEÑOL","EMPRESA METROPOLITANA DE ASEO DE PASTO S.A.  E.S.P. ",2016,"RELLENO SANITARIO ANTANAS","RELLENO SANITARIO"]
[52256,"NARIÑO","EL ROSARIO","NARIÑO - EL ROSARIO","EMPRESA METROPOLITANA DE ASEO DE PASTO S.A.  E.S.P. ",2016,"RELLENO SANITARIO ANTANAS","RELLENO SANITARIO"]
[68264,"SANTANDER","ENCINO","SANTANDER - ENCINO","ECOSANGIL SAS ESP",2016,"ECOSANGIL SAS ESP","RELLENO SANITARIO"]
[68266,"SANTANDER","ENCISO","SANTANDER - ENCISO","EMPRESAS PUBLICAS MUNICIPALES DE MALAGA  E.S.P.",2016,"PTRSMALAGA","RELLENO SANITARIO"]
[68271,"SANTANDER","FLORIÁN","SANTANDER - FLORIÁN","ACUASAN E.I.C.E  E.S.P",2016,"RELLENO SANITARIO EL CUCHARO","RELLENO SANITARIO"]
[68276,"SANTANDER","FLORIDABLANCA","SANTANDER - FLORIDABLANCA","EMPRESA DE ASEO DE BUCARAMANGA S.A. E.S.P.",2016,"EL CARRASCO","RELLENO SANITARIO"]
[68296,"SANTANDER","GALÁN","SANTANDER - GALÁN","ACUASAN E.I.C.E  E.S.P",2016,"RELLENO SANITARIO EL CUCHARO","RELLENO SANITARIO"]
[68298,"SANTANDER","GÁMBITA","SANTANDER - GÁMBITA","ACUASAN E.I.C.E  E.S.P",2016,"RELLENO SANITARIO EL CUCHARO","RELLENO SANITARIO"]
[68307,"SANTANDER","GIRÓN","SANTANDER - GIRÓN","EMPRESA DE ASEO DE BUCARAMANGA S.A. E.S.P.",2016,"EL CARRASCO","RELLENO SANITARIO"]
[68318,"SANTANDER","GUACA","SANTANDER - GUACA","EMPRESAS PUBLICAS MUNICIPALES DE MALAGA  E.S.P.",2016,"PTRSMALAGA","RELLENO SANITARIO"]
[85225,"CASANARE","NUNCHÍA","CASANARE - NUNCHÍA","EMPRESA DE ACUEDUCTO, ALCANTARILLADO Y ASEO DE YOPAL  EICE - ESP",2016,"CASCAJAR","RELLENO SANITARIO"]
[85230,"CASANARE","OROCUÉ","CASANARE - OROCUÉ","EMPRESA DE ACUEDUCTO, ALCANTARILLADO Y ASEO DE YOPAL  EICE - ESP",2016,"CASCAJAR","RELLENO SANITARIO"]
[85250,"CASANARE","PAZ DE ARIPORO","CASANARE - PAZ DE ARIPORO","EMPRESA DE ACUEDUCTO, ALCANTARILLADO Y ASEO DE YOPAL  EICE - ESP",2016,"CASCAJAR","RELLENO SANITARIO"]
[85263,"CASANARE","PORE","CASANARE - PORE","EMPRESA DE ACUEDUCTO, ALCANTARILLADO Y ASEO DE YOPAL  EICE - ESP",2016,"CASCAJAR","RELLENO SANITARIO"]
[85279,"CASANARE","RECETOR","CASANARE - RECETOR","EMPRESA DE ACUEDUCTO, ALCANTARILLADO Y ASEO DE YOPAL  EICE - ESP",2016,"CASCAJAR","RELLENO SANITARIO"]
[85300,"CASANARE","SABANALARGA","CASANARE - SABANALARGA","EMPRESA DE SERVICIOS PUBLICOS DE VILLANUEVA ESPAVI S.A. E.S.P.",2016,"LA ESPERANZA","PLANTA DE TRATAMIENTO"]
[85315,"CASANARE","SÁCAMA","CASANARE - SÁCAMA","EMPRESA DE ACUEDUCTO, ALCANTARILLADO Y ASEO DE YOPAL  EICE - ESP",2016,"CASCAJAR","RELLENO SANITARIO"]
[85325,"CASANARE","SAN LUIS DE PALENQUE","CASANARE - SAN LUIS DE PALENQUE","EMPRESA DE ACUEDUCTO, ALCANTARILLADO Y ASEO DE YOPAL  EICE - ESP",2016,"CASCAJAR","RELLENO SANITARIO"]
[85400,"CASANARE","TÁMARA","CASANARE - TÁMARA","EMPRESA DE ACUEDUCTO, ALCANTARILLADO Y ASEO DE YOPAL  EICE - ESP",2016,"CASCAJAR","RELLENO SANITARIO"]
[85410,"CASANARE","TAURAMENA","CASANARE - TAURAMENA","EMPRESA MUNICIPAL DE SERVICIOS PUBLICOS DE TAURAMENA S.A. E.S.P.",2016,"PLANTA RESIDUOS SOLIDOS TAURAMENA","PLANTA DE TRATAMIENTO"]
[85430,"CASANARE","TRINIDAD","CASANARE - TRINIDAD","EMPRESA DE ACUEDUCTO, ALCANTARILLADO Y ASEO DE YOPAL  EICE - ESP",2016,"CASCAJAR","RELLENO SANITARIO"]
[85440,"CASANARE","VILLANUEVA","CASANARE - VILLANUEVA","EMPRESA DE SERVICIOS PUBLICOS DE VILLANUEVA ESPAVI S.A. E.S.P.",2016,"LA ESPERANZA","PLANTA DE TRATAMIENTO"]
[86001,"PUTUMAYO","MOCOA","PUTUMAYO - MOCOA","EMPRESA METROPOLITANA DE ASEO DEL PUTUMAYO S.A.S. E.S.P.",2016,"RELLENO SANITARIO VEREDA MEDIO AFAN","RELLENO SANITARIO"]
[73861,"TOLIMA","VENADILLO","TOLIMA - VENADILLO","INTERASEO S.A  E.S.P",2016,"PARQUE INDUSTRIAL LA MIEL","RELLENO SANITARIO"]
[73870,"TOLIMA","VILLAHERMOSA","TOLIMA - VILLAHERMOSA","AGUAS DE VILLAHERMOSA S.A.S. E.S.P.",2016,"GRANJA MUNICIPAL","CELDA TRANSITORIA"]
[73873,"TOLIMA","VILLARRICA","TOLIMA - VILLARRICA","SERVICIOS AMBIENTALES S.A.  E.S.P.",2016,"PARQUE ECOLOGICO PRADERAS DEL MAGDALENA","RELLENO SANITARIO"]
[76001,"VALLE DEL CAUCA","CALI","VALLE DEL CAUCA - CALI","INTERASEO DEL VALLE S.A E.S.P.",2016,"RELLENO SANITARIO REGIONAL COLOMBA-EL GUABAL","RELLENO SANITARIO"]
[76020,"VALLE DEL CAUCA","ALCALÁ","VALLE DEL CAUCA - ALCALÁ","ATESA DE OCCIDENTE S.A  E.S.P.",2016,"LA GLORITA","RELLENO SANITARIO"]
[52258,"NARIÑO","EL TABLÓN DE GÓMEZ","NARIÑO - EL TABLÓN DE GÓMEZ","EMPRESA METROPOLITANA DE ASEO DE PASTO S.A.  E.S.P. ",2016,"RELLENO SANITARIO ANTANAS","RELLENO SANITARIO"]
[52260,"NARIÑO","EL TAMBO","NARIÑO - EL TAMBO","EMPRESA METROPOLITANA DE ASEO DE PASTO S.A.  E.S.P. ",2016,"RELLENO SANITARIO ANTANAS","RELLENO SANITARIO"]
[52287,"NARIÑO","FUNES","NARIÑO - FUNES","EMPRESA METROPOLITANA DE ASEO DE PASTO S.A.  E.S.P. ",2016,"RELLENO SANITARIO ANTANAS","RELLENO SANITARIO"]
[52317,"NARIÑO","GUACHUCAL","NARIÑO - GUACHUCAL","INSTITUTO DE SERVICIOS VARIOS DE IPIALES",2016,"LA VICTORIA","RELLENO SANITARIO"]
[52320,"NARIÑO","GUAITARILLA","NARIÑO - GUAITARILLA","EMPRESA METROPOLITANA DE ASEO DE PASTO S.A.  E.S.P. ",2016,"RELLENO SANITARIO ANTANAS","RELLENO SANITARIO"]
[52323,"NARIÑO","GUALMATÁN","NARIÑO - GUALMATÁN","EMPRESA METROPOLITANA DE ASEO DE PASTO S.A.  E.S.P. ",2016,"RELLENO SANITARIO ANTANAS","RELLENO SANITARIO"]
[52352,"NARIÑO","ILES","NARIÑO - ILES","EMPRESA METROPOLITANA DE ASEO DE PASTO S.A.  E.S.P. ",2016,"RELLENO SANITARIO ANTANAS","RELLENO SANITARIO"]
[68320,"SANTANDER","GUADALUPE","SANTANDER - GUADALUPE","ECOSANGIL SAS ESP",2016,"PLANTA DE APROVECHAMIENTO Y VALORACIO DE RESIDUOS SOLIDOS ORGANICOS Y RECICLABES","PLANTA DE TRATAMIENTO"]
[68322,"SANTANDER","GUAPOTÁ","SANTANDER - GUAPOTÁ","ACUASAN E.I.C.E  E.S.P",2016,"RELLENO SANITARIO EL CUCHARO","RELLENO SANITARIO"]
[68324,"SANTANDER","GUAVATÁ","SANTANDER - GUAVATÁ","ACUASAN E.I.C.E  E.S.P",2016,"RELLENO SANITARIO EL CUCHARO","RELLENO SANITARIO"]
[68327,"SANTANDER","GÜEPSA","SANTANDER - GÜEPSA","EMPRESA DE SOLUCIONES AMBIENTALES PARA COLOMBIA S.A E.S.P.",2016,"EL CUCHARO","RELLENO SANITARIO"]
[68344,"SANTANDER","HATO","SANTANDER - HATO","ACUASAN E.I.C.E  E.S.P",2016,"RELLENO SANITARIO EL CUCHARO","RELLENO SANITARIO"]
[68368,"SANTANDER","JESÚS MARÍA","SANTANDER - JESÚS MARÍA","ECOSANGIL SAS ESP",2016,"ECOSANGIL SAS ESP","RELLENO SANITARIO"]
[68370,"SANTANDER","JORDÁN","SANTANDER - JORDÁN","EMPRESA DE SOLUCIONES AMBIENTALES PARA COLOMBIA S.A E.S.P.",2016,"EL CUCHARO","RELLENO SANITARIO"]
[68377,"SANTANDER","LA BELLEZA","SANTANDER - LA BELLEZA","EMPRESA DE SOLUCIONES AMBIENTALES PARA COLOMBIA S.A E.S.P.",2016,"EL CUCHARO","RELLENO SANITARIO"]
[68385,"SANTANDER","LANDÁZURI","SANTANDER - LANDÁZURI","ND",2016,"ND","ND"]
[86219,"PUTUMAYO","COLÓN","PUTUMAYO - COLÓN","EMPRESA METROPOLITANA DE ASEO DE PASTO S.A.  E.S.P. ",2016,"RELLENO SANITARIO ANTANAS","RELLENO SANITARIO"]
[86320,"PUTUMAYO","ORITO","PUTUMAYO - ORITO","EMPRESA DE AGUA POTABLE Y SANEAMIENTO BASICO DEL MUNICIPIO DE ORITO E.S.P.",2016,"EL YARUMO","BOTADERO A CIELO ABIERTO"]
[86568,"PUTUMAYO","PUERTO ASÍS","PUTUMAYO - PUERTO ASÍS","EMPRESA DE ACUEDUCTO, ALCANTARILLADO Y ASEO DE PUERTO ASIS E.S.P",2016,"KILILI","CELDA DE CONTINGENCIA"]
[86569,"PUTUMAYO","PUERTO CAICEDO","PUTUMAYO - PUERTO CAICEDO","AGUAS DE PUERTO CAICEDO S.A.S. E.S.P.",2016,"LA ESMERALDA","CELDA TRANSITORIA"]
[86571,"PUTUMAYO","PUERTO GUZMÁN","PUTUMAYO - PUERTO GUZMÁN","EMPRESA DE ACUEDUCTO, ALCANTARILLADO, ASEO Y ENERGIA (ZNI) DE PUERTO GUZMAN S.A ESP",2016,"CARMELO","RELLENO SANITARIO"]
[86573,"PUTUMAYO","PUERTO LEGUÍZAMO","PUTUMAYO - PUERTO LEGUÍZAMO","EMPRESA  DE SERVICIOS PUBLICOS DE LEGUIZAMO",2016,"KM 11","CELDA TRANSITORIA"]
[94884,0,0,"0 - 0",0,0,0,0]
[94885,0,0,"0 - 0",0,0,0,0]
[94886,0,0,"0 - 0",0,0,0,0]
[94887,0,0,"0 - 0",0,0,0,0]
[95001,"GUAVIARE","SAN JOSÉ DEL GUAVIARE","GUAVIARE - SAN JOSÉ DEL GUAVIARE","AMBIENTAR E.S.P. S.A.",2016,"EL ALGARROBO","CELDA DE CONTINGENCIA"]
[27135,"CHOCO","EL CANTÓN DEL SAN PABLO","CHOCO - EL CANTÓN DEL SAN PABLO","EMPRESA DE SERVICIOS PUBLICOS GONZALO ROMANA PALACIOS",2016,"AGUAS NEGRAS","BOTADERO A CIELO ABIERTO"]
[27150,"CHOCO","CARMEN DEL DARIÉN","CHOCO - CARMEN DEL DARIÉN","EMPRESA DE SERVICIOS PUBLICOS DOMICILAIRIOS DE CARMEN DEL DARIEN SA ESP",2016,"BOTADERO A CIELO ABIERTO","BOTADERO A CIELO ABIERTO"]
[27160,"CHOCO","CÉRTEGUI","CHOCO - CÉRTEGUI","EMPRESA DE SERVICIOS PUBLICOS LA CANDELAIA S.A. E.S.P. DEL MUNICIPIO DE CERTEGUI CANDECERT",2016,"LA VARIANTE GARVAL","ENTERRAMIENTO"]
[27205,"CHOCO","CONDOTO","CHOCO - CONDOTO","ND",2016,"ND","ND"]
[76036,"VALLE DEL CAUCA","ANDALUCÍA","VALLE DEL CAUCA - ANDALUCÍA","BUGUEÑA DE ASEO S.A.  E.S.P.",2016,"RELLENO SANITARIO REGIONAL PRESIDENTE","RELLENO SANITARIO"]
[76041,"VALLE DEL CAUCA","ANSERMANUEVO","VALLE DEL CAUCA - ANSERMANUEVO","ATESA DE OCCIDENTE S.A  E.S.P.",2016,"LA GLORITA","RELLENO SANITARIO"]
[76054,"VALLE DEL CAUCA","ARGELIA","VALLE DEL CAUCA - ARGELIA","ATESA DE OCCIDENTE S.A  E.S.P.",2016,"LA GLORITA","RELLENO SANITARIO"]
[76100,"VALLE DEL CAUCA","BOLÍVAR","VALLE DEL CAUCA - BOLÍVAR","BUGUEÑA DE ASEO S.A.  E.S.P.",2016,"RELLENO SANITARIO REGIONAL PRESIDENTE","RELLENO SANITARIO"]
[76111,"VALLE DEL CAUCA","GUADALAJARA DE BUGA","VALLE DEL CAUCA - GUADALAJARA DE BUGA","BUGUEÑA DE ASEO S.A.  E.S.P.",2016,"RELLENO SANITARIO REGIONAL PRESIDENTE","RELLENO SANITARIO"]
[52354,"NARIÑO","IMUÉS","NARIÑO - IMUÉS","EMPRESA METROPOLITANA DE ASEO DE PASTO S.A.  E.S.P. ",2016,"RELLENO SANITARIO ANTANAS","RELLENO SANITARIO"]
[52356,"NARIÑO","IPIALES","NARIÑO - IPIALES","INSTITUTO DE SERVICIOS VARIOS DE IPIALES",2016,"LA VICTORIA","RELLENO SANITARIO"]
[52378,"NARIÑO","LA CRUZ","NARIÑO - LA CRUZ","EMPRESA METROPOLITANA DE ASEO DE PASTO S.A.  E.S.P. ",2016,"RELLENO SANITARIO ANTANAS","RELLENO SANITARIO"]
[52381,"NARIÑO","LA FLORIDA","NARIÑO - LA FLORIDA","EMPRESA METROPOLITANA DE ASEO DE PASTO S.A.  E.S.P. ",2016,"RELLENO SANITARIO ANTANAS","RELLENO SANITARIO"]
[52385,"NARIÑO","LA LLANADA","NARIÑO - LA LLANADA","EMPRESA METROPOLITANA DE ASEO DE PASTO S.A.  E.S.P. ",2016,"RELLENO SANITARIO ANTANAS","RELLENO SANITARIO"]
[52390,"NARIÑO","LA TOLA","NARIÑO - LA TOLA","ND",2016,"ND","ND"]
[52399,"NARIÑO","LA UNIÓN","NARIÑO - LA UNIÓN","EMPRESA METROPOLITANA DE ASEO DE PASTO S.A.  E.S.P. ",2016,"RELLENO SANITARIO ANTANAS","RELLENO SANITARIO"]
[52405,"NARIÑO","LEIVA","NARIÑO - LEIVA","EMPRESA DE SERVICIOS PUBLICOS DE LEIVA",2016,"CAÑAVERAL","RELLENO SANITARIO"]
[68397,"SANTANDER","LA PAZ","SANTANDER - LA PAZ","ACUASAN E.I.C.E  E.S.P",2016,"RELLENO SANITARIO EL CUCHARO","RELLENO SANITARIO"]
[68406,"SANTANDER","LEBRIJA","SANTANDER - LEBRIJA","EMPRESA DE ASEO DE BUCARAMANGA S.A. E.S.P.",2016,"EL CARRASCO","RELLENO SANITARIO"]
[68418,"SANTANDER","LOS SANTOS","SANTANDER - LOS SANTOS","EMPRESA DE ASEO DE SANTANDER SA ESP",2016,"BOTADERO","BOTADERO A CIELO ABIERTO"]
[68425,"SANTANDER","MACARAVITA","SANTANDER - MACARAVITA","EMPRESAS PUBLICAS MUNICIPALES DE MALAGA  E.S.P.",2016,"PTRSMALAGA","RELLENO SANITARIO"]
[68432,"SANTANDER","MÁLAGA","SANTANDER - MÁLAGA","EMPRESAS PUBLICAS MUNICIPALES DE MALAGA  E.S.P.",2016,"PTRSMALAGA","RELLENO SANITARIO"]
[68444,"SANTANDER","MATANZA","SANTANDER - MATANZA","EMPRESA DE ASEO DE BUCARAMANGA S.A. E.S.P.",2016,"EL CARRASCO","RELLENO SANITARIO"]
[68464,"SANTANDER","MOGOTES","SANTANDER - MOGOTES","ACUASAN E.I.C.E  E.S.P",2016,"RELLENO SANITARIO EL CUCHARO","RELLENO SANITARIO"]
[68468,"SANTANDER","MOLAGAVITA","SANTANDER - MOLAGAVITA","EMPRESAS PUBLICAS MUNICIPALES DE MALAGA  E.S.P.",2016,"PTRSMALAGA","RELLENO SANITARIO"]
[68498,"SANTANDER","OCAMONTE","SANTANDER - OCAMONTE","ACUASAN E.I.C.E  E.S.P",2016,"RELLENO SANITARIO EL CUCHARO","RELLENO SANITARIO"]
[68500,"SANTANDER","OIBA","SANTANDER - OIBA","ECOSANGIL SAS ESP",2016,"ECOSANGIL SAS ESP","RELLENO SANITARIO"]
[27245,"CHOCO","EL CARMEN DE ATRATO","CHOCO - EL CARMEN DE ATRATO","AGUAS DEL CARMELO A.S E.S.P",2016,"LA ARBOLEDA","RELLENO SANITARIO"]
[27250,"CHOCO","EL LITORAL DEL SAN JUAN","CHOCO - EL LITORAL DEL SAN JUAN","ND",2016,"ND","ND"]
[27361,"CHOCO","ISTMINA","CHOCO - ISTMINA","ND",2016,"ND","ND"]
[27372,"CHOCO","JURADÓ","CHOCO - JURADÓ","ND",2016,"ND","ND"]
[27413,"CHOCO","LLORÓ","CHOCO - LLORÓ","ND",2016,"ND","ND"]
[27425,"CHOCO","MEDIO ATRATO","CHOCO - MEDIO ATRATO","ND",2016,"ND","ND"]
[27430,"CHOCO","MEDIO BAUDÓ","CHOCO - MEDIO BAUDÓ","EMPRESA SOLIDARIA DE SERVICIOS PUBLICOS DOMICILIARIOS DEL MEDIO BAUDO CHOCO",2016,"BERRECUY","BOTADERO A CIELO ABIERTO"]
[27450,"CHOCO","MEDIO SAN JUAN","CHOCO - MEDIO SAN JUAN","ND",2016,"ND","ND"]
[27491,"CHOCO","NÓVITA","CHOCO - NÓVITA","ND",2016,"ND","ND"]
[76113,"VALLE DEL CAUCA","BUGALAGRANDE","VALLE DEL CAUCA - BUGALAGRANDE","BUGUEÑA DE ASEO S.A.  E.S.P.",2016,"RELLENO SANITARIO REGIONAL PRESIDENTE","RELLENO SANITARIO"]
[76122,"VALLE DEL CAUCA","CAICEDONIA","VALLE DEL CAUCA - CAICEDONIA","EMPRESAS PUBLICAS DE CAICEDONIA E.S.P.",2016,"EL JAZMIN","CELDA TRANSITORIA"]
[76126,"VALLE DEL CAUCA","CALIMA","VALLE DEL CAUCA - CALIMA","BUGUEÑA DE ASEO S.A.  E.S.P.",2016,"RELLENO SANITARIO REGIONAL PRESIDENTE","RELLENO SANITARIO"]
[76130,"VALLE DEL CAUCA","CANDELARIA","VALLE DEL CAUCA - CANDELARIA","INTERASEO DEL VALLE S.A E.S.P.",2016,"RELLENO SANITARIO REGIONAL COLOMBA-EL GUABAL","RELLENO SANITARIO"]
[52411,"NARIÑO","LINARES","NARIÑO - LINARES","ADMINISTRACIÓN PÚBLICA COOPERATIVA DE AGUA POTABLE Y SANEAMIENTO BÁSICO DE LINARES",2016,"MADRE SELVA","RELLENO SANITARIO"]
[52418,"NARIÑO","LOS ANDES","NARIÑO - LOS ANDES","ASOCIACION JUNTA ADMINISTRADORA DEL ACUEDUCTO ALCANTARILLADO Y ASEO DE SOTOMAYOR",2016,"RELLENO SANITARIO EL CREDO","RELLENO SANITARIO"]
[52427,"NARIÑO","MAGÜÍ","NARIÑO - MAGÜÍ","MUNICIPIO MAGUI PAYAN",2016,"SECTOR LA MINA","BOTADERO A CIELO ABIERTO"]
[52435,"NARIÑO","MALLAMA","NARIÑO - MALLAMA","EMPRESA METROPOLITANA DE ASEO DE PASTO S.A.  E.S.P. ",2016,"RELLENO SANITARIO ANTANAS","RELLENO SANITARIO"]
[52473,"NARIÑO","MOSQUERA","NARIÑO - MOSQUERA","MUNICIPIO DE MOSQUERA NARIÑO",2016,"LA PISTA","BOTADERO A CIELO ABIERTO"]
[52480,"NARIÑO","NARIÑO","NARIÑO - NARIÑO","EMPRESA METROPOLITANA DE ASEO DE PASTO S.A.  E.S.P. ",2016,"RELLENO SANITARIO ANTANAS","RELLENO SANITARIO"]
[52490,"NARIÑO","OLAYA HERRERA","NARIÑO - OLAYA HERRERA","MUNICIPIO DE OLAYA HERRERA",2016,"BARRIO LA PISTA","CELDA DE CONTINGENCIA"]
[52506,"NARIÑO","OSPINA","NARIÑO - OSPINA","EMPRESA METROPOLITANA DE ASEO DE PASTO S.A.  E.S.P. ",2016,"RELLENO SANITARIO ANTANAS","RELLENO SANITARIO"]
[52520,"NARIÑO","FRANCISCO PIZARRO","NARIÑO - FRANCISCO PIZARRO","MUNICIPIO DE FRANCISCO PIZARRO",2016,"BOTADERO CIELO ABIERTO LOS TRONCOS","BOTADERO A CIELO ABIERTO"]
[68502,"SANTANDER","ONZAGA","SANTANDER - ONZAGA","ONZAGUA APC",2016,"ALTICO","BOTADERO A CIELO ABIERTO"]
[68522,"SANTANDER","PALMAR","SANTANDER - PALMAR","ACUASAN E.I.C.E  E.S.P",2016,"RELLENO SANITARIO EL CUCHARO","RELLENO SANITARIO"]
[68524,"SANTANDER","PALMAS DEL SOCORRO","SANTANDER - PALMAS DEL SOCORRO","EMPRESA DE SOLUCIONES AMBIENTALES PARA COLOMBIA S.A E.S.P.",2016,"EL CUCHARO","RELLENO SANITARIO"]
[68533,"SANTANDER","PÁRAMO","SANTANDER - PÁRAMO","ACUASAN E.I.C.E  E.S.P",2016,"RELLENO SANITARIO EL CUCHARO","RELLENO SANITARIO"]
[68547,"SANTANDER","PIEDECUESTA","SANTANDER - PIEDECUESTA","EMPRESA DE ASEO DE BUCARAMANGA S.A. E.S.P.",2016,"EL CARRASCO","RELLENO SANITARIO"]
[68549,"SANTANDER","PINCHOTE","SANTANDER - PINCHOTE","ACUASAN E.I.C.E  E.S.P",2016,"RELLENO SANITARIO EL CUCHARO","RELLENO SANITARIO"]
[68572,"SANTANDER","PUENTE NACIONAL","SANTANDER - PUENTE NACIONAL","SERVIGENERALES CIUDAD DE TUNJA S.A.  E.S.P.",2016,"RELLENO SANITARIO PIRGUA","RELLENO SANITARIO"]
[68573,"SANTANDER","PUERTO PARRA","SANTANDER - PUERTO PARRA","EMPRESAS PUBLICAS DE CIMITARRA - ADMINISTRACION PUBLICA COPERATIVA",2016,"RELLENO SANITARIO LA FLORIDA","RELLENO SANITARIO"]
[68575,"SANTANDER","PUERTO WILCHES","SANTANDER - PUERTO WILCHES","AGUAS DE PUERTO WILCHES S.A.S.E.S.P",2016,"KILOMETRO TRES","BOTADERO A CIELO ABIERTO"]
[68615,"SANTANDER","RIONEGRO","SANTANDER - RIONEGRO","EMPRESA DE ASEO DE BUCARAMANGA S.A. E.S.P.",2016,"EL CARRASCO","RELLENO SANITARIO"]
[68655,"SANTANDER","SABANA DE TORRES","SANTANDER - SABANA DE TORRES","ASEO URBANO S.A.S. E.S.P.",2016,"PARQUE TECNOLOGICO AMBIENTAL LAS BATEAS","RELLENO SANITARIO"]
[68669,"SANTANDER","SAN ANDRÉS","SANTANDER - SAN ANDRÉS","EMPRESAS PUBLICAS MUNICIPALES DE MALAGA  E.S.P.",2016,"PTRSMALAGA","RELLENO SANITARIO"]
[27495,"CHOCO","NUQUÍ","CHOCO - NUQUÍ","AGUAS DE NUQUI SA ESP",2016,"LA PLAYA","BOTADERO A CIELO ABIERTO"]
[27580,"CHOCO","RÍO IRÓ","CHOCO - RÍO IRÓ","ND",2016,"ND","ND"]
[27600,"CHOCO","RÍO QUITO","CHOCO - RÍO QUITO","ND",2016,"ND","ND"]
[27615,"CHOCO","RIOSUCIO","CHOCO - RIOSUCIO","ND",2016,"ND","ND"]
[27660,"CHOCO","SAN JOSÉ DEL PALMAR","CHOCO - SAN JOSÉ DEL PALMAR","EMPRESA DE SERVICIOS PUBLICOS DE SAN JOSE DEL PALMAR",2016,"EL TABOR","BOTADERO A CIELO ABIERTO"]
[27745,"CHOCO","SIPÍ","CHOCO - SIPÍ","SECTOR  CARRETERA",2016,"SECTOR CEMENTERIO","RELLENO SANITARIO"]
[27787,"CHOCO","TADÓ","CHOCO - TADÓ","EMPRESA DE SERVICIOS PUBLICOS AGUAS DE TADO S.A.",2016,"HUECO OSCURO","BOTADERO A CIELO ABIERTO"]
[27800,"CHOCO","UNGUÍA","CHOCO - UNGUÍA","EMPRESA DE SERVICIOS PUBLICOS DE UNGUIA SA ESP ESPUN SA ESP",2016,"TAPETI","ENTERRAMIENTO"]
[27810,"CHOCO","UNIÓN PANAMERICANA","CHOCO - UNIÓN PANAMERICANA","ND",2016,"ND","ND"]
[76147,"VALLE DEL CAUCA","CARTAGO","VALLE DEL CAUCA - CARTAGO","ATESA DE OCCIDENTE S.A  E.S.P.",2016,"LA GLORITA","RELLENO SANITARIO"]
[76233,"VALLE DEL CAUCA","DAGUA","VALLE DEL CAUCA - DAGUA","INTERASEO DEL VALLE S.A E.S.P.",2016,"RELLENO SANITARIO REGIONAL COLOMBA-EL GUABAL","RELLENO SANITARIO"]
[76243,"VALLE DEL CAUCA","EL ÁGUILA","VALLE DEL CAUCA - EL ÁGUILA","ATESA DE OCCIDENTE S.A  E.S.P.",2016,"LA GLORITA","RELLENO SANITARIO"]
[76246,"VALLE DEL CAUCA","EL CAIRO","VALLE DEL CAUCA - EL CAIRO","ATESA DE OCCIDENTE S.A  E.S.P.",2016,"LA GLORITA","RELLENO SANITARIO"]
[76248,"VALLE DEL CAUCA","EL CERRITO","VALLE DEL CAUCA - EL CERRITO","BUGUEÑA DE ASEO S.A.  E.S.P.",2016,"RELLENO SANITARIO REGIONAL PRESIDENTE","RELLENO SANITARIO"]
[76250,"VALLE DEL CAUCA","EL DOVIO","VALLE DEL CAUCA - EL DOVIO","BUGUEÑA DE ASEO S.A.  E.S.P.",2016,"RELLENO SANITARIO REGIONAL PRESIDENTE","RELLENO SANITARIO"]
[76275,"VALLE DEL CAUCA","FLORIDA","VALLE DEL CAUCA - FLORIDA","INTERASEO DEL VALLE S.A E.S.P.",2016,"RELLENO SANITARIO REGIONAL COLOMBA-EL GUABAL","RELLENO SANITARIO"]
[76306,"VALLE DEL CAUCA","GINEBRA","VALLE DEL CAUCA - GINEBRA","BUGUEÑA DE ASEO S.A.  E.S.P.",2016,"RELLENO SANITARIO REGIONAL PRESIDENTE","RELLENO SANITARIO"]
[52540,"NARIÑO","POLICARPA","NARIÑO - POLICARPA","EMPRESA DE SERVICIOS PUBLICOS DEL MUNICIPIO DE POLICARPA ESP SA",2016,"EL CASTIGO","SIN INFORMACION"]
[52560,"NARIÑO","POTOSÍ","NARIÑO - POTOSÍ","EMPRESA METROPOLITANA DE ASEO DE PASTO S.A.  E.S.P. ",2016,"RELLENO SANITARIO ANTANAS","RELLENO SANITARIO"]
[52565,"NARIÑO","PROVIDENCIA","NARIÑO - PROVIDENCIA","EMPRESA METROPOLITANA DE ASEO DE PASTO S.A.  E.S.P. ",2016,"RELLENO SANITARIO ANTANAS","RELLENO SANITARIO"]
[52573,"NARIÑO","PUERRES","NARIÑO - PUERRES","EMPRESA METROPOLITANA DE ASEO DE PASTO S.A.  E.S.P. ",2016,"RELLENO SANITARIO ANTANAS","RELLENO SANITARIO"]
[52585,"NARIÑO","PUPIALES","NARIÑO - PUPIALES","INSTITUTO DE SERVICIOS VARIOS DE IPIALES",2016,"LA VICTORIA","RELLENO SANITARIO"]
[52621,"NARIÑO","ROBERTO PAYÁN","NARIÑO - ROBERTO PAYÁN","MUNICIPIO DE ROBERTO PAYAN",2016,"SIN NOMBRE","BOTADERO A CIELO ABIERTO"]
[52678,"NARIÑO","SAMANIEGO","NARIÑO - SAMANIEGO","EMPRESA METROPOLITANA DE ASEO DE PASTO S.A.  E.S.P. ",2016,"RELLENO SANITARIO ANTANAS","RELLENO SANITARIO"]
[52683,"NARIÑO","SANDONÁ","NARIÑO - SANDONÁ","EMPRESA METROPOLITANA DE ASEO DE PASTO S.A.  E.S.P. ",2016,"RELLENO SANITARIO ANTANAS","RELLENO SANITARIO"]
[52685,"NARIÑO","SAN BERNARDO","NARIÑO - SAN BERNARDO","ND",2016,"ND","ND"]
[52687,"NARIÑO","SAN LORENZO","NARIÑO - SAN LORENZO","EMPRESA METROPOLITANA DE ASEO DE PASTO S.A.  E.S.P. ",2016,"RELLENO SANITARIO ANTANAS","RELLENO SANITARIO"]
[68673,"SANTANDER","SAN BENITO","SANTANDER - SAN BENITO","EMPRESA DE SOLUCIONES AMBIENTALES PARA COLOMBIA S.A E.S.P.",2016,"EL CUCHARO","RELLENO SANITARIO"]
[68679,"SANTANDER","SAN GIL","SANTANDER - SAN GIL","ACUASAN E.I.C.E  E.S.P",2016,"RELLENO SANITARIO EL CUCHARO","RELLENO SANITARIO"]
[68682,"SANTANDER","SAN JOAQUÍN","SANTANDER - SAN JOAQUÍN","EMPRESA DE SERVICIOS PUBLICOS DE SAN JOAQUIN CURIPA SAS ESP",2016,"RELLENO SANITARIO SAN JOAQUIN","RELLENO SANITARIO"]
[68684,"SANTANDER","SAN JOSÉ DE MIRANDA","SANTANDER - SAN JOSÉ DE MIRANDA","EMPRESAS PUBLICAS MUNICIPALES DE MALAGA  E.S.P.",2016,"PTRSMALAGA","RELLENO SANITARIO"]
[68686,"SANTANDER","SAN MIGUEL","SANTANDER - SAN MIGUEL","UNIDAD ADMINISTRADORA DE SERVICIOS PÚBLICOS DE ACUEDUCTO, ALCANTARILLADO Y ASEO EN LA CABECERA MUNICIPAL  DEL MUNICIPIO DE SAN MIGUEL",2016,"MICRO RELLENO SANITARIO PARA EL MUNICIPIO DE SAN MIGUEL","RELLENO SANITARIO"]
[68689,"SANTANDER","SAN VICENTE DE CHUCURÍ","SANTANDER - SAN VICENTE DE CHUCURÍ","ADMINISTRACION PUBLICA COOPERATIVA DE SERVICIOS PUBLICOS DE SAN VICENTE DE CHUCURI",2016,"RELLENO SANITARIO SAN VICENTE DE CHUCURI","RELLENO SANITARIO"]
[68705,"SANTANDER","SANTA BÁRBARA","SANTANDER - SANTA BÁRBARA","EMPRESA DE ASEO DE BUCARAMANGA S.A. E.S.P.",2016,"EL CARRASCO","RELLENO SANITARIO"]
[68720,"SANTANDER","SANTA HELENA DEL OPÓN","SANTANDER - SANTA HELENA DEL OPÓN","EMPRESA DE SERVICIOS PUBLICOS DOMICILIARIOS DE ACUEDUCTO ALCANTARILLADO Y ASEO SANTA HELENA AAA SA ESP",2016,"EL BOSQUE","RELLENO SANITARIO"]
[68745,"SANTANDER","SIMACOTA","SANTANDER - SIMACOTA","ACUASAN E.I.C.E  E.S.P",2016,"RELLENO SANITARIO EL CUCHARO","RELLENO SANITARIO"]
[68755,"SANTANDER","SOCORRO","SANTANDER - SOCORRO","EMPRESA DE SOLUCIONES AMBIENTALES PARA COLOMBIA S.A E.S.P.",2016,"EL CUCHARO","RELLENO SANITARIO"]
[68770,"SANTANDER","SUAITA","SANTANDER - SUAITA","ACUASAN E.I.C.E  E.S.P",2016,"RELLENO SANITARIO EL CUCHARO","RELLENO SANITARIO"]
[68773,"SANTANDER","SUCRE","SANTANDER - SUCRE","EMPRESA DE SOLUCIONES AMBIENTALES PARA COLOMBIA S.A E.S.P.",2016,"EL CUCHARO","RELLENO SANITARIO"]
[41001,"HUILA","NEIVA","HUILA - NEIVA","CIUDAD LIMPIA NEIVA S.A E.S.P",2016,"RELLENO SANITARIO LOS ANGELES","RELLENO SANITARIO"]
[41006,"HUILA","ACEVEDO","HUILA - ACEVEDO","BIORGANICOS DEL SUR DEL HUILA S.A  E.S.P. EN REESTRUCTURACION",2016,"BIORGANICOS DEL SUR","CELDA TRANSITORIA"]
[41013,"HUILA","AGRADO","HUILA - AGRADO","CIUDAD LIMPIA NEIVA S.A E.S.P",2016,"RELLENO SANITARIO LOS ANGELES","RELLENO SANITARIO"]
[41016,"HUILA","AIPE","HUILA - AIPE","CIUDAD LIMPIA NEIVA S.A E.S.P",2016,"RELLENO SANITARIO LOS ANGELES","RELLENO SANITARIO"]
[41020,"HUILA","ALGECIRAS","HUILA - ALGECIRAS","CIUDAD LIMPIA NEIVA S.A E.S.P",2016,"RELLENO SANITARIO LOS ANGELES","RELLENO SANITARIO"]
[41026,"HUILA","ALTAMIRA","HUILA - ALTAMIRA","SERVICIOS INTEGRALES EFECTIVOS S.A.  E.S.P.",2016,"LA ESPERANZA","RELLENO SANITARIO"]
[41078,"HUILA","BARAYA","HUILA - BARAYA","CIUDAD LIMPIA NEIVA S.A E.S.P",2016,"RELLENO SANITARIO LOS ANGELES","RELLENO SANITARIO"]
[41132,"HUILA","CAMPOALEGRE","HUILA - CAMPOALEGRE","CIUDAD LIMPIA NEIVA S.A E.S.P",2016,"RELLENO SANITARIO LOS ANGELES","RELLENO SANITARIO"]
[41206,"HUILA","COLOMBIA","HUILA - COLOMBIA","CIUDAD LIMPIA NEIVA S.A E.S.P",2016,"RELLENO SANITARIO LOS ANGELES","RELLENO SANITARIO"]
[76318,"VALLE DEL CAUCA","GUACARÍ","VALLE DEL CAUCA - GUACARÍ","BUGUEÑA DE ASEO S.A.  E.S.P.",2016,"RELLENO SANITARIO REGIONAL PRESIDENTE","RELLENO SANITARIO"]
[76364,"VALLE DEL CAUCA","JAMUNDÍ","VALLE DEL CAUCA - JAMUNDÍ","INTERASEO DEL VALLE S.A E.S.P.",2016,"RELLENO SANITARIO REGIONAL COLOMBA-EL GUABAL","RELLENO SANITARIO"]
[76377,"VALLE DEL CAUCA","LA CUMBRE","VALLE DEL CAUCA - LA CUMBRE","INTERASEO DEL VALLE S.A E.S.P.",2016,"RELLENO SANITARIO REGIONAL COLOMBA-EL GUABAL","RELLENO SANITARIO"]
[76400,"VALLE DEL CAUCA","LA UNIÓN","VALLE DEL CAUCA - LA UNIÓN","BUGUEÑA DE ASEO S.A.  E.S.P.",2016,"RELLENO SANITARIO REGIONAL PRESIDENTE","RELLENO SANITARIO"]
[76403,"VALLE DEL CAUCA","LA VICTORIA","VALLE DEL CAUCA - LA VICTORIA","BUGUEÑA DE ASEO S.A.  E.S.P.",2016,"RELLENO SANITARIO REGIONAL PRESIDENTE","RELLENO SANITARIO"]
[76497,"VALLE DEL CAUCA","OBANDO","VALLE DEL CAUCA - OBANDO","ATESA DE OCCIDENTE S.A  E.S.P.",2016,"LA GLORITA","RELLENO SANITARIO"]
[76520,"VALLE DEL CAUCA","PALMIRA","VALLE DEL CAUCA - PALMIRA","BUGUEÑA DE ASEO S.A.  E.S.P.",2016,"RELLENO SANITARIO REGIONAL PRESIDENTE","RELLENO SANITARIO"]
[76563,"VALLE DEL CAUCA","PRADERA","VALLE DEL CAUCA - PRADERA","BUGUEÑA DE ASEO S.A.  E.S.P.",2016,"RELLENO SANITARIO REGIONAL PRESIDENTE","RELLENO SANITARIO"]
[52693,"NARIÑO","SAN PABLO","NARIÑO - SAN PABLO","EMPRESA METROPOLITANA DE ASEO DE PASTO S.A.  E.S.P. ",2016,"RELLENO SANITARIO ANTANAS","RELLENO SANITARIO"]
[52694,"NARIÑO","SAN PEDRO DE CARTAGO","NARIÑO - SAN PEDRO DE CARTAGO","EMPRESA DE SERVICIOS PUBLICOS DE SAN PEDRO DE CARTAGO  SA",2016,"RELLENO SANITARIO MUNICIPIO SAN PEDRO DE CARTAGO","RELLENO SANITARIO"]
[52696,"NARIÑO","SANTA BÁRBARA","NARIÑO - SANTA BÁRBARA","ND",2016,"ND","ND"]
[52699,"NARIÑO","SANTACRUZ","NARIÑO - SANTACRUZ","EMPRESA METROPOLITANA DE ASEO DE PASTO S.A.  E.S.P. ",2016,"RELLENO SANITARIO ANTANAS","RELLENO SANITARIO"]
[52720,"NARIÑO","SAPUYES","NARIÑO - SAPUYES","EMPRESA METROPOLITANA DE ASEO DE PASTO S.A.  E.S.P. ",2016,"RELLENO SANITARIO ANTANAS","RELLENO SANITARIO"]
[52786,"NARIÑO","TAMINANGO","NARIÑO - TAMINANGO","EMPRESA METROPOLITANA DE ASEO DE PASTO S.A.  E.S.P. ",2016,"RELLENO SANITARIO ANTANAS","RELLENO SANITARIO"]
[52788,"NARIÑO","TANGUA","NARIÑO - TANGUA","EMPRESA METROPOLITANA DE ASEO DE PASTO S.A.  E.S.P. ",2016,"RELLENO SANITARIO ANTANAS","RELLENO SANITARIO"]
[52835,"NARIÑO","SAN ANDRÉS DE TUMACO","NARIÑO - SAN ANDRÉS DE TUMACO","EMPRESA DE ACUEDUCTO, ALCANTARILLADO Y ASEO DE COLOMBIA S.A. E.S.P.",2016,"BUCHELLI","RELLENO SANITARIO"]
[52838,"NARIÑO","TÚQUERRES","NARIÑO - TÚQUERRES","EMPRESA METROPOLITANA DE ASEO DE PASTO S.A.  E.S.P. ",2016,"RELLENO SANITARIO ANTANAS","RELLENO SANITARIO"]
[52885,"NARIÑO","YACUANQUER","NARIÑO - YACUANQUER","EMPRESA METROPOLITANA DE ASEO DE PASTO S.A.  E.S.P. ",2016,"RELLENO SANITARIO ANTANAS","RELLENO SANITARIO"]
[54001,"NORTE DE SANTANDER","CÚCUTA","NORTE DE SANTANDER - CÚCUTA","ASEO URBANO S.A.S. E.S.P.",2016,"GUAYABAL","RELLENO SANITARIO"]
[68780,"SANTANDER","SURATÁ","SANTANDER - SURATÁ","EMPRESA DE ASEO DE BUCARAMANGA S.A. E.S.P.",2016,"EL CARRASCO","RELLENO SANITARIO"]
[68820,"SANTANDER","TONA","SANTANDER - TONA","EMPRESA DE ASEO DE BUCARAMANGA S.A. E.S.P.",2016,"EL CARRASCO","RELLENO SANITARIO"]
[68855,"SANTANDER","VALLE DE SAN JOSÉ","SANTANDER - VALLE DE SAN JOSÉ","ND",2016,"ND","ND"]
[68861,"SANTANDER","VÉLEZ","SANTANDER - VÉLEZ","SERVIGENERALES CIUDAD DE TUNJA S.A.  E.S.P.",2016,"RELLENO SANITARIO PIRGUA","RELLENO SANITARIO"]
[68867,"SANTANDER","VETAS","SANTANDER - VETAS","EMPRESA DE SERVICIOS PUBLICOS DE PAMPLONA S.A. E.S.P.",2016,"LA CORTADA","RELLENO SANITARIO"]
[68872,"SANTANDER","VILLANUEVA","SANTANDER - VILLANUEVA","ND",2016,"ND","ND"]
[68895,"SANTANDER","ZAPATOCA","SANTANDER - ZAPATOCA","EMPRESA DE ASEO DE BUCARAMANGA S.A. E.S.P.",2016,"EL CARRASCO","RELLENO SANITARIO"]
[70001,"SUCRE","SINCELEJO","SUCRE - SINCELEJO","INTERASEO S.A  E.S.P",2016,"EL OASIS","RELLENO SANITARIO"]
[70110,"SUCRE","BUENAVISTA","SUCRE - BUENAVISTA","SERVICIOS GENERALES EMPRESA DE SERVICIOS PUBLICOS DE CARACTER PRIVADO S.A. E.S.P.",2016,"RELLENO SANITARIO LOMA GRANDE","RELLENO SANITARIO"]
[70124,"SUCRE","CAIMITO","SUCRE - CAIMITO","ND",2016,"ND","ND"]
[41244,"HUILA","ELÍAS","HUILA - ELÍAS","BIORGANICOS DEL SUR DEL HUILA S.A  E.S.P. EN REESTRUCTURACION",2016,"BIORGANICOS DEL SUR","CELDA TRANSITORIA"]
[41298,"HUILA","GARZÓN","HUILA - GARZÓN","CIUDAD LIMPIA NEIVA S.A E.S.P",2016,"RELLENO SANITARIO LOS ANGELES","RELLENO SANITARIO"]
[41306,"HUILA","GIGANTE","HUILA - GIGANTE","CIUDAD LIMPIA NEIVA S.A E.S.P",2016,"RELLENO SANITARIO LOS ANGELES","RELLENO SANITARIO"]
[41319,"HUILA","GUADALUPE","HUILA - GUADALUPE","SERVICIOS INTEGRALES EFECTIVOS S.A.  E.S.P.",2016,"LA ESPERANZA","RELLENO SANITARIO"]
[41349,"HUILA","HOBO","HUILA - HOBO","CIUDAD LIMPIA NEIVA S.A E.S.P",2016,"RELLENO SANITARIO LOS ANGELES","RELLENO SANITARIO"]
[41357,"HUILA","ÍQUIRA","HUILA - ÍQUIRA","CIUDAD LIMPIA NEIVA S.A E.S.P",2016,"RELLENO SANITARIO LOS ANGELES","RELLENO SANITARIO"]
[41359,"HUILA","ISNOS","HUILA - ISNOS","BIORGANICOS DEL SUR DEL HUILA S.A  E.S.P. EN REESTRUCTURACION",2016,"BIORGANICOS DEL SUR","CELDA TRANSITORIA"]
[41378,"HUILA","LA ARGENTINA","HUILA - LA ARGENTINA","CIUDAD LIMPIA NEIVA S.A E.S.P",2016,"RELLENO SANITARIO LOS ANGELES","RELLENO SANITARIO"]
[41396,"HUILA","LA PLATA","HUILA - LA PLATA","CIUDAD LIMPIA NEIVA S.A E.S.P",2016,"RELLENO SANITARIO LOS ANGELES","RELLENO SANITARIO"]
[41483,"HUILA","NÁTAGA","HUILA - NÁTAGA","CIUDAD LIMPIA NEIVA S.A E.S.P",2016,"RELLENO SANITARIO LOS ANGELES","RELLENO SANITARIO"]
[41503,"HUILA","OPORAPA","HUILA - OPORAPA","BIORGANICOS DEL SUR DEL HUILA S.A  E.S.P. EN REESTRUCTURACION",2016,"BIORGANICOS DEL SUR","CELDA TRANSITORIA"]
[41518,"HUILA","PAICOL","HUILA - PAICOL","CIUDAD LIMPIA NEIVA S.A E.S.P",2016,"RELLENO SANITARIO LOS ANGELES","RELLENO SANITARIO"]
[76606,"VALLE DEL CAUCA","RESTREPO","VALLE DEL CAUCA - RESTREPO","INTERASEO DEL VALLE S.A E.S.P.",2016,"RELLENO SANITARIO REGIONAL COLOMBA-EL GUABAL","RELLENO SANITARIO"]
[76616,"VALLE DEL CAUCA","RIOFRÍO","VALLE DEL CAUCA - RIOFRÍO","BUGUEÑA DE ASEO S.A.  E.S.P.",2016,"RELLENO SANITARIO REGIONAL PRESIDENTE","RELLENO SANITARIO"]
[76622,"VALLE DEL CAUCA","ROLDANILLO","VALLE DEL CAUCA - ROLDANILLO","BUGUEÑA DE ASEO S.A.  E.S.P.",2016,"RELLENO SANITARIO REGIONAL PRESIDENTE","RELLENO SANITARIO"]
[76670,"VALLE DEL CAUCA","SAN PEDRO","VALLE DEL CAUCA - SAN PEDRO","BUGUEÑA DE ASEO S.A.  E.S.P.",2016,"RELLENO SANITARIO REGIONAL PRESIDENTE","RELLENO SANITARIO"]
[76736,"VALLE DEL CAUCA","SEVILLA","VALLE DEL CAUCA - SEVILLA","SERVICIOS GENERALES EMPRESA DE SERVICIOS PUBLICOS DE CARACTER PRIVADO S.A. E.S.P.",2016,"PARQUE AMBIENTAL ANDALUCIA","RELLENO SANITARIO"]
[76823,"VALLE DEL CAUCA","TORO","VALLE DEL CAUCA - TORO","ATESA DE OCCIDENTE S.A  E.S.P.",2016,"LA GLORITA","RELLENO SANITARIO"]
[54003,"NORTE DE SANTANDER","ÁBREGO","NORTE DE SANTANDER - ÁBREGO","EMPRESA DE SERVICIOS PUBLICOS DE OCAÑA S.A.  E.S.P.",2016,"LA MADERA","RELLENO SANITARIO"]
[54051,"NORTE DE SANTANDER","ARBOLEDAS","NORTE DE SANTANDER - ARBOLEDAS","ASEO URBANO S.A.S. E.S.P.",2016,"GUAYABAL","RELLENO SANITARIO"]
[54099,"NORTE DE SANTANDER","BOCHALEMA","NORTE DE SANTANDER - BOCHALEMA","ASEO URBANO S.A.S. E.S.P.",2016,"GUAYABAL","RELLENO SANITARIO"]
[54109,"NORTE DE SANTANDER","BUCARASICA","NORTE DE SANTANDER - BUCARASICA","ASEO URBANO S.A.S. E.S.P.",2016,"GUAYABAL","RELLENO SANITARIO"]
[54125,"NORTE DE SANTANDER","CÁCOTA","NORTE DE SANTANDER - CÁCOTA","ND",2016,"ND","ND"]
[54128,"NORTE DE SANTANDER","CÁCHIRA","NORTE DE SANTANDER - CÁCHIRA","ASEO URBANO S.A.S. E.S.P.",2016,"PARQUE TECNOLOGICO AMBIENTAL LAS BATEAS","RELLENO SANITARIO"]
[54172,"NORTE DE SANTANDER","CHINÁCOTA","NORTE DE SANTANDER - CHINÁCOTA","ASEO URBANO S.A.S. E.S.P.",2016,"GUAYABAL","RELLENO SANITARIO"]
[54174,"NORTE DE SANTANDER","CHITAGÁ","NORTE DE SANTANDER - CHITAGÁ","EMPRESA DE SERVICIOS PUBLICOS DE PAMPLONA S.A. E.S.P.",2016,"LA CORTADA","RELLENO SANITARIO"]
[54206,"NORTE DE SANTANDER","CONVENCIÓN","NORTE DE SANTANDER - CONVENCIÓN","EMPRESA DE SERVICIOS PUBLICOS DE AGUA POTABLE, ALCANTARILLADO Y ASEO DEL MUNICIPIO DE  CONVENCIÓN",2016,"EL MORROCOY","BOTADERO A CIELO ABIERTO"]
[54223,"NORTE DE SANTANDER","CUCUTILLA","NORTE DE SANTANDER - CUCUTILLA","EMPRESA DE SERVICIOS PUBLICOS DE PAMPLONA S.A. E.S.P.",2016,"LA CORTADA","RELLENO SANITARIO"]
[70204,"SUCRE","COLOSÓ","SUCRE - COLOSÓ","INTERASEO S.A  E.S.P",2016,"EL OASIS","RELLENO SANITARIO"]
[70215,"SUCRE","COROZAL","SUCRE - COROZAL","SERVIASEO S.A.  E.S.P.",2016,"LA CANDELARIA","RELLENO SANITARIO"]
[70230,"SUCRE","CHALÁN","SUCRE - CHALÁN","INTERASEO S.A  E.S.P",2016,"EL OASIS","RELLENO SANITARIO"]
[70233,"SUCRE","EL ROBLE","SUCRE - EL ROBLE","SERVIASEO S.A.  E.S.P.",2016,"LA CANDELARIA","RELLENO SANITARIO"]
[70235,"SUCRE","GALERAS","SUCRE - GALERAS","SERVIASEO S.A.  E.S.P.",2016,"LA CANDELARIA","RELLENO SANITARIO"]
[70265,"SUCRE","GUARANDA","SUCRE - GUARANDA","ND",2016,"ND","ND"]
[70400,"SUCRE","LA UNIÓN","SUCRE - LA UNIÓN","INTERASEO S.A  E.S.P",2016,"EL OASIS","RELLENO SANITARIO"]
[41524,"HUILA","PALERMO","HUILA - PALERMO","CIUDAD LIMPIA NEIVA S.A E.S.P",2016,"RELLENO SANITARIO LOS ANGELES","RELLENO SANITARIO"]
[41530,"HUILA","PALESTINA","HUILA - PALESTINA","BIORGANICOS DEL SUR DEL HUILA S.A  E.S.P. EN REESTRUCTURACION",2016,"BIORGANICOS DEL SUR","CELDA TRANSITORIA"]
[41548,"HUILA","PITAL","HUILA - PITAL","CIUDAD LIMPIA NEIVA S.A E.S.P",2016,"RELLENO SANITARIO LOS ANGELES","RELLENO SANITARIO"]
[41551,"HUILA","PITALITO","HUILA - PITALITO","BIORGANICOS DEL SUR DEL HUILA S.A  E.S.P. EN REESTRUCTURACION",2016,"BIORGANICOS DEL SUR","CELDA TRANSITORIA"]
[41615,"HUILA","RIVERA","HUILA - RIVERA","CIUDAD LIMPIA NEIVA S.A E.S.P",2016,"RELLENO SANITARIO LOS ANGELES","RELLENO SANITARIO"]
[41660,"HUILA","SALADOBLANCO","HUILA - SALADOBLANCO","BIORGANICOS DEL SUR DEL HUILA S.A  E.S.P. EN REESTRUCTURACION",2016,"BIORGANICOS DEL SUR","CELDA TRANSITORIA"]
[41668,"HUILA","SAN AGUSTÍN","HUILA - SAN AGUSTÍN","BIORGANICOS DEL SUR DEL HUILA S.A  E.S.P. EN REESTRUCTURACION",2016,"BIORGANICOS DEL SUR","CELDA TRANSITORIA"]
[41676,"HUILA","SANTA MARÍA","HUILA - SANTA MARÍA","CIUDAD LIMPIA NEIVA S.A E.S.P",2016,"RELLENO SANITARIO LOS ANGELES","RELLENO SANITARIO"]
[41770,"HUILA","SUAZA","HUILA - SUAZA","SERVICIOS INTEGRALES EFECTIVOS S.A.  E.S.P.",2016,"LA ESPERANZA","RELLENO SANITARIO"]
[41791,"HUILA","TARQUI","HUILA - TARQUI","CIUDAD LIMPIA NEIVA S.A E.S.P",2016,"RELLENO SANITARIO LOS ANGELES","RELLENO SANITARIO"]
[41797,"HUILA","TESALIA","HUILA - TESALIA","CIUDAD LIMPIA NEIVA S.A E.S.P",2016,"RELLENO SANITARIO LOS ANGELES","RELLENO SANITARIO"]
[76828,"VALLE DEL CAUCA","TRUJILLO","VALLE DEL CAUCA - TRUJILLO","BUGUEÑA DE ASEO S.A.  E.S.P.",2016,"RELLENO SANITARIO REGIONAL PRESIDENTE","RELLENO SANITARIO"]
[76834,"VALLE DEL CAUCA","TULUÁ","VALLE DEL CAUCA - TULUÁ","BUGUEÑA DE ASEO S.A.  E.S.P.",2016,"RELLENO SANITARIO REGIONAL PRESIDENTE","RELLENO SANITARIO"]
[76845,"VALLE DEL CAUCA","ULLOA","VALLE DEL CAUCA - ULLOA","ATESA DE OCCIDENTE S.A  E.S.P.",2016,"LA GLORITA","RELLENO SANITARIO"]
[76863,"VALLE DEL CAUCA","VERSALLES","VALLE DEL CAUCA - VERSALLES","ATESA DE OCCIDENTE S.A  E.S.P.",2016,"LA GLORITA","RELLENO SANITARIO"]
[76869,"VALLE DEL CAUCA","VIJES","VALLE DEL CAUCA - VIJES","BUGUEÑA DE ASEO S.A.  E.S.P.",2016,"RELLENO SANITARIO REGIONAL PRESIDENTE","RELLENO SANITARIO"]
[76890,"VALLE DEL CAUCA","YOTOCO","VALLE DEL CAUCA - YOTOCO","BUGUEÑA DE ASEO S.A.  E.S.P.",2016,"RELLENO SANITARIO REGIONAL PRESIDENTE","RELLENO SANITARIO"]
[76892,"VALLE DEL CAUCA","YUMBO","VALLE DEL CAUCA - YUMBO","INTERASEO DEL VALLE S.A E.S.P.",2016,"RELLENO SANITARIO REGIONAL COLOMBA-EL GUABAL","RELLENO SANITARIO"]
[76895,"VALLE DEL CAUCA","ZARZAL","VALLE DEL CAUCA - ZARZAL","BUGUEÑA DE ASEO S.A.  E.S.P.",2016,"RELLENO SANITARIO REGIONAL PRESIDENTE","RELLENO SANITARIO"]
[81001,"ARAUCA","ARAUCA","ARAUCA - ARAUCA","EMPRESA DE ASEO DE ARAUCA S.A. ESP",2016,"RELLENO SANITARIO LAS GARZAS","RELLENO SANITARIO"]
[81065,"ARAUCA","ARAUQUITA","ARAUCA - ARAUQUITA","SECRETARIA DE SERVICIOS PUBLICOS DEL MUNICIPIO  DE ARAUQUITA",2016,"BASURERO MUNICIPAL","BOTADERO A CIELO ABIERTO"]
[81220,"ARAUCA","CRAVO NORTE","ARAUCA - CRAVO NORTE","EMPRESA DE SERVICIOS PUBLICOS DE CRAVO NORTE JAGUEY S.A E.S.P",2016,"EL TOTUMO","RELLENO SANITARIO"]
[54239,"NORTE DE SANTANDER","DURANIA","NORTE DE SANTANDER - DURANIA","ASEO URBANO S.A.S. E.S.P.",2016,"GUAYABAL","RELLENO SANITARIO"]
[54245,"NORTE DE SANTANDER","EL CARMEN","NORTE DE SANTANDER - EL CARMEN","EMPRESA DE SERVICIOS PUBLICOS DE OCAÑA S.A.  E.S.P.",2016,"LA MADERA","RELLENO SANITARIO"]
[54250,"NORTE DE SANTANDER","EL TARRA","NORTE DE SANTANDER - EL TARRA","EMPRESA DE SERVICIOS PUBLICOS DE OCAÑA S.A.  E.S.P.",2016,"LA MADERA","RELLENO SANITARIO"]
[54261,"NORTE DE SANTANDER","EL ZULIA","NORTE DE SANTANDER - EL ZULIA","ASEO URBANO S.A.S. E.S.P.",2016,"GUAYABAL","RELLENO SANITARIO"]
[54313,"NORTE DE SANTANDER","GRAMALOTE","NORTE DE SANTANDER - GRAMALOTE","ASEO URBANO S.A.S. E.S.P.",2016,"GUAYABAL","RELLENO SANITARIO"]
[54344,"NORTE DE SANTANDER","HACARÍ","NORTE DE SANTANDER - HACARÍ","EMPRESA DE SERVICIOS PUBLICOS DE OCAÑA S.A.  E.S.P.",2016,"LA MADERA","RELLENO SANITARIO"]
[54347,"NORTE DE SANTANDER","HERRÁN","NORTE DE SANTANDER - HERRÁN","ASEO URBANO S.A.S. E.S.P.",2016,"GUAYABAL","RELLENO SANITARIO"]
[54377,"NORTE DE SANTANDER","LABATECA","NORTE DE SANTANDER - LABATECA","ND",2016,"ND","ND"]
[54385,"NORTE DE SANTANDER","LA ESPERANZA","NORTE DE SANTANDER - LA ESPERANZA","ASEO URBANO S.A.S. E.S.P.",2016,"PARQUE TECNOLOGICO AMBIENTAL LAS BATEAS","RELLENO SANITARIO"]
[54398,"NORTE DE SANTANDER","LA PLAYA","NORTE DE SANTANDER - LA PLAYA","EMPRESA DE SERVICIOS PUBLICOS DE OCAÑA S.A.  E.S.P.",2016,"LA MADERA","RELLENO SANITARIO"]
[54405,"NORTE DE SANTANDER","LOS PATIOS","NORTE DE SANTANDER - LOS PATIOS","ASEO URBANO S.A.S. E.S.P.",2016,"GUAYABAL","RELLENO SANITARIO"]
[54418,"NORTE DE SANTANDER","LOURDES","NORTE DE SANTANDER - LOURDES","ASEO URBANO S.A.S. E.S.P.",2016,"GUAYABAL","RELLENO SANITARIO"]
[70418,"SUCRE","LOS PALMITOS","SUCRE - LOS PALMITOS","SERVIASEO S.A.  E.S.P.",2016,"LA CANDELARIA","RELLENO SANITARIO"]
[70429,"SUCRE","MAJAGUAL","SUCRE - MAJAGUAL","ND",2016,"ND","ND"]
[70473,"SUCRE","MORROA","SUCRE - MORROA","INTERASEO S.A  E.S.P",2016,"EL OASIS","RELLENO SANITARIO"]
[70508,"SUCRE","OVEJAS","SUCRE - OVEJAS","SERVIASEO S.A.  E.S.P.",2016,"LA CANDELARIA","RELLENO SANITARIO"]
[70523,"SUCRE","PALMITO","SUCRE - PALMITO","INTERASEO S.A  E.S.P",2016,"EL OASIS","RELLENO SANITARIO"]
[70670,"SUCRE","SAMPUÉS","SUCRE - SAMPUÉS","SERVIASEO S.A.  E.S.P.",2016,"LA CANDELARIA","RELLENO SANITARIO"]
[70678,"SUCRE","SAN BENITO ABAD","SUCRE - SAN BENITO ABAD","ND",2016,"ND","ND"]
[70702,"SUCRE","SAN JUAN DE BETULIA","SUCRE - SAN JUAN DE BETULIA","INTERASEO S.A  E.S.P",2016,"EL OASIS","RELLENO SANITARIO"]
[41799,"HUILA","TELLO","HUILA - TELLO","CIUDAD LIMPIA NEIVA S.A E.S.P",2016,"RELLENO SANITARIO LOS ANGELES","RELLENO SANITARIO"]
[41801,"HUILA","TERUEL","HUILA - TERUEL","CIUDAD LIMPIA NEIVA S.A E.S.P",2016,"RELLENO SANITARIO LOS ANGELES","RELLENO SANITARIO"]
[41807,"HUILA","TIMANÁ","HUILA - TIMANÁ","BIORGANICOS DEL SUR DEL HUILA S.A  E.S.P. EN REESTRUCTURACION",2016,"BIORGANICOS DEL SUR","CELDA TRANSITORIA"]
[41872,"HUILA","VILLAVIEJA","HUILA - VILLAVIEJA","CIUDAD LIMPIA NEIVA S.A E.S.P",2016,"RELLENO SANITARIO LOS ANGELES","RELLENO SANITARIO"]
[41885,"HUILA","YAGUARÁ","HUILA - YAGUARÁ","EMPRESAS PUBLICAS DE YAGUARA S.A. E.S.P.",2016,"PTRS YAGUARA","PLANTA DE TRATAMIENTO"]
[44001,"LA GUAJIRA","RIOHACHA","LA GUAJIRA - RIOHACHA","INTERASEO S.A  E.S.P",2016,"CELDA TRANSITORIA DE RIOHACHA","CELDA DE CONTINGENCIA"]
[44035,"LA GUAJIRA","ALBANIA","LA GUAJIRA - ALBANIA","ND",2016,"ND","ND"]
[44078,"LA GUAJIRA","BARRANCAS","LA GUAJIRA - BARRANCAS","INTERASEO S.A  E.S.P",2016,"RELLENO SANITARIO DE FONSECA","RELLENO SANITARIO"]
[44090,"LA GUAJIRA","DIBULLA","LA GUAJIRA - DIBULLA","ATESA DE OCCIDENTE S.A  E.S.P.",2016,"RELLENO SANITARIO REGIONAL DEL NORTE DE LA GUAJIRA","RELLENO SANITARIO"]
[44098,"LA GUAJIRA","DISTRACCIÓN","LA GUAJIRA - DISTRACCIÓN","INTERASEO S.A  E.S.P",2016,"RELLENO SANITARIO DE FONSECA","RELLENO SANITARIO"]
[44110,"LA GUAJIRA","EL MOLINO","LA GUAJIRA - EL MOLINO","INTERASEO S.A  E.S.P",2016,"RELLENO SANITARIO DE FONSECA","RELLENO SANITARIO"]
[81300,"ARAUCA","FORTUL","ARAUCA - FORTUL","EMPRESA COMUNITARIA DE ACUEDUCTO, ALCANTARILLADO Y ASEO URBANO Y RURAL DEL MUNICIPIO DE FORTUL",2016,"CELDA SAN PEDRO","CELDA DE CONTINGENCIA"]
[81591,"ARAUCA","PUERTO RONDÓN","ARAUCA - PUERTO RONDÓN","INGENIERIA Y MULTISOLUCIONES ESP SA",2016,"RELLENO COROCITO","RELLENO SANITARIO"]
[95015,"GUAVIARE","CALAMAR","GUAVIARE - CALAMAR","UNIDAD DE SERVICIOS PUBLICOS DOMICILIARIOS DEL MUNICIPIO DE CALAMAR - GUAVIARE",2016,"EL DIAMANTE","RELLENO SANITARIO"]
[95025,"GUAVIARE","EL RETORNO","GUAVIARE - EL RETORNO","AMBIENTAR E.S.P. S.A.",2016,"EL ALGARROBO","CELDA DE CONTINGENCIA"]
[95200,"GUAVIARE","MIRAFLORES","GUAVIARE - MIRAFLORES","MUNICIPIO DE MIRAFLORES GUAVIARE",2016,"VIA BUENOS AIRES","BOTADERO A CIELO ABIERTO"]
[97001,"VAUPES","MITÚ","VAUPES - MITÚ","UNIDAD ESPECIAL DE SERVICIOS PUBLICOS DOMICILIARIOS DEL MUNICIPIO DE MITU",2016,"EL ALTO","BOTADERO A CIELO ABIERTO"]
[97161,"VAUPES","CARURÚ","VAUPES - CARURÚ","UNIDAD DE SERVICIOS PUBLICOS DOMICILIARIOS DE ACUEDUCTO, ALCANTARILLADO, ASEO Y ENERGIA ZONA NO INTERCONECTADA, EN EL MUNICIPIO DE CARURU - VAUPES",2016,"RELLENO SANITARIO DEL MUNICIPIO DE CARURU","RELLENO SANITARIO"]
[97511,0,0,"0 - 0",0,0,0,0]
[97666,"VAUPES","TARAIRA","VAUPES - TARAIRA","ND",2016,"ND","ND"]
[97777,0,0,"0 - 0",0,0,0,0]
[97889,0,0,"0 - 0",0,0,0,0]
[99001,"VICHADA","PUERTO CARREÑO","VICHADA - PUERTO CARREÑO","ALCALDIA MUNICIPAL DE PUERTO CARREÑO",2016,"RELLENO SANITARIO MUNICIPIO DE PUERTO CARREÑO","RELLENO SANITARIO"]
[99524,"VICHADA","LA PRIMAVERA","VICHADA - LA PRIMAVERA","BIOAGRICOLA DEL LLANO S.A  EMPRESA DE SERVICIOS PUBLICOS",2016,"PARQUE ECOLOGICO RECICLANTE","RELLENO SANITARIO"]
[99624,"VICHADA","SANTA ROSALÍA","VICHADA - SANTA ROSALÍA","AGUAS DE ROSALIA AAA",2016,"RELLENO SANITARIO PAVANAY","RELLENO SANITARIO"]
[99773,"VICHADA","CUMARIBO","VICHADA - CUMARIBO","MUNICIPIO DE CUMARIBO",2016,"RELLENO SANITARIO CUATRO VIENTOS","RELLENO SANITARIO"]
[52612,"NARIÑO","RICAURTE","NARIÑO - RICAURTE","EMPRESA METROPOLITANA DE ASEO DE PASTO S.A.  E.S.P. ",2016,"RELLENO SANITARIO ANTANAS","RELLENO SANITARIO"]
[19318,"CAUCA","GUAPÍ","CAUCA - GUAPÍ","UNIDAD PRESTADORA DE LOS SERVICIOS PUBLICOS DOMICILIARIOS DE ACUEDUCTO, ALCANTARILLADO Y ASEO DEL MUNICIPIO DE GUAPI CAUCA",2016,"TEMUEY","BOTADERO A CIELO ABIERTO"]
[19318,"CAUCA","GUAPÍ","CAUCA - GUAPÍ","UNIDAD PRESTADORA DE LOS SERVICIOS PUBLICOS DOMICILIARIOS DE ACUEDUCTO, ALCANTARILLADO Y ASEO DEL MUNICIPIO DE GUAPI CAUCA",2016,"TEMUEY","BOTADERO A CIELO ABIERTO"]
[19318,"CAUCA","GUAPÍ","CAUCA - GUAPÍ","UNIDAD PRESTADORA DE LOS SERVICIOS PUBLICOS DOMICILIARIOS DE ACUEDUCTO, ALCANTARILLADO Y ASEO DEL MUNICIPIO DE GUAPI CAUCA",2016,"TEMUEY","BOTADERO A CIELO ABIERTO"]
[19318,"CAUCA","GUAPÍ","CAUCA - GUAPÍ","UNIDAD PRESTADORA DE LOS SERVICIOS PUBLICOS DOMICILIARIOS DE ACUEDUCTO, ALCANTARILLADO Y ASEO DEL MUNICIPIO DE GUAPI CAUCA",2016,"TEMUEY","BOTADERO A CIELO ABIERTO"]
[19318,"CAUCA","GUAPÍ","CAUCA - GUAPÍ","UNIDAD PRESTADORA DE LOS SERVICIOS PUBLICOS DOMICILIARIOS DE ACUEDUCTO, ALCANTARILLADO Y ASEO DEL MUNICIPIO DE GUAPI CAUCA",2016,"TEMUEY","BOTADERO A CIELO ABIERTO"]
[19318,"CAUCA","GUAPÍ","CAUCA - GUAPÍ","UNIDAD PRESTADORA DE LOS SERVICIOS PUBLICOS DOMICILIARIOS DE ACUEDUCTO, ALCANTARILLADO Y ASEO DEL MUNICIPIO DE GUAPI CAUCA",2016,"TEMUEY","BOTADERO A CIELO ABIERTO"]
[54480,"NORTE DE SANTANDER","MUTISCUA","NORTE DE SANTANDER - MUTISCUA","ND",2016,"ND","ND"]
[54498,"NORTE DE SANTANDER","OCAÑA","NORTE DE SANTANDER - OCAÑA","EMPRESA DE SERVICIOS PUBLICOS DE OCAÑA S.A.  E.S.P.",2016,"LA MADERA","RELLENO SANITARIO"]
[54518,"NORTE DE SANTANDER","PAMPLONA","NORTE DE SANTANDER - PAMPLONA","EMPRESA DE SERVICIOS PUBLICOS DE PAMPLONA S.A. E.S.P.",2016,"LA CORTADA","RELLENO SANITARIO"]
[54520,"NORTE DE SANTANDER","PAMPLONITA","NORTE DE SANTANDER - PAMPLONITA","ASEO URBANO S.A.S. E.S.P.",2016,"GUAYABAL","RELLENO SANITARIO"]
[54535,0,0,"0 - 0",0,0,0,0]
[54599,"NORTE DE SANTANDER","RAGONVALIA","NORTE DE SANTANDER - RAGONVALIA","ASEO URBANO S.A.S. E.S.P.",2016,"GUAYABAL","RELLENO SANITARIO"]
[54660,"NORTE DE SANTANDER","SALAZAR","NORTE DE SANTANDER - SALAZAR","ASEO URBANO S.A.S. E.S.P.",2016,"GUAYABAL","RELLENO SANITARIO"]
[54670,"NORTE DE SANTANDER","SAN CALIXTO","NORTE DE SANTANDER - SAN CALIXTO","EMPRESA DE SERVICIOS PUBLICOS DE OCAÑA S.A.  E.S.P.",2016,"LA MADERA","RELLENO SANITARIO"]
[54673,"NORTE DE SANTANDER","SAN CAYETANO","NORTE DE SANTANDER - SAN CAYETANO","ASEO URBANO S.A.S. E.S.P.",2016,"GUAYABAL","RELLENO SANITARIO"]
[70708,"SUCRE","SAN MARCOS","SUCRE - SAN MARCOS","INTERASEO S.A  E.S.P",2016,"EL OASIS","RELLENO SANITARIO"]
[70713,"SUCRE","SAN ONOFRE","SUCRE - SAN ONOFRE","SERVIASEO S.A.  E.S.P.",2016,"LA CANDELARIA","RELLENO SANITARIO"]
[70717,"SUCRE","SAN PEDRO","SUCRE - SAN PEDRO","INTERASEO S.A  E.S.P",2016,"EL OASIS","RELLENO SANITARIO"]
[70742,"SUCRE","SAN LUIS DE SINCÉ","SUCRE - SAN LUIS DE SINCÉ","INTERASEO S.A  E.S.P",2016,"EL OASIS","RELLENO SANITARIO"]
[70771,"SUCRE","SUCRE","SUCRE - SUCRE","EMPRESA DE SOLUCIONES AMBIENTALES PARA COLOMBIA S.A E.S.P.",2016,"EL CUCHARO","RELLENO SANITARIO"]
[70820,"SUCRE","SANTIAGO DE TOLÚ","SUCRE - SANTIAGO DE TOLÚ","INTERASEO S.A  E.S.P",2016,"EL OASIS","RELLENO SANITARIO"]
[44279,"LA GUAJIRA","FONSECA","LA GUAJIRA - FONSECA","INTERASEO S.A  E.S.P",2016,"RELLENO SANITARIO DE FONSECA","RELLENO SANITARIO"]
[44378,"LA GUAJIRA","HATONUEVO","LA GUAJIRA - HATONUEVO","INTERASEO S.A  E.S.P",2016,"RELLENO SANITARIO DE FONSECA","RELLENO SANITARIO"]
[44420,"LA GUAJIRA","LA JAGUA DEL PILAR","LA GUAJIRA - LA JAGUA DEL PILAR","EMPRESA DE SERVICIOS PUBLICOS DE LA JAGUA DEL PILAR",2016,"LA GRANJA","CELDA TRANSITORIA"]
[44430,"LA GUAJIRA","MAICAO","LA GUAJIRA - MAICAO","ATESA DE OCCIDENTE S.A  E.S.P.",2016,"RELLENO SANITARIO REGIONAL DEL NORTE DE LA GUAJIRA","RELLENO SANITARIO"]
[44560,"LA GUAJIRA","MANAURE","LA GUAJIRA - MANAURE","ATESA DE OCCIDENTE S.A  E.S.P.",2016,"RELLENO SANITARIO REGIONAL DEL NORTE DE LA GUAJIRA","RELLENO SANITARIO"]
[44650,"LA GUAJIRA","SAN JUAN DEL CESAR","LA GUAJIRA - SAN JUAN DEL CESAR","INTERASEO S.A  E.S.P",2016,"RELLENO SANITARIO DE FONSECA","RELLENO SANITARIO"]
[44847,"LA GUAJIRA","URIBIA","LA GUAJIRA - URIBIA","ACUEDUCTO ALCANTARILLADO Y ASEO DE URIBIA SAS ESP",2016,"CELDA TRANSITORIA","CELDA TRANSITORIA"]
[19318,"CAUCA","GUAPÍ","CAUCA - GUAPÍ","UNIDAD PRESTADORA DE LOS SERVICIOS PUBLICOS DOMICILIARIOS DE ACUEDUCTO, ALCANTARILLADO Y ASEO DEL MUNICIPIO DE GUAPI CAUCA",2016,"TEMUEY","BOTADERO A CIELO ABIERTO"]
[19318,"CAUCA","GUAPÍ","CAUCA - GUAPÍ","UNIDAD PRESTADORA DE LOS SERVICIOS PUBLICOS DOMICILIARIOS DE ACUEDUCTO, ALCANTARILLADO Y ASEO DEL MUNICIPIO DE GUAPI CAUCA",2016,"TEMUEY","BOTADERO A CIELO ABIERTO"]
[19318,"CAUCA","GUAPÍ","CAUCA - GUAPÍ","UNIDAD PRESTADORA DE LOS SERVICIOS PUBLICOS DOMICILIARIOS DE ACUEDUCTO, ALCANTARILLADO Y ASEO DEL MUNICIPIO DE GUAPI CAUCA",2016,"TEMUEY","BOTADERO A CIELO ABIERTO"]
[76109,"VALLE DEL CAUCA","BUENAVENTURA","VALLE DEL CAUCA - BUENAVENTURA","BUENAVENTURA MEDIO AMBIENTE S.A. E.S.P.",2016,"CORDOBA","CELDA TRANSITORIA"]
[54680,"NORTE DE SANTANDER","SANTIAGO","NORTE DE SANTANDER - SANTIAGO","ASEO URBANO S.A.S. E.S.P.",2016,"GUAYABAL","RELLENO SANITARIO"]
[54720,"NORTE DE SANTANDER","SARDINATA","NORTE DE SANTANDER - SARDINATA","ASEO URBANO S.A.S. E.S.P.",2016,"GUAYABAL","RELLENO SANITARIO"]
[54743,"NORTE DE SANTANDER","SILOS","NORTE DE SANTANDER - SILOS","EMPRESA DE SERVICIOS PUBLICOS DE PAMPLONA S.A. E.S.P.",2016,"LA CORTADA","RELLENO SANITARIO"]
[54800,"NORTE DE SANTANDER","TEORAMA","NORTE DE SANTANDER - TEORAMA","EMPRESA DE SERVICIOS PUBLICOS DE OCAÑA S.A.  E.S.P.",2016,"LA MADERA","RELLENO SANITARIO"]
[54810,"NORTE DE SANTANDER","TIBÚ","NORTE DE SANTANDER - TIBÚ","EMPRESAS MUNICIPALES DE TIBU E.S.P.",2016,"PLANTA DE TRATAMIENTO GIRSU","PLANTA DE TRATAMIENTO"]
[54820,"NORTE DE SANTANDER","TOLEDO","NORTE DE SANTANDER - TOLEDO","ND",2016,"ND","ND"]
[54871,"NORTE DE SANTANDER","VILLA CARO","NORTE DE SANTANDER - VILLA CARO","ASEO URBANO S.A.S. E.S.P.",2016,"GUAYABAL","RELLENO SANITARIO"]
[54874,"NORTE DE SANTANDER","VILLA DEL ROSARIO","NORTE DE SANTANDER - VILLA DEL ROSARIO","ASEO URBANO S.A.S. E.S.P.",2016,"GUAYABAL","RELLENO SANITARIO"]
[63001,"QUINDIO","ARMENIA","QUINDIO - ARMENIA","SERVICIOS GENERALES EMPRESA DE SERVICIOS PUBLICOS DE CARACTER PRIVADO S.A. E.S.P.",2016,"RELLENO SANITARIO LOMA GRANDE","RELLENO SANITARIO"]
[63111,"QUINDIO","BUENAVISTA","QUINDIO - BUENAVISTA","SERVICIOS GENERALES EMPRESA DE SERVICIOS PUBLICOS DE CARACTER PRIVADO S.A. E.S.P.",2016,"PARQUE AMBIENTAL ANDALUCIA","RELLENO SANITARIO"]
[63130,"QUINDIO","CALARCÁ","QUINDIO - CALARCÁ","SERVICIOS GENERALES EMPRESA DE SERVICIOS PUBLICOS DE CARACTER PRIVADO S.A. E.S.P.",2016,"PARQUE AMBIENTAL ANDALUCIA","RELLENO SANITARIO"]
[63190,"QUINDIO","CIRCASIA","QUINDIO - CIRCASIA","SERVICIOS GENERALES EMPRESA DE SERVICIOS PUBLICOS DE CARACTER PRIVADO S.A. E.S.P.",2016,"PARQUE AMBIENTAL ANDALUCIA","RELLENO SANITARIO"]
[63212,"QUINDIO","CÓRDOBA","QUINDIO - CÓRDOBA","SERVICIOS GENERALES EMPRESA DE SERVICIOS PUBLICOS DE CARACTER PRIVADO S.A. E.S.P.",2016,"PARQUE AMBIENTAL ANDALUCIA","RELLENO SANITARIO"]
[70823,"SUCRE","TOLÚ VIEJO","SUCRE - TOLÚ VIEJO","INTERASEO S.A  E.S.P",2016,"EL OASIS","RELLENO SANITARIO"]
[73001,"TOLIMA","IBAGUÉ","TOLIMA - IBAGUÉ","INTERASEO S.A  E.S.P",2016,"PARQUE INDUSTRIAL LA MIEL","RELLENO SANITARIO"]
[73024,"TOLIMA","ALPUJARRA","TOLIMA - ALPUJARRA","ALCALDIA MUNICIPAL ALPUJARRA TOLIMA",2016,"PREDIO LA SOLEDAD","CELDA TRANSITORIA"]
[73026,"TOLIMA","ALVARADO","TOLIMA - ALVARADO","INTERASEO S.A  E.S.P",2016,"PARQUE INDUSTRIAL LA MIEL","RELLENO SANITARIO"]
[73030,"TOLIMA","AMBALEMA","TOLIMA - AMBALEMA","SERVICIOS AMBIENTALES S.A.  E.S.P.",2016,"PARQUE ECOLOGICO PRADERAS DEL MAGDALENA","RELLENO SANITARIO"]
[73043,"TOLIMA","ANZOÁTEGUI","TOLIMA - ANZOÁTEGUI","INTERASEO S.A  E.S.P",2016,"PARQUE INDUSTRIAL LA MIEL","RELLENO SANITARIO"]

{"sheet":"EFINA-1","index":15,"n_rows":107,"n_cols":24,"rows_kept":107,"cut":false,"hidden":true,"merged":[[87,1,87,2],[99,1,99,2],[3,1,3,11]]}
[null,"Evaluación financiera del proyecto WTE"]
[null,"Alternativa 1. Gen. Energía Eléctrica"]
[null,"g"]
[null,"WTE Degradación anaeróbica"]
[null,"Parámetros ",null,null,null,"SI"]
[null,"Concepto","Unidad","Valor",null,"NO"]
[null,"Tasa de descuento","%",0.11799999999999999,"\nTasa de retorno para la actividad de distribución de energía eléctrica -CREG"]
[null,"Porcentaje de inversión inicial con fuente publica","%",{"$f":"+'Reporte viabilidad'!Q22","v":0}]
[null,"Años de vida util","#",{"$f":"20","v":20}]
[null,"% Costos de gerenciamiento sobre Costos de Op.",null,0.03]
[null,"Beneficio tributario (Impuesto de Renta) ",null,"SI"]
[null,"Impuesto de Renta","%",0.35]
[]
[null,"(Miles de $)"]
[null,"FLUJO DE CAJA"]
[null,"Concepto ","Unidad","Año 0","Año 1","Año 2","Año 3","Año 4","Año 5","Año 6","Año 7","Año 8","Año 9","Año 10","Año 11","Año 12","Año 13","Año 14","Año 15","Año 16","Año 17","Año 18","Año 19","Año 20"]
[null,"Ingresos","$/año"]
[null,"Por venta de energía eléctrica","$/año",null,{"$f":"+'6'!E33","v":0},{"$f":"+'6'!F33","v":0},{"$f":"+'6'!G33","v":0},{"$f":"+'6'!H33","v":0},{"$f":"+'6'!I33","v":0},{"$f":"+'6'!J33","v":0},{"$f":"+'6'!K33","v":0},{"$f":"+'6'!L33","v":0},{"$f":"+'6'!M33","v":0},{"$f":"+'6'!N33","v":0},{"$f":"+'6'!O33","v":0},{"$f":"+'6'!P33","v":0},{"$f":"+'6'!Q33","v":0},{"$f":"+'6'!R33","v":0},{"$f":"+'6'!S33","v":0},{"$f":"+'6'!T33","v":0},{"$f":"+'6'!U33","v":0},{"$f":"+'6'!V33","v":0},{"$f":"+'6'!W33","v":0},{"$f":"+'6'!X33","v":0}]
[null,"Por componente de disposición final","$/año",null,{"$f":"+'6'!E28+'6'!E29+'6'!E30","v":0},{"$f":"+'6'!F28+'6'!F29+'6'!F30","v":0},{"$f":"+'6'!G28+'6'!G29+'6'!G30","v":0},{"$f":"+'6'!H28+'6'!H29+'6'!H30","v":0},{"$f":"+'6'!I28+'6'!I29+'6'!I30","v":0},{"$f":"+'6'!J28+'6'!J29+'6'!J30","v":0},{"$f":"+'6'!K28+'6'!K29+'6'!K30","v":0},{"$f":"+'6'!L28+'6'!L29+'6'!L30","v":0},{"$f":"+'6'!M28+'6'!M29+'6'!M30","v":0},{"$f":"+'6'!N28+'6'!N29+'6'!N30","v":0},{"$f":"+'6'!O28+'6'!O29+'6'!O30","v":0},{"$f":"+'6'!P28+'6'!P29+'6'!P30","v":0},{"$f":"+'6'!Q28+'6'!Q29+'6'!Q30","v":0},{"$f":"+'6'!R28+'6'!R29+'6'!R30","v":0},{"$f":"+'6'!S28+'6'!S29+'6'!S30","v":0},{"$f":"+'6'!T28+'6'!T29+'6'!T30","v":0},{"$f":"+'6'!U28+'6'!U29+'6'!U30","v":0},{"$f":"+'6'!V28+'6'!V29+'6'!V30","v":0},{"$f":"+'6'!W28+'6'!W29+'6'!W30","v":0},{"$f":"+'6'!X28+'6'!X29+'6'!X30","v":0}]
[null,"Otros ingresos (Bonos de Carbono)","$/año",null,{"$f":"+'6'!E35","v":0},{"$f":"+'6'!F35","v":0},{"$f":"+'6'!G35","v":0},{"$f":"+'6'!H35","v":0},{"$f":"+'6'!I35","v":0},{"$f":"+'6'!J35","v":0},{"$f":"+'6'!K35","v":0},{"$f":"+'6'!L35","v":0},{"$f":"+'6'!M35","v":0},{"$f":"+'6'!N35","v":0},{"$f":"+'6'!O35","v":0},{"$f":"+'6'!P35","v":0},{"$f":"+'6'!Q35","v":0},{"$f":"+'6'!R35","v":0},{"$f":"+'6'!S35","v":0},{"$f":"+'6'!T35","v":0},{"$f":"+'6'!U35","v":0},{"$f":"+'6'!V35","v":0},{"$f":"+'6'!W35","v":0},{"$f":"+'6'!X35","v":0}]
[null,"Ingreso de los sub productos comercializables","$/año",null,{"$f":"+'6'!E32+'6'!E31","v":0},{"$f":"+'6'!F32+'6'!F31","v":0},{"$f":"+'6'!G32+'6'!G31","v":0},{"$f":"+'6'!H32+'6'!H31","v":0},{"$f":"+'6'!I32+'6'!I31","v":0},{"$f":"+'6'!J32+'6'!J31","v":0},{"$f":"+'6'!K32+'6'!K31","v":0},{"$f":"+'6'!L32+'6'!L31","v":0},{"$f":"+'6'!M32+'6'!M31","v":0},{"$f":"+'6'!N32+'6'!N31","v":0},{"$f":"+'6'!O32+'6'!O31","v":0},{"$f":"+'6'!P32+'6'!P31","v":0},{"$f":"+'6'!Q32+'6'!Q31","v":0},{"$f":"+'6'!R32+'6'!R31","v":0},{"$f":"+'6'!S32+'6'!S31","v":0},{"$f":"+'6'!T32+'6'!T31","v":0},{"$f":"+'6'!U32+'6'!U31","v":0},{"$f":"+'6'!V32+'6'!V31","v":0},{"$f":"+'6'!W32+'6'!W31","v":0},{"$f":"+'6'!X32+'6'!X31","v":0}]
[null,"Mejorador de Suelos (COMPOST)",null,null,{"$f":"+'6'!E34","v":0},{"$f":"+'6'!F34","v":0},{"$f":"+'6'!G34","v":0},{"$f":"+'6'!H34","v":0},{"$f":"+'6'!I34","v":0},{"$f":"+'6'!J34","v":0},{"$f":"+'6'!K34","v":0},{"$f":"+'6'!L34","v":0},{"$f":"+'6'!M34","v":0},{"$f":"+'6'!N34","v":0},{"$f":"+'6'!O34","v":0},{"$f":"+'6'!P34","v":0},{"$f":"+'6'!Q34","v":0},{"$f":"+'6'!R34","v":0},{"$f":"+'6'!S34","v":0},{"$f":"+'6'!T34","v":0},{"$f":"+'6'!U34","v":0},{"$f":"+'6'!V34","v":0},{"$f":"+'6'!W34","v":0},{"$f":"+'6'!X34","v":0}]
[null,"Total Ingresos ","$/año",{"$f":"+SUM(D19:D21)","v":0},{"$f":"+SUM(E18:E22)","v":0},{"$f":"+SUM(F18:F22)","v":0},0,0,0,0,0,0,0,0,0,0,0,0,0,0,0,0,0,0]
[null,null,"$/año"]
[null,"Costos de Inversión ","$/año"]
[null,"Estudios y Diseños","$/año",{"$f":"+'6'!D7","v":0}]
[null,"Predio","$/año",{"$f":"+'6'!D8","v":0}]
[null,"Obras Civiles Preliminares","$/año",{"$f":"+'6'!D11","v":0}]
[null,"Obras generalaes","$/año",{"$f":"+'6'!D12","v":0}]
[null,"Edificaciones","$/año",{"$f":"+'6'!D13","v":0}]
[null,"Equipos pretratamiento de residuos","$/año",{"$f":"+'6'!D14","v":0}]
[null,"Obras para valoración energética","$/año",{"$f":"+'6'!D16","v":0}]
[null,"Equipos pretratmiento otras Biomasas",{"$f":"+C32","v":"$/año"},{"$f":"+'6'!D15","v":0}]
[null,"Reposición de Equipos",null,{"$f":"+'6'!D23","v":0},{"$f":"+'6'!E23","v":0},{"$f":"+'6'!F23","v":0},{"$f":"+'6'!G23","v":0},{"$f":"+'6'!H23","v":0},{"$f":"+'6'!I23","v":0},{"$f":"+'6'!J23","v":0},{"$f":"+'6'!K23","v":0},{"$f":"+'6'!L23","v":0},{"$f":"+'6'!M23","v":0},{"$f":"+'6'!N23","v":0},{"$f":"+'6'!O23","v":0},{"$f":"+'6'!P23","v":0},{"$f":"+'6'!Q23","v":0},{"$f":"+'6'!R23","v":0},{"$f":"+'6'!S23","v":0},{"$f":"+'6'!T23","v":0},{"$f":"+'6'!U23","v":0},{"$f":"+'6'!V23","v":0},{"$f":"+'6'!W23","v":0},{"$f":"+'6'!X23","v":0}]
[null,"Total Costos de Inversión","$/año",{"$f":"+SUM(D26:D34)*(1-D8)","v":0},{"$f":"+SUM(E26:E34)","v":0},0,0,0,0,0,0,0,0,0,0,0,0,0,0,0,0,0,0,0]
[]
[null,"Costos de Operación y Mantenimiento","$/año"]
[null,"Aspectos generales","$/año",null,{"$f":"+'6'!E19","v":0},{"$f":"+'6'!F19","v":0},{"$f":"+'6'!G19","v":0},{"$f":"+'6'!H19","v":0},{"$f":"+'6'!I19","v":0},{"$f":"+'6'!J19","v":0},{"$f":"+'6'!K19","v":0},{"$f":"+'6'!L19","v":0},{"$f":"+'6'!M19","v":0},{"$f":"+'6'!N19","v":0},{"$f":"+'6'!O19","v":0},{"$f":"+'6'!P19","v":0},{"$f":"+'6'!Q19","v":0},{"$f":"+'6'!R19","v":0},{"$f":"+'6'!S19","v":0},{"$f":"+'6'!T19","v":0},{"$f":"+'6'!U19","v":0},{"$f":"+'6'!V19","v":0},{"$f":"+'6'!W19","v":0},{"$f":"+'6'!X19","v":0}]
[null,"Personal","$/año",null,{"$f":"+'6'!E20","v":0},{"$f":"+'6'!F20","v":0},{"$f":"+'6'!G20","v":0},{"$f":"+'6'!H20","v":0},{"$f":"+'6'!I20","v":0},{"$f":"+'6'!J20","v":0},{"$f":"+'6'!K20","v":0},{"$f":"+'6'!L20","v":0},{"$f":"+'6'!M20","v":0},{"$f":"+'6'!N20","v":0},{"$f":"+'6'!O20","v":0},{"$f":"+'6'!P20","v":0},{"$f":"+'6'!Q20","v":0},{"$f":"+'6'!R20","v":0},{"$f":"+'6'!S20","v":0},{"$f":"+'6'!T20","v":0},{"$f":"+'6'!U20","v":0},{"$f":"+'6'!V20","v":0},{"$f":"+'6'!W20","v":0},{"$f":"+'6'!X20","v":0}]
[null,"Valoración energética","$/año",null,{"$f":"+'6'!E21","v":0},{"$f":"+'6'!F21","v":0},{"$f":"+'6'!G21","v":0},{"$f":"+'6'!H21","v":0},{"$f":"+'6'!I21","v":0},{"$f":"+'6'!J21","v":0},{"$f":"+'6'!K21","v":0},{"$f":"+'6'!L21","v":0},{"$f":"+'6'!M21","v":0},{"$f":"+'6'!N21","v":0},{"$f":"+'6'!O21","v":0},{"$f":"+'6'!P21","v":0},{"$f":"+'6'!Q21","v":0},{"$f":"+'6'!R21","v":0},{"$f":"+'6'!S21","v":0},{"$f":"+'6'!T21","v":0},{"$f":"+'6'!U21","v":0},{"$f":"+'6'!V21","v":0},{"$f":"+'6'!W21","v":0},{"$f":"+'6'!X21","v":0}]
[null,"Varios","$/año",null,{"$f":"+'6'!E22","v":0},{"$f":"+'6'!F22","v":0},{"$f":"+'6'!G22","v":0},{"$f":"+'6'!H22","v":0},{"$f":"+'6'!I22","v":0},{"$f":"+'6'!J22","v":0},{"$f":"+'6'!K22","v":0},{"$f":"+'6'!L22","v":0},{"$f":"+'6'!M22","v":0},{"$f":"+'6'!N22","v":0},{"$f":"+'6'!O22","v":0},{"$f":"+'6'!P22","v":0},{"$f":"+'6'!Q22","v":0},{"$f":"+'6'!R22","v":0},{"$f":"+'6'!S22","v":0},{"$f":"+'6'!T22","v":0},{"$f":"+'6'!U22","v":0},{"$f":"+'6'!V22","v":0},{"$f":"+'6'!W22","v":0},{"$f":"+'6'!X22","v":0}]
[null,"Total Costos de Operación y Mantenimiento","$/año",null,{"$f":"+SUM(E38:E41)","v":0},{"$f":"+SUM(F38:F41)","v":0},0,0,0,0,0,0,0,0,0,0,0,0,0,0,0,0,0,0]
[null,null,"$/año"]
[null,"Costos de Administración","$/año"]
[null,"Gerenciamiento y de obras e inversiones","$/año",null,{"$f":"+E42*$D$10","v":0},0,0,0,0,0,0,0,0,0,0,0,0,0,0,0,0,0,0,0]
[null,"Seguros","$/año",null,{"$f":"+D35*1%","v":0},{"$f":"+E46","v":0},{"$f":"+F46","v":0},0,0,0,0,0,0,0,0,0,0,0,0,0,0,0,0,0]
[null,"Costos Financieros","$/año",null,{"$f":"+E23/1000*4","v":0},0,0,0,0,0,0,0,0,0,0,0,0,0,0,0,0,0,0,0]
[null,"Total Costos Administrativos ","$/año",{"$f":"+SUM(D45:D47)","v":0},0,0,0,0,0,0,0,0,0,0,0,0,0,0,0,0,0,0,0,0]
[]
[null,"Impuestos"]
[null,"IVA"]
[null,"Impuesto de Renta",null,null,{"$f":"+IF($D$11=\"SI\",E83*50%,E83)","v":0},{"$f":"+IF($D$11=\"SI\",F83*50%,F83)","v":0},{"$f":"+IF($D$11=\"SI\",G83*50%,G83)","v":0},{"$f":"+IF($D$11=\"SI\",H83*50%,H83)","v":0},{"$f":"+IF($D$11=\"SI\",I83*50%,I83)","v":0},{"$f":"+J83","v":0},0,0,0,0,0,0,0,0,0,0,0,0,0,0]
[null,"Aranceles "]
[]
[]
[null,"Flujo de Caja libre",null,{"$f":"+D23-D35-D42-D48-D52","v":0},{"$f":"+E23-E35-E42-E48-E52","v":0},0,0,0,0,0,0,0,0,0,0,0,0,0,0,0,0,0,0,0]
[null,"Flujo de caja acumulado",null,{"$f":"+D56","v":0},{"$f":"+D57+E56","v":0},{"$f":"+E57+F56","v":0},0,0,0,0,0,0,0,0,0,0,0,0,0,0,0,0,0,0]
[null,"Beneficios",null,{"$f":"+D23","v":0},0,0,0,0,0,0,0,0,0,0,0,0,0,0,0,0,0,0,0,0]
[null,"Costos ",null,{"$f":"+D52+D42+D35+D48","v":0},{"$f":"+E52+E42+E35+E48","v":0},0,0,0,0,0,0,0,0,0,0,0,0,0,0,0,0,0,0,0]
[]
[null,"TIR",{"$f":"+IRR(D56:X56)","v":{"$error":"#NUM!"}}]
[null,"VPN",{"$f":"+NPV($D$7,E56:X56)+D56","v":0}]
[null,"VPB",{"$f":"+NPV($D$7,E58:X58)+D58","v":0}]
[null,"VPC",{"$f":"+NPV($D$7,E59:X59)+D59","v":0}]
[null,"Relación B/C",{"$f":"+C63/C64","v":{"$error":"#DIV/0!"}}]
[null,"Payback",{"$f":"IF(COUNTIF(D57:X57,\"<0\")>20,\"\",COUNTIF(D57:X57,\"<0\"))","v":0}]
[]
[]
[null,"Estados de Resultados"]
[null,"Concepto ","Unidad","Año 0","Año 1","Año 2","Año 3","Año 4","Año 5","Año 6","Año 7","Año 8","Año 9","Año 10","Año 11","Año 12","Año 13","Año 14","Año 15","Año 16","Año 17","Año 18","Año 19","Año 20"]
[null,"Total Ingresos ",{"$f":"+C20","v":"$/año"},{"$f":"+D23","v":0},0,0,0,0,0,0,0,0,0,0,0,0,0,0,0,0,0,0,0,0]
[null,"Total Costos de Operación y Mantenimiento",{"$f":"+C42","v":"$/año"},0,0,0,0,0,0,0,0,0,0,0,0,0,0,0,0,0,0,0,0,0]
[null,"Utilidad Bruta ",null,{"$f":"+D71-D72","v":0},0,0,0,0,0,0,0,0,0,0,0,0,0,0,0,0,0,0,0,0]
[null,{"$f":"+B48","v":"Total Costos Administrativos "},{"$f":"+C48","v":"$/año"},{"$f":"+D48","v":0},{"$f":"+E48-E47","v":0},0,0,0,0,0,0,0,0,0,0,0,0,0,0,0,0,0,0,0]
[null,"EBITDA",null,{"$f":"+D73-D74","v":0},0,0,0,0,0,0,0,0,0,0,0,0,0,0,0,0,0,0,0,0]
[null,"Depreciación Inv Inicial",{"$f":"+C74","v":"$/año"},null,{"$f":"+(SUM(D28:D33))/D9","v":0},{"$f":"+E76","v":0},{"$f":"+F76","v":0},0,0,0,0,0,0,0,0,0,0,0,0,0,0,0,0,0]
[null,"Deprecciacion Reposición ",null,null,null,null,null,null,null,null,null,{"$f":"+$K$35/6","v":0},{"$f":"+$K$35/6","v":0},0,0,0,0,null,{"$f":"+$R$35/6","v":0},{"$f":"+$R$35/6","v":0},0,0,0,0]
[null,"UTILIDAD OPERATIVA ",null,{"$f":"+D75-D76","v":0},{"$f":"+E75-E76-E77","v":0},{"$f":"+F75-F76-F77","v":0},0,0,0,0,0,0,0,0,0,0,0,0,0,0,0,0,0,0]
[null,"Otros Gastos No Operacionales",null,null,{"$f":"+E47","v":0},0,0,0,0,0,0,0,0,0,0,0,0,0,0,0,0,0,0,0]
[null,"UTILIDAD ANTES DE IMPUESTOS",null,{"$f":"+D78","v":0},{"$f":"+E78-E79","v":0},0,0,0,0,0,0,0,0,0,0,0,0,0,0,0,0,0,0,0]
[null,"Impuestos"]
[null,"IVA"]
[null,"Impuesto de Renta",null,{"$f":"+IF(D80<0,0,D80*$D$12)","v":0},0,0,0,0,0,0,0,0,0,0,0,0,0,0,0,0,0,0,0,0]
[null,"UTILIDAD NETA",null,{"$f":"+D80-D83","v":0},0,0,0,0,0,0,0,0,0,0,0,0,0,0,0,0,0,0,0,0]
[]
[null,"Analisis de Sensibilidad"]
[]
[null,"Tir verus precio venta energia  y financiamiento publico",null,null,{"$f":"+C61","v":{"$error":"#NUM!"}}]
[null,null,null,0,{"$error":"#NUM!"}]
[null,null,null,0.05,{"$error":"#NUM!"}]
[null,null,null,0.1,{"$error":"#NUM!"}]
[null,null,null,0.2,{"$error":"#NUM!"}]
[null,null,null,0.3,{"$error":"#NUM!"}]
[null,null,null,0.4,{"$error":"#NUM!"}]
[null,null,null,0.5,{"$error":"#NUM!"}]
[null,null,null,0.6,{"$error":"#NUM!"}]
[null,null,null,0.7,{"$error":"#NUM!"}]
[null,null,null,0.8,{"$error":"#NUM!"}]
[]
[null,"Tir verus precio disposición final y precio venta de energia",null,{"$f":"+C61","v":{"$error":"#NUM!"}},33,34,35,36,37]
[null,null,null,0.12,{"$error":"#REF!"},{"$error":"#REF!"},{"$error":"#REF!"},{"$error":"#REF!"},{"$error":"#REF!"}]
[null,null,null,0.14000000000000001,{"$error":"#REF!"},{"$error":"#REF!"},{"$error":"#REF!"},{"$error":"#REF!"},{"$error":"#REF!"}]
[null,null,null,0.16,{"$error":"#REF!"},{"$error":"#REF!"},{"$error":"#REF!"},{"$error":"#REF!"},{"$error":"#REF!"}]
[null,null,null,0.18,{"$error":"#REF!"},{"$error":"#REF!"},{"$error":"#REF!"},{"$error":"#REF!"},{"$error":"#REF!"}]
[null,null,null,0.2,{"$error":"#REF!"},{"$error":"#REF!"},{"$error":"#REF!"},{"$error":"#REF!"},{"$error":"#REF!"}]
[null,null,null,0.22,{"$error":"#REF!"},{"$error":"#REF!"},{"$error":"#REF!"},{"$error":"#REF!"},{"$error":"#REF!"}]
[null,null,null,0.24,{"$error":"#REF!"},{"$error":"#REF!"},{"$error":"#REF!"},{"$error":"#REF!"},{"$error":"#REF!"}]

{"sheet":"EFINA-2","index":16,"n_rows":99,"n_cols":24,"rows_kept":99,"cut":false,"hidden":true,"merged":[[88,1,88,2],[3,1,3,11]]}
[null,"Evaluación financiera del proyecto WTE"]
[null,"Alternativa 1. Gen. Energía Eléctrica"]
[null,"g"]
[null,"WTE Incineración "]
[null,"Parámetros ",null,null,null,"SI"]
[null,"Concepto","Unidad","Valor",null,"NO"]
[null,"Tasa de descuento","%",0.11799999999999999,{"$f":"+'EFINA-1'!E7","v":"\nTasa de retorno para la actividad de distribución de energía eléctrica -CREG"}]
[null,"Porcentaje de inversión inicial con fuente publica","%",{"$f":"+'EFINA-1'!D8","v":0}]
[null,"Años de vida util","#",20]
[null,"% Costos de gerenciamiento sobre Costos de Op.",null,0.03]
[null,"Beneficio tributario (Impuesto de Renta) ",null,"SI"]
[null,"Impuesto de Renta","%",0.35]
[null," "]
[null,"(Miles de $)"]
[null,"FLUJO DE CAJA"]
[null,"Concepto ","Unidad","Año 0","Año 1","Año 2","Año 3","Año 4","Año 5","Año 6","Año 7","Año 8","Año 9","Año 10","Año 11","Año 12","Año 13","Año 14","Año 15","Año 16","Año 17","Año 18","Año 19","Año 20"]
[null,"Ingresos","$/año"]
[null,"Por venta de energía eléctrica","$/año",null,{"$f":"+'7'!E32","v":0},{"$f":"+'7'!F32","v":0},{"$f":"+'7'!G32","v":0},{"$f":"+'7'!H32","v":0},{"$f":"+'7'!I32","v":0},{"$f":"+'7'!J32","v":0},{"$f":"+'7'!K32","v":0},{"$f":"+'7'!L32","v":0},{"$f":"+'7'!M32","v":0},{"$f":"+'7'!N32","v":0},{"$f":"+'7'!O32","v":0},{"$f":"+'7'!P32","v":0},{"$f":"+'7'!Q32","v":0},{"$f":"+'7'!R32","v":0},{"$f":"+'7'!S32","v":0},{"$f":"+'7'!T32","v":0},{"$f":"+'7'!U32","v":0},{"$f":"+'7'!V32","v":0},{"$f":"+'7'!W32","v":0},{"$f":"+'7'!X32","v":0}]
[null,"Por componente de disposición final","$/año",null,{"$f":"+'7'!E28+'7'!E29","v":0},{"$f":"+'7'!F28+'7'!F29","v":0},{"$f":"+'7'!G28+'7'!G29","v":0},{"$f":"+'7'!H28+'7'!H29","v":0},{"$f":"+'7'!I28+'7'!I29","v":0},{"$f":"+'7'!J28+'7'!J29","v":0},{"$f":"+'7'!K28+'7'!K29","v":0},{"$f":"+'7'!L28+'7'!L29","v":0},{"$f":"+'7'!M28+'7'!M29","v":0},{"$f":"+'7'!N28+'7'!N29","v":0},{"$f":"+'7'!O28+'7'!O29","v":0},{"$f":"+'7'!P28+'7'!P29","v":0},{"$f":"+'7'!Q28+'7'!Q29","v":0},{"$f":"+'7'!R28+'7'!R29","v":0},{"$f":"+'7'!S28+'7'!S29","v":0},{"$f":"+'7'!T28+'7'!T29","v":0},{"$f":"+'7'!U28+'7'!U29","v":0},{"$f":"+'7'!V28+'7'!V29","v":0},{"$f":"+'7'!W28+'7'!W29","v":0},{"$f":"+'7'!X28+'7'!X29","v":0}]
[null,"Otros ingresos (Bonos de Carbono)","$/año",null,{"$f":"+'7'!E34","v":0},{"$f":"+'7'!F34","v":0},{"$f":"+'7'!G34","v":0},{"$f":"+'7'!H34","v":0},{"$f":"+'7'!I34","v":0},{"$f":"+'7'!J34","v":0},{"$f":"+'7'!K34","v":0},{"$f":"+'7'!L34","v":0},{"$f":"+'7'!M34","v":0},{"$f":"+'7'!N34","v":0},{"$f":"+'7'!O34","v":0},{"$f":"+'7'!P34","v":0},{"$f":"+'7'!Q34","v":0},{"$f":"+'7'!R34","v":0},{"$f":"+'7'!S34","v":0},{"$f":"+'7'!T34","v":0},{"$f":"+'7'!U34","v":0},{"$f":"+'7'!V34","v":0},{"$f":"+'7'!W34","v":0},{"$f":"+'7'!X34","v":0}]
[null,"Ingreso de los sub productos comercializables","$/año",null,{"$f":"+'7'!E31+'7'!E30","v":0},{"$f":"+'7'!F31+'7'!F30","v":0},{"$f":"+'7'!G31+'7'!G30","v":0},{"$f":"+'7'!H31+'7'!H30","v":0},{"$f":"+'7'!I31+'7'!I30","v":0},{"$f":"+'7'!J31+'7'!J30","v":0},{"$f":"+'7'!K31+'7'!K30","v":0},{"$f":"+'7'!L31+'7'!L30","v":0},{"$f":"+'7'!M31+'7'!M30","v":0},{"$f":"+'7'!N31+'7'!N30","v":0},{"$f":"+'7'!O31+'7'!O30","v":0},{"$f":"+'7'!P31+'7'!P30","v":0},{"$f":"+'7'!Q31+'7'!Q30","v":0},{"$f":"+'7'!R31+'7'!R30","v":0},{"$f":"+'7'!S31+'7'!S30","v":0},{"$f":"+'7'!T31+'7'!T30","v":0},{"$f":"+'7'!U31+'7'!U30","v":0},{"$f":"+'7'!V31+'7'!V30","v":0},{"$f":"+'7'!W31+'7'!W30","v":0},{"$f":"+'7'!X31+'7'!X30","v":0}]
[null,"Mejorador de Suelos (COMPOST)",null,null,{"$f":"+'7'!E33","v":0},{"$f":"+'7'!F33","v":0},{"$f":"+'7'!G33","v":0},{"$f":"+'7'!H33","v":0},{"$f":"+'7'!I33","v":0},{"$f":"+'7'!J33","v":0},{"$f":"+'7'!K33","v":0},{"$f":"+'7'!L33","v":0},{"$f":"+'7'!M33","v":0},{"$f":"+'7'!N33","v":0},{"$f":"+'7'!O33","v":0},{"$f":"+'7'!P33","v":0},{"$f":"+'7'!Q33","v":0},{"$f":"+'7'!R33","v":0},{"$f":"+'7'!S33","v":0},{"$f":"+'7'!T33","v":0},{"$f":"+'7'!U33","v":0},{"$f":"+'7'!V33","v":0},{"$f":"+'7'!W33","v":0},{"$f":"+'7'!X33","v":0}]
[null,"Energía como calor",{"$f":"+C21","v":"$/año"},null,{"$f":"+'7'!E35","v":0},{"$f":"+'7'!F35","v":0},{"$f":"+'7'!G35","v":0},{"$f":"+'7'!H35","v":0},{"$f":"+'7'!I35","v":0},{"$f":"+'7'!J35","v":0},{"$f":"+'7'!K35","v":0},{"$f":"+'7'!L35","v":0},{"$f":"+'7'!M35","v":0},{"$f":"+'7'!N35","v":0},{"$f":"+'7'!O35","v":0},{"$f":"+'7'!P35","v":0},{"$f":"+'7'!Q35","v":0},{"$f":"+'7'!R35","v":0},{"$f":"+'7'!S35","v":0},{"$f":"+'7'!T35","v":0},{"$f":"+'7'!U35","v":0},{"$f":"+'7'!V35","v":0},{"$f":"+'7'!W35","v":0},{"$f":"+'7'!X35","v":0}]
[null,"Total Ingresos ","$/año",{"$f":"+SUM(D19:D21)","v":0},{"$f":"+SUM(E18:E23)","v":0},{"$f":"+SUM(F18:F23)","v":0},0,0,0,0,0,0,0,0,0,0,0,0,0,0,0,0,0,0]
[null,null,"$/año"]
[null,"Costos de Inversión ","$/año"]
[null,"Estudios y Diseños","$/año",{"$f":"+'7'!D7","v":0}]
[null,"Predio","$/año",{"$f":"+'7'!D8","v":0}]
[null,"Obras Civiles Preliminares","$/año",{"$f":"+'7'!D11","v":0}]
[null,"Obras generalaes","$/año",{"$f":"+'7'!D12","v":0}]
[null,"Edificaciones","$/año",{"$f":"+'7'!D13","v":0}]
[null,"Equipos pretratamiento de residuos","$/año",{"$f":"+'7'!D14","v":0}]
[null,"Obras para valoración energética","$/año",{"$f":"+'7'!D16","v":0}]
[null,{"$f":"+'7'!C15","v":"Equipos pretratamiento otras biomasas"},"$/año",{"$f":"+'7'!D15","v":0}]
[null,"Reposición de Equipos","$/año",{"$f":"+'7'!D23","v":0},{"$f":"+'7'!E23","v":0},{"$f":"+'7'!F23","v":0},{"$f":"+'7'!G23","v":0},{"$f":"+'7'!H23","v":0},{"$f":"+'7'!I23","v":0},{"$f":"+'7'!J23","v":0},{"$f":"+'7'!K23","v":0},{"$f":"+'7'!L23","v":0},{"$f":"+'7'!M23","v":0},{"$f":"+'7'!N23","v":0},{"$f":"+'7'!O23","v":0},{"$f":"+'7'!P23","v":0},{"$f":"+'7'!Q23","v":0},{"$f":"+'7'!R23","v":0},{"$f":"+'7'!S23","v":0},{"$f":"+'7'!T23","v":0},{"$f":"+'7'!U23","v":0},{"$f":"+'7'!V23","v":0},{"$f":"+'7'!W23","v":0},{"$f":"+'7'!X23","v":0}]
[null,"Total Costos de Inversión","$/año",{"$f":"+SUM(D27:D35)*(1-D8)","v":0},{"$f":"+SUM(E27:E35)","v":0},0,0,0,0,0,0,0,0,0,0,0,0,0,0,0,0,0,0,0]
[]
[null,"Costos de Operación y Mantenimiento","$/año"]
[null,"Aspectos generales","$/año",null,{"$f":"+'7'!E19","v":0},{"$f":"+'7'!F19","v":0},{"$f":"+'7'!G19","v":0},{"$f":"+'7'!H19","v":0},{"$f":"+'7'!I19","v":0},{"$f":"+'7'!J19","v":0},{"$f":"+'7'!K19","v":0},{"$f":"+'7'!L19","v":0},{"$f":"+'7'!M19","v":0},{"$f":"+'7'!N19","v":0},{"$f":"+'7'!O19","v":0},{"$f":"+'7'!P19","v":0},{"$f":"+'7'!Q19","v":0},{"$f":"+'7'!R19","v":0},{"$f":"+'7'!S19","v":0},{"$f":"+'7'!T19","v":0},{"$f":"+'7'!U19","v":0},{"$f":"+'7'!V19","v":0},{"$f":"+'7'!W19","v":0},{"$f":"+'7'!X19","v":0}]
[null,"Personal","$/año",null,{"$f":"+'7'!E20","v":0},{"$f":"+'7'!F20","v":0},{"$f":"+'7'!G20","v":0},{"$f":"+'7'!H20","v":0},{"$f":"+'7'!I20","v":0},{"$f":"+'7'!J20","v":0},{"$f":"+'7'!K20","v":0},{"$f":"+'7'!L20","v":0},{"$f":"+'7'!M20","v":0},{"$f":"+'7'!N20","v":0},{"$f":"+'7'!O20","v":0},{"$f":"+'7'!P20","v":0},{"$f":"+'7'!Q20","v":0},{"$f":"+'7'!R20","v":0},{"$f":"+'7'!S20","v":0},{"$f":"+'7'!T20","v":0},{"$f":"+'7'!U20","v":0},{"$f":"+'7'!V20","v":0},{"$f":"+'7'!W20","v":0},{"$f":"+'7'!X20","v":0}]
[null,"Valoración energética","$/año",null,{"$f":"+'7'!E21","v":0},{"$f":"+'7'!F21","v":0},{"$f":"+'7'!G21","v":0},{"$f":"+'7'!H21","v":0},{"$f":"+'7'!I21","v":0},{"$f":"+'7'!J21","v":0},{"$f":"+'7'!K21","v":0},{"$f":"+'7'!L21","v":0},{"$f":"+'7'!M21","v":0},{"$f":"+'7'!N21","v":0},{"$f":"+'7'!O21","v":0},{"$f":"+'7'!P21","v":0},{"$f":"+'7'!Q21","v":0},{"$f":"+'7'!R21","v":0},{"$f":"+'7'!S21","v":0},{"$f":"+'7'!T21","v":0},{"$f":"+'7'!U21","v":0},{"$f":"+'7'!V21","v":0},{"$f":"+'7'!W21","v":0},{"$f":"+'7'!X21","v":0}]
[null,"Varios","$/año",null,{"$f":"+'7'!E22","v":0},{"$f":"+'7'!F22","v":0},{"$f":"+'7'!G22","v":0},{"$f":"+'7'!H22","v":0},{"$f":"+'7'!I22","v":0},{"$f":"+'7'!J22","v":0},{"$f":"+'7'!K22","v":0},{"$f":"+'7'!L22","v":0},{"$f":"+'7'!M22","v":0},{"$f":"+'7'!N22","v":0},{"$f":"+'7'!O22","v":0},{"$f":"+'7'!P22","v":0},{"$f":"+'7'!Q22","v":0},{"$f":"+'7'!R22","v":0},{"$f":"+'7'!S22","v":0},{"$f":"+'7'!T22","v":0},{"$f":"+'7'!U22","v":0},{"$f":"+'7'!V22","v":0},{"$f":"+'7'!W22","v":0},{"$f":"+'7'!X22","v":0}]
[null,"Total Costos de Operación y Mantenimiento","$/año",null,{"$f":"+SUM(E39:E42)","v":0},{"$f":"+SUM(F39:F42)","v":0},0,0,0,0,0,0,0,0,0,0,0,0,0,0,0,0,0,0]
[null,null,"$/año"]
[null,"Costos de Administración","$/año"]
[null,"Gerenciamiento y de obras e inversiones","$/año",null,{"$f":"+E43*$D$10","v":0},{"$f":"+F43*$D$10","v":0},0,0,0,0,0,0,0,0,0,0,0,0,0,0,0,0,0,0]
[null,"Seguros","$/año",null,{"$f":"+D36*1%","v":0},{"$f":"+E47","v":0},{"$f":"+F47","v":0},0,0,0,0,0,0,0,0,0,0,0,0,0,0,0,0,0]
[null,"Costos Financieros","$/año",null,{"$f":"+E24/1000*4","v":0},0,0,0,0,0,0,0,0,0,0,0,0,0,0,0,0,0,0,0]
[null,"Total Costos Administrativos ","$/año",{"$f":"+SUM(D46:D48)","v":0},0,0,0,0,0,0,0,0,0,0,0,0,0,0,0,0,0,0,0,0]
[]
[null,"Impuestos"]
[null,"IVA"]
[null,"Impuesto de Renta",null,null,{"$f":"+IF($D$11=\"SI\",E84*50%,E84)","v":0},{"$f":"+IF($D$11=\"SI\",F84*50%,F84)","v":0},0,0,0,{"$f":"+J84","v":0},0,0,0,0,0,0,0,0,0,0,0,0,0,0]
[null,"Aranceles "]
[]
[]
[null,"Flujo de Caja libre",null,{"$f":"+D24-D36-D43-D49-D53","v":0},{"$f":"+E24-E36-E43-E49-E53","v":0},0,0,0,0,0,0,0,0,0,0,0,0,0,0,0,0,0,0,0]
[null,"Flujo de caja acumulado",null,{"$f":"+D57","v":0},{"$f":"+D58+E57","v":0},{"$f":"+E58+F57","v":0},0,0,0,0,0,0,0,0,0,0,0,0,0,0,0,0,0,0]
[null,"Beneficios",null,{"$f":"+D24","v":0},0,0,0,0,0,0,0,0,0,0,0,0,0,0,0,0,0,0,0,0]
[null,"Costos ",null,{"$f":"+D53+D43+D36+D49","v":0},{"$f":"+E53+E43+E36+E49","v":0},0,0,0,0,0,0,0,0,0,0,0,0,0,0,0,0,0,0,0]
[null,null,null,{"$f":"+D60*40%","v":0}]
[null,"TIR",{"$f":"+IRR(D57:X57)","v":{"$error":"#NUM!"}}]
[null,"VPN",{"$f":"+NPV($D$7,E57:X57)+D57","v":0}]
[null,"VPB",{"$f":"+NPV($D$7,E59:X59)+D59","v":0}]
[null,"VPC",{"$f":"+NPV($D$7,E60:X60)+D60","v":0}]
[null,"Relación B/C",{"$f":"+C64/C65","v":{"$error":"#DIV/0!"}}]
[null,"Payback",{"$f":"IF(COUNTIF(D58:X58,\"<0\")>20,\"\",COUNTIF(D58:X58,\"<0\"))","v":0}]
[]
[]
[null,"Estados de Resultados"]
[null,"Concepto ","Unidad","Año 0","Año 1","Año 2","Año 3","Año 4","Año 5","Año 6","Año 7","Año 8","Año 9","Año 10","Año 11","Año 12","Año 13","Año 14","Año 15","Año 16","Año 17","Año 18","Año 19","Año 20"]
[null,"Total Ingresos ",{"$f":"+C20","v":"$/año"},{"$f":"+D24","v":0},0,0,0,0,0,0,0,0,0,0,0,0,0,0,0,0,0,0,0,0]
[null,"Total Costos de Operación y Mantenimiento",{"$f":"+C43","v":"$/año"},0,0,0,0,0,0,0,0,0,0,0,0,0,0,0,0,0,0,0,0,0]
[null,"Utilidad Bruta ",null,{"$f":"+D72-D73","v":0},0,0,0,0,0,0,0,0,0,0,0,0,0,0,0,0,0,0,0,0]
[null,{"$f":"+B49","v":"Total Costos Administrativos "},{"$f":"+C49","v":"$/año"},{"$f":"+D49","v":0},{"$f":"+E49-E48","v":0},0,0,0,0,0,0,0,0,0,0,0,0,0,0,0,0,0,0,0]
[null,"EBITDA",null,{"$f":"+D74-D75","v":0},0,0,0,0,0,0,0,0,0,0,0,0,0,0,0,0,0,0,0,0]
[null,"Depreciación Inv Inicial",{"$f":"+C75","v":"$/año"},null,{"$f":"+(SUM(D29:D34))/D9","v":0},{"$f":"+E77","v":0},{"$f":"+F77","v":0},0,0,0,0,0,0,0,0,0,0,0,0,0,0,0,0,0]
[null,"Deprecciacion Reposición ",null,null,null,null,null,null,null,null,null,{"$f":"+$K$36/6","v":0},{"$f":"+$K$36/6","v":0},0,0,0,0,null,{"$f":"+$R$36/6","v":0},{"$f":"+$R$36/6","v":0},0,0,0,0]
[null,"UTILIDAD OPERATIVA ",null,{"$f":"+D76-D77","v":0},{"$f":"+E76-E77-E78","v":0},{"$f":"+F76-F77-F78","v":0},0,0,0,0,0,0,0,0,0,0,0,0,0,0,0,0,0,0]
[null,"Otros Gastos No Operacionales",null,null,{"$f":"+E48","v":0},0,0,0,0,0,0,0,0,0,0,0,0,0,0,0,0,0,0,0]
[null,"UTILIDAD ANTES DE IMPUESTOS",null,{"$f":"+D79","v":0},{"$f":"+E79-E80","v":0},0,0,0,0,0,0,0,0,0,0,0,0,0,0,0,0,0,0,0]
[null,"Impuestos"]
[null,"IVA"]
[null,"Impuesto de Renta",null,{"$f":"+IF(D81<0,0,D81*$D$12)","v":0},0,0,0,0,0,0,0,0,0,0,0,0,0,0,0,0,0,0,0,0]
[null,"UTILIDAD NETA",null,{"$f":"+D81-D84","v":0},0,0,0,0,0,0,0,0,0,0,0,0,0,0,0,0,0,0,0,0]
[]
[null,"Analisis de Sensibilidad"]
[]
[null,"Tir verus precio venta energia  y financiamiento publico",null,null,{"$f":"+C62","v":{"$error":"#NUM!"}}]
[null,null,null,0,{"$error":"#NUM!"}]
[null,null,null,0.05,{"$error":"#NUM!"}]
[null,null,null,0.1,{"$error":"#NUM!"}]
[null,null,null,0.2,{"$error":"#NUM!"}]
[null,null,null,0.3,{"$error":"#NUM!"}]
[null,null,null,0.4,{"$error":"#NUM!"}]
[null,null,null,0.5,{"$error":"#NUM!"}]
[null,null,null,0.6,{"$error":"#NUM!"}]
[null,null,null,0.7,{"$error":"#NUM!"}]
[null,null,null,0.8,{"$error":"#NUM!"}]

{"sheet":"EFINA-3","index":17,"n_rows":100,"n_cols":24,"rows_kept":100,"cut":false,"hidden":true,"merged":[[89,1,89,2],[3,1,3,11]]}
[null,"Evaluación financiera del proyecto WTE"]
[null,"Alternativa 1. Gen. Energía Eléctrica"]
[null,"g"]
[null,"WTE Pirolisis"]
[null,"Parámetros ",null,null,null,"SI"]
[null,"Concepto","Unidad","Valor",null,"NO"]
[null,"Tasa de descuento","%",0.11799999999999999]
[null,"Porcentaje de inversión inicial con fuente publica","%",{"$f":"'EFINA-2'!D8","v":0}]
[null,"Años de vida util","#",20]
[null,"% Costos de gerenciamiento sobre Costos de Op.",null,0.03]
[null,"Beneficio tributario (Impuesto de Renta) ",null,"SI"]
[null,"Impuesto de Renta","%",0.35]
[null," "]
[null,"(Miles de $)"]
[null,"FLUJO DE CAJA"]
[null,"Concepto ","Unidad","Año 0","Año 1","Año 2","Año 3","Año 4","Año 5","Año 6","Año 7","Año 8","Año 9","Año 10","Año 11","Año 12","Año 13","Año 14","Año 15","Año 16","Año 17","Año 18","Año 19","Año 20"]
[null,"Ingresos","$/año"]
[null,"Por venta de energía eléctrica","$/año",null,{"$f":"+'8'!E32","v":0},{"$f":"+'8'!F32","v":0},{"$f":"+'8'!G32","v":0},{"$f":"+'8'!H32","v":0},{"$f":"+'8'!I32","v":0},{"$f":"+'8'!J32","v":0},{"$f":"+'8'!K32","v":0},{"$f":"+'8'!L32","v":0},{"$f":"+'8'!M32","v":0},{"$f":"+'8'!N32","v":0},{"$f":"+'8'!O32","v":0},{"$f":"+'8'!P32","v":0},{"$f":"+'8'!Q32","v":0},{"$f":"+'8'!R32","v":0},{"$f":"+'8'!S32","v":0},{"$f":"+'8'!T32","v":0},{"$f":"+'8'!U32","v":0},{"$f":"+'8'!V32","v":0},{"$f":"+'8'!W32","v":0},{"$f":"+'8'!X32","v":0}]
[null,"Por componente de disposición final","$/año",null,{"$f":"+'8'!E28+'8'!E29","v":0},{"$f":"+'8'!F28+'8'!F29","v":0},{"$f":"+'8'!G28+'8'!G29","v":0},{"$f":"+'8'!H28+'8'!H29","v":0},{"$f":"+'8'!I28+'8'!I29","v":0},{"$f":"+'8'!J28+'8'!J29","v":0},{"$f":"+'8'!K28+'8'!K29","v":0},{"$f":"+'8'!L28+'8'!L29","v":0},{"$f":"+'8'!M28+'8'!M29","v":0},{"$f":"+'8'!N28+'8'!N29","v":0},{"$f":"+'8'!O28+'8'!O29","v":0},{"$f":"+'8'!P28+'8'!P29","v":0},{"$f":"+'8'!Q28+'8'!Q29","v":0},{"$f":"+'8'!R28+'8'!R29","v":0},{"$f":"+'8'!S28+'8'!S29","v":0},{"$f":"+'8'!T28+'8'!T29","v":0},{"$f":"+'8'!U28+'8'!U29","v":0},{"$f":"+'8'!V28+'8'!V29","v":0},{"$f":"+'8'!W28+'8'!W29","v":0},{"$f":"+'8'!X28+'8'!X29","v":0}]
[null,"Otros ingresos (Bonos de Carbono)","$/año",null,{"$f":"+'8'!E34","v":0},{"$f":"+'8'!F34","v":0},{"$f":"+'8'!G34","v":0},{"$f":"+'8'!H34","v":0},{"$f":"+'8'!I34","v":0},{"$f":"+'8'!J34","v":0},{"$f":"+'8'!K34","v":0},{"$f":"+'8'!L34","v":0},{"$f":"+'8'!M34","v":0},{"$f":"+'8'!N34","v":0},{"$f":"+'8'!O34","v":0},{"$f":"+'8'!P34","v":0},{"$f":"+'8'!Q34","v":0},{"$f":"+'8'!R34","v":0},{"$f":"+'8'!S34","v":0},{"$f":"+'8'!T34","v":0},{"$f":"+'8'!U34","v":0},{"$f":"+'8'!V34","v":0},{"$f":"+'8'!W34","v":0},{"$f":"+'8'!X34","v":0}]
[null,"Ingreso de los sub productos comercializables","$/año",null,{"$f":"+'8'!E31+'8'!E30","v":0},{"$f":"+'8'!F31+'8'!F30","v":0},{"$f":"+'8'!G31+'8'!G30","v":0},{"$f":"+'8'!H31+'8'!H30","v":0},{"$f":"+'8'!I31+'8'!I30","v":0},{"$f":"+'8'!J31+'8'!J30","v":0},{"$f":"+'8'!K31+'8'!K30","v":0},{"$f":"+'8'!L31+'8'!L30","v":0},{"$f":"+'8'!M31+'8'!M30","v":0},{"$f":"+'8'!N31+'8'!N30","v":0},{"$f":"+'8'!O31+'8'!O30","v":0},{"$f":"+'8'!P31+'8'!P30","v":0},{"$f":"+'8'!Q31+'8'!Q30","v":0},{"$f":"+'8'!R31+'8'!R30","v":0},{"$f":"+'8'!S31+'8'!S30","v":0},{"$f":"+'8'!T31+'8'!T30","v":0},{"$f":"+'8'!U31+'8'!U30","v":0},{"$f":"+'8'!V31+'8'!V30","v":0},{"$f":"+'8'!W31+'8'!W30","v":0},{"$f":"+'8'!X31+'8'!X30","v":0}]
[null,"Mejorador de Suelos (COMPOST)",null,null,{"$f":"+'8'!E33","v":0},{"$f":"+'8'!F33","v":0},{"$f":"+'8'!G33","v":0},{"$f":"+'8'!H33","v":0},{"$f":"+'8'!I33","v":0},{"$f":"+'8'!J33","v":0},{"$f":"+'8'!K33","v":0},{"$f":"+'8'!L33","v":0},{"$f":"+'8'!M33","v":0},{"$f":"+'8'!N33","v":0},{"$f":"+'8'!O33","v":0},{"$f":"+'8'!P33","v":0},{"$f":"+'8'!Q33","v":0},{"$f":"+'8'!R33","v":0},{"$f":"+'8'!S33","v":0},{"$f":"+'8'!T33","v":0},{"$f":"+'8'!U33","v":0},{"$f":"+'8'!V33","v":0},{"$f":"+'8'!W33","v":0},{"$f":"+'8'!X33","v":0}]
[null,{"$f":"+'8'!C35","v":"Energía como calor:"},null,null,{"$f":"+'8'!E35","v":0},{"$f":"+'8'!F35","v":0},{"$f":"+'8'!G35","v":0},{"$f":"+'8'!H35","v":0},{"$f":"+'8'!I35","v":0},{"$f":"+'8'!J35","v":0},{"$f":"+'8'!K35","v":0},{"$f":"+'8'!L35","v":0},{"$f":"+'8'!M35","v":0},{"$f":"+'8'!N35","v":0},{"$f":"+'8'!O35","v":0},{"$f":"+'8'!P35","v":0},{"$f":"+'8'!Q35","v":0},{"$f":"+'8'!R35","v":0},{"$f":"+'8'!S35","v":0},{"$f":"+'8'!T35","v":0},{"$f":"+'8'!U35","v":0},{"$f":"+'8'!V35","v":0},{"$f":"+'8'!W35","v":0},{"$f":"+'8'!X35","v":0}]
[null,{"$f":"+'8'!C36","v":"Aceite Pirolítico:"},null,null,{"$f":"+'8'!E36","v":0},{"$f":"+'8'!F36","v":0},{"$f":"+'8'!G36","v":0},{"$f":"+'8'!H36","v":0},{"$f":"+'8'!I36","v":0},{"$f":"+'8'!J36","v":0},{"$f":"+'8'!K36","v":0},{"$f":"+'8'!L36","v":0},{"$f":"+'8'!M36","v":0},{"$f":"+'8'!N36","v":0},{"$f":"+'8'!O36","v":0},{"$f":"+'8'!P36","v":0},{"$f":"+'8'!Q36","v":0},{"$f":"+'8'!R36","v":0},{"$f":"+'8'!S36","v":0},{"$f":"+'8'!T36","v":0},{"$f":"+'8'!U36","v":0},{"$f":"+'8'!V36","v":0},{"$f":"+'8'!W36","v":0},{"$f":"+'8'!X36","v":0}]
[null,"Total Ingresos ","$/año",{"$f":"+SUM(D19:D21)","v":0},{"$f":"+SUM(E18:E24)","v":0},{"$f":"+SUM(F18:F24)","v":0},0,0,0,0,0,0,0,0,0,0,0,0,0,0,0,0,0,0]
[null,null,"$/año"]
[null,"Costos de Inversión ","$/año"]
[null,"Estudios y Diseños","$/año",{"$f":"+'8'!D7","v":0}]
[null,"Predio","$/año",{"$f":"+'8'!D8","v":0}]
[null,"Obras Civiles Preliminares","$/año",{"$f":"+'8'!D11","v":0}]
[null,"Obras generalaes","$/año",{"$f":"+'8'!D12","v":0}]
[null,"Edificaciones","$/año",{"$f":"+'8'!D13","v":0}]
[null,"Equipos pretratamiento de residuos","$/año",{"$f":"+'8'!D14","v":0}]
[null,"Obras para valoración energética","$/año",{"$f":"+'8'!D16","v":0}]
[null,{"$f":"+'8'!C15","v":"Equipos pretratamiento otras biomasas"},"$/año",{"$f":"+'8'!D15","v":0}]
[null,"Reposición de Equipos","$/año",{"$f":"+'8'!D23","v":0},{"$f":"+'8'!E23","v":0},{"$f":"+'8'!F23","v":0},{"$f":"+'8'!G23","v":0},{"$f":"+'8'!H23","v":0},{"$f":"+'8'!I23","v":0},{"$f":"+'8'!J23","v":0},{"$f":"+'8'!K23","v":0},{"$f":"+'8'!L23","v":0},{"$f":"+'8'!M23","v":0},{"$f":"+'8'!N23","v":0},{"$f":"+'8'!O23","v":0},{"$f":"+'8'!P23","v":0},{"$f":"+'8'!Q23","v":0},{"$f":"+'8'!R23","v":0},{"$f":"+'8'!S23","v":0},{"$f":"+'8'!T23","v":0},{"$f":"+'8'!U23","v":0},{"$f":"+'8'!V23","v":0},{"$f":"+'8'!W23","v":0},{"$f":"+'8'!X23","v":0}]
[null,"Total Costos de Inversión","$/año",{"$f":"+SUM(D28:D36)*(1-D8)","v":0},{"$f":"+SUM(E28:E36)","v":0},0,0,0,0,0,0,0,0,0,0,0,0,0,0,0,0,0,0,0]
[]
[null,"Costos de Operación y Mantenimiento","$/año"]
[null,"Aspectos generales","$/año",null,{"$f":"+'8'!E19","v":0},{"$f":"+'8'!F19","v":0},{"$f":"+'8'!G19","v":0},{"$f":"+'8'!H19","v":0},{"$f":"+'8'!I19","v":0},{"$f":"+'8'!J19","v":0},{"$f":"+'8'!K19","v":0},{"$f":"+'8'!L19","v":0},{"$f":"+'8'!M19","v":0},{"$f":"+'8'!N19","v":0},{"$f":"+'8'!O19","v":0},{"$f":"+'8'!P19","v":0},{"$f":"+'8'!Q19","v":0},{"$f":"+'8'!R19","v":0},{"$f":"+'8'!S19","v":0},{"$f":"+'8'!T19","v":0},{"$f":"+'8'!U19","v":0},{"$f":"+'8'!V19","v":0},{"$f":"+'8'!W19","v":0},{"$f":"+'8'!X19","v":0}]
[null,"Personal","$/año",null,{"$f":"+'8'!E20","v":0},{"$f":"+'8'!F20","v":0},{"$f":"+'8'!G20","v":0},{"$f":"+'8'!H20","v":0},{"$f":"+'8'!I20","v":0},{"$f":"+'8'!J20","v":0},{"$f":"+'8'!K20","v":0},{"$f":"+'8'!L20","v":0},{"$f":"+'8'!M20","v":0},{"$f":"+'8'!N20","v":0},{"$f":"+'8'!O20","v":0},{"$f":"+'8'!P20","v":0},{"$f":"+'8'!Q20","v":0},{"$f":"+'8'!R20","v":0},{"$f":"+'8'!S20","v":0},{"$f":"+'8'!T20","v":0},{"$f":"+'8'!U20","v":0},{"$f":"+'8'!V20","v":0},{"$f":"+'8'!W20","v":0},{"$f":"+'8'!X20","v":0}]
[null,"Valoración energética","$/año",null,{"$f":"+'8'!E21","v":0},{"$f":"+'8'!F21","v":0},{"$f":"+'8'!G21","v":0},{"$f":"+'8'!H21","v":0},{"$f":"+'8'!I21","v":0},{"$f":"+'8'!J21","v":0},{"$f":"+'8'!K21","v":0},{"$f":"+'8'!L21","v":0},{"$f":"+'8'!M21","v":0},{"$f":"+'8'!N21","v":0},{"$f":"+'8'!O21","v":0},{"$f":"+'8'!P21","v":0},{"$f":"+'8'!Q21","v":0},{"$f":"+'8'!R21","v":0},{"$f":"+'8'!S21","v":0},{"$f":"+'8'!T21","v":0},{"$f":"+'8'!U21","v":0},{"$f":"+'8'!V21","v":0},{"$f":"+'8'!W21","v":0},{"$f":"+'8'!X21","v":0}]
[null,"Varios","$/año",null,{"$f":"+'8'!E22","v":0},{"$f":"+'8'!F22","v":0},{"$f":"+'8'!G22","v":0},{"$f":"+'8'!H22","v":0},{"$f":"+'8'!I22","v":0},{"$f":"+'8'!J22","v":0},{"$f":"+'8'!K22","v":0},{"$f":"+'8'!L22","v":0},{"$f":"+'8'!M22","v":0},{"$f":"+'8'!N22","v":0},{"$f":"+'8'!O22","v":0},{"$f":"+'8'!P22","v":0},{"$f":"+'8'!Q22","v":0},{"$f":"+'8'!R22","v":0},{"$f":"+'8'!S22","v":0},{"$f":"+'8'!T22","v":0},{"$f":"+'8'!U22","v":0},{"$f":"+'8'!V22","v":0},{"$f":"+'8'!W22","v":0},{"$f":"+'8'!X22","v":0}]
[null,"Total Costos de Operación y Mantenimiento","$/año",null,{"$f":"+SUM(E40:E43)","v":0},{"$f":"+SUM(F40:F43)","v":0},0,0,0,0,0,0,0,0,0,0,0,0,0,0,0,0,0,0]
[null,null,"$/año"]
[null,"Costos de Administración","$/año"]
[null,"Gerenciamiento y de obras e inversiones","$/año",null,{"$f":"+E44*$D$10","v":0},{"$f":"+F44*$D$10","v":0},0,0,0,0,0,0,0,0,0,0,0,0,0,0,0,0,0,0]
[null,"Seguros","$/año",null,{"$f":"+D37*1%","v":0},{"$f":"+E48","v":0},{"$f":"+F48","v":0},0,0,0,0,0,0,0,0,0,0,0,0,0,0,0,0,0]
[null,"Costos Financieros","$/año",null,{"$f":"+E25/1000*4","v":0},{"$f":"+F25/1000*4","v":0},0,0,0,0,0,0,0,0,0,0,0,0,0,0,0,0,0,0]
[null,"Total Costos Administrativos ","$/año",{"$f":"+SUM(D47:D49)","v":0},0,0,0,0,0,0,0,0,0,0,0,0,0,0,0,0,0,0,0,0]
[]
[null,"Impuestos"]
[null,"IVA"]
[null,"Impuesto de Renta",null,null,{"$f":"+IF($D$11=\"SI\",E85*50%,E85)","v":0},{"$f":"+IF($D$11=\"SI\",F85*50%,F85)","v":0},0,0,0,{"$f":"+J85","v":0},0,0,0,0,0,0,0,0,0,0,0,0,0,0]
[null,"Aranceles "]
[]
[]
[null,"Flujo de Caja libre",null,{"$f":"+D25-D37-D44-D50-D54","v":0},{"$f":"+E25-E37-E44-E50-E54","v":0},0,0,0,0,0,0,0,0,0,0,0,0,0,0,0,0,0,0,0]
[null,"Flujo de caja acumulado",null,{"$f":"+D58","v":0},{"$f":"+D59+E58","v":0},{"$f":"+E59+F58","v":0},0,0,0,0,0,0,0,0,0,0,0,0,0,0,0,0,0,0]
[null,"Beneficios",null,{"$f":"+D25","v":0},0,0,0,0,0,0,0,0,0,0,0,0,0,0,0,0,0,0,0,0]
[null,"Costos ",null,{"$f":"+D54+D44+D37+D50","v":0},{"$f":"+E54+E44+E37+E50","v":0},0,0,0,0,0,0,0,0,0,0,0,0,0,0,0,0,0,0,0]
[null,null,null,{"$f":"+D61*57%","v":0}]
[null,"TIR",{"$f":"+IRR(D58:X58)","v":{"$error":"#NUM!"}}]
[null,"VPN",{"$f":"+NPV($D$7,E58:X58)+D58","v":0}]
[null,"VPB",{"$f":"+NPV($D$7,E60:X60)+D60","v":0}]
[null,"VPC",{"$f":"+NPV($D$7,E61:X61)+D61","v":0}]
[null,"Relación B/C",{"$f":"+C65/C66","v":{"$error":"#DIV/0!"}}]
[null,"Payback",{"$f":"IF(COUNTIF(D59:X59,\"<0\")>20,\"\",COUNTIF(D59:X59,\"<0\"))","v":0}]
[]
[]
[null,"Estados de Resultados"]
[null,"Concepto ","Unidad","Año 0","Año 1","Año 2","Año 3","Año 4","Año 5","Año 6","Año 7","Año 8","Año 9","Año 10","Año 11","Año 12","Año 13","Año 14","Año 15","Año 16","Año 17","Año 18","Año 19","Año 20"]
[null,"Total Ingresos ",{"$f":"+C20","v":"$/año"},{"$f":"+D25","v":0},0,0,0,0,0,0,0,0,0,0,0,0,0,0,0,0,0,0,0,0]
[null,"Total Costos de Operación y Mantenimiento",{"$f":"+C44","v":"$/año"},0,0,0,0,0,0,0,0,0,0,0,0,0,0,0,0,0,0,0,0,0]
[null,"Utilidad Bruta ",null,{"$f":"+D73-D74","v":0},0,0,0,0,0,0,0,0,0,0,0,0,0,0,0,0,0,0,0,0]
[null,{"$f":"+B50","v":"Total Costos Administrativos "},{"$f":"+C50","v":"$/año"},{"$f":"+D50","v":0},{"$f":"+E50-E49","v":0},0,0,0,0,0,0,0,0,0,0,0,0,0,0,0,0,0,0,0]
[null,"EBITDA",null,{"$f":"+D75-D76","v":0},0,0,0,0,0,0,0,0,0,0,0,0,0,0,0,0,0,0,0,0]
[null,"Depreciación Inv Inicial",{"$f":"+C76","v":"$/año"},null,{"$f":"+(SUM(D30:D35))/D9","v":0},{"$f":"+E78","v":0},{"$f":"+F78","v":0},0,0,0,0,0,0,0,0,0,0,0,0,0,0,0,0,0]
[null,"Deprecciacion Reposición ",null,null,null,null,null,null,null,null,null,{"$f":"+$K$37/6","v":0},{"$f":"+$K$37/6","v":0},0,0,0,0,null,{"$f":"+$R$37/6","v":0},{"$f":"+$R$37/6","v":0},0,0,0,0]
[null,"UTILIDAD OPERATIVA ",null,{"$f":"+D77-D78","v":0},{"$f":"+E77-E78-E79","v":0},{"$f":"+F77-F78-F79","v":0},0,0,0,0,0,0,0,0,0,0,0,0,0,0,0,0,0,0]
[null,"Otros Gastos No Operacionales",null,null,{"$f":"+E49","v":0},0,0,0,0,0,0,0,0,0,0,0,0,0,0,0,0,0,0,0]
[null,"UTILIDAD ANTES DE IMPUESTOS",null,{"$f":"+D80","v":0},{"$f":"+E80-E81","v":0},0,0,0,0,0,0,0,0,0,0,0,0,0,0,0,0,0,0,0]
[null,"Impuestos"]
[null,"IVA"]
[null,"Impuesto de Renta",null,{"$f":"+IF(D82<0,0,D82*$D$12)","v":0},0,0,0,0,0,0,0,0,0,0,0,0,0,0,0,0,0,0,0,0]
[null,"UTILIDAD NETA",null,{"$f":"+D82-D85","v":0},0,0,0,0,0,0,0,0,0,0,0,0,0,0,0,0,0,0,0,0]
[]
[null,"Analisis de Sensibilidad"]
[]
[null,"Tir verus precio venta energia  y financiamiento publico",null,null,{"$f":"+C63","v":{"$error":"#NUM!"}}]
[null,null,null,0,{"$error":"#NUM!"}]
[null,null,null,0.05,{"$error":"#NUM!"}]
[null,null,null,0.1,{"$error":"#NUM!"}]
[null,null,null,0.2,{"$error":"#NUM!"}]
[null,null,null,0.3,{"$error":"#NUM!"}]
[null,null,null,0.4,{"$error":"#NUM!"}]
[null,null,null,0.5,{"$error":"#NUM!"}]
[null,null,null,0.6,{"$error":"#NUM!"}]
[null,null,null,0.7,{"$error":"#NUM!"}]
[null,null,null,0.8,{"$error":"#NUM!"}]

{"sheet":"Reporte viabilidad","index":18,"n_rows":75,"n_cols":17,"rows_kept":75,"cut":false,"hidden":false,"merged":[[31,9,31,11],[32,5,32,6],[33,5,33,6],[34,5,34,6],[35,5,35,6],[36,5,36,6],[37,5,37,6],[38,5,38,6],[39,5,39,6],[40,5,40,6],[8,2,10,2],[8,3,24,3],[23,5,23,8],[53,5,53,11],[45,12,45,13],[45,5,45,11],[54,5,54,11],[55,5,55,11],[31,4,31,7],[13,12,13,15],[14,12,14,15],[16,12,16,15],[17,12,17,15],[44,2,44,16],[42,2,42,16],[43,2,43,16],[41,5,41,6],[26,2,26,9],[26,12,26,16],[27,1,27,17],[28,1,74,1],[28,2,28,17],[29,2,29,16],[47,12,47,13],[48,12,48,13],[49,12,49,13],[52,5,52,15],[46,5,46,15],[47,5,47,11],[48,5,48,11],[49,5,49,11],[50,5,50,11],[51,5,51,11],[7,15,7,16],[7,12,7,14],[19,5,19,8],[22,5,22,8],[22,2,23,2],[21,12,21,15],[22,12,22,15],[23,12,23,15],[10,5,10,8],[10,12,10,15],[11,12,11,15],[12,5,12,8],[12,12,12,15],[13,5,13,8],[7,2,7,4],[7,5,7,8],[8,5,8,8],[9,5,9,8],[20,5,20,8],[12,2,20,2],[18,5,18,8],[20,12,20,15],[74,2,74,16],[60,6,72,6],[61,12,61,13],[56,12,56,13],[54,12,54,13],[55,12,55,13],[53,12,53,13],[50,12,50,13],[51,12,51,13],[69,12,69,13],[70,12,70,13],[71,12,71,13],[72,12,72,13],[63,12,63,13],[64,12,64,13],[65,12,65,13],[66,12,66,13],[67,12,67,13],[68,12,68,13],[60,9,60,11],[58,8,58,11],[59,8,59,11],[56,5,56,11],[25,12,25,15],[31,13,31,15],[31,17,40,17],[6,12,6,15],[7,10,11,10],[8,12,8,15],[9,12,9,15],[2,1,2,17],[3,0,74,0],[3,1,3,17],[5,1,26,1],[5,2,5,9],[5,11,25,11],[5,12,5,16],[6,2,6,4],[6,5,6,8],[24,12,24,15],[14,5,14,8],[15,5,15,8],[15,12,15,15],[16,5,16,8],[19,10,24,10],[19,12,19,15],[17,5,17,8]]}
[]
[]
[null,"REPORTE DE LA VIABILIDAD TECNICA AMBIENTAL ECONOMICA Y FINANCIERA DE DE PROYECTOS REPLICABLES  EN DIFERENTES SECTORES,MUNICIPIOS,REGIONES, CON DIVERSOS TIPOS DE RESIDUOS EN COLOMBIA."]
[null,"Datos de entrada "]
[]
[null,null,"Biomasa (sustrato)",null,null,null,null,null,null,null,null,null,"Parámetros "]
[null,null,"                    "]
[null,null,"           Sector ",null,null,"Biomasa",null,null,null,"Ton/dia",null,null,"INGRESOS                               ",null,null,"Valor Tarifa Mil $"]
[null,null,"PECUARIO ",null,"Avícola ","Estiércol",null,null,null,{"$f":"'M1'!E27/312","v":0},null,null,"Servicio de tratamiento RSOU",null,null,null,{"$f":"Ingresos!F8","v":35}]
[null,null,null,null,"Porcícola ","Estiércol",null,null,null,{"$f":"'M1'!F27/312","v":0},null,null,"Servicio de tratamiento lodos de PTAR",null,null,null,{"$f":"Ingresos!F9","v":20}]
[null,null,null,null,"Bovino ","Estiércol",null,null,null,{"$f":"'M1'!G27/312","v":0},null,null,"Servicio de tratamiento otras biomasas ",null,null,null,{"$f":"Ingresos!F10","v":10}]
[null,null,null,null,null,null,null,null,null,null,null,null,"Venta de materiales plasticos ",null,null,null,{"$f":"Ingresos!F12","v":0.1}]
[null,null,"AGRICOLA ",null,"Arroz ","Paja",null,null,null,{"$f":"'M1'!H27/312","v":0},null,null,"Venta de materiales metálicos ",null,null,null,{"$f":"Ingresos!F11","v":0.5}]
[null,null,null,null,"Banano ","Fruta Rechazo",null,null,null,{"$f":"'M1'!I27/312","v":0},null,null,"Venta de energía eléctrica ",null,null,null,{"$f":"Ingresos!F13","v":0.18}]
[null,null,null,null,"Café pulpa","Pulpa",null,null,null,{"$f":"'M1'!J27/312","v":0},null,null,"Mejorador de suelos (digestato)",null,null,null,{"$f":"Ingresos!F14","v":100}]
[null,null,null,null,"Café mucilago","Mucilago",null,null,null,{"$f":"'M1'!K27/312","v":0},null,null,"Bonos de carbón ",null,null,null,{"$f":"Ingresos!F15","v":15}]
[null,null,null,null,"Maíz","Caña",null,null,null,{"$f":"'M1'!L27/312","v":0},null,null,"Energía como calor ",null,null,null,{"$f":"Ingresos!F28","v":0.09}]
[null,null,null,null,"Palma de aceite ","RFF ",null,null,null,{"$f":"'M1'!M27/312","v":0},null,null,"Aceite pirolítico ",null,null,null,{"$f":"Ingresos!F42","v":1.8900000000000001}]
[null,null,null,null,"Plátano","Fruta Rechazo",null,null,null,{"$f":"'M1'!N27/312","v":0}]
[null,null,null,null,"Caña de Azúcar ","Bagazo",null,null,null,{"$f":"'M1'!O27/312","v":0},null,null,"OTROS ",null,null,null,"  Valor  "]
[null,null,null,null,"Caña panelera ","Bagazo",null,null,null,{"$f":"'M1'!P27/312","v":0},null,null,"Tasa de descuento",null,null,null,0.11799999999999999]
[null,null,null,null,null,null,null,null,null,null,null,null,"Porcentaje de inversión inicial con fuente publica",null,null,null,0]
[null,null,"URBANOS ",null,"RSU","RSOU",null,null,null,{"$f":"'M1'!Q27/312","v":0},null,null,"Años de vida util",null,null,null,20]
[null,null,null,null,"Lodos de PTAR ","Lodos",null,null,null,{"$f":"'M1'!R27/312","v":0},null,null,"% Costos de gerenciamiento sobre Costos de Op.",null,null,null,0.03]
[null,null,null,null,null,null,null,null,null,null,null,null,"Beneficio tributario (Impuesto de Renta) ",null,null,null,"SI"]
[null,null,null,null,null,null,null,null,null,null,null,null,"Impuesto de Renta",null,null,null,0.35]
[]
[null,"Datos de salida "]
[]
[null,null,"Reporte técnico "]
[]
[null,null,null,null,"Degradación anaeróbica",null,null,null,null,"Incineración ",null,null,null,"Pirolisis "]
[null,null,null,null,"Parametro ","Unidad ",null,"Valor ",null,"Parametro ","Unidad ","Valor ",null,"Parametro ","Unidad ","Valor "]
[null,null,null,null,"Capacidad de la planta","Ton/dia ",null,{"$f":"'Salida datos tecnicos'!D8","v":0},null,"Capacidad de la planta","Ton/dia ",{"$f":"'Salida datos tecnicos'!D21","v":0},null,"Capacidad de la planta","Ton/dia ",{"$f":"'Salida datos tecnicos'!D33","v":0}]
[null,null,null,null,"Capacidad para RSOU","Ton/dia ",null,{"$f":"'Salida datos tecnicos'!D9","v":0},null,"Capacidad para RSOU","Ton/dia ",{"$f":"'Salida datos tecnicos'!D22","v":0},null,"Capacidad para RSOU","Ton/dia ",{"$f":"'Salida datos tecnicos'!D34","v":0}]
[null,null,null,null,"Capacidad para otras biomasa","Ton/dia ",null,{"$f":"'Salida datos tecnicos'!D10","v":0},null,"Capacidad para otras biomasa","Ton/dia ",{"$f":"'Salida datos tecnicos'!D23","v":0},null,"Capacidad para otras biomasa","Ton/dia ",{"$f":"'Salida datos tecnicos'!D35","v":0}]
[null,null,null,null,"Area total de la planta","Has ",null,{"$f":"'Salida datos tecnicos'!D11","v":0},null,"Area total de la planta","Has",{"$f":"'Salida datos tecnicos'!D24","v":0},null,"Area total de la planta","Has",{"$f":"'Salida datos tecnicos'!D36","v":0}]
[null,null,null,null,"Cantidad de biogás producida","m3/d",null,{"$f":"'Salida datos tecnicos'!D12","v":0},null,"Potencial energético","Tj/año",{"$f":"'Salida datos tecnicos'!D25","v":0},null,"Potencial energético","Tj/año",{"$f":"'Salida datos tecnicos'!D37","v":0}]
[null,null,null,null,"% metano en el Biogás","%",null,{"$f":"'Salida datos tecnicos'!D13","v":0.65},null,"Electricidad generada","kWh/año",{"$f":"'Salida datos tecnicos'!D26","v":0},null,"Electricidad generada","kWh/año",{"$f":"'Salida datos tecnicos'!D38","v":0}]
[null,null,null,null,"Electricidad generada","kWh/año",null,{"$f":"'Salida datos tecnicos'!D14","v":0},null,"Cantidad de cenizas y escoreas","Ton/dia ",{"$f":"'Salida datos tecnicos'!D27","v":0},null,"Aceite pirolítico","Ton/año",{"$f":"'Salida datos tecnicos'!D39","v":0}]
[null,null,null,null,"Cantidad de digestato generado","Ton/dia ",null,{"$f":"'Salida datos tecnicos'!D15","v":0},null,"Bonos de carbón","Ton CO2e /año",{"$f":"'Salida datos tecnicos'!D28","v":0},null,"Bonos de carbón","Ton CO2e /año",{"$f":"'Salida datos tecnicos'!D40","v":0}]
[null,null,null,null,"Bonos de carbón","Ton CO2e /año",null,{"$f":"'Salida datos tecnicos'!D16","v":0}]
[]
[null,null,"Reporte economico financiero "]
[]
[null,null,null,null,null,"Concepto ",null,null,null,null,null,null,"WTE Degradación anaeróbica",null,"WTE Incineración","WTE Pirolisis"]
[null,null,null,null,null,"Resumen Cifras (Millones de Pesos)"]
[null,null,null,null,null,"Inversión inicial (total)",null,null,null,null,null,null,{"$f":"+'EFINA-1'!D35/1000","v":0},null,{"$f":"+'EFINA-2'!D36/1000","v":0},{"$f":"+'EFINA-3'!D37/1000","v":0}]
[null,null,null,null,null,"Inversion reposición (total)",null,null,null,null,null,null,{"$f":"+'EFINA-1'!R34*0.002","v":0},null,{"$f":"+'EFINA-2'!K35*0.002","v":0},{"$f":"+'EFINA-3'!K36*0.002","v":0}]
[null,null,null,null,null,"Costos de Operación y mantenimiento (anual)",null,null,null,null,null,null,{"$f":"+'EFINA-1'!P42/1000","v":0},null,{"$f":"+'EFINA-2'!E43/1000","v":0},{"$f":"+'EFINA-3'!E44/1000","v":0}]
[null,null,null,null,null,"Costos Administrativos (anual)",null,null,null,null,null,null,{"$f":"+'EFINA-1'!P48/1000","v":0},null,{"$f":"+'EFINA-2'!E49/1000","v":0},{"$f":"+'EFINA-3'!G50/1000","v":0}]
[null,null,null,null,null,"Ingresos (anual)",null,null,null,null,null,null,{"$f":"+'EFINA-1'!E23/1000","v":0},null,{"$f":"+'EFINA-2'!E43/1000","v":0},{"$f":"+'EFINA-3'!E25/1000","v":0}]
[null,null,null,null,null,"Resultados Financieros"]
[null,null,null,null,null,"TIR",null,null,null,null,null,null,{"$f":"+IFERROR('EFINA-1'!C61,\"NEGATIVA\")","v":"NEGATIVA"},null,{"$f":"+IFERROR('EFINA-2'!C62,\"NEGATIVA\")","v":"NEGATIVA"},{"$f":"+IFERROR('EFINA-3'!C63,\"NEGATIVA\")","v":"NEGATIVA"}]
[null,null,null,null,null,"VPN (Mill $)",null,null,null,null,null,null,{"$f":"+'EFINA-1'!C62/1000","v":0},null,{"$f":"+'EFINA-2'!C63/1000","v":0},{"$f":"+'EFINA-3'!C64/1000","v":0}]
[null,null,null,null,null,"R/BC",null,null,null,null,null,null,{"$f":"+IFERROR('EFINA-1'!C65,\"NO RECOMENDADA\")","v":"NO RECOMENDADA"},null,{"$f":"IFERROR(+'EFINA-2'!C66,\"NO RECOMENDADA\")","v":"NO RECOMENDADA"},{"$f":"+IFERROR('EFINA-3'!C67,\"NO RECOMENDADA\")","v":"NO RECOMENDADA"}]
[null,null,null,null,null,"Payback",null,null,null,null,null,null,{"$f":"+'EFINA-1'!C66","v":0},null,{"$f":"+'EFINA-2'!C67","v":0},{"$f":"+'EFINA-3'!C68","v":0}]
[]
[]
[null,null,null,null,null,null,null,null,"TIR vs Financiamiento Inv inicial con recursos no reembolsables"]
[null,null,null,null,null,null,null,null,null,"TIR"]
[null,null,null,null,null,null,null,null,"Porcentaje inversión inicial","WTE Degradación anaeróbica","WTE Incineración","WTE Pirolisis"]
[null,null,null,null,null,null,null,null,null,{"$f":"+M54","v":"NEGATIVA"},{"$f":"+O54","v":"NEGATIVA"},{"$f":"+P54","v":"NEGATIVA"}]
[null,null,null,null,null,null,null,null,0.1,"NEGATIVA","NEGATIVA","NEGATIVA"]
[null,null,null,null,null,null,null,null,0.1,"NEGATIVA","NEGATIVA","NEGATIVA"]
[null,null,null,null,null,null,null,null,0.2,"NEGATIVA","NEGATIVA","NEGATIVA"]
[null,null,null,null,null,null,null,null,0.3,"NEGATIVA","NEGATIVA","NEGATIVA"]
[null,null,null,null,null,null,null,null,0.4,"NEGATIVA","NEGATIVA","NEGATIVA"]
[null,null,null,null,null,null,null,null,0.5,"NEGATIVA","NEGATIVA","NEGATIVA"]
[null,null,null,null,null,null,null,null,0.6,"NEGATIVA","NEGATIVA","NEGATIVA"]
[null,null,null,null,null,null,null,null,0.7,"NEGATIVA","NEGATIVA","NEGATIVA"]
[null,null,null,null,null,null,null,null,0.8,"NEGATIVA","NEGATIVA","NEGATIVA"]
[null,null,null,null,null,null,null,null,0.9,"NEGATIVA","NEGATIVA","NEGATIVA"]
[]
[null,null,"“La gráfica muestra el resultado de la TIR teniendo en cuenta diferentes niveles de financiamiento de la inversión inicial con recursos no reembolsables. Se recomienda utilizar 11,8% como tasa de referencia para comparar la TIR, correspondiente a la tasa de retorno para la actividad de distribución de energía eléctrica, calculada por la CREG.”"]

{"sheet":"Hoja3","index":19,"n_rows":19,"n_cols":9,"rows_kept":19,"cut":false,"hidden":true,"merged":[[1,4,1,8],[1,3,2,3]]}
[]
[null,null,null,"Precio Venta energía  ($/Kwh)","Precio Disposición final  ($/Ton)"]
[null,null,null,null,33000,34000,35000,36000,37000]
[null,null,null,120,-2.9402470299237815E-2,-1.2689919021396712E-2,7.9647237795787973E-4,1.053555303822229E-2,1.9846589068363452E-2]
[null,null,null,140,-5.716579567393909E-3,5.6570760018679334E-3,1.5175477028659845E-2,2.4301609890032827E-2,3.3096353086027541E-2]
[null,null,null,160,1.0403823612733509E-2,1.9720280811909907E-2,2.8676245170812908E-2,3.7326147546644206E-2,4.5713896747800353E-2]
[null,null,null,180,2.4177653792666121E-2,3.2976628142956654E-2,4.1492326701820792E-2,4.9764460579295733E-2,5.7825736527048921E-2]
[null,null,null,200,3.7208278138661122E-2,4.5599395271688881E-2,5.3763842275117435E-2,6.173147158020198E-2,6.9527285280090556E-2]
[null,null,null,220,4.965144829874002E-2,5.7715446234563705E-2,6.5595492605865502E-2,7.3314578108101935E-2,8.0892223086805659E-2]
[null,null,null,240,6.1622392642701751E-2,6.942043271237508E-2,7.7067526004837239E-2,8.4581732505154106E-2,9.1978559882821553E-2]
[]
[null,null,null,"Precio Servicio de tratamiento otras biomasas ($ /ton)","E2","E3"]
[null,null,null,2000,-0.17277394297954896]
[null,null,null,5000,-5.2190070290563773E-2]
[null,null,null,7000,-1.2276006809437523E-2,-0.10640785415127274]
[null,null,null,10000,2.7728488302288135E-2,-1.0716451101149049E-2]
[null,null,null,15000,7.648971607484345E-2,6.4613164984963056E-2]
[null,null,null,20000,0.12059499241156457,0.12324714321657892]
[null,null,null,25000,0.16239157744117438,0.17801892590065993]